Workbook

Sheet index
A2: 平成28年度下水道事業比較経営診断表
B4: 都道府県名 | K4: 処理区域内人口別区分 | L4: 政令市等 | O4: 処理区域内人口 （人） | Q4: 1932394
B5: 団体名 | K5: 有収水量密度別区分 | L5: 政令市等 | O5: 有収水量密度 （千㎥/ｈa) | Q5: 8.4
B6: 事業名 | K6: 供用開始後年数別区分 | L6: 政令市等 | O6: 供用開始後年数 (年） | Q6: 56
A8: 項 目 | E8: 団 体 | G8: 類型平均 | H8: 全国平均 | I8: 類型内 順 位 | J8: 項 目 | M8: 団 体 | O8: 類型平均 | P8: 全国平均 | Q8: 類型内 順 位
E9: 27年度 | F9: 28年度 | H9: (公共) | M9: 27年度 | N9: 28年度 | P9: (公共)
A10: 事業の概要 | J10: 財政状態の健全性
A11: 事業別普及率 | D11: ％ | E11: 99.3 | F11: 99.3 | G11: － | H11: 77.8 | I11: － | J11: 総収支比率 | L11: ％ | M11: 110.5 | N11: 109.5 | O11: 108.9 | P11: 118.6 | Q11: 6/21
A12: 進捗率 | D12: ％ | E12: 92.6 | F12: 104.1 | G12: 100.6 | H12: 92.1 | I12: － | J12: 経常収支比率 | L12: ％ | M12: 110.8 | N12: 109.5 | O12: 109.1 | P12: 99.1 | Q12: 6/21
A13: 一般家庭用使用料 （1ヶ月20㎥あたり） | D13: 円／月 | E13: 1371 | F13: 1371 | G13: 2177 | H13: 2758 | I13: － | J13: 事業別資金不足比率 | L13: ％ | M13: 0 | N13: 0 | O13: 0 | P13: 3.2 | Q13: 1/21
A14: 処理区域内人口密度 | D14: 人／ha | E14: 79 | F14: 79 | G14: 99 | H14: 61 | I14: － | J14: 利子負担率 | L14: ％ | M14: 2.1 | N14: 1.9 | O14: 1.9 | P14: 2 | Q14: 7/21
A15: 施設の効率性 | J15: 自己資本構成比率 | L15: ％ | M15: 57 | N15: 57.4 | O15: 59.7 | P15: 58 | Q15: 8/21
A16: 施設利用率 | D16: ％ | E16: 68.1 | F16: 67.7 | G16: 63.1 | H16: 86.2 | I16: 11/21 | J16: 固定資産対長期資本比率 | L16: ％ | M16: 102 | N16: 101.7 | O16: 102.1 | P16: 101.9 | Q16: 10/21
A17: 有収率 | D17: ％ | E17: 70.7 | F17: 71.7 | G17: 78.6 | H17: 80.2 | I17: 15/21 | J17: 処理区域内人口１人あたり の地方債現在高 | L17: 千円／人 | M17: 132 | N17: 128 | O17: 200 | P17: 218 | Q17: 3/21
A18: 水洗化率 | D18: ％ | E18: 99.9 | F18: 99.9 | G18: 98.9 | H18: 94.9 | I18: 3/21
A19: 経営の効率性
A20: 使用料単価 | D20: 円／㎥ | E20: 94.42 | F20: 93.6 | G20: 133.06 | H20: 137.88 | I20: 21/21
A21: 汚水処理原価 | D21: 円／㎥ | E21: 89.14 | F21: 90.8 | G21: 117.4 | H21: 137.85 | I21: 1/21
A22: 汚水処理原価(分流式下水道 等に要する経費控除前） | D22: 円／㎥ | E22: 89.14 | F22: 90.8 | G22: 120.14 | H22: 167.15 | I22: 1/21
A23: 汚水処理原価 （維持管理費） | D23: 円／㎥ | E23: 49.87 | F23: 51.63 | G23: 54.57 | H23: 68.76 | I23: 9/21
A24: 汚水処理原価 （資本費） | D24: 円／㎥ | E24: 39.27 | F24: 39.17 | G24: 62.83 | H24: 69.08 | I24: 1/21
A25: 経費回収率 | D25: ％ | E25: 105.9 | F25: 103.1 | G25: 113.3 | H25: 100 | I25: 14/21
A26: 経費回収率(分流式下水道 等に要する経費控除前） | D26: ％ | E26: 105.9 | F26: 103.1 | G26: 110.8 | H26: 82.5 | I26: 12/21
A27: 経費回収率 （維持管理費） | D27: ％ | E27: 189.3 | F27: 181.3 | G27: 243.8 | H27: 200.5 | I27: 20/21
A28: 処理区域内人口1人あたり の管理運営費(汚水分） | D28: 円／人 | E28: 9530 | F28: 9721 | G28: 13622 | H28: 14891 | I28: 1/21
A29: 処理区域内人口1人あたり の維持管理費（汚水分） | D29: 円／人 | E29: 5332 | F29: 5527 | G29: 6331 | H29: 7428 | I29: 9/21
A30: 処理区域内人口1人あたり の資本費（汚水分） | D30: 円／人 | E30: 4198 | F30: 4193 | G30: 7290 | H30: 7463 | I30: 1/21
A31: 職員１人あたりの 処理区域内人口 | D31: 人／人 | E31: 3917 | F31: 3968 | G31: 4152 | H31: 4216 | I31: 13/21
A32: 職員給与費対営業収益比率 | D32: ％ | E32: 8.3 | F32: 8.4 | G32: 5.9 | H32: 6 | I32: 16/21
A34: 経 営 状 況
A35: 収 益 的 収 支 | J35: 資 本 的 収 支
A36: 項 目 | E36: 27年度 | F36: 28年度 | G36: 増減額 | H36: 増減率（％） | J36: 項 目 | M36: 27年度 | N36: 28年度 | O36: 増減額 | P36: 増減率（％）
A37: 収 入 | D37: 百万円 | E37: 52316 | F37: 50587 | G37: -1729 | H37: -3.417874157 | J37: 収 入 | L37: 百万円 | M37: 18088 | N37: 16020 | O37: -2068 | P37: -12.90886392
B38: 料金収入 | D38: 百万円 | E38: 19453 | F38: 19364 | G38: -89 | H38: -0.4596157819 | K38: 地方債 | L38: 百万円 | M38: 12103 | N38: 10053 | O38: -2050 | P38: -20.39192281
B39: 繰入金 | D39: 百万円 | E39: 20003 | F39: 19718 | G39: -285 | H39: -1.445379856 | K39: 繰入金 | L39: 百万円 | M39: 772 | N39: 750 | O39: -22 | P39: -2.933333333
A40: 支 出 | D40: 百万円 | E40: 47363 | F40: 46219 | G40: -1144 | H40: -2.475172548 | J40: 支 出 | L40: 百万円 | M40: 36797 | N40: 32892 | O40: -3905 | P40: -11.87218777
B41: 支払利息 | D41: 百万円 | E41: 5352 | F41: 4680 | G41: -672 | H41: -14.35897436 | K41: 建設改良費 | L41: 百万円 | M41: 16030 | N41: 15461 | O41: -569 | P41: -3.68022767
B42: 減価償却費 | D42: 百万円 | E42: 24813 | F42: 24334 | G42: -479 | H42: -1.968439221 | K42: 元金償還金 | L42: 百万円 | M42: 20739 | N42: 17380 | O42: -3359 | P42: -19.32681243
B43: 職員給与費 | D43: 百万円 | E43: 3257 | F43: 3241 | G43: -16 | H43: -0.4936747917 | J43: 収 支 差 引 | L43: 百万円 | M43: -18709 | N43: -16873 | O43: 1836 | P43: -10.88128963
A44: 収 支 差 引 | D44: 百万円 | E44: 4953 | F44: 4368 | G44: -585 | H44: -13.39285714 | J44: 収 支 再 差 引 （法適：純損益） | L44: 百万円 | M44: 4953 | N44: 4368 | O44: -585 | P44: -13.39285714
A46: ※「類型内順位」については
A47: の場合であれば指標の数値の高い方から、
A48: の場合であれば指標の数値が低い方から数えた順位となる
F49: 団体 | G49: 類型平均 | H49: 全国平均
F50: =+IF(IF(G17<>0,F17/G17,0)>0.6,IF(IF(G17<>0,F17/G17)<1.5,IF(G17<>0,F17/G17),1.5),0.6) -> 0.9122137405 | G50: =+IF(IF(G17<>0,G17/G17,0)>0.6,IF(IF(G17<>0,G17/G17,0)<1.5,IF(G17<>0,G17/G17,0),1.5),0.6) -> 1 | H50: =+IF(IF(G17<>0,H17/G17,0)>0.6,IF(IF(G17<>0,H17/G17,0)<1.5,IF(G17<>0,H17/G17,0),1.5),0.6) -> 1.020356234
F51: =+IF(IF(G25<>0,F25/G25,0)>0.6,IF(IF(G25<>0,F25/G25,0)<1.5,IF(G25<>0,F25/G25,0),1.5),0.6) -> 0.9099735216 | G51: =+IF(IF(G25<>0,G25/G25,0)>0.6,IF(IF(G25<>0,G25/G25,0)<1.5,IF(G25<>0,G25/G25,0),1.5),0.6) -> 1 | H51: =+IF(IF(G25<>0,H25/G25,0)>0.6,IF(IF(G25<>0,H25/G25,0)<1.5,IF(G25<>0,H25/G25,0),1.5),0.6) -> 0.8826125331
F52: =+IF(IF(G26<>0,F26/G26,0)>0.6,IF(IF(G26<>0,F26/G26,0)<1.5,IF(G26<>0,F26/G26,0),1.5),0.6) -> 0.9305054152 | G52: =+IF(IF(G26<>0,G26/G26,0)>0.6,IF(IF(G26<>0,G26/G26,0)<1.5,IF(G26<>0,G26/G26,0),1.5),0.6) -> 1 | H52: =+IF(IF(G26<>0,H26/G26,0)>0.6,IF(IF(G26<>0,H26/G26,0)<1.5,IF(G26<>0,H26/G26,0),1.5),0.6) -> 0.7445848375
F53: =+IF(IF(G22<>0,G22/F22,0)>0.6,IF(IF(G22<>0,G22/F22,0)<1.5,IF(G22<>0,G22/F22,0),1.5),0.6) -> 1.323127753 | G53: =+IF(IF(G22<>0,G22/G22,0)>0.6,IF(IF(G22<>0,G22/G22,0)<1.5,IF(G22<>0,G22/G22,0),1.5),0.6) -> 1 | H53: =+IF(IF(G22<>0,G22/H22,0)>0.6,IF(IF(G22<>0,G22/H22,0)<1.5,IF(G22<>0,G22/H22,0),1.5),0.6) -> 0.7187556087
F54: =+IF(IF(G18<>0,F18/G18,0)>0.6,IF(IF(G18<>0,F18/G18,0)<1.5,IF(G18<>0,F18/G18,0),1.5),0.6) -> 1.010111223 | G54: =+IF(IF(G18<>0,G18/G18,0)>0.6,IF(IF(G18<>0,G18/G18,0)<1.5,IF(G18<>0,G18/G18,0),1.5),0.6) -> 1 | H54: =+IF(IF(G18<>0,H18/G18,0)>0.6,IF(IF(G18<>0,H18/G18,0)<1.5,IF(G18<>0,H18/G18,0),1.5),0.6) -> 0.9595551062

Sheet 28収支
A1: 決算年度 | B1: 業務コード | C1: 業種コード | D1: 事業コード | E1: 並び順 | F1: 事業区分 | G1: 団体コード | H1: 都道府県 | I1: 団体名 | J1: 収入 | K1: 料金収入 | L1: 繰入金 | M1: 支出 | N1: 支払利息 | O1: 減価償却費 | P1: 職員給与費 | Q1: 収支差引 | R1: 収入 | S1: 地方債 | T1: 繰入金 | U1: 支出 | V1: 建設改良費 | W1: 元金償還金 | X1: 収支差引 | Y1: 収支再差引
A2: 2016 | B2: 46 | C2: 17 | D2: 1 | E2: 1 | F2: 公共 | G2: 011002 | H2: 北海道 | I2: 札幌市 | J2: =IF(千円単!J2="","",ROUND(千円単!J2/1000,0)) -> 50587 | K2: =IF(千円単!K2="","",ROUND(千円単!K2/1000,0)) -> 19364 | L2: =IF(千円単!L2="","",ROUND(千円単!L2/1000,0)) -> 19718 | M2: =IF(千円単!M2="","",ROUND(千円単!M2/1000,0)) -> 46219 | N2: =IF(千円単!N2="","",ROUND(千円単!N2/1000,0)) -> 4680 | O2: =IF(千円単!O2="","",ROUND(千円単!O2/1000,0)) -> 24334 | P2: =IF(千円単!P2="","",ROUND(千円単!P2/1000,0)) -> 3241 | Q2: =IF(千円単!Q2="","",ROUND(千円単!Q2/1000,0)) -> 4368 | R2: =IF(千円単!R2="","",ROUND(千円単!R2/1000,0)) -> 16020 | S2: =IF(千円単!S2="","",ROUND(千円単!S2/1000,0)) -> 10053 | T2: =IF(千円単!T2="","",ROUND(千円単!T2/1000,0)) -> 750 | U2: =IF(千円単!U2="","",ROUND(千円単!U2/1000,0)) -> 32892 | V2: =IF(千円単!V2="","",ROUND(千円単!V2/1000,0)) -> 15461 | W2: =IF(千円単!W2="","",ROUND(千円単!W2/1000,0)) -> 17380 | X2: =IF(千円単!X2="","",ROUND(千円単!X2/1000,0)) -> -16873 | Y2: =IF(千円単!Y2="","",ROUND(千円単!Y2/1000,0)) -> 4368
A3: 2016 | B3: 46 | C3: 17 | D3: 1 | E3: 2 | F3: 公共 | G3: 012025 | H3: 北海道 | I3: 函館市 | J3: =IF(千円単!J3="","",ROUND(千円単!J3/1000,0)) -> 7458 | K3: =IF(千円単!K3="","",ROUND(千円単!K3/1000,0)) -> 4294 | L3: =IF(千円単!L3="","",ROUND(千円単!L3/1000,0)) -> 1136 | M3: =IF(千円単!M3="","",ROUND(千円単!M3/1000,0)) -> 6449 | N3: =IF(千円単!N3="","",ROUND(千円単!N3/1000,0)) -> 1063 | O3: =IF(千円単!O3="","",ROUND(千円単!O3/1000,0)) -> 3465 | P3: =IF(千円単!P3="","",ROUND(千円単!P3/1000,0)) -> 374 | Q3: =IF(千円単!Q3="","",ROUND(千円単!Q3/1000,0)) -> 1009 | R3: =IF(千円単!R3="","",ROUND(千円単!R3/1000,0)) -> 2960 | S3: =IF(千円単!S3="","",ROUND(千円単!S3/1000,0)) -> 2125 | T3: =IF(千円単!T3="","",ROUND(千円単!T3/1000,0)) -> 475 | U3: =IF(千円単!U3="","",ROUND(千円単!U3/1000,0)) -> 5496 | V3: =IF(千円単!V3="","",ROUND(千円単!V3/1000,0)) -> 1445 | W3: =IF(千円単!W3="","",ROUND(千円単!W3/1000,0)) -> 4045 | X3: =IF(千円単!X3="","",ROUND(千円単!X3/1000,0)) -> -2536 | Y3: =IF(千円単!Y3="","",ROUND(千円単!Y3/1000,0)) -> 1009
A4: 2016 | B4: 46 | C4: 17 | D4: 1 | E4: 3 | F4: 公共 | G4: 012033 | H4: 北海道 | I4: 小樽市 | J4: =IF(千円単!J4="","",ROUND(千円単!J4/1000,0)) -> 3834 | K4: =IF(千円単!K4="","",ROUND(千円単!K4/1000,0)) -> 1913 | L4: =IF(千円単!L4="","",ROUND(千円単!L4/1000,0)) -> 943 | M4: =IF(千円単!M4="","",ROUND(千円単!M4/1000,0)) -> 3222 | N4: =IF(千円単!N4="","",ROUND(千円単!N4/1000,0)) -> 295 | O4: =IF(千円単!O4="","",ROUND(千円単!O4/1000,0)) -> 1840 | P4: =IF(千円単!P4="","",ROUND(千円単!P4/1000,0)) -> 77 | Q4: =IF(千円単!Q4="","",ROUND(千円単!Q4/1000,0)) -> 612 | R4: =IF(千円単!R4="","",ROUND(千円単!R4/1000,0)) -> 1648 | S4: =IF(千円単!S4="","",ROUND(千円単!S4/1000,0)) -> 737 | T4: =IF(千円単!T4="","",ROUND(千円単!T4/1000,0)) -> 359 | U4: =IF(千円単!U4="","",ROUND(千円単!U4/1000,0)) -> 3235 | V4: =IF(千円単!V4="","",ROUND(千円単!V4/1000,0)) -> 797 | W4: =IF(千円単!W4="","",ROUND(千円単!W4/1000,0)) -> 2436 | X4: =IF(千円単!X4="","",ROUND(千円単!X4/1000,0)) -> -1587 | Y4: =IF(千円単!Y4="","",ROUND(千円単!Y4/1000,0)) -> 612
A5: 2016 | B5: 46 | C5: 17 | D5: 1 | E5: 4 | F5: 公共 | G5: 012041 | H5: 北海道 | I5: 旭川市 | J5: =IF(千円単!J5="","",ROUND(千円単!J5/1000,0)) -> 9026 | K5: =IF(千円単!K5="","",ROUND(千円単!K5/1000,0)) -> 5406 | L5: =IF(千円単!L5="","",ROUND(千円単!L5/1000,0)) -> 1017 | M5: =IF(千円単!M5="","",ROUND(千円単!M5/1000,0)) -> 8364 | N5: =IF(千円単!N5="","",ROUND(千円単!N5/1000,0)) -> 780 | O5: =IF(千円単!O5="","",ROUND(千円単!O5/1000,0)) -> 4817 | P5: =IF(千円単!P5="","",ROUND(千円単!P5/1000,0)) -> 379 | Q5: =IF(千円単!Q5="","",ROUND(千円単!Q5/1000,0)) -> 662 | R5: =IF(千円単!R5="","",ROUND(千円単!R5/1000,0)) -> 2539 | S5: =IF(千円単!S5="","",ROUND(千円単!S5/1000,0)) -> 1799 | T5: =IF(千円単!T5="","",ROUND(千円単!T5/1000,0)) -> 302 | U5: =IF(千円単!U5="","",ROUND(千円単!U5/1000,0)) -> 5279 | V5: =IF(千円単!V5="","",ROUND(千円単!V5/1000,0)) -> 1158 | W5: =IF(千円単!W5="","",ROUND(千円単!W5/1000,0)) -> 4121 | X5: =IF(千円単!X5="","",ROUND(千円単!X5/1000,0)) -> -2740 | Y5: =IF(千円単!Y5="","",ROUND(千円単!Y5/1000,0)) -> 662
A6: 2016 | B6: 46 | C6: 17 | D6: 1 | E6: 5 | F6: 公共 | G6: 012050 | H6: 北海道 | I6: 室蘭市 | J6: =IF(千円単!J6="","",ROUND(千円単!J6/1000,0)) -> 3152 | K6: =IF(千円単!K6="","",ROUND(千円単!K6/1000,0)) -> 1475 | L6: =IF(千円単!L6="","",ROUND(千円単!L6/1000,0)) -> 904 | M6: =IF(千円単!M6="","",ROUND(千円単!M6/1000,0)) -> 2673 | N6: =IF(千円単!N6="","",ROUND(千円単!N6/1000,0)) -> 276 | O6: =IF(千円単!O6="","",ROUND(千円単!O6/1000,0)) -> 1361 | P6: =IF(千円単!P6="","",ROUND(千円単!P6/1000,0)) -> 98 | Q6: =IF(千円単!Q6="","",ROUND(千円単!Q6/1000,0)) -> 479 | R6: =IF(千円単!R6="","",ROUND(千円単!R6/1000,0)) -> 692 | S6: =IF(千円単!S6="","",ROUND(千円単!S6/1000,0)) -> 314 | T6: =IF(千円単!T6="","",ROUND(千円単!T6/1000,0)) -> 75 | U6: =IF(千円単!U6="","",ROUND(千円単!U6/1000,0)) -> 1448 | V6: =IF(千円単!V6="","",ROUND(千円単!V6/1000,0)) -> 656 | W6: =IF(千円単!W6="","",ROUND(千円単!W6/1000,0)) -> 788 | X6: =IF(千円単!X6="","",ROUND(千円単!X6/1000,0)) -> -756 | Y6: =IF(千円単!Y6="","",ROUND(千円単!Y6/1000,0)) -> 479
A7: 2016 | B7: 46 | C7: 17 | D7: 1 | E7: 6 | F7: 公共 | G7: 012068 | H7: 北海道 | I7: 釧路市 | J7: =IF(千円単!J7="","",ROUND(千円単!J7/1000,0)) -> 6668 | K7: =IF(千円単!K7="","",ROUND(千円単!K7/1000,0)) -> 3593 | L7: =IF(千円単!L7="","",ROUND(千円単!L7/1000,0)) -> 1044 | M7: =IF(千円単!M7="","",ROUND(千円単!M7/1000,0)) -> 5132 | N7: =IF(千円単!N7="","",ROUND(千円単!N7/1000,0)) -> 550 | O7: =IF(千円単!O7="","",ROUND(千円単!O7/1000,0)) -> 2868 | P7: =IF(千円単!P7="","",ROUND(千円単!P7/1000,0)) -> 216 | Q7: =IF(千円単!Q7="","",ROUND(千円単!Q7/1000,0)) -> 1536 | R7: =IF(千円単!R7="","",ROUND(千円単!R7/1000,0)) -> 2250 | S7: =IF(千円単!S7="","",ROUND(千円単!S7/1000,0)) -> 1349 | T7: =IF(千円単!T7="","",ROUND(千円単!T7/1000,0)) -> 433 | U7: =IF(千円単!U7="","",ROUND(千円単!U7/1000,0)) -> 3852 | V7: =IF(千円単!V7="","",ROUND(千円単!V7/1000,0)) -> 1481 | W7: =IF(千円単!W7="","",ROUND(千円単!W7/1000,0)) -> 2370 | X7: =IF(千円単!X7="","",ROUND(千円単!X7/1000,0)) -> -1602 | Y7: =IF(千円単!Y7="","",ROUND(千円単!Y7/1000,0)) -> 1536
A8: 2016 | B8: 46 | C8: 17 | D8: 1 | E8: 7 | F8: 公共 | G8: 012076 | H8: 北海道 | I8: 帯広市 | J8: =IF(千円単!J8="","",ROUND(千円単!J8/1000,0)) -> 4583 | K8: =IF(千円単!K8="","",ROUND(千円単!K8/1000,0)) -> 2685 | L8: =IF(千円単!L8="","",ROUND(千円単!L8/1000,0)) -> 799 | M8: =IF(千円単!M8="","",ROUND(千円単!M8/1000,0)) -> 4135 | N8: =IF(千円単!N8="","",ROUND(千円単!N8/1000,0)) -> 563 | O8: =IF(千円単!O8="","",ROUND(千円単!O8/1000,0)) -> 2255 | P8: =IF(千円単!P8="","",ROUND(千円単!P8/1000,0)) -> 113 | Q8: =IF(千円単!Q8="","",ROUND(千円単!Q8/1000,0)) -> 448 | R8: =IF(千円単!R8="","",ROUND(千円単!R8/1000,0)) -> 1229 | S8: =IF(千円単!S8="","",ROUND(千円単!S8/1000,0)) -> 835 | T8: =IF(千円単!T8="","",ROUND(千円単!T8/1000,0)) -> 4 | U8: =IF(千円単!U8="","",ROUND(千円単!U8/1000,0)) -> 2886 | V8: =IF(千円単!V8="","",ROUND(千円単!V8/1000,0)) -> 779 | W8: =IF(千円単!W8="","",ROUND(千円単!W8/1000,0)) -> 2106 | X8: =IF(千円単!X8="","",ROUND(千円単!X8/1000,0)) -> -1658 | Y8: =IF(千円単!Y8="","",ROUND(千円単!Y8/1000,0)) -> 448
A9: 2016 | B9: 46 | C9: 17 | D9: 1 | E9: 8 | F9: 公共 | G9: 012084 | H9: 北海道 | I9: 北見市 | J9: =IF(千円単!J9="","",ROUND(千円単!J9/1000,0)) -> 4212 | K9: =IF(千円単!K9="","",ROUND(千円単!K9/1000,0)) -> 1756 | L9: =IF(千円単!L9="","",ROUND(千円単!L9/1000,0)) -> 1063 | M9: =IF(千円単!M9="","",ROUND(千円単!M9/1000,0)) -> 3870 | N9: =IF(千円単!N9="","",ROUND(千円単!N9/1000,0)) -> 586 | O9: =IF(千円単!O9="","",ROUND(千円単!O9/1000,0)) -> 2335 | P9: =IF(千円単!P9="","",ROUND(千円単!P9/1000,0)) -> 175 | Q9: =IF(千円単!Q9="","",ROUND(千円単!Q9/1000,0)) -> 342 | R9: =IF(千円単!R9="","",ROUND(千円単!R9/1000,0)) -> 2859 | S9: =IF(千円単!S9="","",ROUND(千円単!S9/1000,0)) -> 1861 | T9: =IF(千円単!T9="","",ROUND(千円単!T9/1000,0)) -> 339 | U9: =IF(千円単!U9="","",ROUND(千円単!U9/1000,0)) -> 3919 | V9: =IF(千円単!V9="","",ROUND(千円単!V9/1000,0)) -> 1525 | W9: =IF(千円単!W9="","",ROUND(千円単!W9/1000,0)) -> 2394 | X9: =IF(千円単!X9="","",ROUND(千円単!X9/1000,0)) -> -1060 | Y9: =IF(千円単!Y9="","",ROUND(千円単!Y9/1000,0)) -> 342
A10: 2016 | B10: 46 | C10: 17 | D10: 1 | E10: 9 | F10: 公共 | G10: 012106 | H10: 北海道 | I10: 岩見沢市 | J10: =IF(千円単!J10="","",ROUND(千円単!J10/1000,0)) -> 2517 | K10: =IF(千円単!K10="","",ROUND(千円単!K10/1000,0)) -> 1222 | L10: =IF(千円単!L10="","",ROUND(千円単!L10/1000,0)) -> 516 | M10: =IF(千円単!M10="","",ROUND(千円単!M10/1000,0)) -> 2190 | N10: =IF(千円単!N10="","",ROUND(千円単!N10/1000,0)) -> 300 | O10: =IF(千円単!O10="","",ROUND(千円単!O10/1000,0)) -> 1175 | P10: =IF(千円単!P10="","",ROUND(千円単!P10/1000,0)) -> 28 | Q10: =IF(千円単!Q10="","",ROUND(千円単!Q10/1000,0)) -> 327 | R10: =IF(千円単!R10="","",ROUND(千円単!R10/1000,0)) -> 1407 | S10: =IF(千円単!S10="","",ROUND(千円単!S10/1000,0)) -> 484 | T10: =IF(千円単!T10="","",ROUND(千円単!T10/1000,0)) -> 387 | U10: =IF(千円単!U10="","",ROUND(千円単!U10/1000,0)) -> 2251 | V10: =IF(千円単!V10="","",ROUND(千円単!V10/1000,0)) -> 1046 | W10: =IF(千円単!W10="","",ROUND(千円単!W10/1000,0)) -> 1204 | X10: =IF(千円単!X10="","",ROUND(千円単!X10/1000,0)) -> -844 | Y10: =IF(千円単!Y10="","",ROUND(千円単!Y10/1000,0)) -> 327
A11: 2016 | B11: 46 | C11: 17 | D11: 1 | E11: 10 | F11: 公共 | G11: 012131 | H11: 北海道 | I11: 苫小牧市 | J11: =IF(千円単!J11="","",ROUND(千円単!J11/1000,0)) -> 5175 | K11: =IF(千円単!K11="","",ROUND(千円単!K11/1000,0)) -> 2345 | L11: =IF(千円単!L11="","",ROUND(千円単!L11/1000,0)) -> 1134 | M11: =IF(千円単!M11="","",ROUND(千円単!M11/1000,0)) -> 4552 | N11: =IF(千円単!N11="","",ROUND(千円単!N11/1000,0)) -> 618 | O11: =IF(千円単!O11="","",ROUND(千円単!O11/1000,0)) -> 2674 | P11: =IF(千円単!P11="","",ROUND(千円単!P11/1000,0)) -> 140 | Q11: =IF(千円単!Q11="","",ROUND(千円単!Q11/1000,0)) -> 623 | R11: =IF(千円単!R11="","",ROUND(千円単!R11/1000,0)) -> 2219 | S11: =IF(千円単!S11="","",ROUND(千円単!S11/1000,0)) -> 1358 | T11: =IF(千円単!T11="","",ROUND(千円単!T11/1000,0)) -> 281 | U11: =IF(千円単!U11="","",ROUND(千円単!U11/1000,0)) -> 3942 | V11: =IF(千円単!V11="","",ROUND(千円単!V11/1000,0)) -> 1904 | W11: =IF(千円単!W11="","",ROUND(千円単!W11/1000,0)) -> 2037 | X11: =IF(千円単!X11="","",ROUND(千円単!X11/1000,0)) -> -1723 | Y11: =IF(千円単!Y11="","",ROUND(千円単!Y11/1000,0)) -> 623
A12: 2016 | B12: 46 | C12: 17 | D12: 1 | E12: 11 | F12: 公共 | G12: 012149 | H12: 北海道 | I12: 稚内市 | J12: =IF(千円単!J12="","",ROUND(千円単!J12/1000,0)) -> 1138 | K12: =IF(千円単!K12="","",ROUND(千円単!K12/1000,0)) -> 477 | L12: =IF(千円単!L12="","",ROUND(千円単!L12/1000,0)) -> 410 | M12: =IF(千円単!M12="","",ROUND(千円単!M12/1000,0)) -> 1064 | N12: =IF(千円単!N12="","",ROUND(千円単!N12/1000,0)) -> 162 | O12: =IF(千円単!O12="","",ROUND(千円単!O12/1000,0)) -> 574 | P12: =IF(千円単!P12="","",ROUND(千円単!P12/1000,0)) -> 18 | Q12: =IF(千円単!Q12="","",ROUND(千円単!Q12/1000,0)) -> 74 | R12: =IF(千円単!R12="","",ROUND(千円単!R12/1000,0)) -> 772 | S12: =IF(千円単!S12="","",ROUND(千円単!S12/1000,0)) -> 419 | T12: =IF(千円単!T12="","",ROUND(千円単!T12/1000,0)) -> 90 | U12: =IF(千円単!U12="","",ROUND(千円単!U12/1000,0)) -> 1229 | V12: =IF(千円単!V12="","",ROUND(千円単!V12/1000,0)) -> 588 | W12: =IF(千円単!W12="","",ROUND(千円単!W12/1000,0)) -> 642 | X12: =IF(千円単!X12="","",ROUND(千円単!X12/1000,0)) -> -457 | Y12: =IF(千円単!Y12="","",ROUND(千円単!Y12/1000,0)) -> 74
A13: 2016 | B13: 46 | C13: 17 | D13: 1 | E13: 12 | F13: 公共 | G13: 012173 | H13: 北海道 | I13: 江別市 | J13: =IF(千円単!J13="","",ROUND(千円単!J13/1000,0)) -> 3486 | K13: =IF(千円単!K13="","",ROUND(千円単!K13/1000,0)) -> 1265 | L13: =IF(千円単!L13="","",ROUND(千円単!L13/1000,0)) -> 953 | M13: =IF(千円単!M13="","",ROUND(千円単!M13/1000,0)) -> 3267 | N13: =IF(千円単!N13="","",ROUND(千円単!N13/1000,0)) -> 310 | O13: =IF(千円単!O13="","",ROUND(千円単!O13/1000,0)) -> 1994 | P13: =IF(千円単!P13="","",ROUND(千円単!P13/1000,0)) -> 125 | Q13: =IF(千円単!Q13="","",ROUND(千円単!Q13/1000,0)) -> 220 | R13: =IF(千円単!R13="","",ROUND(千円単!R13/1000,0)) -> 1076 | S13: =IF(千円単!S13="","",ROUND(千円単!S13/1000,0)) -> 468 | T13: =IF(千円単!T13="","",ROUND(千円単!T13/1000,0)) -> 61 | U13: =IF(千円単!U13="","",ROUND(千円単!U13/1000,0)) -> 2346 | V13: =IF(千円単!V13="","",ROUND(千円単!V13/1000,0)) -> 1009 | W13: =IF(千円単!W13="","",ROUND(千円単!W13/1000,0)) -> 1113 | X13: =IF(千円単!X13="","",ROUND(千円単!X13/1000,0)) -> -1270 | Y13: =IF(千円単!Y13="","",ROUND(千円単!Y13/1000,0)) -> 220
A14: 2016 | B14: 46 | C14: 17 | D14: 1 | E14: 13 | F14: 公共 | G14: 012190 | H14: 北海道 | I14: 紋別市 | J14: =IF(千円単!J14="","",ROUND(千円単!J14/1000,0)) -> 1332 | K14: =IF(千円単!K14="","",ROUND(千円単!K14/1000,0)) -> 433 | L14: =IF(千円単!L14="","",ROUND(千円単!L14/1000,0)) -> 557 | M14: =IF(千円単!M14="","",ROUND(千円単!M14/1000,0)) -> 1107 | N14: =IF(千円単!N14="","",ROUND(千円単!N14/1000,0)) -> 149 | O14: =IF(千円単!O14="","",ROUND(千円単!O14/1000,0)) -> 672 | P14: =IF(千円単!P14="","",ROUND(千円単!P14/1000,0)) -> 33 | Q14: =IF(千円単!Q14="","",ROUND(千円単!Q14/1000,0)) -> 226 | R14: =IF(千円単!R14="","",ROUND(千円単!R14/1000,0)) -> 550 | S14: =IF(千円単!S14="","",ROUND(千円単!S14/1000,0)) -> 414 | T14: =IF(千円単!T14="","",ROUND(千円単!T14/1000,0)) -> 38 | U14: =IF(千円単!U14="","",ROUND(千円単!U14/1000,0)) -> 1107 | V14: =IF(千円単!V14="","",ROUND(千円単!V14/1000,0)) -> 370 | W14: =IF(千円単!W14="","",ROUND(千円単!W14/1000,0)) -> 737 | X14: =IF(千円単!X14="","",ROUND(千円単!X14/1000,0)) -> -557 | Y14: =IF(千円単!Y14="","",ROUND(千円単!Y14/1000,0)) -> 226
A15: 2016 | B15: 46 | C15: 17 | D15: 1 | E15: 14 | F15: 公共 | G15: 012220 | H15: 北海道 | I15: 三笠市 | J15: =IF(千円単!J15="","",ROUND(千円単!J15/1000,0)) -> 567 | K15: =IF(千円単!K15="","",ROUND(千円単!K15/1000,0)) -> 187 | L15: =IF(千円単!L15="","",ROUND(千円単!L15/1000,0)) -> 230 | M15: =IF(千円単!M15="","",ROUND(千円単!M15/1000,0)) -> 539 | N15: =IF(千円単!N15="","",ROUND(千円単!N15/1000,0)) -> 82 | O15: =IF(千円単!O15="","",ROUND(千円単!O15/1000,0)) -> 344 | P15: =IF(千円単!P15="","",ROUND(千円単!P15/1000,0)) -> 19 | Q15: =IF(千円単!Q15="","",ROUND(千円単!Q15/1000,0)) -> 28 | R15: =IF(千円単!R15="","",ROUND(千円単!R15/1000,0)) -> 260 | S15: =IF(千円単!S15="","",ROUND(千円単!S15/1000,0)) -> 64 | T15: =IF(千円単!T15="","",ROUND(千円単!T15/1000,0)) -> 0 | U15: =IF(千円単!U15="","",ROUND(千円単!U15/1000,0)) -> 506 | V15: =IF(千円単!V15="","",ROUND(千円単!V15/1000,0)) -> 126 | W15: =IF(千円単!W15="","",ROUND(千円単!W15/1000,0)) -> 381 | X15: =IF(千円単!X15="","",ROUND(千円単!X15/1000,0)) -> -247 | Y15: =IF(千円単!Y15="","",ROUND(千円単!Y15/1000,0)) -> 28
A16: 2016 | B16: 46 | C16: 17 | D16: 1 | E16: 15 | F16: 公共 | G16: 012238 | H16: 北海道 | I16: 根室市 | J16: =IF(千円単!J16="","",ROUND(千円単!J16/1000,0)) -> 728 | K16: =IF(千円単!K16="","",ROUND(千円単!K16/1000,0)) -> 442 | L16: =IF(千円単!L16="","",ROUND(千円単!L16/1000,0)) -> 102 | M16: =IF(千円単!M16="","",ROUND(千円単!M16/1000,0)) -> 717 | N16: =IF(千円単!N16="","",ROUND(千円単!N16/1000,0)) -> 50 | O16: =IF(千円単!O16="","",ROUND(千円単!O16/1000,0)) -> 424 | P16: =IF(千円単!P16="","",ROUND(千円単!P16/1000,0)) -> 12 | Q16: =IF(千円単!Q16="","",ROUND(千円単!Q16/1000,0)) -> 11 | R16: =IF(千円単!R16="","",ROUND(千円単!R16/1000,0)) -> 307 | S16: =IF(千円単!S16="","",ROUND(千円単!S16/1000,0)) -> 134 | T16: =IF(千円単!T16="","",ROUND(千円単!T16/1000,0)) -> 19 | U16: =IF(千円単!U16="","",ROUND(千円単!U16/1000,0)) -> 537 | V16: =IF(千円単!V16="","",ROUND(千円単!V16/1000,0)) -> 323 | W16: =IF(千円単!W16="","",ROUND(千円単!W16/1000,0)) -> 212 | X16: =IF(千円単!X16="","",ROUND(千円単!X16/1000,0)) -> -230 | Y16: =IF(千円単!Y16="","",ROUND(千円単!Y16/1000,0)) -> 11
A17: 2016 | B17: 46 | C17: 17 | D17: 1 | E17: 16 | F17: 公共 | G17: 012246 | H17: 北海道 | I17: 千歳市 | J17: =IF(千円単!J17="","",ROUND(千円単!J17/1000,0)) -> 3520 | K17: =IF(千円単!K17="","",ROUND(千円単!K17/1000,0)) -> 1589 | L17: =IF(千円単!L17="","",ROUND(千円単!L17/1000,0)) -> 781 | M17: =IF(千円単!M17="","",ROUND(千円単!M17/1000,0)) -> 3045 | N17: =IF(千円単!N17="","",ROUND(千円単!N17/1000,0)) -> 226 | O17: =IF(千円単!O17="","",ROUND(千円単!O17/1000,0)) -> 1837 | P17: =IF(千円単!P17="","",ROUND(千円単!P17/1000,0)) -> 139 | Q17: =IF(千円単!Q17="","",ROUND(千円単!Q17/1000,0)) -> 474 | R17: =IF(千円単!R17="","",ROUND(千円単!R17/1000,0)) -> 784 | S17: =IF(千円単!S17="","",ROUND(千円単!S17/1000,0)) -> 310 | T17: =IF(千円単!T17="","",ROUND(千円単!T17/1000,0)) -> 106 | U17: =IF(千円単!U17="","",ROUND(千円単!U17/1000,0)) -> 1678 | V17: =IF(千円単!V17="","",ROUND(千円単!V17/1000,0)) -> 828 | W17: =IF(千円単!W17="","",ROUND(千円単!W17/1000,0)) -> 841 | X17: =IF(千円単!X17="","",ROUND(千円単!X17/1000,0)) -> -893 | Y17: =IF(千円単!Y17="","",ROUND(千円単!Y17/1000,0)) -> 474
A18: 2016 | B18: 46 | C18: 17 | D18: 1 | E18: 17 | F18: 公共 | G18: 012254 | H18: 北海道 | I18: 滝川市 | J18: =IF(千円単!J18="","",ROUND(千円単!J18/1000,0)) -> 1350 | K18: =IF(千円単!K18="","",ROUND(千円単!K18/1000,0)) -> 742 | L18: =IF(千円単!L18="","",ROUND(千円単!L18/1000,0)) -> 243 | M18: =IF(千円単!M18="","",ROUND(千円単!M18/1000,0)) -> 1274 | N18: =IF(千円単!N18="","",ROUND(千円単!N18/1000,0)) -> 174 | O18: =IF(千円単!O18="","",ROUND(千円単!O18/1000,0)) -> 785 | P18: =IF(千円単!P18="","",ROUND(千円単!P18/1000,0)) -> 7 | Q18: =IF(千円単!Q18="","",ROUND(千円単!Q18/1000,0)) -> 77 | R18: =IF(千円単!R18="","",ROUND(千円単!R18/1000,0)) -> 677 | S18: =IF(千円単!S18="","",ROUND(千円単!S18/1000,0)) -> 201 | T18: =IF(千円単!T18="","",ROUND(千円単!T18/1000,0)) -> 148 | U18: =IF(千円単!U18="","",ROUND(千円単!U18/1000,0)) -> 1235 | V18: =IF(千円単!V18="","",ROUND(千円単!V18/1000,0)) -> 208 | W18: =IF(千円単!W18="","",ROUND(千円単!W18/1000,0)) -> 1027 | X18: =IF(千円単!X18="","",ROUND(千円単!X18/1000,0)) -> -559 | Y18: =IF(千円単!Y18="","",ROUND(千円単!Y18/1000,0)) -> 77
A19: 2016 | B19: 46 | C19: 17 | D19: 1 | E19: 18 | F19: 公共 | G19: 012301 | H19: 北海道 | I19: 登別市 | J19: =IF(千円単!J19="","",ROUND(千円単!J19/1000,0)) -> 1752 | K19: =IF(千円単!K19="","",ROUND(千円単!K19/1000,0)) -> 578 | L19: =IF(千円単!L19="","",ROUND(千円単!L19/1000,0)) -> 710 | M19: =IF(千円単!M19="","",ROUND(千円単!M19/1000,0)) -> 1758 | N19: =IF(千円単!N19="","",ROUND(千円単!N19/1000,0)) -> 351 | O19: =IF(千円単!O19="","",ROUND(千円単!O19/1000,0)) -> 980 | P19: =IF(千円単!P19="","",ROUND(千円単!P19/1000,0)) -> 61 | Q19: =IF(千円単!Q19="","",ROUND(千円単!Q19/1000,0)) -> -7 | R19: =IF(千円単!R19="","",ROUND(千円単!R19/1000,0)) -> 1086 | S19: =IF(千円単!S19="","",ROUND(千円単!S19/1000,0)) -> 751 | T19: =IF(千円単!T19="","",ROUND(千円単!T19/1000,0)) -> 151 | U19: =IF(千円単!U19="","",ROUND(千円単!U19/1000,0)) -> 1673 | V19: =IF(千円単!V19="","",ROUND(千円単!V19/1000,0)) -> 476 | W19: =IF(千円単!W19="","",ROUND(千円単!W19/1000,0)) -> 1197 | X19: =IF(千円単!X19="","",ROUND(千円単!X19/1000,0)) -> -587 | Y19: =IF(千円単!Y19="","",ROUND(千円単!Y19/1000,0)) -> -7
A20: 2016 | B20: 46 | C20: 17 | D20: 1 | E20: 19 | F20: 公共 | G20: 012319 | H20: 北海道 | I20: 恵庭市 | J20: =IF(千円単!J20="","",ROUND(千円単!J20/1000,0)) -> 2823 | K20: =IF(千円単!K20="","",ROUND(千円単!K20/1000,0)) -> 1011 | L20: =IF(千円単!L20="","",ROUND(千円単!L20/1000,0)) -> 858 | M20: =IF(千円単!M20="","",ROUND(千円単!M20/1000,0)) -> 2592 | N20: =IF(千円単!N20="","",ROUND(千円単!N20/1000,0)) -> 239 | O20: =IF(千円単!O20="","",ROUND(千円単!O20/1000,0)) -> 1554 | P20: =IF(千円単!P20="","",ROUND(千円単!P20/1000,0)) -> 67 | Q20: =IF(千円単!Q20="","",ROUND(千円単!Q20/1000,0)) -> 231 | R20: =IF(千円単!R20="","",ROUND(千円単!R20/1000,0)) -> 856 | S20: =IF(千円単!S20="","",ROUND(千円単!S20/1000,0)) -> 483 | T20: =IF(千円単!T20="","",ROUND(千円単!T20/1000,0)) -> 122 | U20: =IF(千円単!U20="","",ROUND(千円単!U20/1000,0)) -> 1962 | V20: =IF(千円単!V20="","",ROUND(千円単!V20/1000,0)) -> 813 | W20: =IF(千円単!W20="","",ROUND(千円単!W20/1000,0)) -> 1149 | X20: =IF(千円単!X20="","",ROUND(千円単!X20/1000,0)) -> -1106 | Y20: =IF(千円単!Y20="","",ROUND(千円単!Y20/1000,0)) -> 231
A21: 2016 | B21: 46 | C21: 17 | D21: 1 | E21: 20 | F21: 公共 | G21: 012351 | H21: 北海道 | I21: 石狩市 | J21: =IF(千円単!J21="","",ROUND(千円単!J21/1000,0)) -> 1314 | K21: =IF(千円単!K21="","",ROUND(千円単!K21/1000,0)) -> 552 | L21: =IF(千円単!L21="","",ROUND(千円単!L21/1000,0)) -> 446 | M21: =IF(千円単!M21="","",ROUND(千円単!M21/1000,0)) -> 1326 | N21: =IF(千円単!N21="","",ROUND(千円単!N21/1000,0)) -> 199 | O21: =IF(千円単!O21="","",ROUND(千円単!O21/1000,0)) -> 782 | P21: =IF(千円単!P21="","",ROUND(千円単!P21/1000,0)) -> 50 | Q21: =IF(千円単!Q21="","",ROUND(千円単!Q21/1000,0)) -> -12 | R21: =IF(千円単!R21="","",ROUND(千円単!R21/1000,0)) -> 539 | S21: =IF(千円単!S21="","",ROUND(千円単!S21/1000,0)) -> 373 | T21: =IF(千円単!T21="","",ROUND(千円単!T21/1000,0)) -> 48 | U21: =IF(千円単!U21="","",ROUND(千円単!U21/1000,0)) -> 1024 | V21: =IF(千円単!V21="","",ROUND(千円単!V21/1000,0)) -> 260 | W21: =IF(千円単!W21="","",ROUND(千円単!W21/1000,0)) -> 764 | X21: =IF(千円単!X21="","",ROUND(千円単!X21/1000,0)) -> -486 | Y21: =IF(千円単!Y21="","",ROUND(千円単!Y21/1000,0)) -> -12
A22: 2016 | B22: 46 | C22: 17 | D22: 1 | E22: 21 | F22: 公共 | G22: 013455 | H22: 北海道 | I22: 森町 | J22: =IF(千円単!J22="","",ROUND(千円単!J22/1000,0)) -> 445 | K22: =IF(千円単!K22="","",ROUND(千円単!K22/1000,0)) -> 86 | L22: =IF(千円単!L22="","",ROUND(千円単!L22/1000,0)) -> 221 | M22: =IF(千円単!M22="","",ROUND(千円単!M22/1000,0)) -> 446 | N22: =IF(千円単!N22="","",ROUND(千円単!N22/1000,0)) -> 76 | O22: =IF(千円単!O22="","",ROUND(千円単!O22/1000,0)) -> 257 | P22: =IF(千円単!P22="","",ROUND(千円単!P22/1000,0)) -> 8 | Q22: =IF(千円単!Q22="","",ROUND(千円単!Q22/1000,0)) -> -1 | R22: =IF(千円単!R22="","",ROUND(千円単!R22/1000,0)) -> 111 | S22: =IF(千円単!S22="","",ROUND(千円単!S22/1000,0)) -> 18 | T22: =IF(千円単!T22="","",ROUND(千円単!T22/1000,0)) -> 0 | U22: =IF(千円単!U22="","",ROUND(千円単!U22/1000,0)) -> 229 | V22: =IF(千円単!V22="","",ROUND(千円単!V22/1000,0)) -> 28 | W22: =IF(千円単!W22="","",ROUND(千円単!W22/1000,0)) -> 201 | X22: =IF(千円単!X22="","",ROUND(千円単!X22/1000,0)) -> -118 | Y22: =IF(千円単!Y22="","",ROUND(千円単!Y22/1000,0)) -> -1
A23: 2016 | B23: 46 | C23: 17 | D23: 1 | E23: 22 | F23: 公共 | G23: 014028 | H23: 北海道 | I23: 岩内町 | J23: =IF(千円単!J23="","",ROUND(千円単!J23/1000,0)) -> 509 | K23: =IF(千円単!K23="","",ROUND(千円単!K23/1000,0)) -> 55 | L23: =IF(千円単!L23="","",ROUND(千円単!L23/1000,0)) -> 248 | M23: =IF(千円単!M23="","",ROUND(千円単!M23/1000,0)) -> 509 | N23: =IF(千円単!N23="","",ROUND(千円単!N23/1000,0)) -> 66 | O23: =IF(千円単!O23="","",ROUND(千円単!O23/1000,0)) -> 322 | P23: =IF(千円単!P23="","",ROUND(千円単!P23/1000,0)) -> 18 | Q23: =IF(千円単!Q23="","",ROUND(千円単!Q23/1000,0)) -> 0 | R23: =IF(千円単!R23="","",ROUND(千円単!R23/1000,0)) -> 592 | S23: =IF(千円単!S23="","",ROUND(千円単!S23/1000,0)) -> 351 | T23: =IF(千円単!T23="","",ROUND(千円単!T23/1000,0)) -> 0 | U23: =IF(千円単!U23="","",ROUND(千円単!U23/1000,0)) -> 751 | V23: =IF(千円単!V23="","",ROUND(千円単!V23/1000,0)) -> 366 | W23: =IF(千円単!W23="","",ROUND(千円単!W23/1000,0)) -> 385 | X23: =IF(千円単!X23="","",ROUND(千円単!X23/1000,0)) -> -158 | Y23: =IF(千円単!Y23="","",ROUND(千円単!Y23/1000,0)) -> 0
A24: 2016 | B24: 46 | C24: 17 | D24: 1 | E24: 23 | F24: 公共 | G24: 014290 | H24: 北海道 | I24: 栗山町 | J24: =IF(千円単!J24="","",ROUND(千円単!J24/1000,0)) -> 502 | K24: =IF(千円単!K24="","",ROUND(千円単!K24/1000,0)) -> 184 | L24: =IF(千円単!L24="","",ROUND(千円単!L24/1000,0)) -> 179 | M24: =IF(千円単!M24="","",ROUND(千円単!M24/1000,0)) -> 429 | N24: =IF(千円単!N24="","",ROUND(千円単!N24/1000,0)) -> 51 | O24: =IF(千円単!O24="","",ROUND(千円単!O24/1000,0)) -> 275 | P24: =IF(千円単!P24="","",ROUND(千円単!P24/1000,0)) -> 15 | Q24: =IF(千円単!Q24="","",ROUND(千円単!Q24/1000,0)) -> 73 | R24: =IF(千円単!R24="","",ROUND(千円単!R24/1000,0)) -> 322 | S24: =IF(千円単!S24="","",ROUND(千円単!S24/1000,0)) -> 213 | T24: =IF(千円単!T24="","",ROUND(千円単!T24/1000,0)) -> 66 | U24: =IF(千円単!U24="","",ROUND(千円単!U24/1000,0)) -> 548 | V24: =IF(千円単!V24="","",ROUND(千円単!V24/1000,0)) -> 84 | W24: =IF(千円単!W24="","",ROUND(千円単!W24/1000,0)) -> 463 | X24: =IF(千円単!X24="","",ROUND(千円単!X24/1000,0)) -> -226 | Y24: =IF(千円単!Y24="","",ROUND(千円単!Y24/1000,0)) -> 73
A25: 2016 | B25: 46 | C25: 17 | D25: 1 | E25: 24 | F25: 公共 | G25: 015148 | H25: 北海道 | I25: 枝幸町 | J25: =IF(千円単!J25="","",ROUND(千円単!J25/1000,0)) -> 245 | K25: =IF(千円単!K25="","",ROUND(千円単!K25/1000,0)) -> 65 | L25: =IF(千円単!L25="","",ROUND(千円単!L25/1000,0)) -> 116 | M25: =IF(千円単!M25="","",ROUND(千円単!M25/1000,0)) -> 240 | N25: =IF(千円単!N25="","",ROUND(千円単!N25/1000,0)) -> 33 | O25: =IF(千円単!O25="","",ROUND(千円単!O25/1000,0)) -> 142 | P25: =IF(千円単!P25="","",ROUND(千円単!P25/1000,0)) -> 6 | Q25: =IF(千円単!Q25="","",ROUND(千円単!Q25/1000,0)) -> 5 | R25: =IF(千円単!R25="","",ROUND(千円単!R25/1000,0)) -> 162 | S25: =IF(千円単!S25="","",ROUND(千円単!S25/1000,0)) -> 34 | T25: =IF(千円単!T25="","",ROUND(千円単!T25/1000,0)) -> 27 | U25: =IF(千円単!U25="","",ROUND(千円単!U25/1000,0)) -> 242 | V25: =IF(千円単!V25="","",ROUND(千円単!V25/1000,0)) -> 90 | W25: =IF(千円単!W25="","",ROUND(千円単!W25/1000,0)) -> 153 | X25: =IF(千円単!X25="","",ROUND(千円単!X25/1000,0)) -> -80 | Y25: =IF(千円単!Y25="","",ROUND(千円単!Y25/1000,0)) -> 5
A26: 2016 | B26: 46 | C26: 17 | D26: 1 | E26: 25 | F26: 公共 | G26: 015555 | H26: 北海道 | I26: 遠軽町 | J26: =IF(千円単!J26="","",ROUND(千円単!J26/1000,0)) -> 845 | K26: =IF(千円単!K26="","",ROUND(千円単!K26/1000,0)) -> 228 | L26: =IF(千円単!L26="","",ROUND(千円単!L26/1000,0)) -> 403 | M26: =IF(千円単!M26="","",ROUND(千円単!M26/1000,0)) -> 720 | N26: =IF(千円単!N26="","",ROUND(千円単!N26/1000,0)) -> 84 | O26: =IF(千円単!O26="","",ROUND(千円単!O26/1000,0)) -> 409 | P26: =IF(千円単!P26="","",ROUND(千円単!P26/1000,0)) -> 37 | Q26: =IF(千円単!Q26="","",ROUND(千円単!Q26/1000,0)) -> 124 | R26: =IF(千円単!R26="","",ROUND(千円単!R26/1000,0)) -> 479 | S26: =IF(千円単!S26="","",ROUND(千円単!S26/1000,0)) -> 232 | T26: =IF(千円単!T26="","",ROUND(千円単!T26/1000,0)) -> 50 | U26: =IF(千円単!U26="","",ROUND(千円単!U26/1000,0)) -> 778 | V26: =IF(千円単!V26="","",ROUND(千円単!V26/1000,0)) -> 431 | W26: =IF(千円単!W26="","",ROUND(千円単!W26/1000,0)) -> 348 | X26: =IF(千円単!X26="","",ROUND(千円単!X26/1000,0)) -> -300 | Y26: =IF(千円単!Y26="","",ROUND(千円単!Y26/1000,0)) -> 124
A27: 2016 | B27: 46 | C27: 17 | D27: 1 | E27: 26 | F27: 公共 | G27: 015865 | H27: 北海道 | I27: むかわ町 | J27: =IF(千円単!J27="","",ROUND(千円単!J27/1000,0)) -> 231 | K27: =IF(千円単!K27="","",ROUND(千円単!K27/1000,0)) -> 54 | L27: =IF(千円単!L27="","",ROUND(千円単!L27/1000,0)) -> 87 | M27: =IF(千円単!M27="","",ROUND(千円単!M27/1000,0)) -> 229 | N27: =IF(千円単!N27="","",ROUND(千円単!N27/1000,0)) -> 32 | O27: =IF(千円単!O27="","",ROUND(千円単!O27/1000,0)) -> 143 | P27: =IF(千円単!P27="","",ROUND(千円単!P27/1000,0)) -> 9 | Q27: =IF(千円単!Q27="","",ROUND(千円単!Q27/1000,0)) -> 2 | R27: =IF(千円単!R27="","",ROUND(千円単!R27/1000,0)) -> 116 | S27: =IF(千円単!S27="","",ROUND(千円単!S27/1000,0)) -> 26 | T27: =IF(千円単!T27="","",ROUND(千円単!T27/1000,0)) -> 0 | U27: =IF(千円単!U27="","",ROUND(千円単!U27/1000,0)) -> 178 | V27: =IF(千円単!V27="","",ROUND(千円単!V27/1000,0)) -> 53 | W27: =IF(千円単!W27="","",ROUND(千円単!W27/1000,0)) -> 117 | X27: =IF(千円単!X27="","",ROUND(千円単!X27/1000,0)) -> -62 | Y27: =IF(千円単!Y27="","",ROUND(千円単!Y27/1000,0)) -> 2
A28: 2016 | B28: 46 | C28: 17 | D28: 1 | E28: 27 | F28: 公共 | G28: 016314 | H28: 北海道 | I28: 音更町 | J28: =IF(千円単!J28="","",ROUND(千円単!J28/1000,0)) -> 1057 | K28: =IF(千円単!K28="","",ROUND(千円単!K28/1000,0)) -> 567 | L28: =IF(千円単!L28="","",ROUND(千円単!L28/1000,0)) -> 224 | M28: =IF(千円単!M28="","",ROUND(千円単!M28/1000,0)) -> 912 | N28: =IF(千円単!N28="","",ROUND(千円単!N28/1000,0)) -> 154 | O28: =IF(千円単!O28="","",ROUND(千円単!O28/1000,0)) -> 548 | P28: =IF(千円単!P28="","",ROUND(千円単!P28/1000,0)) -> 4 | Q28: =IF(千円単!Q28="","",ROUND(千円単!Q28/1000,0)) -> 145 | R28: =IF(千円単!R28="","",ROUND(千円単!R28/1000,0)) -> 476 | S28: =IF(千円単!S28="","",ROUND(千円単!S28/1000,0)) -> 317 | T28: =IF(千円単!T28="","",ROUND(千円単!T28/1000,0)) -> 74 | U28: =IF(千円単!U28="","",ROUND(千円単!U28/1000,0)) -> 943 | V28: =IF(千円単!V28="","",ROUND(千円単!V28/1000,0)) -> 254 | W28: =IF(千円単!W28="","",ROUND(千円単!W28/1000,0)) -> 689 | X28: =IF(千円単!X28="","",ROUND(千円単!X28/1000,0)) -> -466 | Y28: =IF(千円単!Y28="","",ROUND(千円単!Y28/1000,0)) -> 145
A29: 2016 | B29: 46 | C29: 17 | D29: 1 | E29: 28 | F29: 公共 | G29: 016365 | H29: 北海道 | I29: 清水町 | J29: =IF(千円単!J29="","",ROUND(千円単!J29/1000,0)) -> 208 | K29: =IF(千円単!K29="","",ROUND(千円単!K29/1000,0)) -> 82 | L29: =IF(千円単!L29="","",ROUND(千円単!L29/1000,0)) -> 62 | M29: =IF(千円単!M29="","",ROUND(千円単!M29/1000,0)) -> 229 | N29: =IF(千円単!N29="","",ROUND(千円単!N29/1000,0)) -> 11 | O29: =IF(千円単!O29="","",ROUND(千円単!O29/1000,0)) -> 144 | P29: =IF(千円単!P29="","",ROUND(千円単!P29/1000,0)) -> 19 | Q29: =IF(千円単!Q29="","",ROUND(千円単!Q29/1000,0)) -> -21 | R29: =IF(千円単!R29="","",ROUND(千円単!R29/1000,0)) -> 88 | S29: =IF(千円単!S29="","",ROUND(千円単!S29/1000,0)) -> 0 | T29: =IF(千円単!T29="","",ROUND(千円単!T29/1000,0)) -> 14 | U29: =IF(千円単!U29="","",ROUND(千円単!U29/1000,0)) -> 152 | V29: =IF(千円単!V29="","",ROUND(千円単!V29/1000,0)) -> 10 | W29: =IF(千円単!W29="","",ROUND(千円単!W29/1000,0)) -> 142 | X29: =IF(千円単!X29="","",ROUND(千円単!X29/1000,0)) -> -64 | Y29: =IF(千円単!Y29="","",ROUND(千円単!Y29/1000,0)) -> -21
A30: 2016 | B30: 46 | C30: 17 | D30: 1 | E30: 29 | F30: 公共 | G30: 022021 | H30: 青森県 | I30: 弘前市 | J30: =IF(千円単!J30="","",ROUND(千円単!J30/1000,0)) -> 5113 | K30: =IF(千円単!K30="","",ROUND(千円単!K30/1000,0)) -> 2879 | L30: =IF(千円単!L30="","",ROUND(千円単!L30/1000,0)) -> 1410 | M30: =IF(千円単!M30="","",ROUND(千円単!M30/1000,0)) -> 4282 | N30: =IF(千円単!N30="","",ROUND(千円単!N30/1000,0)) -> 668 | O30: =IF(千円単!O30="","",ROUND(千円単!O30/1000,0)) -> 2136 | P30: =IF(千円単!P30="","",ROUND(千円単!P30/1000,0)) -> 222 | Q30: =IF(千円単!Q30="","",ROUND(千円単!Q30/1000,0)) -> 831 | R30: =IF(千円単!R30="","",ROUND(千円単!R30/1000,0)) -> 2070 | S30: =IF(千円単!S30="","",ROUND(千円単!S30/1000,0)) -> 1423 | T30: =IF(千円単!T30="","",ROUND(千円単!T30/1000,0)) -> 0 | U30: =IF(千円単!U30="","",ROUND(千円単!U30/1000,0)) -> 3853 | V30: =IF(千円単!V30="","",ROUND(千円単!V30/1000,0)) -> 695 | W30: =IF(千円単!W30="","",ROUND(千円単!W30/1000,0)) -> 3159 | X30: =IF(千円単!X30="","",ROUND(千円単!X30/1000,0)) -> -1784 | Y30: =IF(千円単!Y30="","",ROUND(千円単!Y30/1000,0)) -> 831
A31: 2016 | B31: 46 | C31: 17 | D31: 1 | E31: 30 | F31: 公共 | G31: 022047 | H31: 青森県 | I31: 黒石市 | J31: =IF(千円単!J31="","",ROUND(千円単!J31/1000,0)) -> 752 | K31: =IF(千円単!K31="","",ROUND(千円単!K31/1000,0)) -> 325 | L31: =IF(千円単!L31="","",ROUND(千円単!L31/1000,0)) -> 89 | M31: =IF(千円単!M31="","",ROUND(千円単!M31/1000,0)) -> 598 | N31: =IF(千円単!N31="","",ROUND(千円単!N31/1000,0)) -> 128 | O31: =IF(千円単!O31="","",ROUND(千円単!O31/1000,0)) -> 306 | P31: =IF(千円単!P31="","",ROUND(千円単!P31/1000,0)) -> 17 | Q31: =IF(千円単!Q31="","",ROUND(千円単!Q31/1000,0)) -> 155 | R31: =IF(千円単!R31="","",ROUND(千円単!R31/1000,0)) -> 730 | S31: =IF(千円単!S31="","",ROUND(千円単!S31/1000,0)) -> 457 | T31: =IF(千円単!T31="","",ROUND(千円単!T31/1000,0)) -> 261 | U31: =IF(千円単!U31="","",ROUND(千円単!U31/1000,0)) -> 813 | V31: =IF(千円単!V31="","",ROUND(千円単!V31/1000,0)) -> 59 | W31: =IF(千円単!W31="","",ROUND(千円単!W31/1000,0)) -> 754 | X31: =IF(千円単!X31="","",ROUND(千円単!X31/1000,0)) -> -83 | Y31: =IF(千円単!Y31="","",ROUND(千円単!Y31/1000,0)) -> 155
A32: 2016 | B32: 46 | C32: 17 | D32: 1 | E32: 31 | F32: 公共 | G32: 022055 | H32: 青森県 | I32: 五所川原市 | J32: =IF(千円単!J32="","",ROUND(千円単!J32/1000,0)) -> 657 | K32: =IF(千円単!K32="","",ROUND(千円単!K32/1000,0)) -> 366 | L32: =IF(千円単!L32="","",ROUND(千円単!L32/1000,0)) -> 112 | M32: =IF(千円単!M32="","",ROUND(千円単!M32/1000,0)) -> 756 | N32: =IF(千円単!N32="","",ROUND(千円単!N32/1000,0)) -> 111 | O32: =IF(千円単!O32="","",ROUND(千円単!O32/1000,0)) -> 386 | P32: =IF(千円単!P32="","",ROUND(千円単!P32/1000,0)) -> 47 | Q32: =IF(千円単!Q32="","",ROUND(千円単!Q32/1000,0)) -> -99 | R32: =IF(千円単!R32="","",ROUND(千円単!R32/1000,0)) -> 969 | S32: =IF(千円単!S32="","",ROUND(千円単!S32/1000,0)) -> 490 | T32: =IF(千円単!T32="","",ROUND(千円単!T32/1000,0)) -> 0 | U32: =IF(千円単!U32="","",ROUND(千円単!U32/1000,0)) -> 1094 | V32: =IF(千円単!V32="","",ROUND(千円単!V32/1000,0)) -> 606 | W32: =IF(千円単!W32="","",ROUND(千円単!W32/1000,0)) -> 476 | X32: =IF(千円単!X32="","",ROUND(千円単!X32/1000,0)) -> -125 | Y32: =IF(千円単!Y32="","",ROUND(千円単!Y32/1000,0)) -> -99
A33: 2016 | B33: 46 | C33: 17 | D33: 1 | E33: 32 | F33: 公共 | G33: 022063 | H33: 青森県 | I33: 十和田市 | J33: =IF(千円単!J33="","",ROUND(千円単!J33/1000,0)) -> 1608 | K33: =IF(千円単!K33="","",ROUND(千円単!K33/1000,0)) -> 816 | L33: =IF(千円単!L33="","",ROUND(千円単!L33/1000,0)) -> 360 | M33: =IF(千円単!M33="","",ROUND(千円単!M33/1000,0)) -> 1516 | N33: =IF(千円単!N33="","",ROUND(千円単!N33/1000,0)) -> 272 | O33: =IF(千円単!O33="","",ROUND(千円単!O33/1000,0)) -> 863 | P33: =IF(千円単!P33="","",ROUND(千円単!P33/1000,0)) -> 61 | Q33: =IF(千円単!Q33="","",ROUND(千円単!Q33/1000,0)) -> 92 | R33: =IF(千円単!R33="","",ROUND(千円単!R33/1000,0)) -> 1072 | S33: =IF(千円単!S33="","",ROUND(千円単!S33/1000,0)) -> 686 | T33: =IF(千円単!T33="","",ROUND(千円単!T33/1000,0)) -> 124 | U33: =IF(千円単!U33="","",ROUND(千円単!U33/1000,0)) -> 1664 | V33: =IF(千円単!V33="","",ROUND(千円単!V33/1000,0)) -> 560 | W33: =IF(千円単!W33="","",ROUND(千円単!W33/1000,0)) -> 1105 | X33: =IF(千円単!X33="","",ROUND(千円単!X33/1000,0)) -> -592 | Y33: =IF(千円単!Y33="","",ROUND(千円単!Y33/1000,0)) -> 92
A34: 2016 | B34: 46 | C34: 17 | D34: 1 | E34: 33 | F34: 公共 | G34: 022101 | H34: 青森県 | I34: 平川市 | J34: =IF(千円単!J34="","",ROUND(千円単!J34/1000,0)) -> 632 | K34: =IF(千円単!K34="","",ROUND(千円単!K34/1000,0)) -> 301 | L34: =IF(千円単!L34="","",ROUND(千円単!L34/1000,0)) -> 200 | M34: =IF(千円単!M34="","",ROUND(千円単!M34/1000,0)) -> 619 | N34: =IF(千円単!N34="","",ROUND(千円単!N34/1000,0)) -> 111 | O34: =IF(千円単!O34="","",ROUND(千円単!O34/1000,0)) -> 334 | P34: =IF(千円単!P34="","",ROUND(千円単!P34/1000,0)) -> 27 | Q34: =IF(千円単!Q34="","",ROUND(千円単!Q34/1000,0)) -> 13 | R34: =IF(千円単!R34="","",ROUND(千円単!R34/1000,0)) -> 263 | S34: =IF(千円単!S34="","",ROUND(千円単!S34/1000,0)) -> 13 | T34: =IF(千円単!T34="","",ROUND(千円単!T34/1000,0)) -> 0 | U34: =IF(千円単!U34="","",ROUND(千円単!U34/1000,0)) -> 497 | V34: =IF(千円単!V34="","",ROUND(千円単!V34/1000,0)) -> 22 | W34: =IF(千円単!W34="","",ROUND(千円単!W34/1000,0)) -> 475 | X34: =IF(千円単!X34="","",ROUND(千円単!X34/1000,0)) -> -234 | Y34: =IF(千円単!Y34="","",ROUND(千円単!Y34/1000,0)) -> 13
A35: 2016 | B35: 46 | C35: 17 | D35: 1 | E35: 34 | F35: 公共 | G35: 023612 | H35: 青森県 | I35: 藤崎町 | J35: =IF(千円単!J35="","",ROUND(千円単!J35/1000,0)) -> 264 | K35: =IF(千円単!K35="","",ROUND(千円単!K35/1000,0)) -> 88 | L35: =IF(千円単!L35="","",ROUND(千円単!L35/1000,0)) -> 98 | M35: =IF(千円単!M35="","",ROUND(千円単!M35/1000,0)) -> 256 | N35: =IF(千円単!N35="","",ROUND(千円単!N35/1000,0)) -> 47 | O35: =IF(千円単!O35="","",ROUND(千円単!O35/1000,0)) -> 166 | P35: =IF(千円単!P35="","",ROUND(千円単!P35/1000,0)) -> 0 | Q35: =IF(千円単!Q35="","",ROUND(千円単!Q35/1000,0)) -> 7 | R35: =IF(千円単!R35="","",ROUND(千円単!R35/1000,0)) -> 445 | S35: =IF(千円単!S35="","",ROUND(千円単!S35/1000,0)) -> 242 | T35: =IF(千円単!T35="","",ROUND(千円単!T35/1000,0)) -> 0 | U35: =IF(千円単!U35="","",ROUND(千円単!U35/1000,0)) -> 537 | V35: =IF(千円単!V35="","",ROUND(千円単!V35/1000,0)) -> 308 | W35: =IF(千円単!W35="","",ROUND(千円単!W35/1000,0)) -> 229 | X35: =IF(千円単!X35="","",ROUND(千円単!X35/1000,0)) -> -92 | Y35: =IF(千円単!Y35="","",ROUND(千円単!Y35/1000,0)) -> 7
A36: 2016 | B36: 46 | C36: 17 | D36: 1 | E36: 35 | F36: 公共 | G36: 023671 | H36: 青森県 | I36: 田舎館村 | J36: =IF(千円単!J36="","",ROUND(千円単!J36/1000,0)) -> 289 | K36: =IF(千円単!K36="","",ROUND(千円単!K36/1000,0)) -> 104 | L36: =IF(千円単!L36="","",ROUND(千円単!L36/1000,0)) -> 76 | M36: =IF(千円単!M36="","",ROUND(千円単!M36/1000,0)) -> 242 | N36: =IF(千円単!N36="","",ROUND(千円単!N36/1000,0)) -> 55 | O36: =IF(千円単!O36="","",ROUND(千円単!O36/1000,0)) -> 128 | P36: =IF(千円単!P36="","",ROUND(千円単!P36/1000,0)) -> 8 | Q36: =IF(千円単!Q36="","",ROUND(千円単!Q36/1000,0)) -> 48 | R36: =IF(千円単!R36="","",ROUND(千円単!R36/1000,0)) -> 151 | S36: =IF(千円単!S36="","",ROUND(千円単!S36/1000,0)) -> 91 | T36: =IF(千円単!T36="","",ROUND(千円単!T36/1000,0)) -> 60 | U36: =IF(千円単!U36="","",ROUND(千円単!U36/1000,0)) -> 223 | V36: =IF(千円単!V36="","",ROUND(千円単!V36/1000,0)) -> 3 | W36: =IF(千円単!W36="","",ROUND(千円単!W36/1000,0)) -> 220 | X36: =IF(千円単!X36="","",ROUND(千円単!X36/1000,0)) -> -71 | Y36: =IF(千円単!Y36="","",ROUND(千円単!Y36/1000,0)) -> 48
A37: 2016 | B37: 46 | C37: 17 | D37: 1 | E37: 36 | F37: 公共 | G37: 023817 | H37: 青森県 | I37: 板柳町 | J37: =IF(千円単!J37="","",ROUND(千円単!J37/1000,0)) -> 281 | K37: =IF(千円単!K37="","",ROUND(千円単!K37/1000,0)) -> 81 | L37: =IF(千円単!L37="","",ROUND(千円単!L37/1000,0)) -> 73 | M37: =IF(千円単!M37="","",ROUND(千円単!M37/1000,0)) -> 277 | N37: =IF(千円単!N37="","",ROUND(千円単!N37/1000,0)) -> 64 | O37: =IF(千円単!O37="","",ROUND(千円単!O37/1000,0)) -> 153 | P37: =IF(千円単!P37="","",ROUND(千円単!P37/1000,0)) -> 8 | Q37: =IF(千円単!Q37="","",ROUND(千円単!Q37/1000,0)) -> 4 | R37: =IF(千円単!R37="","",ROUND(千円単!R37/1000,0)) -> 261 | S37: =IF(千円単!S37="","",ROUND(千円単!S37/1000,0)) -> 157 | T37: =IF(千円単!T37="","",ROUND(千円単!T37/1000,0)) -> 59 | U37: =IF(千円単!U37="","",ROUND(千円単!U37/1000,0)) -> 304 | V37: =IF(千円単!V37="","",ROUND(千円単!V37/1000,0)) -> 105 | W37: =IF(千円単!W37="","",ROUND(千円単!W37/1000,0)) -> 199 | X37: =IF(千円単!X37="","",ROUND(千円単!X37/1000,0)) -> -43 | Y37: =IF(千円単!Y37="","",ROUND(千円単!Y37/1000,0)) -> 4
A38: 2016 | B38: 46 | C38: 17 | D38: 1 | E38: 37 | F38: 公共 | G38: 023841 | H38: 青森県 | I38: 鶴田町 | J38: =IF(千円単!J38="","",ROUND(千円単!J38/1000,0)) -> 426 | K38: =IF(千円単!K38="","",ROUND(千円単!K38/1000,0)) -> 54 | L38: =IF(千円単!L38="","",ROUND(千円単!L38/1000,0)) -> 239 | M38: =IF(千円単!M38="","",ROUND(千円単!M38/1000,0)) -> 332 | N38: =IF(千円単!N38="","",ROUND(千円単!N38/1000,0)) -> 64 | O38: =IF(千円単!O38="","",ROUND(千円単!O38/1000,0)) -> 236 | P38: =IF(千円単!P38="","",ROUND(千円単!P38/1000,0)) -> 5 | Q38: =IF(千円単!Q38="","",ROUND(千円単!Q38/1000,0)) -> 94 | R38: =IF(千円単!R38="","",ROUND(千円単!R38/1000,0)) -> 31 | S38: =IF(千円単!S38="","",ROUND(千円単!S38/1000,0)) -> 24 | T38: =IF(千円単!T38="","",ROUND(千円単!T38/1000,0)) -> 5 | U38: =IF(千円単!U38="","",ROUND(千円単!U38/1000,0)) -> 218 | V38: =IF(千円単!V38="","",ROUND(千円単!V38/1000,0)) -> 27 | W38: =IF(千円単!W38="","",ROUND(千円単!W38/1000,0)) -> 191 | X38: =IF(千円単!X38="","",ROUND(千円単!X38/1000,0)) -> -187 | Y38: =IF(千円単!Y38="","",ROUND(千円単!Y38/1000,0)) -> 94
A39: 2016 | B39: 46 | C39: 17 | D39: 1 | E39: 38 | F39: 公共 | G39: 024112 | H39: 青森県 | I39: 六ケ所村 | J39: =IF(千円単!J39="","",ROUND(千円単!J39/1000,0)) -> 640 | K39: =IF(千円単!K39="","",ROUND(千円単!K39/1000,0)) -> 44 | L39: =IF(千円単!L39="","",ROUND(千円単!L39/1000,0)) -> 321 | M39: =IF(千円単!M39="","",ROUND(千円単!M39/1000,0)) -> 628 | N39: =IF(千円単!N39="","",ROUND(千円単!N39/1000,0)) -> 77 | O39: =IF(千円単!O39="","",ROUND(千円単!O39/1000,0)) -> 389 | P39: =IF(千円単!P39="","",ROUND(千円単!P39/1000,0)) -> 15 | Q39: =IF(千円単!Q39="","",ROUND(千円単!Q39/1000,0)) -> 12 | R39: =IF(千円単!R39="","",ROUND(千円単!R39/1000,0)) -> 886 | S39: =IF(千円単!S39="","",ROUND(千円単!S39/1000,0)) -> 339 | T39: =IF(千円単!T39="","",ROUND(千円単!T39/1000,0)) -> 0 | U39: =IF(千円単!U39="","",ROUND(千円単!U39/1000,0)) -> 1001 | V39: =IF(千円単!V39="","",ROUND(千円単!V39/1000,0)) -> 847 | W39: =IF(千円単!W39="","",ROUND(千円単!W39/1000,0)) -> 155 | X39: =IF(千円単!X39="","",ROUND(千円単!X39/1000,0)) -> -115 | Y39: =IF(千円単!Y39="","",ROUND(千円単!Y39/1000,0)) -> 12
A40: 2016 | B40: 46 | C40: 17 | D40: 1 | E40: 39 | F40: 公共 | G40: 032018 | H40: 岩手県 | I40: 盛岡市 | J40: =IF(千円単!J40="","",ROUND(千円単!J40/1000,0)) -> 8247 | K40: =IF(千円単!K40="","",ROUND(千円単!K40/1000,0)) -> 4381 | L40: =IF(千円単!L40="","",ROUND(千円単!L40/1000,0)) -> 2822 | M40: =IF(千円単!M40="","",ROUND(千円単!M40/1000,0)) -> 7678 | N40: =IF(千円単!N40="","",ROUND(千円単!N40/1000,0)) -> 1012 | O40: =IF(千円単!O40="","",ROUND(千円単!O40/1000,0)) -> 4000 | P40: =IF(千円単!P40="","",ROUND(千円単!P40/1000,0)) -> 402 | Q40: =IF(千円単!Q40="","",ROUND(千円単!Q40/1000,0)) -> 569 | R40: =IF(千円単!R40="","",ROUND(千円単!R40/1000,0)) -> 2140 | S40: =IF(千円単!S40="","",ROUND(千円単!S40/1000,0)) -> 966 | T40: =IF(千円単!T40="","",ROUND(千円単!T40/1000,0)) -> 526 | U40: =IF(千円単!U40="","",ROUND(千円単!U40/1000,0)) -> 5598 | V40: =IF(千円単!V40="","",ROUND(千円単!V40/1000,0)) -> 1802 | W40: =IF(千円単!W40="","",ROUND(千円単!W40/1000,0)) -> 3796 | X40: =IF(千円単!X40="","",ROUND(千円単!X40/1000,0)) -> -3459 | Y40: =IF(千円単!Y40="","",ROUND(千円単!Y40/1000,0)) -> 569
A41: 2016 | B41: 46 | C41: 17 | D41: 1 | E41: 40 | F41: 公共 | G41: 032026 | H41: 岩手県 | I41: 宮古市 | J41: =IF(千円単!J41="","",ROUND(千円単!J41/1000,0)) -> 1544 | K41: =IF(千円単!K41="","",ROUND(千円単!K41/1000,0)) -> 537 | L41: =IF(千円単!L41="","",ROUND(千円単!L41/1000,0)) -> 547 | M41: =IF(千円単!M41="","",ROUND(千円単!M41/1000,0)) -> 1383 | N41: =IF(千円単!N41="","",ROUND(千円単!N41/1000,0)) -> 179 | O41: =IF(千円単!O41="","",ROUND(千円単!O41/1000,0)) -> 626 | P41: =IF(千円単!P41="","",ROUND(千円単!P41/1000,0)) -> 45 | Q41: =IF(千円単!Q41="","",ROUND(千円単!Q41/1000,0)) -> 161 | R41: =IF(千円単!R41="","",ROUND(千円単!R41/1000,0)) -> 874 | S41: =IF(千円単!S41="","",ROUND(千円単!S41/1000,0)) -> 475 | T41: =IF(千円単!T41="","",ROUND(千円単!T41/1000,0)) -> 194 | U41: =IF(千円単!U41="","",ROUND(千円単!U41/1000,0)) -> 1475 | V41: =IF(千円単!V41="","",ROUND(千円単!V41/1000,0)) -> 454 | W41: =IF(千円単!W41="","",ROUND(千円単!W41/1000,0)) -> 1021 | X41: =IF(千円単!X41="","",ROUND(千円単!X41/1000,0)) -> -601 | Y41: =IF(千円単!Y41="","",ROUND(千円単!Y41/1000,0)) -> 161
A42: 2016 | B42: 46 | C42: 17 | D42: 1 | E42: 41 | F42: 公共 | G42: 032051 | H42: 岩手県 | I42: 花巻市 | J42: =IF(千円単!J42="","",ROUND(千円単!J42/1000,0)) -> 2130 | K42: =IF(千円単!K42="","",ROUND(千円単!K42/1000,0)) -> 699 | L42: =IF(千円単!L42="","",ROUND(千円単!L42/1000,0)) -> 1044 | M42: =IF(千円単!M42="","",ROUND(千円単!M42/1000,0)) -> 2104 | N42: =IF(千円単!N42="","",ROUND(千円単!N42/1000,0)) -> 431 | O42: =IF(千円単!O42="","",ROUND(千円単!O42/1000,0)) -> 1158 | P42: =IF(千円単!P42="","",ROUND(千円単!P42/1000,0)) -> 37 | Q42: =IF(千円単!Q42="","",ROUND(千円単!Q42/1000,0)) -> 26 | R42: =IF(千円単!R42="","",ROUND(千円単!R42/1000,0)) -> 1505 | S42: =IF(千円単!S42="","",ROUND(千円単!S42/1000,0)) -> 1009 | T42: =IF(千円単!T42="","",ROUND(千円単!T42/1000,0)) -> 220 | U42: =IF(千円単!U42="","",ROUND(千円単!U42/1000,0)) -> 2392 | V42: =IF(千円単!V42="","",ROUND(千円単!V42/1000,0)) -> 795 | W42: =IF(千円単!W42="","",ROUND(千円単!W42/1000,0)) -> 1597 | X42: =IF(千円単!X42="","",ROUND(千円単!X42/1000,0)) -> -887 | Y42: =IF(千円単!Y42="","",ROUND(千円単!Y42/1000,0)) -> 26
A43: 2016 | B43: 46 | C43: 17 | D43: 1 | E43: 42 | F43: 公共 | G43: 032069 | H43: 岩手県 | I43: 北上市 | J43: =IF(千円単!J43="","",ROUND(千円単!J43/1000,0)) -> 2286 | K43: =IF(千円単!K43="","",ROUND(千円単!K43/1000,0)) -> 1195 | L43: =IF(千円単!L43="","",ROUND(千円単!L43/1000,0)) -> 852 | M43: =IF(千円単!M43="","",ROUND(千円単!M43/1000,0)) -> 2053 | N43: =IF(千円単!N43="","",ROUND(千円単!N43/1000,0)) -> 378 | O43: =IF(千円単!O43="","",ROUND(千円単!O43/1000,0)) -> 954 | P43: =IF(千円単!P43="","",ROUND(千円単!P43/1000,0)) -> 54 | Q43: =IF(千円単!Q43="","",ROUND(千円単!Q43/1000,0)) -> 233 | R43: =IF(千円単!R43="","",ROUND(千円単!R43/1000,0)) -> 1084 | S43: =IF(千円単!S43="","",ROUND(千円単!S43/1000,0)) -> 659 | T43: =IF(千円単!T43="","",ROUND(千円単!T43/1000,0)) -> 0 | U43: =IF(千円単!U43="","",ROUND(千円単!U43/1000,0)) -> 1857 | V43: =IF(千円単!V43="","",ROUND(千円単!V43/1000,0)) -> 277 | W43: =IF(千円単!W43="","",ROUND(千円単!W43/1000,0)) -> 1530 | X43: =IF(千円単!X43="","",ROUND(千円単!X43/1000,0)) -> -773 | Y43: =IF(千円単!Y43="","",ROUND(千円単!Y43/1000,0)) -> 233
A44: 2016 | B44: 46 | C44: 17 | D44: 1 | E44: 43 | F44: 公共 | G44: 032115 | H44: 岩手県 | I44: 釜石市 | J44: =IF(千円単!J44="","",ROUND(千円単!J44/1000,0)) -> 1014 | K44: =IF(千円単!K44="","",ROUND(千円単!K44/1000,0)) -> 383 | L44: =IF(千円単!L44="","",ROUND(千円単!L44/1000,0)) -> 317 | M44: =IF(千円単!M44="","",ROUND(千円単!M44/1000,0)) -> 971 | N44: =IF(千円単!N44="","",ROUND(千円単!N44/1000,0)) -> 84 | O44: =IF(千円単!O44="","",ROUND(千円単!O44/1000,0)) -> 537 | P44: =IF(千円単!P44="","",ROUND(千円単!P44/1000,0)) -> 71 | Q44: =IF(千円単!Q44="","",ROUND(千円単!Q44/1000,0)) -> 42 | R44: =IF(千円単!R44="","",ROUND(千円単!R44/1000,0)) -> 1975 | S44: =IF(千円単!S44="","",ROUND(千円単!S44/1000,0)) -> 288 | T44: =IF(千円単!T44="","",ROUND(千円単!T44/1000,0)) -> 1266 | U44: =IF(千円単!U44="","",ROUND(千円単!U44/1000,0)) -> 2305 | V44: =IF(千円単!V44="","",ROUND(千円単!V44/1000,0)) -> 2078 | W44: =IF(千円単!W44="","",ROUND(千円単!W44/1000,0)) -> 228 | X44: =IF(千円単!X44="","",ROUND(千円単!X44/1000,0)) -> -330 | Y44: =IF(千円単!Y44="","",ROUND(千円単!Y44/1000,0)) -> 42
A45: 2016 | B45: 46 | C45: 17 | D45: 1 | E45: 44 | F45: 公共 | G45: 032166 | H45: 岩手県 | I45: 滝沢市 | J45: =IF(千円単!J45="","",ROUND(千円単!J45/1000,0)) -> 1070 | K45: =IF(千円単!K45="","",ROUND(千円単!K45/1000,0)) -> 461 | L45: =IF(千円単!L45="","",ROUND(千円単!L45/1000,0)) -> 297 | M45: =IF(千円単!M45="","",ROUND(千円単!M45/1000,0)) -> 954 | N45: =IF(千円単!N45="","",ROUND(千円単!N45/1000,0)) -> 123 | O45: =IF(千円単!O45="","",ROUND(千円単!O45/1000,0)) -> 550 | P45: =IF(千円単!P45="","",ROUND(千円単!P45/1000,0)) -> 32 | Q45: =IF(千円単!Q45="","",ROUND(千円単!Q45/1000,0)) -> 116 | R45: =IF(千円単!R45="","",ROUND(千円単!R45/1000,0)) -> 507 | S45: =IF(千円単!S45="","",ROUND(千円単!S45/1000,0)) -> 274 | T45: =IF(千円単!T45="","",ROUND(千円単!T45/1000,0)) -> 19 | U45: =IF(千円単!U45="","",ROUND(千円単!U45/1000,0)) -> 849 | V45: =IF(千円単!V45="","",ROUND(千円単!V45/1000,0)) -> 486 | W45: =IF(千円単!W45="","",ROUND(千円単!W45/1000,0)) -> 363 | X45: =IF(千円単!X45="","",ROUND(千円単!X45/1000,0)) -> -342 | Y45: =IF(千円単!Y45="","",ROUND(千円単!Y45/1000,0)) -> 116
A46: 2016 | B46: 46 | C46: 17 | D46: 1 | E46: 45 | F46: 公共 | G46: 033014 | H46: 岩手県 | I46: 雫石町 | J46: =IF(千円単!J46="","",ROUND(千円単!J46/1000,0)) -> 464 | K46: =IF(千円単!K46="","",ROUND(千円単!K46/1000,0)) -> 113 | L46: =IF(千円単!L46="","",ROUND(千円単!L46/1000,0)) -> 202 | M46: =IF(千円単!M46="","",ROUND(千円単!M46/1000,0)) -> 463 | N46: =IF(千円単!N46="","",ROUND(千円単!N46/1000,0)) -> 86 | O46: =IF(千円単!O46="","",ROUND(千円単!O46/1000,0)) -> 309 | P46: =IF(千円単!P46="","",ROUND(千円単!P46/1000,0)) -> 5 | Q46: =IF(千円単!Q46="","",ROUND(千円単!Q46/1000,0)) -> 1 | R46: =IF(千円単!R46="","",ROUND(千円単!R46/1000,0)) -> 317 | S46: =IF(千円単!S46="","",ROUND(千円単!S46/1000,0)) -> 150 | T46: =IF(千円単!T46="","",ROUND(千円単!T46/1000,0)) -> 0 | U46: =IF(千円単!U46="","",ROUND(千円単!U46/1000,0)) -> 472 | V46: =IF(千円単!V46="","",ROUND(千円単!V46/1000,0)) -> 92 | W46: =IF(千円単!W46="","",ROUND(千円単!W46/1000,0)) -> 380 | X46: =IF(千円単!X46="","",ROUND(千円単!X46/1000,0)) -> -156 | Y46: =IF(千円単!Y46="","",ROUND(千円単!Y46/1000,0)) -> 1
A47: 2016 | B47: 46 | C47: 17 | D47: 1 | E47: 46 | F47: 公共 | G47: 033219 | H47: 岩手県 | I47: 紫波町 | J47: =IF(千円単!J47="","",ROUND(千円単!J47/1000,0)) -> 720 | K47: =IF(千円単!K47="","",ROUND(千円単!K47/1000,0)) -> 275 | L47: =IF(千円単!L47="","",ROUND(千円単!L47/1000,0)) -> 412 | M47: =IF(千円単!M47="","",ROUND(千円単!M47/1000,0)) -> 749 | N47: =IF(千円単!N47="","",ROUND(千円単!N47/1000,0)) -> 101 | O47: =IF(千円単!O47="","",ROUND(千円単!O47/1000,0)) -> 472 | P47: =IF(千円単!P47="","",ROUND(千円単!P47/1000,0)) -> 25 | Q47: =IF(千円単!Q47="","",ROUND(千円単!Q47/1000,0)) -> -29 | R47: =IF(千円単!R47="","",ROUND(千円単!R47/1000,0)) -> 320 | S47: =IF(千円単!S47="","",ROUND(千円単!S47/1000,0)) -> 136 | T47: =IF(千円単!T47="","",ROUND(千円単!T47/1000,0)) -> 24 | U47: =IF(千円単!U47="","",ROUND(千円単!U47/1000,0)) -> 665 | V47: =IF(千円単!V47="","",ROUND(千円単!V47/1000,0)) -> 284 | W47: =IF(千円単!W47="","",ROUND(千円単!W47/1000,0)) -> 381 | X47: =IF(千円単!X47="","",ROUND(千円単!X47/1000,0)) -> -346 | Y47: =IF(千円単!Y47="","",ROUND(千円単!Y47/1000,0)) -> -29
A48: 2016 | B48: 46 | C48: 17 | D48: 1 | E48: 47 | F48: 公共 | G48: 033227 | H48: 岩手県 | I48: 矢巾町 | J48: =IF(千円単!J48="","",ROUND(千円単!J48/1000,0)) -> 639 | K48: =IF(千円単!K48="","",ROUND(千円単!K48/1000,0)) -> 303 | L48: =IF(千円単!L48="","",ROUND(千円単!L48/1000,0)) -> 150 | M48: =IF(千円単!M48="","",ROUND(千円単!M48/1000,0)) -> 609 | N48: =IF(千円単!N48="","",ROUND(千円単!N48/1000,0)) -> 80 | O48: =IF(千円単!O48="","",ROUND(千円単!O48/1000,0)) -> 351 | P48: =IF(千円単!P48="","",ROUND(千円単!P48/1000,0)) -> 0 | Q48: =IF(千円単!Q48="","",ROUND(千円単!Q48/1000,0)) -> 30 | R48: =IF(千円単!R48="","",ROUND(千円単!R48/1000,0)) -> 793 | S48: =IF(千円単!S48="","",ROUND(千円単!S48/1000,0)) -> 484 | T48: =IF(千円単!T48="","",ROUND(千円単!T48/1000,0)) -> 60 | U48: =IF(千円単!U48="","",ROUND(千円単!U48/1000,0)) -> 955 | V48: =IF(千円単!V48="","",ROUND(千円単!V48/1000,0)) -> 730 | W48: =IF(千円単!W48="","",ROUND(千円単!W48/1000,0)) -> 225 | X48: =IF(千円単!X48="","",ROUND(千円単!X48/1000,0)) -> -162 | Y48: =IF(千円単!Y48="","",ROUND(千円単!Y48/1000,0)) -> 30
A49: 2016 | B49: 46 | C49: 17 | D49: 1 | E49: 48 | F49: 公共 | G49: 041009 | H49: 宮城県 | I49: 仙台市 | J49: =IF(千円単!J49="","",ROUND(千円単!J49/1000,0)) -> 34968 | K49: =IF(千円単!K49="","",ROUND(千円単!K49/1000,0)) -> 16289 | L49: =IF(千円単!L49="","",ROUND(千円単!L49/1000,0)) -> 6995 | M49: =IF(千円単!M49="","",ROUND(千円単!M49/1000,0)) -> 29745 | N49: =IF(千円単!N49="","",ROUND(千円単!N49/1000,0)) -> 4110 | O49: =IF(千円単!O49="","",ROUND(千円単!O49/1000,0)) -> 17795 | P49: =IF(千円単!P49="","",ROUND(千円単!P49/1000,0)) -> 1149 | Q49: =IF(千円単!Q49="","",ROUND(千円単!Q49/1000,0)) -> 5223 | R49: =IF(千円単!R49="","",ROUND(千円単!R49/1000,0)) -> 27691 | S49: =IF(千円単!S49="","",ROUND(千円単!S49/1000,0)) -> 11664 | T49: =IF(千円単!T49="","",ROUND(千円単!T49/1000,0)) -> 6005 | U49: =IF(千円単!U49="","",ROUND(千円単!U49/1000,0)) -> 40750 | V49: =IF(千円単!V49="","",ROUND(千円単!V49/1000,0)) -> 23003 | W49: =IF(千円単!W49="","",ROUND(千円単!W49/1000,0)) -> 17744 | X49: =IF(千円単!X49="","",ROUND(千円単!X49/1000,0)) -> -13059 | Y49: =IF(千円単!Y49="","",ROUND(千円単!Y49/1000,0)) -> 5223
A50: 2016 | B50: 46 | C50: 17 | D50: 1 | E50: 49 | F50: 公共 | G50: 042064 | H50: 宮城県 | I50: 白石市 | J50: =IF(千円単!J50="","",ROUND(千円単!J50/1000,0)) -> 952 | K50: =IF(千円単!K50="","",ROUND(千円単!K50/1000,0)) -> 417 | L50: =IF(千円単!L50="","",ROUND(千円単!L50/1000,0)) -> 222 | M50: =IF(千円単!M50="","",ROUND(千円単!M50/1000,0)) -> 1251 | N50: =IF(千円単!N50="","",ROUND(千円単!N50/1000,0)) -> 144 | O50: =IF(千円単!O50="","",ROUND(千円単!O50/1000,0)) -> 450 | P50: =IF(千円単!P50="","",ROUND(千円単!P50/1000,0)) -> 17 | Q50: =IF(千円単!Q50="","",ROUND(千円単!Q50/1000,0)) -> -299 | R50: =IF(千円単!R50="","",ROUND(千円単!R50/1000,0)) -> 1499 | S50: =IF(千円単!S50="","",ROUND(千円単!S50/1000,0)) -> 619 | T50: =IF(千円単!T50="","",ROUND(千円単!T50/1000,0)) -> 833 | U50: =IF(千円単!U50="","",ROUND(千円単!U50/1000,0)) -> 1878 | V50: =IF(千円単!V50="","",ROUND(千円単!V50/1000,0)) -> 856 | W50: =IF(千円単!W50="","",ROUND(千円単!W50/1000,0)) -> 973 | X50: =IF(千円単!X50="","",ROUND(千円単!X50/1000,0)) -> -379 | Y50: =IF(千円単!Y50="","",ROUND(千円単!Y50/1000,0)) -> -299
A51: 2016 | B51: 46 | C51: 17 | D51: 1 | E51: 50 | F51: 公共 | G51: 042072 | H51: 宮城県 | I51: 名取市 | J51: =IF(千円単!J51="","",ROUND(千円単!J51/1000,0)) -> 2490 | K51: =IF(千円単!K51="","",ROUND(千円単!K51/1000,0)) -> 1272 | L51: =IF(千円単!L51="","",ROUND(千円単!L51/1000,0)) -> 623 | M51: =IF(千円単!M51="","",ROUND(千円単!M51/1000,0)) -> 2586 | N51: =IF(千円単!N51="","",ROUND(千円単!N51/1000,0)) -> 404 | O51: =IF(千円単!O51="","",ROUND(千円単!O51/1000,0)) -> 1486 | P51: =IF(千円単!P51="","",ROUND(千円単!P51/1000,0)) -> 51 | Q51: =IF(千円単!Q51="","",ROUND(千円単!Q51/1000,0)) -> -96 | R51: =IF(千円単!R51="","",ROUND(千円単!R51/1000,0)) -> 3593 | S51: =IF(千円単!S51="","",ROUND(千円単!S51/1000,0)) -> 930 | T51: =IF(千円単!T51="","",ROUND(千円単!T51/1000,0)) -> 0 | U51: =IF(千円単!U51="","",ROUND(千円単!U51/1000,0)) -> 4594 | V51: =IF(千円単!V51="","",ROUND(千円単!V51/1000,0)) -> 2326 | W51: =IF(千円単!W51="","",ROUND(千円単!W51/1000,0)) -> 2268 | X51: =IF(千円単!X51="","",ROUND(千円単!X51/1000,0)) -> -1000 | Y51: =IF(千円単!Y51="","",ROUND(千円単!Y51/1000,0)) -> -96
A52: 2016 | B52: 46 | C52: 17 | D52: 1 | E52: 51 | F52: 公共 | G52: 045055 | H52: 宮城県 | I52: 美里町 | J52: =IF(千円単!J52="","",ROUND(千円単!J52/1000,0)) -> 446 | K52: =IF(千円単!K52="","",ROUND(千円単!K52/1000,0)) -> 127 | L52: =IF(千円単!L52="","",ROUND(千円単!L52/1000,0)) -> 144 | M52: =IF(千円単!M52="","",ROUND(千円単!M52/1000,0)) -> 451 | N52: =IF(千円単!N52="","",ROUND(千円単!N52/1000,0)) -> 78 | O52: =IF(千円単!O52="","",ROUND(千円単!O52/1000,0)) -> 222 | P52: =IF(千円単!P52="","",ROUND(千円単!P52/1000,0)) -> 18 | Q52: =IF(千円単!Q52="","",ROUND(千円単!Q52/1000,0)) -> -5 | R52: =IF(千円単!R52="","",ROUND(千円単!R52/1000,0)) -> 576 | S52: =IF(千円単!S52="","",ROUND(千円単!S52/1000,0)) -> 310 | T52: =IF(千円単!T52="","",ROUND(千円単!T52/1000,0)) -> 68 | U52: =IF(千円単!U52="","",ROUND(千円単!U52/1000,0)) -> 660 | V52: =IF(千円単!V52="","",ROUND(千円単!V52/1000,0)) -> 391 | W52: =IF(千円単!W52="","",ROUND(千円単!W52/1000,0)) -> 269 | X52: =IF(千円単!X52="","",ROUND(千円単!X52/1000,0)) -> -83 | Y52: =IF(千円単!Y52="","",ROUND(千円単!Y52/1000,0)) -> -5
A53: 2016 | B53: 46 | C53: 17 | D53: 1 | E53: 52 | F53: 公共 | G53: 052019 | H53: 秋田県 | I53: 秋田市 | J53: =IF(千円単!J53="","",ROUND(千円単!J53/1000,0)) -> 10275 | K53: =IF(千円単!K53="","",ROUND(千円単!K53/1000,0)) -> 4982 | L53: =IF(千円単!L53="","",ROUND(千円単!L53/1000,0)) -> 3403 | M53: =IF(千円単!M53="","",ROUND(千円単!M53/1000,0)) -> 9237 | N53: =IF(千円単!N53="","",ROUND(千円単!N53/1000,0)) -> 1314 | O53: =IF(千円単!O53="","",ROUND(千円単!O53/1000,0)) -> 5060 | P53: =IF(千円単!P53="","",ROUND(千円単!P53/1000,0)) -> 356 | Q53: =IF(千円単!Q53="","",ROUND(千円単!Q53/1000,0)) -> 1037 | R53: =IF(千円単!R53="","",ROUND(千円単!R53/1000,0)) -> 4002 | S53: =IF(千円単!S53="","",ROUND(千円単!S53/1000,0)) -> 2636 | T53: =IF(千円単!T53="","",ROUND(千円単!T53/1000,0)) -> 903 | U53: =IF(千円単!U53="","",ROUND(千円単!U53/1000,0)) -> 8064 | V53: =IF(千円単!V53="","",ROUND(千円単!V53/1000,0)) -> 2309 | W53: =IF(千円単!W53="","",ROUND(千円単!W53/1000,0)) -> 5755 | X53: =IF(千円単!X53="","",ROUND(千円単!X53/1000,0)) -> -4063 | Y53: =IF(千円単!Y53="","",ROUND(千円単!Y53/1000,0)) -> 1037
A54: 2016 | B54: 46 | C54: 17 | D54: 1 | E54: 53 | F54: 公共 | G54: 052027 | H54: 秋田県 | I54: 能代市 | J54: =IF(千円単!J54="","",ROUND(千円単!J54/1000,0)) -> 1262 | K54: =IF(千円単!K54="","",ROUND(千円単!K54/1000,0)) -> 383 | L54: =IF(千円単!L54="","",ROUND(千円単!L54/1000,0)) -> 570 | M54: =IF(千円単!M54="","",ROUND(千円単!M54/1000,0)) -> 1220 | N54: =IF(千円単!N54="","",ROUND(千円単!N54/1000,0)) -> 186 | O54: =IF(千円単!O54="","",ROUND(千円単!O54/1000,0)) -> 722 | P54: =IF(千円単!P54="","",ROUND(千円単!P54/1000,0)) -> 31 | Q54: =IF(千円単!Q54="","",ROUND(千円単!Q54/1000,0)) -> 42 | R54: =IF(千円単!R54="","",ROUND(千円単!R54/1000,0)) -> 1429 | S54: =IF(千円単!S54="","",ROUND(千円単!S54/1000,0)) -> 869 | T54: =IF(千円単!T54="","",ROUND(千円単!T54/1000,0)) -> 80 | U54: =IF(千円単!U54="","",ROUND(千円単!U54/1000,0)) -> 1901 | V54: =IF(千円単!V54="","",ROUND(千円単!V54/1000,0)) -> 1269 | W54: =IF(千円単!W54="","",ROUND(千円単!W54/1000,0)) -> 631 | X54: =IF(千円単!X54="","",ROUND(千円単!X54/1000,0)) -> -471 | Y54: =IF(千円単!Y54="","",ROUND(千円単!Y54/1000,0)) -> 42
A55: 2016 | B55: 46 | C55: 17 | D55: 1 | E55: 54 | F55: 公共 | G55: 052035 | H55: 秋田県 | I55: 横手市 | J55: =IF(千円単!J55="","",ROUND(千円単!J55/1000,0)) -> 1734 | K55: =IF(千円単!K55="","",ROUND(千円単!K55/1000,0)) -> 635 | L55: =IF(千円単!L55="","",ROUND(千円単!L55/1000,0)) -> 831 | M55: =IF(千円単!M55="","",ROUND(千円単!M55/1000,0)) -> 1674 | N55: =IF(千円単!N55="","",ROUND(千円単!N55/1000,0)) -> 325 | O55: =IF(千円単!O55="","",ROUND(千円単!O55/1000,0)) -> 830 | P55: =IF(千円単!P55="","",ROUND(千円単!P55/1000,0)) -> 101 | Q55: =IF(千円単!Q55="","",ROUND(千円単!Q55/1000,0)) -> 60 | R55: =IF(千円単!R55="","",ROUND(千円単!R55/1000,0)) -> 1079 | S55: =IF(千円単!S55="","",ROUND(千円単!S55/1000,0)) -> 539 | T55: =IF(千円単!T55="","",ROUND(千円単!T55/1000,0)) -> 431 | U55: =IF(千円単!U55="","",ROUND(千円単!U55/1000,0)) -> 1621 | V55: =IF(千円単!V55="","",ROUND(千円単!V55/1000,0)) -> 216 | W55: =IF(千円単!W55="","",ROUND(千円単!W55/1000,0)) -> 1405 | X55: =IF(千円単!X55="","",ROUND(千円単!X55/1000,0)) -> -542 | Y55: =IF(千円単!Y55="","",ROUND(千円単!Y55/1000,0)) -> 60
A56: 2016 | B56: 46 | C56: 17 | D56: 1 | E56: 55 | F56: 公共 | G56: 052043 | H56: 秋田県 | I56: 大館市 | J56: =IF(千円単!J56="","",ROUND(千円単!J56/1000,0)) -> 1180 | K56: =IF(千円単!K56="","",ROUND(千円単!K56/1000,0)) -> 441 | L56: =IF(千円単!L56="","",ROUND(千円単!L56/1000,0)) -> 533 | M56: =IF(千円単!M56="","",ROUND(千円単!M56/1000,0)) -> 1217 | N56: =IF(千円単!N56="","",ROUND(千円単!N56/1000,0)) -> 247 | O56: =IF(千円単!O56="","",ROUND(千円単!O56/1000,0)) -> 606 | P56: =IF(千円単!P56="","",ROUND(千円単!P56/1000,0)) -> 60 | Q56: =IF(千円単!Q56="","",ROUND(千円単!Q56/1000,0)) -> -37 | R56: =IF(千円単!R56="","",ROUND(千円単!R56/1000,0)) -> 1298 | S56: =IF(千円単!S56="","",ROUND(千円単!S56/1000,0)) -> 808 | T56: =IF(千円単!T56="","",ROUND(千円単!T56/1000,0)) -> 143 | U56: =IF(千円単!U56="","",ROUND(千円単!U56/1000,0)) -> 1790 | V56: =IF(千円単!V56="","",ROUND(千円単!V56/1000,0)) -> 847 | W56: =IF(千円単!W56="","",ROUND(千円単!W56/1000,0)) -> 943 | X56: =IF(千円単!X56="","",ROUND(千円単!X56/1000,0)) -> -491 | Y56: =IF(千円単!Y56="","",ROUND(千円単!Y56/1000,0)) -> -37
A57: 2016 | B57: 46 | C57: 17 | D57: 1 | E57: 56 | F57: 公共 | G57: 052060 | H57: 秋田県 | I57: 男鹿市 | J57: =IF(千円単!J57="","",ROUND(千円単!J57/1000,0)) -> 619 | K57: =IF(千円単!K57="","",ROUND(千円単!K57/1000,0)) -> 194 | L57: =IF(千円単!L57="","",ROUND(千円単!L57/1000,0)) -> 267 | M57: =IF(千円単!M57="","",ROUND(千円単!M57/1000,0)) -> 610 | N57: =IF(千円単!N57="","",ROUND(千円単!N57/1000,0)) -> 151 | O57: =IF(千円単!O57="","",ROUND(千円単!O57/1000,0)) -> 345 | P57: =IF(千円単!P57="","",ROUND(千円単!P57/1000,0)) -> 28 | Q57: =IF(千円単!Q57="","",ROUND(千円単!Q57/1000,0)) -> 8 | R57: =IF(千円単!R57="","",ROUND(千円単!R57/1000,0)) -> 607 | S57: =IF(千円単!S57="","",ROUND(千円単!S57/1000,0)) -> 369 | T57: =IF(千円単!T57="","",ROUND(千円単!T57/1000,0)) -> 93 | U57: =IF(千円単!U57="","",ROUND(千円単!U57/1000,0)) -> 881 | V57: =IF(千円単!V57="","",ROUND(千円単!V57/1000,0)) -> 338 | W57: =IF(千円単!W57="","",ROUND(千円単!W57/1000,0)) -> 542 | X57: =IF(千円単!X57="","",ROUND(千円単!X57/1000,0)) -> -274 | Y57: =IF(千円単!Y57="","",ROUND(千円単!Y57/1000,0)) -> 8
A58: 2016 | B58: 46 | C58: 17 | D58: 1 | E58: 57 | F58: 公共 | G58: 062014 | H58: 山形県 | I58: 山形市 | J58: =IF(千円単!J58="","",ROUND(千円単!J58/1000,0)) -> 7808 | K58: =IF(千円単!K58="","",ROUND(千円単!K58/1000,0)) -> 3927 | L58: =IF(千円単!L58="","",ROUND(千円単!L58/1000,0)) -> 2289 | M58: =IF(千円単!M58="","",ROUND(千円単!M58/1000,0)) -> 7229 | N58: =IF(千円単!N58="","",ROUND(千円単!N58/1000,0)) -> 1572 | O58: =IF(千円単!O58="","",ROUND(千円単!O58/1000,0)) -> 4157 | P58: =IF(千円単!P58="","",ROUND(千円単!P58/1000,0)) -> 221 | Q58: =IF(千円単!Q58="","",ROUND(千円単!Q58/1000,0)) -> 579 | R58: =IF(千円単!R58="","",ROUND(千円単!R58/1000,0)) -> 4790 | S58: =IF(千円単!S58="","",ROUND(千円単!S58/1000,0)) -> 3015 | T58: =IF(千円単!T58="","",ROUND(千円単!T58/1000,0)) -> 898 | U58: =IF(千円単!U58="","",ROUND(千円単!U58/1000,0)) -> 8020 | V58: =IF(千円単!V58="","",ROUND(千円単!V58/1000,0)) -> 2518 | W58: =IF(千円単!W58="","",ROUND(千円単!W58/1000,0)) -> 5501 | X58: =IF(千円単!X58="","",ROUND(千円単!X58/1000,0)) -> -3230 | Y58: =IF(千円単!Y58="","",ROUND(千円単!Y58/1000,0)) -> 579
A59: 2016 | B59: 46 | C59: 17 | D59: 1 | E59: 58 | F59: 公共 | G59: 062031 | H59: 山形県 | I59: 鶴岡市 | J59: =IF(千円単!J59="","",ROUND(千円単!J59/1000,0)) -> 4810 | K59: =IF(千円単!K59="","",ROUND(千円単!K59/1000,0)) -> 2101 | L59: =IF(千円単!L59="","",ROUND(千円単!L59/1000,0)) -> 893 | M59: =IF(千円単!M59="","",ROUND(千円単!M59/1000,0)) -> 3909 | N59: =IF(千円単!N59="","",ROUND(千円単!N59/1000,0)) -> 677 | O59: =IF(千円単!O59="","",ROUND(千円単!O59/1000,0)) -> 2425 | P59: =IF(千円単!P59="","",ROUND(千円単!P59/1000,0)) -> 176 | Q59: =IF(千円単!Q59="","",ROUND(千円単!Q59/1000,0)) -> 901 | R59: =IF(千円単!R59="","",ROUND(千円単!R59/1000,0)) -> 2864 | S59: =IF(千円単!S59="","",ROUND(千円単!S59/1000,0)) -> 1262 | T59: =IF(千円単!T59="","",ROUND(千円単!T59/1000,0)) -> 654 | U59: =IF(千円単!U59="","",ROUND(千円単!U59/1000,0)) -> 4115 | V59: =IF(千円単!V59="","",ROUND(千円単!V59/1000,0)) -> 1744 | W59: =IF(千円単!W59="","",ROUND(千円単!W59/1000,0)) -> 2371 | X59: =IF(千円単!X59="","",ROUND(千円単!X59/1000,0)) -> -1251 | Y59: =IF(千円単!Y59="","",ROUND(千円単!Y59/1000,0)) -> 901
A60: 2016 | B60: 46 | C60: 17 | D60: 1 | E60: 59 | F60: 公共 | G60: 062103 | H60: 山形県 | I60: 天童市 | J60: =IF(千円単!J60="","",ROUND(千円単!J60/1000,0)) -> 1293 | K60: =IF(千円単!K60="","",ROUND(千円単!K60/1000,0)) -> 864 | L60: =IF(千円単!L60="","",ROUND(千円単!L60/1000,0)) -> 196 | M60: =IF(千円単!M60="","",ROUND(千円単!M60/1000,0)) -> 1121 | N60: =IF(千円単!N60="","",ROUND(千円単!N60/1000,0)) -> 170 | O60: =IF(千円単!O60="","",ROUND(千円単!O60/1000,0)) -> 582 | P60: =IF(千円単!P60="","",ROUND(千円単!P60/1000,0)) -> 14 | Q60: =IF(千円単!Q60="","",ROUND(千円単!Q60/1000,0)) -> 172 | R60: =IF(千円単!R60="","",ROUND(千円単!R60/1000,0)) -> 930 | S60: =IF(千円単!S60="","",ROUND(千円単!S60/1000,0)) -> 652 | T60: =IF(千円単!T60="","",ROUND(千円単!T60/1000,0)) -> 166 | U60: =IF(千円単!U60="","",ROUND(千円単!U60/1000,0)) -> 1382 | V60: =IF(千円単!V60="","",ROUND(千円単!V60/1000,0)) -> 744 | W60: =IF(千円単!W60="","",ROUND(千円単!W60/1000,0)) -> 638 | X60: =IF(千円単!X60="","",ROUND(千円単!X60/1000,0)) -> -452 | Y60: =IF(千円単!Y60="","",ROUND(千円単!Y60/1000,0)) -> 172
A61: 2016 | B61: 46 | C61: 17 | D61: 1 | E61: 60 | F61: 公共 | G61: 062138 | H61: 山形県 | I61: 南陽市 | J61: =IF(千円単!J61="","",ROUND(千円単!J61/1000,0)) -> 987 | K61: =IF(千円単!K61="","",ROUND(千円単!K61/1000,0)) -> 345 | L61: =IF(千円単!L61="","",ROUND(千円単!L61/1000,0)) -> 450 | M61: =IF(千円単!M61="","",ROUND(千円単!M61/1000,0)) -> 948 | N61: =IF(千円単!N61="","",ROUND(千円単!N61/1000,0)) -> 180 | O61: =IF(千円単!O61="","",ROUND(千円単!O61/1000,0)) -> 536 | P61: =IF(千円単!P61="","",ROUND(千円単!P61/1000,0)) -> 25 | Q61: =IF(千円単!Q61="","",ROUND(千円単!Q61/1000,0)) -> 40 | R61: =IF(千円単!R61="","",ROUND(千円単!R61/1000,0)) -> 684 | S61: =IF(千円単!S61="","",ROUND(千円単!S61/1000,0)) -> 330 | T61: =IF(千円単!T61="","",ROUND(千円単!T61/1000,0)) -> 67 | U61: =IF(千円単!U61="","",ROUND(千円単!U61/1000,0)) -> 1033 | V61: =IF(千円単!V61="","",ROUND(千円単!V61/1000,0)) -> 294 | W61: =IF(千円単!W61="","",ROUND(千円単!W61/1000,0)) -> 739 | X61: =IF(千円単!X61="","",ROUND(千円単!X61/1000,0)) -> -349 | Y61: =IF(千円単!Y61="","",ROUND(千円単!Y61/1000,0)) -> 40
A62: 2016 | B62: 46 | C62: 17 | D62: 1 | E62: 61 | F62: 公共 | G62: 072010 | H62: 福島県 | I62: 福島市 | J62: =IF(千円単!J62="","",ROUND(千円単!J62/1000,0)) -> 7247 | K62: =IF(千円単!K62="","",ROUND(千円単!K62/1000,0)) -> 3245 | L62: =IF(千円単!L62="","",ROUND(千円単!L62/1000,0)) -> 2032 | M62: =IF(千円単!M62="","",ROUND(千円単!M62/1000,0)) -> 7247 | N62: =IF(千円単!N62="","",ROUND(千円単!N62/1000,0)) -> 1202 | O62: =IF(千円単!O62="","",ROUND(千円単!O62/1000,0)) -> 3887 | P62: =IF(千円単!P62="","",ROUND(千円単!P62/1000,0)) -> 126 | Q62: =IF(千円単!Q62="","",ROUND(千円単!Q62/1000,0)) -> 0 | R62: =IF(千円単!R62="","",ROUND(千円単!R62/1000,0)) -> 2964 | S62: =IF(千円単!S62="","",ROUND(千円単!S62/1000,0)) -> 1039 | T62: =IF(千円単!T62="","",ROUND(千円単!T62/1000,0)) -> 0 | U62: =IF(千円単!U62="","",ROUND(千円単!U62/1000,0)) -> 5479 | V62: =IF(千円単!V62="","",ROUND(千円単!V62/1000,0)) -> 1656 | W62: =IF(千円単!W62="","",ROUND(千円単!W62/1000,0)) -> 3823 | X62: =IF(千円単!X62="","",ROUND(千円単!X62/1000,0)) -> -2515 | Y62: =IF(千円単!Y62="","",ROUND(千円単!Y62/1000,0)) -> 0
A63: 2016 | B63: 46 | C63: 17 | D63: 1 | E63: 62 | F63: 公共 | G63: 072036 | H63: 福島県 | I63: 郡山市 | J63: =IF(千円単!J63="","",ROUND(千円単!J63/1000,0)) -> 7943 | K63: =IF(千円単!K63="","",ROUND(千円単!K63/1000,0)) -> 3939 | L63: =IF(千円単!L63="","",ROUND(千円単!L63/1000,0)) -> 2628 | M63: =IF(千円単!M63="","",ROUND(千円単!M63/1000,0)) -> 7950 | N63: =IF(千円単!N63="","",ROUND(千円単!N63/1000,0)) -> 1351 | O63: =IF(千円単!O63="","",ROUND(千円単!O63/1000,0)) -> 3863 | P63: =IF(千円単!P63="","",ROUND(千円単!P63/1000,0)) -> 266 | Q63: =IF(千円単!Q63="","",ROUND(千円単!Q63/1000,0)) -> -7 | R63: =IF(千円単!R63="","",ROUND(千円単!R63/1000,0)) -> 5886 | S63: =IF(千円単!S63="","",ROUND(千円単!S63/1000,0)) -> 2473 | T63: =IF(千円単!T63="","",ROUND(千円単!T63/1000,0)) -> 0 | U63: =IF(千円単!U63="","",ROUND(千円単!U63/1000,0)) -> 8891 | V63: =IF(千円単!V63="","",ROUND(千円単!V63/1000,0)) -> 3459 | W63: =IF(千円単!W63="","",ROUND(千円単!W63/1000,0)) -> 5431 | X63: =IF(千円単!X63="","",ROUND(千円単!X63/1000,0)) -> -3005 | Y63: =IF(千円単!Y63="","",ROUND(千円単!Y63/1000,0)) -> -7
A64: 2016 | B64: 46 | C64: 17 | D64: 1 | E64: 63 | F64: 公共 | G64: 072044 | H64: 福島県 | I64: いわき市 | J64: =IF(千円単!J64="","",ROUND(千円単!J64/1000,0)) -> 8091 | K64: =IF(千円単!K64="","",ROUND(千円単!K64/1000,0)) -> 3110 | L64: =IF(千円単!L64="","",ROUND(千円単!L64/1000,0)) -> 2806 | M64: =IF(千円単!M64="","",ROUND(千円単!M64/1000,0)) -> 7875 | N64: =IF(千円単!N64="","",ROUND(千円単!N64/1000,0)) -> 1116 | O64: =IF(千円単!O64="","",ROUND(千円単!O64/1000,0)) -> 4334 | P64: =IF(千円単!P64="","",ROUND(千円単!P64/1000,0)) -> 177 | Q64: =IF(千円単!Q64="","",ROUND(千円単!Q64/1000,0)) -> 217 | R64: =IF(千円単!R64="","",ROUND(千円単!R64/1000,0)) -> 4175 | S64: =IF(千円単!S64="","",ROUND(千円単!S64/1000,0)) -> 2259 | T64: =IF(千円単!T64="","",ROUND(千円単!T64/1000,0)) -> 859 | U64: =IF(千円単!U64="","",ROUND(千円単!U64/1000,0)) -> 6963 | V64: =IF(千円単!V64="","",ROUND(千円単!V64/1000,0)) -> 2985 | W64: =IF(千円単!W64="","",ROUND(千円単!W64/1000,0)) -> 3976 | X64: =IF(千円単!X64="","",ROUND(千円単!X64/1000,0)) -> -2788 | Y64: =IF(千円単!Y64="","",ROUND(千円単!Y64/1000,0)) -> 217
A65: 2016 | B65: 46 | C65: 17 | D65: 1 | E65: 64 | F65: 公共 | G65: 072109 | H65: 福島県 | I65: 二本松市 | J65: =IF(千円単!J65="","",ROUND(千円単!J65/1000,0)) -> 567 | K65: =IF(千円単!K65="","",ROUND(千円単!K65/1000,0)) -> 146 | L65: =IF(千円単!L65="","",ROUND(千円単!L65/1000,0)) -> 311 | M65: =IF(千円単!M65="","",ROUND(千円単!M65/1000,0)) -> 567 | N65: =IF(千円単!N65="","",ROUND(千円単!N65/1000,0)) -> 87 | O65: =IF(千円単!O65="","",ROUND(千円単!O65/1000,0)) -> 232 | P65: =IF(千円単!P65="","",ROUND(千円単!P65/1000,0)) -> 37 | Q65: =IF(千円単!Q65="","",ROUND(千円単!Q65/1000,0)) -> 0 | R65: =IF(千円単!R65="","",ROUND(千円単!R65/1000,0)) -> 108 | S65: =IF(千円単!S65="","",ROUND(千円単!S65/1000,0)) -> 78 | T65: =IF(千円単!T65="","",ROUND(千円単!T65/1000,0)) -> 5 | U65: =IF(千円単!U65="","",ROUND(千円単!U65/1000,0)) -> 333 | V65: =IF(千円単!V65="","",ROUND(千円単!V65/1000,0)) -> 99 | W65: =IF(千円単!W65="","",ROUND(千円単!W65/1000,0)) -> 235 | X65: =IF(千円単!X65="","",ROUND(千円単!X65/1000,0)) -> -225 | Y65: =IF(千円単!Y65="","",ROUND(千円単!Y65/1000,0)) -> 0
A66: 2016 | B66: 46 | C66: 17 | D66: 1 | E66: 65 | F66: 公共 | G66: 072125 | H66: 福島県 | I66: 南相馬市 | J66: =IF(千円単!J66="","",ROUND(千円単!J66/1000,0)) -> 1732 | K66: =IF(千円単!K66="","",ROUND(千円単!K66/1000,0)) -> 458 | L66: =IF(千円単!L66="","",ROUND(千円単!L66/1000,0)) -> 569 | M66: =IF(千円単!M66="","",ROUND(千円単!M66/1000,0)) -> 1611 | N66: =IF(千円単!N66="","",ROUND(千円単!N66/1000,0)) -> 206 | O66: =IF(千円単!O66="","",ROUND(千円単!O66/1000,0)) -> 908 | P66: =IF(千円単!P66="","",ROUND(千円単!P66/1000,0)) -> 54 | Q66: =IF(千円単!Q66="","",ROUND(千円単!Q66/1000,0)) -> 122 | R66: =IF(千円単!R66="","",ROUND(千円単!R66/1000,0)) -> 707 | S66: =IF(千円単!S66="","",ROUND(千円単!S66/1000,0)) -> 385 | T66: =IF(千円単!T66="","",ROUND(千円単!T66/1000,0)) -> 27 | U66: =IF(千円単!U66="","",ROUND(千円単!U66/1000,0)) -> 1199 | V66: =IF(千円単!V66="","",ROUND(千円単!V66/1000,0)) -> 323 | W66: =IF(千円単!W66="","",ROUND(千円単!W66/1000,0)) -> 770 | X66: =IF(千円単!X66="","",ROUND(千円単!X66/1000,0)) -> -492 | Y66: =IF(千円単!Y66="","",ROUND(千円単!Y66/1000,0)) -> 122
A67: 2016 | B67: 46 | C67: 17 | D67: 1 | E67: 66 | F67: 公共 | G67: 075213 | H67: 福島県 | I67: 三春町 | J67: =IF(千円単!J67="","",ROUND(千円単!J67/1000,0)) -> 188 | K67: =IF(千円単!K67="","",ROUND(千円単!K67/1000,0)) -> 68 | L67: =IF(千円単!L67="","",ROUND(千円単!L67/1000,0)) -> 29 | M67: =IF(千円単!M67="","",ROUND(千円単!M67/1000,0)) -> 211 | N67: =IF(千円単!N67="","",ROUND(千円単!N67/1000,0)) -> 29 | O67: =IF(千円単!O67="","",ROUND(千円単!O67/1000,0)) -> 136 | P67: =IF(千円単!P67="","",ROUND(千円単!P67/1000,0)) -> 10 | Q67: =IF(千円単!Q67="","",ROUND(千円単!Q67/1000,0)) -> -23 | R67: =IF(千円単!R67="","",ROUND(千円単!R67/1000,0)) -> 109 | S67: =IF(千円単!S67="","",ROUND(千円単!S67/1000,0)) -> 39 | T67: =IF(千円単!T67="","",ROUND(千円単!T67/1000,0)) -> 0 | U67: =IF(千円単!U67="","",ROUND(千円単!U67/1000,0)) -> 161 | V67: =IF(千円単!V67="","",ROUND(千円単!V67/1000,0)) -> 48 | W67: =IF(千円単!W67="","",ROUND(千円単!W67/1000,0)) -> 113 | X67: =IF(千円単!X67="","",ROUND(千円単!X67/1000,0)) -> -52 | Y67: =IF(千円単!Y67="","",ROUND(千円単!Y67/1000,0)) -> -23
A68: 2016 | B68: 46 | C68: 17 | D68: 1 | E68: 67 | F68: 公共 | G68: 082015 | H68: 茨城県 | I68: 水戸市 | J68: =IF(千円単!J68="","",ROUND(千円単!J68/1000,0)) -> 8806 | K68: =IF(千円単!K68="","",ROUND(千円単!K68/1000,0)) -> 3121 | L68: =IF(千円単!L68="","",ROUND(千円単!L68/1000,0)) -> 3873 | M68: =IF(千円単!M68="","",ROUND(千円単!M68/1000,0)) -> 8707 | N68: =IF(千円単!N68="","",ROUND(千円単!N68/1000,0)) -> 1713 | O68: =IF(千円単!O68="","",ROUND(千円単!O68/1000,0)) -> 5342 | P68: =IF(千円単!P68="","",ROUND(千円単!P68/1000,0)) -> 187 | Q68: =IF(千円単!Q68="","",ROUND(千円単!Q68/1000,0)) -> 99 | R68: =IF(千円単!R68="","",ROUND(千円単!R68/1000,0)) -> 4978 | S68: =IF(千円単!S68="","",ROUND(千円単!S68/1000,0)) -> 2563 | T68: =IF(千円単!T68="","",ROUND(千円単!T68/1000,0)) -> 519 | U68: =IF(千円単!U68="","",ROUND(千円単!U68/1000,0)) -> 8727 | V68: =IF(千円単!V68="","",ROUND(千円単!V68/1000,0)) -> 3511 | W68: =IF(千円単!W68="","",ROUND(千円単!W68/1000,0)) -> 5214 | X68: =IF(千円単!X68="","",ROUND(千円単!X68/1000,0)) -> -3749 | Y68: =IF(千円単!Y68="","",ROUND(千円単!Y68/1000,0)) -> 99
A69: 2016 | B69: 46 | C69: 17 | D69: 1 | E69: 68 | F69: 公共 | G69: 082023 | H69: 茨城県 | I69: 日立市 | J69: =IF(千円単!J69="","",ROUND(千円単!J69/1000,0)) -> 3991 | K69: =IF(千円単!K69="","",ROUND(千円単!K69/1000,0)) -> 2659 | L69: =IF(千円単!L69="","",ROUND(千円単!L69/1000,0)) -> 103 | M69: =IF(千円単!M69="","",ROUND(千円単!M69/1000,0)) -> 3639 | N69: =IF(千円単!N69="","",ROUND(千円単!N69/1000,0)) -> 299 | O69: =IF(千円単!O69="","",ROUND(千円単!O69/1000,0)) -> 2021 | P69: =IF(千円単!P69="","",ROUND(千円単!P69/1000,0)) -> 108 | Q69: =IF(千円単!Q69="","",ROUND(千円単!Q69/1000,0)) -> 351 | R69: =IF(千円単!R69="","",ROUND(千円単!R69/1000,0)) -> 1495 | S69: =IF(千円単!S69="","",ROUND(千円単!S69/1000,0)) -> 531 | T69: =IF(千円単!T69="","",ROUND(千円単!T69/1000,0)) -> 361 | U69: =IF(千円単!U69="","",ROUND(千円単!U69/1000,0)) -> 2750 | V69: =IF(千円単!V69="","",ROUND(千円単!V69/1000,0)) -> 1346 | W69: =IF(千円単!W69="","",ROUND(千円単!W69/1000,0)) -> 1404 | X69: =IF(千円単!X69="","",ROUND(千円単!X69/1000,0)) -> -1255 | Y69: =IF(千円単!Y69="","",ROUND(千円単!Y69/1000,0)) -> 351
A70: 2016 | B70: 46 | C70: 17 | D70: 1 | E70: 69 | F70: 公共 | G70: 082244 | H70: 茨城県 | I70: 守谷市 | J70: =IF(千円単!J70="","",ROUND(千円単!J70/1000,0)) -> 1863 | K70: =IF(千円単!K70="","",ROUND(千円単!K70/1000,0)) -> 1380 | L70: =IF(千円単!L70="","",ROUND(千円単!L70/1000,0)) -> 16 | M70: =IF(千円単!M70="","",ROUND(千円単!M70/1000,0)) -> 1677 | N70: =IF(千円単!N70="","",ROUND(千円単!N70/1000,0)) -> 92 | O70: =IF(千円単!O70="","",ROUND(千円単!O70/1000,0)) -> 847 | P70: =IF(千円単!P70="","",ROUND(千円単!P70/1000,0)) -> 65 | Q70: =IF(千円単!Q70="","",ROUND(千円単!Q70/1000,0)) -> 186 | R70: =IF(千円単!R70="","",ROUND(千円単!R70/1000,0)) -> 251 | S70: =IF(千円単!S70="","",ROUND(千円単!S70/1000,0)) -> 0 | T70: =IF(千円単!T70="","",ROUND(千円単!T70/1000,0)) -> 16 | U70: =IF(千円単!U70="","",ROUND(千円単!U70/1000,0)) -> 834 | V70: =IF(千円単!V70="","",ROUND(千円単!V70/1000,0)) -> 534 | W70: =IF(千円単!W70="","",ROUND(千円単!W70/1000,0)) -> 300 | X70: =IF(千円単!X70="","",ROUND(千円単!X70/1000,0)) -> -583 | Y70: =IF(千円単!Y70="","",ROUND(千円単!Y70/1000,0)) -> 186
A71: 2016 | B71: 46 | C71: 17 | D71: 1 | E71: 70 | F71: 公共 | G71: 089222 | H71: 茨城県 | I71: 日立・高萩広域下水道組合 | J71: =IF(千円単!J71="","",ROUND(千円単!J71/1000,0)) -> 2427 | K71: =IF(千円単!K71="","",ROUND(千円単!K71/1000,0)) -> 1169 | L71: =IF(千円単!L71="","",ROUND(千円単!L71/1000,0)) -> 652 | M71: =IF(千円単!M71="","",ROUND(千円単!M71/1000,0)) -> 2407 | N71: =IF(千円単!N71="","",ROUND(千円単!N71/1000,0)) -> 308 | O71: =IF(千円単!O71="","",ROUND(千円単!O71/1000,0)) -> 1440 | P71: =IF(千円単!P71="","",ROUND(千円単!P71/1000,0)) -> 190 | Q71: =IF(千円単!Q71="","",ROUND(千円単!Q71/1000,0)) -> 21 | R71: =IF(千円単!R71="","",ROUND(千円単!R71/1000,0)) -> 927 | S71: =IF(千円単!S71="","",ROUND(千円単!S71/1000,0)) -> 94 | T71: =IF(千円単!T71="","",ROUND(千円単!T71/1000,0)) -> 0 | U71: =IF(千円単!U71="","",ROUND(千円単!U71/1000,0)) -> 1863 | V71: =IF(千円単!V71="","",ROUND(千円単!V71/1000,0)) -> 288 | W71: =IF(千円単!W71="","",ROUND(千円単!W71/1000,0)) -> 1575 | X71: =IF(千円単!X71="","",ROUND(千円単!X71/1000,0)) -> -936 | Y71: =IF(千円単!Y71="","",ROUND(千円単!Y71/1000,0)) -> 21
A72: 2016 | B72: 46 | C72: 17 | D72: 1 | E72: 71 | F72: 公共 | G72: 092011 | H72: 栃木県 | I72: 宇都宮市 | J72: =IF(千円単!J72="","",ROUND(千円単!J72/1000,0)) -> 12036 | K72: =IF(千円単!K72="","",ROUND(千円単!K72/1000,0)) -> 6831 | L72: =IF(千円単!L72="","",ROUND(千円単!L72/1000,0)) -> 2983 | M72: =IF(千円単!M72="","",ROUND(千円単!M72/1000,0)) -> 10856 | N72: =IF(千円単!N72="","",ROUND(千円単!N72/1000,0)) -> 1242 | O72: =IF(千円単!O72="","",ROUND(千円単!O72/1000,0)) -> 5556 | P72: =IF(千円単!P72="","",ROUND(千円単!P72/1000,0)) -> 513 | Q72: =IF(千円単!Q72="","",ROUND(千円単!Q72/1000,0)) -> 1181 | R72: =IF(千円単!R72="","",ROUND(千円単!R72/1000,0)) -> 2776 | S72: =IF(千円単!S72="","",ROUND(千円単!S72/1000,0)) -> 853 | T72: =IF(千円単!T72="","",ROUND(千円単!T72/1000,0)) -> 184 | U72: =IF(千円単!U72="","",ROUND(千円単!U72/1000,0)) -> 6747 | V72: =IF(千円単!V72="","",ROUND(千円単!V72/1000,0)) -> 2028 | W72: =IF(千円単!W72="","",ROUND(千円単!W72/1000,0)) -> 4719 | X72: =IF(千円単!X72="","",ROUND(千円単!X72/1000,0)) -> -3971 | Y72: =IF(千円単!Y72="","",ROUND(千円単!Y72/1000,0)) -> 1181
A73: 2016 | B73: 46 | C73: 17 | D73: 1 | E73: 72 | F73: 公共 | G73: 102016 | H73: 群馬県 | I73: 前橋市 | J73: =IF(千円単!J73="","",ROUND(千円単!J73/1000,0)) -> 6968 | K73: =IF(千円単!K73="","",ROUND(千円単!K73/1000,0)) -> 3016 | L73: =IF(千円単!L73="","",ROUND(千円単!L73/1000,0)) -> 2420 | M73: =IF(千円単!M73="","",ROUND(千円単!M73/1000,0)) -> 6395 | N73: =IF(千円単!N73="","",ROUND(千円単!N73/1000,0)) -> 889 | O73: =IF(千円単!O73="","",ROUND(千円単!O73/1000,0)) -> 3006 | P73: =IF(千円単!P73="","",ROUND(千円単!P73/1000,0)) -> 323 | Q73: =IF(千円単!Q73="","",ROUND(千円単!Q73/1000,0)) -> 572 | R73: =IF(千円単!R73="","",ROUND(千円単!R73/1000,0)) -> 4889 | S73: =IF(千円単!S73="","",ROUND(千円単!S73/1000,0)) -> 2474 | T73: =IF(千円単!T73="","",ROUND(千円単!T73/1000,0)) -> 861 | U73: =IF(千円単!U73="","",ROUND(千円単!U73/1000,0)) -> 7169 | V73: =IF(千円単!V73="","",ROUND(千円単!V73/1000,0)) -> 4153 | W73: =IF(千円単!W73="","",ROUND(千円単!W73/1000,0)) -> 3016 | X73: =IF(千円単!X73="","",ROUND(千円単!X73/1000,0)) -> -2281 | Y73: =IF(千円単!Y73="","",ROUND(千円単!Y73/1000,0)) -> 572
A74: 2016 | B74: 46 | C74: 17 | D74: 1 | E74: 73 | F74: 公共 | G74: 102024 | H74: 群馬県 | I74: 高崎市 | J74: =IF(千円単!J74="","",ROUND(千円単!J74/1000,0)) -> 8370 | K74: =IF(千円単!K74="","",ROUND(千円単!K74/1000,0)) -> 3707 | L74: =IF(千円単!L74="","",ROUND(千円単!L74/1000,0)) -> 3166 | M74: =IF(千円単!M74="","",ROUND(千円単!M74/1000,0)) -> 6589 | N74: =IF(千円単!N74="","",ROUND(千円単!N74/1000,0)) -> 992 | O74: =IF(千円単!O74="","",ROUND(千円単!O74/1000,0)) -> 3327 | P74: =IF(千円単!P74="","",ROUND(千円単!P74/1000,0)) -> 415 | Q74: =IF(千円単!Q74="","",ROUND(千円単!Q74/1000,0)) -> 1781 | R74: =IF(千円単!R74="","",ROUND(千円単!R74/1000,0)) -> 3177 | S74: =IF(千円単!S74="","",ROUND(千円単!S74/1000,0)) -> 1564 | T74: =IF(千円単!T74="","",ROUND(千円単!T74/1000,0)) -> 507 | U74: =IF(千円単!U74="","",ROUND(千円単!U74/1000,0)) -> 6394 | V74: =IF(千円単!V74="","",ROUND(千円単!V74/1000,0)) -> 3091 | W74: =IF(千円単!W74="","",ROUND(千円単!W74/1000,0)) -> 3292 | X74: =IF(千円単!X74="","",ROUND(千円単!X74/1000,0)) -> -3217 | Y74: =IF(千円単!Y74="","",ROUND(千円単!Y74/1000,0)) -> 1781
A75: 2016 | B75: 46 | C75: 17 | D75: 1 | E75: 74 | F75: 公共 | G75: 102059 | H75: 群馬県 | I75: 太田市 | J75: =IF(千円単!J75="","",ROUND(千円単!J75/1000,0)) -> 2777 | K75: =IF(千円単!K75="","",ROUND(千円単!K75/1000,0)) -> 794 | L75: =IF(千円単!L75="","",ROUND(千円単!L75/1000,0)) -> 1202 | M75: =IF(千円単!M75="","",ROUND(千円単!M75/1000,0)) -> 2784 | N75: =IF(千円単!N75="","",ROUND(千円単!N75/1000,0)) -> 448 | O75: =IF(千円単!O75="","",ROUND(千円単!O75/1000,0)) -> 1450 | P75: =IF(千円単!P75="","",ROUND(千円単!P75/1000,0)) -> 75 | Q75: =IF(千円単!Q75="","",ROUND(千円単!Q75/1000,0)) -> -8 | R75: =IF(千円単!R75="","",ROUND(千円単!R75/1000,0)) -> 2096 | S75: =IF(千円単!S75="","",ROUND(千円単!S75/1000,0)) -> 861 | T75: =IF(千円単!T75="","",ROUND(千円単!T75/1000,0)) -> 669 | U75: =IF(千円単!U75="","",ROUND(千円単!U75/1000,0)) -> 2663 | V75: =IF(千円単!V75="","",ROUND(千円単!V75/1000,0)) -> 1231 | W75: =IF(千円単!W75="","",ROUND(千円単!W75/1000,0)) -> 1428 | X75: =IF(千円単!X75="","",ROUND(千円単!X75/1000,0)) -> -567 | Y75: =IF(千円単!Y75="","",ROUND(千円単!Y75/1000,0)) -> -8
A76: 2016 | B76: 46 | C76: 17 | D76: 1 | E76: 75 | F76: 公共 | G76: 111007 | H76: 埼玉県 | I76: さいたま市 | J76: =IF(千円単!J76="","",ROUND(千円単!J76/1000,0)) -> 24101 | K76: =IF(千円単!K76="","",ROUND(千円単!K76/1000,0)) -> 16779 | L76: =IF(千円単!L76="","",ROUND(千円単!L76/1000,0)) -> 4370 | M76: =IF(千円単!M76="","",ROUND(千円単!M76/1000,0)) -> 22872 | N76: =IF(千円単!N76="","",ROUND(千円単!N76/1000,0)) -> 3435 | O76: =IF(千円単!O76="","",ROUND(千円単!O76/1000,0)) -> 12180 | P76: =IF(千円単!P76="","",ROUND(千円単!P76/1000,0)) -> 550 | Q76: =IF(千円単!Q76="","",ROUND(千円単!Q76/1000,0)) -> 1229 | R76: =IF(千円単!R76="","",ROUND(千円単!R76/1000,0)) -> 14819 | S76: =IF(千円単!S76="","",ROUND(千円単!S76/1000,0)) -> 12018 | T76: =IF(千円単!T76="","",ROUND(千円単!T76/1000,0)) -> 404 | U76: =IF(千円単!U76="","",ROUND(千円単!U76/1000,0)) -> 24943 | V76: =IF(千円単!V76="","",ROUND(千円単!V76/1000,0)) -> 13301 | W76: =IF(千円単!W76="","",ROUND(千円単!W76/1000,0)) -> 11640 | X76: =IF(千円単!X76="","",ROUND(千円単!X76/1000,0)) -> -10124 | Y76: =IF(千円単!Y76="","",ROUND(千円単!Y76/1000,0)) -> 1229
A77: 2016 | B77: 46 | C77: 17 | D77: 1 | E77: 76 | F77: 公共 | G77: 112011 | H77: 埼玉県 | I77: 川越市 | J77: =IF(千円単!J77="","",ROUND(千円単!J77/1000,0)) -> 5947 | K77: =IF(千円単!K77="","",ROUND(千円単!K77/1000,0)) -> 3242 | L77: =IF(千円単!L77="","",ROUND(千円単!L77/1000,0)) -> 1911 | M77: =IF(千円単!M77="","",ROUND(千円単!M77/1000,0)) -> 5635 | N77: =IF(千円単!N77="","",ROUND(千円単!N77/1000,0)) -> 419 | O77: =IF(千円単!O77="","",ROUND(千円単!O77/1000,0)) -> 2669 | P77: =IF(千円単!P77="","",ROUND(千円単!P77/1000,0)) -> 358 | Q77: =IF(千円単!Q77="","",ROUND(千円単!Q77/1000,0)) -> 312 | R77: =IF(千円単!R77="","",ROUND(千円単!R77/1000,0)) -> 806 | S77: =IF(千円単!S77="","",ROUND(千円単!S77/1000,0)) -> 582 | T77: =IF(千円単!T77="","",ROUND(千円単!T77/1000,0)) -> 86 | U77: =IF(千円単!U77="","",ROUND(千円単!U77/1000,0)) -> 2458 | V77: =IF(千円単!V77="","",ROUND(千円単!V77/1000,0)) -> 1249 | W77: =IF(千円単!W77="","",ROUND(千円単!W77/1000,0)) -> 1209 | X77: =IF(千円単!X77="","",ROUND(千円単!X77/1000,0)) -> -1652 | Y77: =IF(千円単!Y77="","",ROUND(千円単!Y77/1000,0)) -> 312
A78: 2016 | B78: 46 | C78: 17 | D78: 1 | E78: 77 | F78: 公共 | G78: 112089 | H78: 埼玉県 | I78: 所沢市 | J78: =IF(千円単!J78="","",ROUND(千円単!J78/1000,0)) -> 5044 | K78: =IF(千円単!K78="","",ROUND(千円単!K78/1000,0)) -> 2658 | L78: =IF(千円単!L78="","",ROUND(千円単!L78/1000,0)) -> 1324 | M78: =IF(千円単!M78="","",ROUND(千円単!M78/1000,0)) -> 5360 | N78: =IF(千円単!N78="","",ROUND(千円単!N78/1000,0)) -> 432 | O78: =IF(千円単!O78="","",ROUND(千円単!O78/1000,0)) -> 2906 | P78: =IF(千円単!P78="","",ROUND(千円単!P78/1000,0)) -> 384 | Q78: =IF(千円単!Q78="","",ROUND(千円単!Q78/1000,0)) -> -316 | R78: =IF(千円単!R78="","",ROUND(千円単!R78/1000,0)) -> 1503 | S78: =IF(千円単!S78="","",ROUND(千円単!S78/1000,0)) -> 994 | T78: =IF(千円単!T78="","",ROUND(千円単!T78/1000,0)) -> 171 | U78: =IF(千円単!U78="","",ROUND(千円単!U78/1000,0)) -> 3208 | V78: =IF(千円単!V78="","",ROUND(千円単!V78/1000,0)) -> 1986 | W78: =IF(千円単!W78="","",ROUND(千円単!W78/1000,0)) -> 1219 | X78: =IF(千円単!X78="","",ROUND(千円単!X78/1000,0)) -> -1705 | Y78: =IF(千円単!Y78="","",ROUND(千円単!Y78/1000,0)) -> -316
A79: 2016 | B79: 46 | C79: 17 | D79: 1 | E79: 78 | F79: 公共 | G79: 112101 | H79: 埼玉県 | I79: 加須市 | J79: =IF(千円単!J79="","",ROUND(千円単!J79/1000,0)) -> 1743 | K79: =IF(千円単!K79="","",ROUND(千円単!K79/1000,0)) -> 505 | L79: =IF(千円単!L79="","",ROUND(千円単!L79/1000,0)) -> 682 | M79: =IF(千円単!M79="","",ROUND(千円単!M79/1000,0)) -> 1658 | N79: =IF(千円単!N79="","",ROUND(千円単!N79/1000,0)) -> 250 | O79: =IF(千円単!O79="","",ROUND(千円単!O79/1000,0)) -> 983 | P79: =IF(千円単!P79="","",ROUND(千円単!P79/1000,0)) -> 46 | Q79: =IF(千円単!Q79="","",ROUND(千円単!Q79/1000,0)) -> 85 | R79: =IF(千円単!R79="","",ROUND(千円単!R79/1000,0)) -> 1493 | S79: =IF(千円単!S79="","",ROUND(千円単!S79/1000,0)) -> 788 | T79: =IF(千円単!T79="","",ROUND(千円単!T79/1000,0)) -> 300 | U79: =IF(千円単!U79="","",ROUND(千円単!U79/1000,0)) -> 2011 | V79: =IF(千円単!V79="","",ROUND(千円単!V79/1000,0)) -> 980 | W79: =IF(千円単!W79="","",ROUND(千円単!W79/1000,0)) -> 1028 | X79: =IF(千円単!X79="","",ROUND(千円単!X79/1000,0)) -> -518 | Y79: =IF(千円単!Y79="","",ROUND(千円単!Y79/1000,0)) -> 85
A80: 2016 | B80: 46 | C80: 17 | D80: 1 | E80: 79 | F80: 公共 | G80: 112119 | H80: 埼玉県 | I80: 本庄市 | J80: =IF(千円単!J80="","",ROUND(千円単!J80/1000,0)) -> 1423 | K80: =IF(千円単!K80="","",ROUND(千円単!K80/1000,0)) -> 590 | L80: =IF(千円単!L80="","",ROUND(千円単!L80/1000,0)) -> 263 | M80: =IF(千円単!M80="","",ROUND(千円単!M80/1000,0)) -> 1399 | N80: =IF(千円単!N80="","",ROUND(千円単!N80/1000,0)) -> 144 | O80: =IF(千円単!O80="","",ROUND(千円単!O80/1000,0)) -> 826 | P80: =IF(千円単!P80="","",ROUND(千円単!P80/1000,0)) -> 45 | Q80: =IF(千円単!Q80="","",ROUND(千円単!Q80/1000,0)) -> 25 | R80: =IF(千円単!R80="","",ROUND(千円単!R80/1000,0)) -> 1037 | S80: =IF(千円単!S80="","",ROUND(千円単!S80/1000,0)) -> 591 | T80: =IF(千円単!T80="","",ROUND(千円単!T80/1000,0)) -> 290 | U80: =IF(千円単!U80="","",ROUND(千円単!U80/1000,0)) -> 1132 | V80: =IF(千円単!V80="","",ROUND(千円単!V80/1000,0)) -> 613 | W80: =IF(千円単!W80="","",ROUND(千円単!W80/1000,0)) -> 518 | X80: =IF(千円単!X80="","",ROUND(千円単!X80/1000,0)) -> -94 | Y80: =IF(千円単!Y80="","",ROUND(千円単!Y80/1000,0)) -> 25
A81: 2016 | B81: 46 | C81: 17 | D81: 1 | E81: 80 | F81: 公共 | G81: 112143 | H81: 埼玉県 | I81: 春日部市 | J81: =IF(千円単!J81="","",ROUND(千円単!J81/1000,0)) -> 4713 | K81: =IF(千円単!K81="","",ROUND(千円単!K81/1000,0)) -> 2273 | L81: =IF(千円単!L81="","",ROUND(千円単!L81/1000,0)) -> 1720 | M81: =IF(千円単!M81="","",ROUND(千円単!M81/1000,0)) -> 4119 | N81: =IF(千円単!N81="","",ROUND(千円単!N81/1000,0)) -> 797 | O81: =IF(千円単!O81="","",ROUND(千円単!O81/1000,0)) -> 2176 | P81: =IF(千円単!P81="","",ROUND(千円単!P81/1000,0)) -> 93 | Q81: =IF(千円単!Q81="","",ROUND(千円単!Q81/1000,0)) -> 594 | R81: =IF(千円単!R81="","",ROUND(千円単!R81/1000,0)) -> 2624 | S81: =IF(千円単!S81="","",ROUND(千円単!S81/1000,0)) -> 2192 | T81: =IF(千円単!T81="","",ROUND(千円単!T81/1000,0)) -> 162 | U81: =IF(千円単!U81="","",ROUND(千円単!U81/1000,0)) -> 4419 | V81: =IF(千円単!V81="","",ROUND(千円単!V81/1000,0)) -> 1246 | W81: =IF(千円単!W81="","",ROUND(千円単!W81/1000,0)) -> 3174 | X81: =IF(千円単!X81="","",ROUND(千円単!X81/1000,0)) -> -1795 | Y81: =IF(千円単!Y81="","",ROUND(千円単!Y81/1000,0)) -> 594
A82: 2016 | B82: 46 | C82: 17 | D82: 1 | E82: 81 | F82: 公共 | G82: 112151 | H82: 埼玉県 | I82: 狭山市 | J82: =IF(千円単!J82="","",ROUND(千円単!J82/1000,0)) -> 3205 | K82: =IF(千円単!K82="","",ROUND(千円単!K82/1000,0)) -> 1538 | L82: =IF(千円単!L82="","",ROUND(千円単!L82/1000,0)) -> 932 | M82: =IF(千円単!M82="","",ROUND(千円単!M82/1000,0)) -> 3054 | N82: =IF(千円単!N82="","",ROUND(千円単!N82/1000,0)) -> 370 | O82: =IF(千円単!O82="","",ROUND(千円単!O82/1000,0)) -> 1822 | P82: =IF(千円単!P82="","",ROUND(千円単!P82/1000,0)) -> 90 | Q82: =IF(千円単!Q82="","",ROUND(千円単!Q82/1000,0)) -> 150 | R82: =IF(千円単!R82="","",ROUND(千円単!R82/1000,0)) -> 608 | S82: =IF(千円単!S82="","",ROUND(千円単!S82/1000,0)) -> 368 | T82: =IF(千円単!T82="","",ROUND(千円単!T82/1000,0)) -> 124 | U82: =IF(千円単!U82="","",ROUND(千円単!U82/1000,0)) -> 1758 | V82: =IF(千円単!V82="","",ROUND(千円単!V82/1000,0)) -> 669 | W82: =IF(千円単!W82="","",ROUND(千円単!W82/1000,0)) -> 1090 | X82: =IF(千円単!X82="","",ROUND(千円単!X82/1000,0)) -> -1151 | Y82: =IF(千円単!Y82="","",ROUND(千円単!Y82/1000,0)) -> 150
A83: 2016 | B83: 46 | C83: 17 | D83: 1 | E83: 82 | F83: 公共 | G83: 112178 | H83: 埼玉県 | I83: 鴻巣市 | J83: =IF(千円単!J83="","",ROUND(千円単!J83/1000,0)) -> 2171 | K83: =IF(千円単!K83="","",ROUND(千円単!K83/1000,0)) -> 1019 | L83: =IF(千円単!L83="","",ROUND(千円単!L83/1000,0)) -> 620 | M83: =IF(千円単!M83="","",ROUND(千円単!M83/1000,0)) -> 2044 | N83: =IF(千円単!N83="","",ROUND(千円単!N83/1000,0)) -> 282 | O83: =IF(千円単!O83="","",ROUND(千円単!O83/1000,0)) -> 1182 | P83: =IF(千円単!P83="","",ROUND(千円単!P83/1000,0)) -> 47 | Q83: =IF(千円単!Q83="","",ROUND(千円単!Q83/1000,0)) -> 128 | R83: =IF(千円単!R83="","",ROUND(千円単!R83/1000,0)) -> 1430 | S83: =IF(千円単!S83="","",ROUND(千円単!S83/1000,0)) -> 678 | T83: =IF(千円単!T83="","",ROUND(千円単!T83/1000,0)) -> 530 | U83: =IF(千円単!U83="","",ROUND(千円単!U83/1000,0)) -> 1974 | V83: =IF(千円単!V83="","",ROUND(千円単!V83/1000,0)) -> 718 | W83: =IF(千円単!W83="","",ROUND(千円単!W83/1000,0)) -> 1256 | X83: =IF(千円単!X83="","",ROUND(千円単!X83/1000,0)) -> -545 | Y83: =IF(千円単!Y83="","",ROUND(千円単!Y83/1000,0)) -> 128
A84: 2016 | B84: 46 | C84: 17 | D84: 1 | E84: 83 | F84: 公共 | G84: 112186 | H84: 埼玉県 | I84: 深谷市 | J84: =IF(千円単!J84="","",ROUND(千円単!J84/1000,0)) -> 2327 | K84: =IF(千円単!K84="","",ROUND(千円単!K84/1000,0)) -> 1003 | L84: =IF(千円単!L84="","",ROUND(千円単!L84/1000,0)) -> 701 | M84: =IF(千円単!M84="","",ROUND(千円単!M84/1000,0)) -> 2224 | N84: =IF(千円単!N84="","",ROUND(千円単!N84/1000,0)) -> 330 | O84: =IF(千円単!O84="","",ROUND(千円単!O84/1000,0)) -> 1279 | P84: =IF(千円単!P84="","",ROUND(千円単!P84/1000,0)) -> 51 | Q84: =IF(千円単!Q84="","",ROUND(千円単!Q84/1000,0)) -> 103 | R84: =IF(千円単!R84="","",ROUND(千円単!R84/1000,0)) -> 1811 | S84: =IF(千円単!S84="","",ROUND(千円単!S84/1000,0)) -> 1161 | T84: =IF(千円単!T84="","",ROUND(千円単!T84/1000,0)) -> 53 | U84: =IF(千円単!U84="","",ROUND(千円単!U84/1000,0)) -> 2569 | V84: =IF(千円単!V84="","",ROUND(千円単!V84/1000,0)) -> 1545 | W84: =IF(千円単!W84="","",ROUND(千円単!W84/1000,0)) -> 1022 | X84: =IF(千円単!X84="","",ROUND(千円単!X84/1000,0)) -> -757 | Y84: =IF(千円単!Y84="","",ROUND(千円単!Y84/1000,0)) -> 103
A85: 2016 | B85: 46 | C85: 17 | D85: 1 | E85: 84 | F85: 公共 | G85: 112241 | H85: 埼玉県 | I85: 戸田市 | J85: =IF(千円単!J85="","",ROUND(千円単!J85/1000,0)) -> 2474 | K85: =IF(千円単!K85="","",ROUND(千円単!K85/1000,0)) -> 1017 | L85: =IF(千円単!L85="","",ROUND(千円単!L85/1000,0)) -> 912 | M85: =IF(千円単!M85="","",ROUND(千円単!M85/1000,0)) -> 2389 | N85: =IF(千円単!N85="","",ROUND(千円単!N85/1000,0)) -> 193 | O85: =IF(千円単!O85="","",ROUND(千円単!O85/1000,0)) -> 1135 | P85: =IF(千円単!P85="","",ROUND(千円単!P85/1000,0)) -> 59 | Q85: =IF(千円単!Q85="","",ROUND(千円単!Q85/1000,0)) -> 85 | R85: =IF(千円単!R85="","",ROUND(千円単!R85/1000,0)) -> 624 | S85: =IF(千円単!S85="","",ROUND(千円単!S85/1000,0)) -> 508 | T85: =IF(千円単!T85="","",ROUND(千円単!T85/1000,0)) -> 0 | U85: =IF(千円単!U85="","",ROUND(千円単!U85/1000,0)) -> 1376 | V85: =IF(千円単!V85="","",ROUND(千円単!V85/1000,0)) -> 743 | W85: =IF(千円単!W85="","",ROUND(千円単!W85/1000,0)) -> 633 | X85: =IF(千円単!X85="","",ROUND(千円単!X85/1000,0)) -> -752 | Y85: =IF(千円単!Y85="","",ROUND(千円単!Y85/1000,0)) -> 85
A86: 2016 | B86: 46 | C86: 17 | D86: 1 | E86: 85 | F86: 公共 | G86: 112259 | H86: 埼玉県 | I86: 入間市 | J86: =IF(千円単!J86="","",ROUND(千円単!J86/1000,0)) -> 2357 | K86: =IF(千円単!K86="","",ROUND(千円単!K86/1000,0)) -> 1353 | L86: =IF(千円単!L86="","",ROUND(千円単!L86/1000,0)) -> 456 | M86: =IF(千円単!M86="","",ROUND(千円単!M86/1000,0)) -> 2202 | N86: =IF(千円単!N86="","",ROUND(千円単!N86/1000,0)) -> 235 | O86: =IF(千円単!O86="","",ROUND(千円単!O86/1000,0)) -> 1313 | P86: =IF(千円単!P86="","",ROUND(千円単!P86/1000,0)) -> 60 | Q86: =IF(千円単!Q86="","",ROUND(千円単!Q86/1000,0)) -> 154 | R86: =IF(千円単!R86="","",ROUND(千円単!R86/1000,0)) -> 273 | S86: =IF(千円単!S86="","",ROUND(千円単!S86/1000,0)) -> 132 | T86: =IF(千円単!T86="","",ROUND(千円単!T86/1000,0)) -> 134 | U86: =IF(千円単!U86="","",ROUND(千円単!U86/1000,0)) -> 1053 | V86: =IF(千円単!V86="","",ROUND(千円単!V86/1000,0)) -> 242 | W86: =IF(千円単!W86="","",ROUND(千円単!W86/1000,0)) -> 811 | X86: =IF(千円単!X86="","",ROUND(千円単!X86/1000,0)) -> -780 | Y86: =IF(千円単!Y86="","",ROUND(千円単!Y86/1000,0)) -> 154
A87: 2016 | B87: 46 | C87: 17 | D87: 1 | E87: 86 | F87: 公共 | G87: 112283 | H87: 埼玉県 | I87: 志木市 | J87: =IF(千円単!J87="","",ROUND(千円単!J87/1000,0)) -> 1968 | K87: =IF(千円単!K87="","",ROUND(千円単!K87/1000,0)) -> 809 | L87: =IF(千円単!L87="","",ROUND(千円単!L87/1000,0)) -> 498 | M87: =IF(千円単!M87="","",ROUND(千円単!M87/1000,0)) -> 1821 | N87: =IF(千円単!N87="","",ROUND(千円単!N87/1000,0)) -> 176 | O87: =IF(千円単!O87="","",ROUND(千円単!O87/1000,0)) -> 873 | P87: =IF(千円単!P87="","",ROUND(千円単!P87/1000,0)) -> 90 | Q87: =IF(千円単!Q87="","",ROUND(千円単!Q87/1000,0)) -> 147 | R87: =IF(千円単!R87="","",ROUND(千円単!R87/1000,0)) -> 525 | S87: =IF(千円単!S87="","",ROUND(千円単!S87/1000,0)) -> 110 | T87: =IF(千円単!T87="","",ROUND(千円単!T87/1000,0)) -> 352 | U87: =IF(千円単!U87="","",ROUND(千円単!U87/1000,0)) -> 851 | V87: =IF(千円単!V87="","",ROUND(千円単!V87/1000,0)) -> 183 | W87: =IF(千円単!W87="","",ROUND(千円単!W87/1000,0)) -> 646 | X87: =IF(千円単!X87="","",ROUND(千円単!X87/1000,0)) -> -326 | Y87: =IF(千円単!Y87="","",ROUND(千円単!Y87/1000,0)) -> 147
A88: 2016 | B88: 46 | C88: 17 | D88: 1 | E88: 87 | F88: 公共 | G88: 112291 | H88: 埼玉県 | I88: 和光市 | J88: =IF(千円単!J88="","",ROUND(千円単!J88/1000,0)) -> 1073 | K88: =IF(千円単!K88="","",ROUND(千円単!K88/1000,0)) -> 597 | L88: =IF(千円単!L88="","",ROUND(千円単!L88/1000,0)) -> 339 | M88: =IF(千円単!M88="","",ROUND(千円単!M88/1000,0)) -> 973 | N88: =IF(千円単!N88="","",ROUND(千円単!N88/1000,0)) -> 103 | O88: =IF(千円単!O88="","",ROUND(千円単!O88/1000,0)) -> 439 | P88: =IF(千円単!P88="","",ROUND(千円単!P88/1000,0)) -> 30 | Q88: =IF(千円単!Q88="","",ROUND(千円単!Q88/1000,0)) -> 100 | R88: =IF(千円単!R88="","",ROUND(千円単!R88/1000,0)) -> 109 | S88: =IF(千円単!S88="","",ROUND(千円単!S88/1000,0)) -> 30 | T88: =IF(千円単!T88="","",ROUND(千円単!T88/1000,0)) -> 57 | U88: =IF(千円単!U88="","",ROUND(千円単!U88/1000,0)) -> 492 | V88: =IF(千円単!V88="","",ROUND(千円単!V88/1000,0)) -> 110 | W88: =IF(千円単!W88="","",ROUND(千円単!W88/1000,0)) -> 382 | X88: =IF(千円単!X88="","",ROUND(千円単!X88/1000,0)) -> -382 | Y88: =IF(千円単!Y88="","",ROUND(千円単!Y88/1000,0)) -> 100
A89: 2016 | B89: 46 | C89: 17 | D89: 1 | E89: 88 | F89: 公共 | G89: 112356 | H89: 埼玉県 | I89: 富士見市 | J89: =IF(千円単!J89="","",ROUND(千円単!J89/1000,0)) -> 1578 | K89: =IF(千円単!K89="","",ROUND(千円単!K89/1000,0)) -> 871 | L89: =IF(千円単!L89="","",ROUND(千円単!L89/1000,0)) -> 432 | M89: =IF(千円単!M89="","",ROUND(千円単!M89/1000,0)) -> 1305 | N89: =IF(千円単!N89="","",ROUND(千円単!N89/1000,0)) -> 186 | O89: =IF(千円単!O89="","",ROUND(千円単!O89/1000,0)) -> 641 | P89: =IF(千円単!P89="","",ROUND(千円単!P89/1000,0)) -> 28 | Q89: =IF(千円単!Q89="","",ROUND(千円単!Q89/1000,0)) -> 273 | R89: =IF(千円単!R89="","",ROUND(千円単!R89/1000,0)) -> 786 | S89: =IF(千円単!S89="","",ROUND(千円単!S89/1000,0)) -> 397 | T89: =IF(千円単!T89="","",ROUND(千円単!T89/1000,0)) -> 123 | U89: =IF(千円単!U89="","",ROUND(千円単!U89/1000,0)) -> 1269 | V89: =IF(千円単!V89="","",ROUND(千円単!V89/1000,0)) -> 674 | W89: =IF(千円単!W89="","",ROUND(千円単!W89/1000,0)) -> 595 | X89: =IF(千円単!X89="","",ROUND(千円単!X89/1000,0)) -> -482 | Y89: =IF(千円単!Y89="","",ROUND(千円単!Y89/1000,0)) -> 273
A90: 2016 | B90: 46 | C90: 17 | D90: 1 | E90: 89 | F90: 公共 | G90: 112429 | H90: 埼玉県 | I90: 日高市 | J90: =IF(千円単!J90="","",ROUND(千円単!J90/1000,0)) -> 1033 | K90: =IF(千円単!K90="","",ROUND(千円単!K90/1000,0)) -> 569 | L90: =IF(千円単!L90="","",ROUND(千円単!L90/1000,0)) -> 223 | M90: =IF(千円単!M90="","",ROUND(千円単!M90/1000,0)) -> 930 | N90: =IF(千円単!N90="","",ROUND(千円単!N90/1000,0)) -> 115 | O90: =IF(千円単!O90="","",ROUND(千円単!O90/1000,0)) -> 454 | P90: =IF(千円単!P90="","",ROUND(千円単!P90/1000,0)) -> 67 | Q90: =IF(千円単!Q90="","",ROUND(千円単!Q90/1000,0)) -> 103 | R90: =IF(千円単!R90="","",ROUND(千円単!R90/1000,0)) -> 593 | S90: =IF(千円単!S90="","",ROUND(千円単!S90/1000,0)) -> 471 | T90: =IF(千円単!T90="","",ROUND(千円単!T90/1000,0)) -> 46 | U90: =IF(千円単!U90="","",ROUND(千円単!U90/1000,0)) -> 836 | V90: =IF(千円単!V90="","",ROUND(千円単!V90/1000,0)) -> 258 | W90: =IF(千円単!W90="","",ROUND(千円単!W90/1000,0)) -> 578 | X90: =IF(千円単!X90="","",ROUND(千円単!X90/1000,0)) -> -244 | Y90: =IF(千円単!Y90="","",ROUND(千円単!Y90/1000,0)) -> 103
A91: 2016 | B91: 46 | C91: 17 | D91: 1 | E91: 90 | F91: 公共 | G91: 112453 | H91: 埼玉県 | I91: ふじみ野市 | J91: =IF(千円単!J91="","",ROUND(千円単!J91/1000,0)) -> 1579 | K91: =IF(千円単!K91="","",ROUND(千円単!K91/1000,0)) -> 987 | L91: =IF(千円単!L91="","",ROUND(千円単!L91/1000,0)) -> 197 | M91: =IF(千円単!M91="","",ROUND(千円単!M91/1000,0)) -> 1457 | N91: =IF(千円単!N91="","",ROUND(千円単!N91/1000,0)) -> 78 | O91: =IF(千円単!O91="","",ROUND(千円単!O91/1000,0)) -> 713 | P91: =IF(千円単!P91="","",ROUND(千円単!P91/1000,0)) -> 57 | Q91: =IF(千円単!Q91="","",ROUND(千円単!Q91/1000,0)) -> 122 | R91: =IF(千円単!R91="","",ROUND(千円単!R91/1000,0)) -> 327 | S91: =IF(千円単!S91="","",ROUND(千円単!S91/1000,0)) -> 182 | T91: =IF(千円単!T91="","",ROUND(千円単!T91/1000,0)) -> 58 | U91: =IF(千円単!U91="","",ROUND(千円単!U91/1000,0)) -> 675 | V91: =IF(千円単!V91="","",ROUND(千円単!V91/1000,0)) -> 276 | W91: =IF(千円単!W91="","",ROUND(千円単!W91/1000,0)) -> 398 | X91: =IF(千円単!X91="","",ROUND(千円単!X91/1000,0)) -> -348 | Y91: =IF(千円単!Y91="","",ROUND(千円単!Y91/1000,0)) -> 122
A92: 2016 | B92: 46 | C92: 17 | D92: 1 | E92: 91 | F92: 公共 | G92: 113859 | H92: 埼玉県 | I92: 上里町 | J92: =IF(千円単!J92="","",ROUND(千円単!J92/1000,0)) -> 207 | K92: =IF(千円単!K92="","",ROUND(千円単!K92/1000,0)) -> 56 | L92: =IF(千円単!L92="","",ROUND(千円単!L92/1000,0)) -> 117 | M92: =IF(千円単!M92="","",ROUND(千円単!M92/1000,0)) -> 188 | N92: =IF(千円単!N92="","",ROUND(千円単!N92/1000,0)) -> 44 | O92: =IF(千円単!O92="","",ROUND(千円単!O92/1000,0)) -> 106 | P92: =IF(千円単!P92="","",ROUND(千円単!P92/1000,0)) -> 10 | Q92: =IF(千円単!Q92="","",ROUND(千円単!Q92/1000,0)) -> 19 | R92: =IF(千円単!R92="","",ROUND(千円単!R92/1000,0)) -> 124 | S92: =IF(千円単!S92="","",ROUND(千円単!S92/1000,0)) -> 80 | T92: =IF(千円単!T92="","",ROUND(千円単!T92/1000,0)) -> 12 | U92: =IF(千円単!U92="","",ROUND(千円単!U92/1000,0)) -> 196 | V92: =IF(千円単!V92="","",ROUND(千円単!V92/1000,0)) -> 119 | W92: =IF(千円単!W92="","",ROUND(千円単!W92/1000,0)) -> 77 | X92: =IF(千円単!X92="","",ROUND(千円単!X92/1000,0)) -> -72 | Y92: =IF(千円単!Y92="","",ROUND(千円単!Y92/1000,0)) -> 19
A93: 2016 | B93: 46 | C93: 17 | D93: 1 | E93: 92 | F93: 公共 | G93: 121002 | H93: 千葉県 | I93: 千葉市 | J93: =IF(千円単!J93="","",ROUND(千円単!J93/1000,0)) -> 27817 | K93: =IF(千円単!K93="","",ROUND(千円単!K93/1000,0)) -> 12634 | L93: =IF(千円単!L93="","",ROUND(千円単!L93/1000,0)) -> 7567 | M93: =IF(千円単!M93="","",ROUND(千円単!M93/1000,0)) -> 26104 | N93: =IF(千円単!N93="","",ROUND(千円単!N93/1000,0)) -> 4253 | O93: =IF(千円単!O93="","",ROUND(千円単!O93/1000,0)) -> 14931 | P93: =IF(千円単!P93="","",ROUND(千円単!P93/1000,0)) -> 601 | Q93: =IF(千円単!Q93="","",ROUND(千円単!Q93/1000,0)) -> 1712 | R93: =IF(千円単!R93="","",ROUND(千円単!R93/1000,0)) -> 15041 | S93: =IF(千円単!S93="","",ROUND(千円単!S93/1000,0)) -> 11791 | T93: =IF(千円単!T93="","",ROUND(千円単!T93/1000,0)) -> 92 | U93: =IF(千円単!U93="","",ROUND(千円単!U93/1000,0)) -> 25018 | V93: =IF(千円単!V93="","",ROUND(千円単!V93/1000,0)) -> 10568 | W93: =IF(千円単!W93="","",ROUND(千円単!W93/1000,0)) -> 14445 | X93: =IF(千円単!X93="","",ROUND(千円単!X93/1000,0)) -> -9977 | Y93: =IF(千円単!Y93="","",ROUND(千円単!Y93/1000,0)) -> 1712
A94: 2016 | B94: 46 | C94: 17 | D94: 1 | E94: 93 | F94: 公共 | G94: 122122 | H94: 千葉県 | I94: 佐倉市 | J94: =IF(千円単!J94="","",ROUND(千円単!J94/1000,0)) -> 3109 | K94: =IF(千円単!K94="","",ROUND(千円単!K94/1000,0)) -> 1792 | L94: =IF(千円単!L94="","",ROUND(千円単!L94/1000,0)) -> 205 | M94: =IF(千円単!M94="","",ROUND(千円単!M94/1000,0)) -> 2973 | N94: =IF(千円単!N94="","",ROUND(千円単!N94/1000,0)) -> 89 | O94: =IF(千円単!O94="","",ROUND(千円単!O94/1000,0)) -> 1586 | P94: =IF(千円単!P94="","",ROUND(千円単!P94/1000,0)) -> 119 | Q94: =IF(千円単!Q94="","",ROUND(千円単!Q94/1000,0)) -> 136 | R94: =IF(千円単!R94="","",ROUND(千円単!R94/1000,0)) -> 314 | S94: =IF(千円単!S94="","",ROUND(千円単!S94/1000,0)) -> 62 | T94: =IF(千円単!T94="","",ROUND(千円単!T94/1000,0)) -> 0 | U94: =IF(千円単!U94="","",ROUND(千円単!U94/1000,0)) -> 882 | V94: =IF(千円単!V94="","",ROUND(千円単!V94/1000,0)) -> 542 | W94: =IF(千円単!W94="","",ROUND(千円単!W94/1000,0)) -> 340 | X94: =IF(千円単!X94="","",ROUND(千円単!X94/1000,0)) -> -568 | Y94: =IF(千円単!Y94="","",ROUND(千円単!Y94/1000,0)) -> 136
A95: 2016 | B95: 46 | C95: 17 | D95: 1 | E95: 94 | F95: 公共 | G95: 122173 | H95: 千葉県 | I95: 柏市 | J95: =IF(千円単!J95="","",ROUND(千円単!J95/1000,0)) -> 9050 | K95: =IF(千円単!K95="","",ROUND(千円単!K95/1000,0)) -> 5340 | L95: =IF(千円単!L95="","",ROUND(千円単!L95/1000,0)) -> 1285 | M95: =IF(千円単!M95="","",ROUND(千円単!M95/1000,0)) -> 8589 | N95: =IF(千円単!N95="","",ROUND(千円単!N95/1000,0)) -> 957 | O95: =IF(千円単!O95="","",ROUND(千円単!O95/1000,0)) -> 4467 | P95: =IF(千円単!P95="","",ROUND(千円単!P95/1000,0)) -> 228 | Q95: =IF(千円単!Q95="","",ROUND(千円単!Q95/1000,0)) -> 461 | R95: =IF(千円単!R95="","",ROUND(千円単!R95/1000,0)) -> 3612 | S95: =IF(千円単!S95="","",ROUND(千円単!S95/1000,0)) -> 1208 | T95: =IF(千円単!T95="","",ROUND(千円単!T95/1000,0)) -> 0 | U95: =IF(千円単!U95="","",ROUND(千円単!U95/1000,0)) -> 5764 | V95: =IF(千円単!V95="","",ROUND(千円単!V95/1000,0)) -> 2107 | W95: =IF(千円単!W95="","",ROUND(千円単!W95/1000,0)) -> 3653 | X95: =IF(千円単!X95="","",ROUND(千円単!X95/1000,0)) -> -2152 | Y95: =IF(千円単!Y95="","",ROUND(千円単!Y95/1000,0)) -> 461
A96: 2016 | B96: 46 | C96: 17 | D96: 1 | E96: 95 | F96: 公共 | G96: 122203 | H96: 千葉県 | I96: 流山市 | J96: =IF(千円単!J96="","",ROUND(千円単!J96/1000,0)) -> 3034 | K96: =IF(千円単!K96="","",ROUND(千円単!K96/1000,0)) -> 1730 | L96: =IF(千円単!L96="","",ROUND(千円単!L96/1000,0)) -> 516 | M96: =IF(千円単!M96="","",ROUND(千円単!M96/1000,0)) -> 2941 | N96: =IF(千円単!N96="","",ROUND(千円単!N96/1000,0)) -> 407 | O96: =IF(千円単!O96="","",ROUND(千円単!O96/1000,0)) -> 1379 | P96: =IF(千円単!P96="","",ROUND(千円単!P96/1000,0)) -> 100 | Q96: =IF(千円単!Q96="","",ROUND(千円単!Q96/1000,0)) -> 93 | R96: =IF(千円単!R96="","",ROUND(千円単!R96/1000,0)) -> 2961 | S96: =IF(千円単!S96="","",ROUND(千円単!S96/1000,0)) -> 952 | T96: =IF(千円単!T96="","",ROUND(千円単!T96/1000,0)) -> 1 | U96: =IF(千円単!U96="","",ROUND(千円単!U96/1000,0)) -> 3550 | V96: =IF(千円単!V96="","",ROUND(千円単!V96/1000,0)) -> 2505 | W96: =IF(千円単!W96="","",ROUND(千円単!W96/1000,0)) -> 1045 | X96: =IF(千円単!X96="","",ROUND(千円単!X96/1000,0)) -> -590 | Y96: =IF(千円単!Y96="","",ROUND(千円単!Y96/1000,0)) -> 93
A97: 2016 | B97: 46 | C97: 17 | D97: 1 | E97: 96 | F97: 公共 | G97: 122211 | H97: 千葉県 | I97: 八千代市 | J97: =IF(千円単!J97="","",ROUND(千円単!J97/1000,0)) -> 3372 | K97: =IF(千円単!K97="","",ROUND(千円単!K97/1000,0)) -> 2188 | L97: =IF(千円単!L97="","",ROUND(千円単!L97/1000,0)) -> 489 | M97: =IF(千円単!M97="","",ROUND(千円単!M97/1000,0)) -> 3187 | N97: =IF(千円単!N97="","",ROUND(千円単!N97/1000,0)) -> 211 | O97: =IF(千円単!O97="","",ROUND(千円単!O97/1000,0)) -> 1437 | P97: =IF(千円単!P97="","",ROUND(千円単!P97/1000,0)) -> 125 | Q97: =IF(千円単!Q97="","",ROUND(千円単!Q97/1000,0)) -> 185 | R97: =IF(千円単!R97="","",ROUND(千円単!R97/1000,0)) -> 502 | S97: =IF(千円単!S97="","",ROUND(千円単!S97/1000,0)) -> 211 | T97: =IF(千円単!T97="","",ROUND(千円単!T97/1000,0)) -> 128 | U97: =IF(千円単!U97="","",ROUND(千円単!U97/1000,0)) -> 1258 | V97: =IF(千円単!V97="","",ROUND(千円単!V97/1000,0)) -> 491 | W97: =IF(千円単!W97="","",ROUND(千円単!W97/1000,0)) -> 679 | X97: =IF(千円単!X97="","",ROUND(千円単!X97/1000,0)) -> -756 | Y97: =IF(千円単!Y97="","",ROUND(千円単!Y97/1000,0)) -> 185
A98: 2016 | B98: 46 | C98: 17 | D98: 1 | E98: 97 | F98: 公共 | G98: 123226 | H98: 千葉県 | I98: 酒々井町 | J98: =IF(千円単!J98="","",ROUND(千円単!J98/1000,0)) -> 279 | K98: =IF(千円単!K98="","",ROUND(千円単!K98/1000,0)) -> 237 | L98: =IF(千円単!L98="","",ROUND(千円単!L98/1000,0)) -> 9 | M98: =IF(千円単!M98="","",ROUND(千円単!M98/1000,0)) -> 299 | N98: =IF(千円単!N98="","",ROUND(千円単!N98/1000,0)) -> 23 | O98: =IF(千円単!O98="","",ROUND(千円単!O98/1000,0)) -> 161 | P98: =IF(千円単!P98="","",ROUND(千円単!P98/1000,0)) -> 4 | Q98: =IF(千円単!Q98="","",ROUND(千円単!Q98/1000,0)) -> -19 | R98: =IF(千円単!R98="","",ROUND(千円単!R98/1000,0)) -> 34 | S98: =IF(千円単!S98="","",ROUND(千円単!S98/1000,0)) -> 0 | T98: =IF(千円単!T98="","",ROUND(千円単!T98/1000,0)) -> 30 | U98: =IF(千円単!U98="","",ROUND(千円単!U98/1000,0)) -> 113 | V98: =IF(千円単!V98="","",ROUND(千円単!V98/1000,0)) -> 41 | W98: =IF(千円単!W98="","",ROUND(千円単!W98/1000,0)) -> 72 | X98: =IF(千円単!X98="","",ROUND(千円単!X98/1000,0)) -> -79 | Y98: =IF(千円単!Y98="","",ROUND(千円単!Y98/1000,0)) -> -19
A99: 2016 | B99: 46 | C99: 17 | D99: 1 | E99: 98 | F99: 公共 | G99: 130001 | H99: 東京都 | I99: 東京都 | J99: =IF(千円単!J99="","",ROUND(千円単!J99/1000,0)) -> 343395 | K99: =IF(千円単!K99="","",ROUND(千円単!K99/1000,0)) -> 157739 | L99: =IF(千円単!L99="","",ROUND(千円単!L99/1000,0)) -> 122420 | M99: =IF(千円単!M99="","",ROUND(千円単!M99/1000,0)) -> 304842 | N99: =IF(千円単!N99="","",ROUND(千円単!N99/1000,0)) -> 28628 | O99: =IF(千円単!O99="","",ROUND(千円単!O99/1000,0)) -> 170377 | P99: =IF(千円単!P99="","",ROUND(千円単!P99/1000,0)) -> 13156 | Q99: =IF(千円単!Q99="","",ROUND(千円単!Q99/1000,0)) -> 38552 | R99: =IF(千円単!R99="","",ROUND(千円単!R99/1000,0)) -> 172258 | S99: =IF(千円単!S99="","",ROUND(千円単!S99/1000,0)) -> 85097 | T99: =IF(千円単!T99="","",ROUND(千円単!T99/1000,0)) -> 0 | U99: =IF(千円単!U99="","",ROUND(千円単!U99/1000,0)) -> 351353 | V99: =IF(千円単!V99="","",ROUND(千円単!V99/1000,0)) -> 179862 | W99: =IF(千円単!W99="","",ROUND(千円単!W99/1000,0)) -> 171490 | X99: =IF(千円単!X99="","",ROUND(千円単!X99/1000,0)) -> -179095 | Y99: =IF(千円単!Y99="","",ROUND(千円単!Y99/1000,0)) -> 38552
A100: 2016 | B100: 46 | C100: 17 | D100: 1 | E100: 99 | F100: 公共 | G100: 141003 | H100: 神奈川県 | I100: 横浜市 | J100: =IF(千円単!J100="","",ROUND(千円単!J100/1000,0)) -> 130467 | K100: =IF(千円単!K100="","",ROUND(千円単!K100/1000,0)) -> 56020 | L100: =IF(千円単!L100="","",ROUND(千円単!L100/1000,0)) -> 43533 | M100: =IF(千円単!M100="","",ROUND(千円単!M100/1000,0)) -> 113673 | N100: =IF(千円単!N100="","",ROUND(千円単!N100/1000,0)) -> 12554 | O100: =IF(千円単!O100="","",ROUND(千円単!O100/1000,0)) -> 73798 | P100: =IF(千円単!P100="","",ROUND(千円単!P100/1000,0)) -> 5514 | Q100: =IF(千円単!Q100="","",ROUND(千円単!Q100/1000,0)) -> 16794 | R100: =IF(千円単!R100="","",ROUND(千円単!R100/1000,0)) -> 53579 | S100: =IF(千円単!S100="","",ROUND(千円単!S100/1000,0)) -> 41732 | T100: =IF(千円単!T100="","",ROUND(千円単!T100/1000,0)) -> 0 | U100: =IF(千円単!U100="","",ROUND(千円単!U100/1000,0)) -> 104085 | V100: =IF(千円単!V100="","",ROUND(千円単!V100/1000,0)) -> 34217 | W100: =IF(千円単!W100="","",ROUND(千円単!W100/1000,0)) -> 69845 | X100: =IF(千円単!X100="","",ROUND(千円単!X100/1000,0)) -> -50505 | Y100: =IF(千円単!Y100="","",ROUND(千円単!Y100/1000,0)) -> 16794
A101: 2016 | B101: 46 | C101: 17 | D101: 1 | E101: 100 | F101: 公共 | G101: 141305 | H101: 神奈川県 | I101: 川崎市 | J101: =IF(千円単!J101="","",ROUND(千円単!J101/1000,0)) -> 43046 | K101: =IF(千円単!K101="","",ROUND(千円単!K101/1000,0)) -> 22292 | L101: =IF(千円単!L101="","",ROUND(千円単!L101/1000,0)) -> 12439 | M101: =IF(千円単!M101="","",ROUND(千円単!M101/1000,0)) -> 40463 | N101: =IF(千円単!N101="","",ROUND(千円単!N101/1000,0)) -> 6118 | O101: =IF(千円単!O101="","",ROUND(千円単!O101/1000,0)) -> 22698 | P101: =IF(千円単!P101="","",ROUND(千円単!P101/1000,0)) -> 2903 | Q101: =IF(千円単!Q101="","",ROUND(千円単!Q101/1000,0)) -> 2582 | R101: =IF(千円単!R101="","",ROUND(千円単!R101/1000,0)) -> 54185 | S101: =IF(千円単!S101="","",ROUND(千円単!S101/1000,0)) -> 37826 | T101: =IF(千円単!T101="","",ROUND(千円単!T101/1000,0)) -> 1705 | U101: =IF(千円単!U101="","",ROUND(千円単!U101/1000,0)) -> 71828 | V101: =IF(千円単!V101="","",ROUND(千円単!V101/1000,0)) -> 15896 | W101: =IF(千円単!W101="","",ROUND(千円単!W101/1000,0)) -> 52539 | X101: =IF(千円単!X101="","",ROUND(千円単!X101/1000,0)) -> -17643 | Y101: =IF(千円単!Y101="","",ROUND(千円単!Y101/1000,0)) -> 2582
A102: 2016 | B102: 46 | C102: 17 | D102: 1 | E102: 101 | F102: 公共 | G102: 141500 | H102: 神奈川県 | I102: 相模原市 | J102: =IF(千円単!J102="","",ROUND(千円単!J102/1000,0)) -> 15718 | K102: =IF(千円単!K102="","",ROUND(千円単!K102/1000,0)) -> 8658 | L102: =IF(千円単!L102="","",ROUND(千円単!L102/1000,0)) -> 4692 | M102: =IF(千円単!M102="","",ROUND(千円単!M102/1000,0)) -> 15014 | N102: =IF(千円単!N102="","",ROUND(千円単!N102/1000,0)) -> 2184 | O102: =IF(千円単!O102="","",ROUND(千円単!O102/1000,0)) -> 8038 | P102: =IF(千円単!P102="","",ROUND(千円単!P102/1000,0)) -> 485 | Q102: =IF(千円単!Q102="","",ROUND(千円単!Q102/1000,0)) -> 704 | R102: =IF(千円単!R102="","",ROUND(千円単!R102/1000,0)) -> 3338 | S102: =IF(千円単!S102="","",ROUND(千円単!S102/1000,0)) -> 2275 | T102: =IF(千円単!T102="","",ROUND(千円単!T102/1000,0)) -> 290 | U102: =IF(千円単!U102="","",ROUND(千円単!U102/1000,0)) -> 9794 | V102: =IF(千円単!V102="","",ROUND(千円単!V102/1000,0)) -> 2763 | W102: =IF(千円単!W102="","",ROUND(千円単!W102/1000,0)) -> 7031 | X102: =IF(千円単!X102="","",ROUND(千円単!X102/1000,0)) -> -6456 | Y102: =IF(千円単!Y102="","",ROUND(千円単!Y102/1000,0)) -> 704
A103: 2016 | B103: 46 | C103: 17 | D103: 1 | E103: 102 | F103: 公共 | G103: 142018 | H103: 神奈川県 | I103: 横須賀市 | J103: =IF(千円単!J103="","",ROUND(千円単!J103/1000,0)) -> 16266 | K103: =IF(千円単!K103="","",ROUND(千円単!K103/1000,0)) -> 6932 | L103: =IF(千円単!L103="","",ROUND(千円単!L103/1000,0)) -> 3106 | M103: =IF(千円単!M103="","",ROUND(千円単!M103/1000,0)) -> 14618 | N103: =IF(千円単!N103="","",ROUND(千円単!N103/1000,0)) -> 1631 | O103: =IF(千円単!O103="","",ROUND(千円単!O103/1000,0)) -> 8498 | P103: =IF(千円単!P103="","",ROUND(千円単!P103/1000,0)) -> 792 | Q103: =IF(千円単!Q103="","",ROUND(千円単!Q103/1000,0)) -> 1648 | R103: =IF(千円単!R103="","",ROUND(千円単!R103/1000,0)) -> 6631 | S103: =IF(千円単!S103="","",ROUND(千円単!S103/1000,0)) -> 4033 | T103: =IF(千円単!T103="","",ROUND(千円単!T103/1000,0)) -> 961 | U103: =IF(千円単!U103="","",ROUND(千円単!U103/1000,0)) -> 10820 | V103: =IF(千円単!V103="","",ROUND(千円単!V103/1000,0)) -> 3793 | W103: =IF(千円単!W103="","",ROUND(千円単!W103/1000,0)) -> 6993 | X103: =IF(千円単!X103="","",ROUND(千円単!X103/1000,0)) -> -4189 | Y103: =IF(千円単!Y103="","",ROUND(千円単!Y103/1000,0)) -> 1648
A104: 2016 | B104: 46 | C104: 17 | D104: 1 | E104: 103 | F104: 公共 | G104: 142034 | H104: 神奈川県 | I104: 平塚市 | J104: =IF(千円単!J104="","",ROUND(千円単!J104/1000,0)) -> 8111 | K104: =IF(千円単!K104="","",ROUND(千円単!K104/1000,0)) -> 3367 | L104: =IF(千円単!L104="","",ROUND(千円単!L104/1000,0)) -> 2625 | M104: =IF(千円単!M104="","",ROUND(千円単!M104/1000,0)) -> 7253 | N104: =IF(千円単!N104="","",ROUND(千円単!N104/1000,0)) -> 1215 | O104: =IF(千円単!O104="","",ROUND(千円単!O104/1000,0)) -> 4416 | P104: =IF(千円単!P104="","",ROUND(千円単!P104/1000,0)) -> 146 | Q104: =IF(千円単!Q104="","",ROUND(千円単!Q104/1000,0)) -> 859 | R104: =IF(千円単!R104="","",ROUND(千円単!R104/1000,0)) -> 2305 | S104: =IF(千円単!S104="","",ROUND(千円単!S104/1000,0)) -> 521 | T104: =IF(千円単!T104="","",ROUND(千円単!T104/1000,0)) -> 1194 | U104: =IF(千円単!U104="","",ROUND(千円単!U104/1000,0)) -> 5190 | V104: =IF(千円単!V104="","",ROUND(千円単!V104/1000,0)) -> 1291 | W104: =IF(千円単!W104="","",ROUND(千円単!W104/1000,0)) -> 3899 | X104: =IF(千円単!X104="","",ROUND(千円単!X104/1000,0)) -> -2885 | Y104: =IF(千円単!Y104="","",ROUND(千円単!Y104/1000,0)) -> 859
A105: 2016 | B105: 46 | C105: 17 | D105: 1 | E105: 104 | F105: 公共 | G105: 142051 | H105: 神奈川県 | I105: 藤沢市 | J105: =IF(千円単!J105="","",ROUND(千円単!J105/1000,0)) -> 12297 | K105: =IF(千円単!K105="","",ROUND(千円単!K105/1000,0)) -> 5468 | L105: =IF(千円単!L105="","",ROUND(千円単!L105/1000,0)) -> 4267 | M105: =IF(千円単!M105="","",ROUND(千円単!M105/1000,0)) -> 11774 | N105: =IF(千円単!N105="","",ROUND(千円単!N105/1000,0)) -> 1498 | O105: =IF(千円単!O105="","",ROUND(千円単!O105/1000,0)) -> 5048 | P105: =IF(千円単!P105="","",ROUND(千円単!P105/1000,0)) -> 416 | Q105: =IF(千円単!Q105="","",ROUND(千円単!Q105/1000,0)) -> 523 | R105: =IF(千円単!R105="","",ROUND(千円単!R105/1000,0)) -> 3740 | S105: =IF(千円単!S105="","",ROUND(千円単!S105/1000,0)) -> 2695 | T105: =IF(千円単!T105="","",ROUND(千円単!T105/1000,0)) -> 335 | U105: =IF(千円単!U105="","",ROUND(千円単!U105/1000,0)) -> 7725 | V105: =IF(千円単!V105="","",ROUND(千円単!V105/1000,0)) -> 2836 | W105: =IF(千円単!W105="","",ROUND(千円単!W105/1000,0)) -> 4888 | X105: =IF(千円単!X105="","",ROUND(千円単!X105/1000,0)) -> -3985 | Y105: =IF(千円単!Y105="","",ROUND(千円単!Y105/1000,0)) -> 523
A106: 2016 | B106: 46 | C106: 17 | D106: 1 | E106: 105 | F106: 公共 | G106: 142069 | H106: 神奈川県 | I106: 小田原市 | J106: =IF(千円単!J106="","",ROUND(千円単!J106/1000,0)) -> 6644 | K106: =IF(千円単!K106="","",ROUND(千円単!K106/1000,0)) -> 3385 | L106: =IF(千円単!L106="","",ROUND(千円単!L106/1000,0)) -> 1863 | M106: =IF(千円単!M106="","",ROUND(千円単!M106/1000,0)) -> 6301 | N106: =IF(千円単!N106="","",ROUND(千円単!N106/1000,0)) -> 984 | O106: =IF(千円単!O106="","",ROUND(千円単!O106/1000,0)) -> 3579 | P106: =IF(千円単!P106="","",ROUND(千円単!P106/1000,0)) -> 166 | Q106: =IF(千円単!Q106="","",ROUND(千円単!Q106/1000,0)) -> 343 | R106: =IF(千円単!R106="","",ROUND(千円単!R106/1000,0)) -> 2381 | S106: =IF(千円単!S106="","",ROUND(千円単!S106/1000,0)) -> 1844 | T106: =IF(千円単!T106="","",ROUND(千円単!T106/1000,0)) -> 287 | U106: =IF(千円単!U106="","",ROUND(千円単!U106/1000,0)) -> 4617 | V106: =IF(千円単!V106="","",ROUND(千円単!V106/1000,0)) -> 1184 | W106: =IF(千円単!W106="","",ROUND(千円単!W106/1000,0)) -> 3433 | X106: =IF(千円単!X106="","",ROUND(千円単!X106/1000,0)) -> -2236 | Y106: =IF(千円単!Y106="","",ROUND(千円単!Y106/1000,0)) -> 343
A107: 2016 | B107: 46 | C107: 17 | D107: 1 | E107: 106 | F107: 公共 | G107: 142077 | H107: 神奈川県 | I107: 茅ヶ崎市 | J107: =IF(千円単!J107="","",ROUND(千円単!J107/1000,0)) -> 5168 | K107: =IF(千円単!K107="","",ROUND(千円単!K107/1000,0)) -> 2569 | L107: =IF(千円単!L107="","",ROUND(千円単!L107/1000,0)) -> 1629 | M107: =IF(千円単!M107="","",ROUND(千円単!M107/1000,0)) -> 4944 | N107: =IF(千円単!N107="","",ROUND(千円単!N107/1000,0)) -> 754 | O107: =IF(千円単!O107="","",ROUND(千円単!O107/1000,0)) -> 2437 | P107: =IF(千円単!P107="","",ROUND(千円単!P107/1000,0)) -> 147 | Q107: =IF(千円単!Q107="","",ROUND(千円単!Q107/1000,0)) -> 224 | R107: =IF(千円単!R107="","",ROUND(千円単!R107/1000,0)) -> 2844 | S107: =IF(千円単!S107="","",ROUND(千円単!S107/1000,0)) -> 1912 | T107: =IF(千円単!T107="","",ROUND(千円単!T107/1000,0)) -> 355 | U107: =IF(千円単!U107="","",ROUND(千円単!U107/1000,0)) -> 4655 | V107: =IF(千円単!V107="","",ROUND(千円単!V107/1000,0)) -> 2490 | W107: =IF(千円単!W107="","",ROUND(千円単!W107/1000,0)) -> 2165 | X107: =IF(千円単!X107="","",ROUND(千円単!X107/1000,0)) -> -1811 | Y107: =IF(千円単!Y107="","",ROUND(千円単!Y107/1000,0)) -> 224
A108: 2016 | B108: 46 | C108: 17 | D108: 1 | E108: 107 | F108: 公共 | G108: 142115 | H108: 神奈川県 | I108: 秦野市 | J108: =IF(千円単!J108="","",ROUND(千円単!J108/1000,0)) -> 5349 | K108: =IF(千円単!K108="","",ROUND(千円単!K108/1000,0)) -> 2008 | L108: =IF(千円単!L108="","",ROUND(千円単!L108/1000,0)) -> 2052 | M108: =IF(千円単!M108="","",ROUND(千円単!M108/1000,0)) -> 4605 | N108: =IF(千円単!N108="","",ROUND(千円単!N108/1000,0)) -> 708 | O108: =IF(千円単!O108="","",ROUND(千円単!O108/1000,0)) -> 2535 | P108: =IF(千円単!P108="","",ROUND(千円単!P108/1000,0)) -> 196 | Q108: =IF(千円単!Q108="","",ROUND(千円単!Q108/1000,0)) -> 744 | R108: =IF(千円単!R108="","",ROUND(千円単!R108/1000,0)) -> 2658 | S108: =IF(千円単!S108="","",ROUND(千円単!S108/1000,0)) -> 1806 | T108: =IF(千円単!T108="","",ROUND(千円単!T108/1000,0)) -> 51 | U108: =IF(千円単!U108="","",ROUND(千円単!U108/1000,0)) -> 4803 | V108: =IF(千円単!V108="","",ROUND(千円単!V108/1000,0)) -> 2647 | W108: =IF(千円単!W108="","",ROUND(千円単!W108/1000,0)) -> 2155 | X108: =IF(千円単!X108="","",ROUND(千円単!X108/1000,0)) -> -2145 | Y108: =IF(千円単!Y108="","",ROUND(千円単!Y108/1000,0)) -> 744
A109: 2016 | B109: 46 | C109: 17 | D109: 1 | E109: 108 | F109: 公共 | G109: 142166 | H109: 神奈川県 | I109: 座間市 | J109: =IF(千円単!J109="","",ROUND(千円単!J109/1000,0)) -> 2604 | K109: =IF(千円単!K109="","",ROUND(千円単!K109/1000,0)) -> 1542 | L109: =IF(千円単!L109="","",ROUND(千円単!L109/1000,0)) -> 580 | M109: =IF(千円単!M109="","",ROUND(千円単!M109/1000,0)) -> 2415 | N109: =IF(千円単!N109="","",ROUND(千円単!N109/1000,0)) -> 438 | O109: =IF(千円単!O109="","",ROUND(千円単!O109/1000,0)) -> 1346 | P109: =IF(千円単!P109="","",ROUND(千円単!P109/1000,0)) -> 98 | Q109: =IF(千円単!Q109="","",ROUND(千円単!Q109/1000,0)) -> 189 | R109: =IF(千円単!R109="","",ROUND(千円単!R109/1000,0)) -> 772 | S109: =IF(千円単!S109="","",ROUND(千円単!S109/1000,0)) -> 629 | T109: =IF(千円単!T109="","",ROUND(千円単!T109/1000,0)) -> 116 | U109: =IF(千円単!U109="","",ROUND(千円単!U109/1000,0)) -> 1825 | V109: =IF(千円単!V109="","",ROUND(千円単!V109/1000,0)) -> 228 | W109: =IF(千円単!W109="","",ROUND(千円単!W109/1000,0)) -> 1558 | X109: =IF(千円単!X109="","",ROUND(千円単!X109/1000,0)) -> -1054 | Y109: =IF(千円単!Y109="","",ROUND(千円単!Y109/1000,0)) -> 189
A110: 2016 | B110: 46 | C110: 17 | D110: 1 | E110: 109 | F110: 公共 | G110: 143219 | H110: 神奈川県 | I110: 寒川町 | J110: =IF(千円単!J110="","",ROUND(千円単!J110/1000,0)) -> 1288 | K110: =IF(千円単!K110="","",ROUND(千円単!K110/1000,0)) -> 540 | L110: =IF(千円単!L110="","",ROUND(千円単!L110/1000,0)) -> 442 | M110: =IF(千円単!M110="","",ROUND(千円単!M110/1000,0)) -> 1286 | N110: =IF(千円単!N110="","",ROUND(千円単!N110/1000,0)) -> 178 | O110: =IF(千円単!O110="","",ROUND(千円単!O110/1000,0)) -> 751 | P110: =IF(千円単!P110="","",ROUND(千円単!P110/1000,0)) -> 57 | Q110: =IF(千円単!Q110="","",ROUND(千円単!Q110/1000,0)) -> 1 | R110: =IF(千円単!R110="","",ROUND(千円単!R110/1000,0)) -> 417 | S110: =IF(千円単!S110="","",ROUND(千円単!S110/1000,0)) -> 336 | T110: =IF(千円単!T110="","",ROUND(千円単!T110/1000,0)) -> 50 | U110: =IF(千円単!U110="","",ROUND(千円単!U110/1000,0)) -> 863 | V110: =IF(千円単!V110="","",ROUND(千円単!V110/1000,0)) -> 267 | W110: =IF(千円単!W110="","",ROUND(千円単!W110/1000,0)) -> 596 | X110: =IF(千円単!X110="","",ROUND(千円単!X110/1000,0)) -> -446 | Y110: =IF(千円単!Y110="","",ROUND(千円単!Y110/1000,0)) -> 1
A111: 2016 | B111: 46 | C111: 17 | D111: 1 | E111: 110 | F111: 公共 | G111: 151009 | H111: 新潟県 | I111: 新潟市 | J111: =IF(千円単!J111="","",ROUND(千円単!J111/1000,0)) -> 31810 | K111: =IF(千円単!K111="","",ROUND(千円単!K111/1000,0)) -> 11978 | L111: =IF(千円単!L111="","",ROUND(千円単!L111/1000,0)) -> 12598 | M111: =IF(千円単!M111="","",ROUND(千円単!M111/1000,0)) -> 29466 | N111: =IF(千円単!N111="","",ROUND(千円単!N111/1000,0)) -> 5960 | O111: =IF(千円単!O111="","",ROUND(千円単!O111/1000,0)) -> 17498 | P111: =IF(千円単!P111="","",ROUND(千円単!P111/1000,0)) -> 1022 | Q111: =IF(千円単!Q111="","",ROUND(千円単!Q111/1000,0)) -> 2343 | R111: =IF(千円単!R111="","",ROUND(千円単!R111/1000,0)) -> 21430 | S111: =IF(千円単!S111="","",ROUND(千円単!S111/1000,0)) -> 13397 | T111: =IF(千円単!T111="","",ROUND(千円単!T111/1000,0)) -> 2152 | U111: =IF(千円単!U111="","",ROUND(千円単!U111/1000,0)) -> 34522 | V111: =IF(千円単!V111="","",ROUND(千円単!V111/1000,0)) -> 16800 | W111: =IF(千円単!W111="","",ROUND(千円単!W111/1000,0)) -> 17722 | X111: =IF(千円単!X111="","",ROUND(千円単!X111/1000,0)) -> -13092 | Y111: =IF(千円単!Y111="","",ROUND(千円単!Y111/1000,0)) -> 2343
A112: 2016 | B112: 46 | C112: 17 | D112: 1 | E112: 111 | F112: 公共 | G112: 152021 | H112: 新潟県 | I112: 長岡市 | J112: =IF(千円単!J112="","",ROUND(千円単!J112/1000,0)) -> 7963 | K112: =IF(千円単!K112="","",ROUND(千円単!K112/1000,0)) -> 3369 | L112: =IF(千円単!L112="","",ROUND(千円単!L112/1000,0)) -> 2025 | M112: =IF(千円単!M112="","",ROUND(千円単!M112/1000,0)) -> 7901 | N112: =IF(千円単!N112="","",ROUND(千円単!N112/1000,0)) -> 1088 | O112: =IF(千円単!O112="","",ROUND(千円単!O112/1000,0)) -> 4887 | P112: =IF(千円単!P112="","",ROUND(千円単!P112/1000,0)) -> 160 | Q112: =IF(千円単!Q112="","",ROUND(千円単!Q112/1000,0)) -> 62 | R112: =IF(千円単!R112="","",ROUND(千円単!R112/1000,0)) -> 3423 | S112: =IF(千円単!S112="","",ROUND(千円単!S112/1000,0)) -> 1022 | T112: =IF(千円単!T112="","",ROUND(千円単!T112/1000,0)) -> 0 | U112: =IF(千円単!U112="","",ROUND(千円単!U112/1000,0)) -> 6023 | V112: =IF(千円単!V112="","",ROUND(千円単!V112/1000,0)) -> 1724 | W112: =IF(千円単!W112="","",ROUND(千円単!W112/1000,0)) -> 4299 | X112: =IF(千円単!X112="","",ROUND(千円単!X112/1000,0)) -> -2600 | Y112: =IF(千円単!Y112="","",ROUND(千円単!Y112/1000,0)) -> 62
A113: 2016 | B113: 46 | C113: 17 | D113: 1 | E113: 112 | F113: 公共 | G113: 152056 | H113: 新潟県 | I113: 柏崎市 | J113: =IF(千円単!J113="","",ROUND(千円単!J113/1000,0)) -> 3360 | K113: =IF(千円単!K113="","",ROUND(千円単!K113/1000,0)) -> 1001 | L113: =IF(千円単!L113="","",ROUND(千円単!L113/1000,0)) -> 1230 | M113: =IF(千円単!M113="","",ROUND(千円単!M113/1000,0)) -> 3017 | N113: =IF(千円単!N113="","",ROUND(千円単!N113/1000,0)) -> 420 | O113: =IF(千円単!O113="","",ROUND(千円単!O113/1000,0)) -> 1994 | P113: =IF(千円単!P113="","",ROUND(千円単!P113/1000,0)) -> 103 | Q113: =IF(千円単!Q113="","",ROUND(千円単!Q113/1000,0)) -> 343 | R113: =IF(千円単!R113="","",ROUND(千円単!R113/1000,0)) -> 1778 | S113: =IF(千円単!S113="","",ROUND(千円単!S113/1000,0)) -> 996 | T113: =IF(千円単!T113="","",ROUND(千円単!T113/1000,0)) -> 346 | U113: =IF(千円単!U113="","",ROUND(千円単!U113/1000,0)) -> 2766 | V113: =IF(千円単!V113="","",ROUND(千円単!V113/1000,0)) -> 451 | W113: =IF(千円単!W113="","",ROUND(千円単!W113/1000,0)) -> 2315 | X113: =IF(千円単!X113="","",ROUND(千円単!X113/1000,0)) -> -988 | Y113: =IF(千円単!Y113="","",ROUND(千円単!Y113/1000,0)) -> 343
A114: 2016 | B114: 46 | C114: 17 | D114: 1 | E114: 113 | F114: 公共 | G114: 152081 | H114: 新潟県 | I114: 小千谷市 | J114: =IF(千円単!J114="","",ROUND(千円単!J114/1000,0)) -> 1483 | K114: =IF(千円単!K114="","",ROUND(千円単!K114/1000,0)) -> 487 | L114: =IF(千円単!L114="","",ROUND(千円単!L114/1000,0)) -> 778 | M114: =IF(千円単!M114="","",ROUND(千円単!M114/1000,0)) -> 1068 | N114: =IF(千円単!N114="","",ROUND(千円単!N114/1000,0)) -> 217 | O114: =IF(千円単!O114="","",ROUND(千円単!O114/1000,0)) -> 562 | P114: =IF(千円単!P114="","",ROUND(千円単!P114/1000,0)) -> 88 | Q114: =IF(千円単!Q114="","",ROUND(千円単!Q114/1000,0)) -> 415 | R114: =IF(千円単!R114="","",ROUND(千円単!R114/1000,0)) -> 391 | S114: =IF(千円単!S114="","",ROUND(千円単!S114/1000,0)) -> 299 | T114: =IF(千円単!T114="","",ROUND(千円単!T114/1000,0)) -> 42 | U114: =IF(千円単!U114="","",ROUND(千円単!U114/1000,0)) -> 1202 | V114: =IF(千円単!V114="","",ROUND(千円単!V114/1000,0)) -> 242 | W114: =IF(千円単!W114="","",ROUND(千円単!W114/1000,0)) -> 959 | X114: =IF(千円単!X114="","",ROUND(千円単!X114/1000,0)) -> -810 | Y114: =IF(千円単!Y114="","",ROUND(千円単!Y114/1000,0)) -> 415
A115: 2016 | B115: 46 | C115: 17 | D115: 1 | E115: 114 | F115: 公共 | G115: 152111 | H115: 新潟県 | I115: 見附市 | J115: =IF(千円単!J115="","",ROUND(千円単!J115/1000,0)) -> 1689 | K115: =IF(千円単!K115="","",ROUND(千円単!K115/1000,0)) -> 579 | L115: =IF(千円単!L115="","",ROUND(千円単!L115/1000,0)) -> 634 | M115: =IF(千円単!M115="","",ROUND(千円単!M115/1000,0)) -> 1676 | N115: =IF(千円単!N115="","",ROUND(千円単!N115/1000,0)) -> 221 | O115: =IF(千円単!O115="","",ROUND(千円単!O115/1000,0)) -> 932 | P115: =IF(千円単!P115="","",ROUND(千円単!P115/1000,0)) -> 51 | Q115: =IF(千円単!Q115="","",ROUND(千円単!Q115/1000,0)) -> 13 | R115: =IF(千円単!R115="","",ROUND(千円単!R115/1000,0)) -> 1368 | S115: =IF(千円単!S115="","",ROUND(千円単!S115/1000,0)) -> 677 | T115: =IF(千円単!T115="","",ROUND(千円単!T115/1000,0)) -> 231 | U115: =IF(千円単!U115="","",ROUND(千円単!U115/1000,0)) -> 1689 | V115: =IF(千円単!V115="","",ROUND(千円単!V115/1000,0)) -> 980 | W115: =IF(千円単!W115="","",ROUND(千円単!W115/1000,0)) -> 709 | X115: =IF(千円単!X115="","",ROUND(千円単!X115/1000,0)) -> -322 | Y115: =IF(千円単!Y115="","",ROUND(千円単!Y115/1000,0)) -> 13
A116: 2016 | B116: 46 | C116: 17 | D116: 1 | E116: 115 | F116: 公共 | G116: 152170 | H116: 新潟県 | I116: 妙高市 | J116: =IF(千円単!J116="","",ROUND(千円単!J116/1000,0)) -> 1094 | K116: =IF(千円単!K116="","",ROUND(千円単!K116/1000,0)) -> 400 | L116: =IF(千円単!L116="","",ROUND(千円単!L116/1000,0)) -> 441 | M116: =IF(千円単!M116="","",ROUND(千円単!M116/1000,0)) -> 806 | N116: =IF(千円単!N116="","",ROUND(千円単!N116/1000,0)) -> 141 | O116: =IF(千円単!O116="","",ROUND(千円単!O116/1000,0)) -> 451 | P116: =IF(千円単!P116="","",ROUND(千円単!P116/1000,0)) -> 19 | Q116: =IF(千円単!Q116="","",ROUND(千円単!Q116/1000,0)) -> 288 | R116: =IF(千円単!R116="","",ROUND(千円単!R116/1000,0)) -> 373 | S116: =IF(千円単!S116="","",ROUND(千円単!S116/1000,0)) -> 162 | T116: =IF(千円単!T116="","",ROUND(千円単!T116/1000,0)) -> 127 | U116: =IF(千円単!U116="","",ROUND(千円単!U116/1000,0)) -> 887 | V116: =IF(千円単!V116="","",ROUND(千円単!V116/1000,0)) -> 200 | W116: =IF(千円単!W116="","",ROUND(千円単!W116/1000,0)) -> 631 | X116: =IF(千円単!X116="","",ROUND(千円単!X116/1000,0)) -> -514 | Y116: =IF(千円単!Y116="","",ROUND(千円単!Y116/1000,0)) -> 288
A117: 2016 | B117: 46 | C117: 17 | D117: 1 | E117: 116 | F117: 公共 | G117: 152251 | H117: 新潟県 | I117: 魚沼市 | J117: =IF(千円単!J117="","",ROUND(千円単!J117/1000,0)) -> 1202 | K117: =IF(千円単!K117="","",ROUND(千円単!K117/1000,0)) -> 507 | L117: =IF(千円単!L117="","",ROUND(千円単!L117/1000,0)) -> 482 | M117: =IF(千円単!M117="","",ROUND(千円単!M117/1000,0)) -> 1068 | N117: =IF(千円単!N117="","",ROUND(千円単!N117/1000,0)) -> 200 | O117: =IF(千円単!O117="","",ROUND(千円単!O117/1000,0)) -> 573 | P117: =IF(千円単!P117="","",ROUND(千円単!P117/1000,0)) -> 23 | Q117: =IF(千円単!Q117="","",ROUND(千円単!Q117/1000,0)) -> 135 | R117: =IF(千円単!R117="","",ROUND(千円単!R117/1000,0)) -> 505 | S117: =IF(千円単!S117="","",ROUND(千円単!S117/1000,0)) -> 32 | T117: =IF(千円単!T117="","",ROUND(千円単!T117/1000,0)) -> 0 | U117: =IF(千円単!U117="","",ROUND(千円単!U117/1000,0)) -> 932 | V117: =IF(千円単!V117="","",ROUND(千円単!V117/1000,0)) -> 61 | W117: =IF(千円単!W117="","",ROUND(千円単!W117/1000,0)) -> 871 | X117: =IF(千円単!X117="","",ROUND(千円単!X117/1000,0)) -> -427 | Y117: =IF(千円単!Y117="","",ROUND(千円単!Y117/1000,0)) -> 135
A118: 2016 | B118: 46 | C118: 17 | D118: 1 | E118: 117 | F118: 公共 | G118: 152277 | H118: 新潟県 | I118: 胎内市 | J118: =IF(千円単!J118="","",ROUND(千円単!J118/1000,0)) -> 798 | K118: =IF(千円単!K118="","",ROUND(千円単!K118/1000,0)) -> 219 | L118: =IF(千円単!L118="","",ROUND(千円単!L118/1000,0)) -> 285 | M118: =IF(千円単!M118="","",ROUND(千円単!M118/1000,0)) -> 703 | N118: =IF(千円単!N118="","",ROUND(千円単!N118/1000,0)) -> 136 | O118: =IF(千円単!O118="","",ROUND(千円単!O118/1000,0)) -> 435 | P118: =IF(千円単!P118="","",ROUND(千円単!P118/1000,0)) -> 9 | Q118: =IF(千円単!Q118="","",ROUND(千円単!Q118/1000,0)) -> 96 | R118: =IF(千円単!R118="","",ROUND(千円単!R118/1000,0)) -> 473 | S118: =IF(千円単!S118="","",ROUND(千円単!S118/1000,0)) -> 424 | T118: =IF(千円単!T118="","",ROUND(千円単!T118/1000,0)) -> 23 | U118: =IF(千円単!U118="","",ROUND(千円単!U118/1000,0)) -> 694 | V118: =IF(千円単!V118="","",ROUND(千円単!V118/1000,0)) -> 72 | W118: =IF(千円単!W118="","",ROUND(千円単!W118/1000,0)) -> 620 | X118: =IF(千円単!X118="","",ROUND(千円単!X118/1000,0)) -> -221 | Y118: =IF(千円単!Y118="","",ROUND(千円単!Y118/1000,0)) -> 96
A119: 2016 | B119: 46 | C119: 17 | D119: 1 | E119: 118 | F119: 公共 | G119: 153079 | H119: 新潟県 | I119: 聖籠町 | J119: =IF(千円単!J119="","",ROUND(千円単!J119/1000,0)) -> 508 | K119: =IF(千円単!K119="","",ROUND(千円単!K119/1000,0)) -> 151 | L119: =IF(千円単!L119="","",ROUND(千円単!L119/1000,0)) -> 216 | M119: =IF(千円単!M119="","",ROUND(千円単!M119/1000,0)) -> 482 | N119: =IF(千円単!N119="","",ROUND(千円単!N119/1000,0)) -> 89 | O119: =IF(千円単!O119="","",ROUND(千円単!O119/1000,0)) -> 296 | P119: =IF(千円単!P119="","",ROUND(千円単!P119/1000,0)) -> 14 | Q119: =IF(千円単!Q119="","",ROUND(千円単!Q119/1000,0)) -> 26 | R119: =IF(千円単!R119="","",ROUND(千円単!R119/1000,0)) -> 74 | S119: =IF(千円単!S119="","",ROUND(千円単!S119/1000,0)) -> 71 | T119: =IF(千円単!T119="","",ROUND(千円単!T119/1000,0)) -> 0 | U119: =IF(千円単!U119="","",ROUND(千円単!U119/1000,0)) -> 259 | V119: =IF(千円単!V119="","",ROUND(千円単!V119/1000,0)) -> 24 | W119: =IF(千円単!W119="","",ROUND(千円単!W119/1000,0)) -> 226 | X119: =IF(千円単!X119="","",ROUND(千円単!X119/1000,0)) -> -184 | Y119: =IF(千円単!Y119="","",ROUND(千円単!Y119/1000,0)) -> 26
A120: 2016 | B120: 46 | C120: 17 | D120: 1 | E120: 119 | F120: 公共 | G120: 162019 | H120: 富山県 | I120: 富山市 | J120: =IF(千円単!J120="","",ROUND(千円単!J120/1000,0)) -> 13580 | K120: =IF(千円単!K120="","",ROUND(千円単!K120/1000,0)) -> 6151 | L120: =IF(千円単!L120="","",ROUND(千円単!L120/1000,0)) -> 4687 | M120: =IF(千円単!M120="","",ROUND(千円単!M120/1000,0)) -> 11501 | N120: =IF(千円単!N120="","",ROUND(千円単!N120/1000,0)) -> 2062 | O120: =IF(千円単!O120="","",ROUND(千円単!O120/1000,0)) -> 6994 | P120: =IF(千円単!P120="","",ROUND(千円単!P120/1000,0)) -> 262 | Q120: =IF(千円単!Q120="","",ROUND(千円単!Q120/1000,0)) -> 2079 | R120: =IF(千円単!R120="","",ROUND(千円単!R120/1000,0)) -> 5593 | S120: =IF(千円単!S120="","",ROUND(千円単!S120/1000,0)) -> 2160 | T120: =IF(千円単!T120="","",ROUND(千円単!T120/1000,0)) -> 1605 | U120: =IF(千円単!U120="","",ROUND(千円単!U120/1000,0)) -> 11953 | V120: =IF(千円単!V120="","",ROUND(千円単!V120/1000,0)) -> 4216 | W120: =IF(千円単!W120="","",ROUND(千円単!W120/1000,0)) -> 7737 | X120: =IF(千円単!X120="","",ROUND(千円単!X120/1000,0)) -> -6360 | Y120: =IF(千円単!Y120="","",ROUND(千円単!Y120/1000,0)) -> 2079
A121: 2016 | B121: 46 | C121: 17 | D121: 1 | E121: 120 | F121: 公共 | G121: 162027 | H121: 富山県 | I121: 高岡市 | J121: =IF(千円単!J121="","",ROUND(千円単!J121/1000,0)) -> 4314 | K121: =IF(千円単!K121="","",ROUND(千円単!K121/1000,0)) -> 2522 | L121: =IF(千円単!L121="","",ROUND(千円単!L121/1000,0)) -> 739 | M121: =IF(千円単!M121="","",ROUND(千円単!M121/1000,0)) -> 4062 | N121: =IF(千円単!N121="","",ROUND(千円単!N121/1000,0)) -> 695 | O121: =IF(千円単!O121="","",ROUND(千円単!O121/1000,0)) -> 2054 | P121: =IF(千円単!P121="","",ROUND(千円単!P121/1000,0)) -> 71 | Q121: =IF(千円単!Q121="","",ROUND(千円単!Q121/1000,0)) -> 251 | R121: =IF(千円単!R121="","",ROUND(千円単!R121/1000,0)) -> 2549 | S121: =IF(千円単!S121="","",ROUND(千円単!S121/1000,0)) -> 1872 | T121: =IF(千円単!T121="","",ROUND(千円単!T121/1000,0)) -> 0 | U121: =IF(千円単!U121="","",ROUND(千円単!U121/1000,0)) -> 4157 | V121: =IF(千円単!V121="","",ROUND(千円単!V121/1000,0)) -> 1149 | W121: =IF(千円単!W121="","",ROUND(千円単!W121/1000,0)) -> 3007 | X121: =IF(千円単!X121="","",ROUND(千円単!X121/1000,0)) -> -1608 | Y121: =IF(千円単!Y121="","",ROUND(千円単!Y121/1000,0)) -> 251
A122: 2016 | B122: 46 | C122: 17 | D122: 1 | E122: 121 | F122: 公共 | G122: 162078 | H122: 富山県 | I122: 黒部市 | J122: =IF(千円単!J122="","",ROUND(千円単!J122/1000,0)) -> 1046 | K122: =IF(千円単!K122="","",ROUND(千円単!K122/1000,0)) -> 272 | L122: =IF(千円単!L122="","",ROUND(千円単!L122/1000,0)) -> 466 | M122: =IF(千円単!M122="","",ROUND(千円単!M122/1000,0)) -> 1045 | N122: =IF(千円単!N122="","",ROUND(千円単!N122/1000,0)) -> 152 | O122: =IF(千円単!O122="","",ROUND(千円単!O122/1000,0)) -> 563 | P122: =IF(千円単!P122="","",ROUND(千円単!P122/1000,0)) -> 22 | Q122: =IF(千円単!Q122="","",ROUND(千円単!Q122/1000,0)) -> 2 | R122: =IF(千円単!R122="","",ROUND(千円単!R122/1000,0)) -> 673 | S122: =IF(千円単!S122="","",ROUND(千円単!S122/1000,0)) -> 362 | T122: =IF(千円単!T122="","",ROUND(千円単!T122/1000,0)) -> 0 | U122: =IF(千円単!U122="","",ROUND(千円単!U122/1000,0)) -> 1011 | V122: =IF(千円単!V122="","",ROUND(千円単!V122/1000,0)) -> 309 | W122: =IF(千円単!W122="","",ROUND(千円単!W122/1000,0)) -> 703 | X122: =IF(千円単!X122="","",ROUND(千円単!X122/1000,0)) -> -339 | Y122: =IF(千円単!Y122="","",ROUND(千円単!Y122/1000,0)) -> 2
A123: 2016 | B123: 46 | C123: 17 | D123: 1 | E123: 122 | F123: 公共 | G123: 162108 | H123: 富山県 | I123: 南砺市 | J123: =IF(千円単!J123="","",ROUND(千円単!J123/1000,0)) -> 1074 | K123: =IF(千円単!K123="","",ROUND(千円単!K123/1000,0)) -> 368 | L123: =IF(千円単!L123="","",ROUND(千円単!L123/1000,0)) -> 591 | M123: =IF(千円単!M123="","",ROUND(千円単!M123/1000,0)) -> 734 | N123: =IF(千円単!N123="","",ROUND(千円単!N123/1000,0)) -> 123 | O123: =IF(千円単!O123="","",ROUND(千円単!O123/1000,0)) -> 415 | P123: =IF(千円単!P123="","",ROUND(千円単!P123/1000,0)) -> 15 | Q123: =IF(千円単!Q123="","",ROUND(千円単!Q123/1000,0)) -> 340 | R123: =IF(千円単!R123="","",ROUND(千円単!R123/1000,0)) -> 384 | S123: =IF(千円単!S123="","",ROUND(千円単!S123/1000,0)) -> 183 | T123: =IF(千円単!T123="","",ROUND(千円単!T123/1000,0)) -> 156 | U123: =IF(千円単!U123="","",ROUND(千円単!U123/1000,0)) -> 963 | V123: =IF(千円単!V123="","",ROUND(千円単!V123/1000,0)) -> 169 | W123: =IF(千円単!W123="","",ROUND(千円単!W123/1000,0)) -> 794 | X123: =IF(千円単!X123="","",ROUND(千円単!X123/1000,0)) -> -580 | Y123: =IF(千円単!Y123="","",ROUND(千円単!Y123/1000,0)) -> 340
A124: 2016 | B124: 46 | C124: 17 | D124: 1 | E124: 123 | F124: 公共 | G124: 162116 | H124: 富山県 | I124: 射水市 | J124: =IF(千円単!J124="","",ROUND(千円単!J124/1000,0)) -> 2469 | K124: =IF(千円単!K124="","",ROUND(千円単!K124/1000,0)) -> 941 | L124: =IF(千円単!L124="","",ROUND(千円単!L124/1000,0)) -> 1054 | M124: =IF(千円単!M124="","",ROUND(千円単!M124/1000,0)) -> 2320 | N124: =IF(千円単!N124="","",ROUND(千円単!N124/1000,0)) -> 418 | O124: =IF(千円単!O124="","",ROUND(千円単!O124/1000,0)) -> 1211 | P124: =IF(千円単!P124="","",ROUND(千円単!P124/1000,0)) -> 69 | Q124: =IF(千円単!Q124="","",ROUND(千円単!Q124/1000,0)) -> 148 | R124: =IF(千円単!R124="","",ROUND(千円単!R124/1000,0)) -> 1694 | S124: =IF(千円単!S124="","",ROUND(千円単!S124/1000,0)) -> 783 | T124: =IF(千円単!T124="","",ROUND(千円単!T124/1000,0)) -> 0 | U124: =IF(千円単!U124="","",ROUND(千円単!U124/1000,0)) -> 2676 | V124: =IF(千円単!V124="","",ROUND(千円単!V124/1000,0)) -> 1387 | W124: =IF(千円単!W124="","",ROUND(千円単!W124/1000,0)) -> 1279 | X124: =IF(千円単!X124="","",ROUND(千円単!X124/1000,0)) -> -982 | Y124: =IF(千円単!Y124="","",ROUND(千円単!Y124/1000,0)) -> 148
A125: 2016 | B125: 46 | C125: 17 | D125: 1 | E125: 124 | F125: 公共 | G125: 169048 | H125: 富山県 | I125: 中新川広域行政事務組合 | J125: =IF(千円単!J125="","",ROUND(千円単!J125/1000,0)) -> 1467 | K125: =IF(千円単!K125="","",ROUND(千円単!K125/1000,0)) -> 432 | L125: =IF(千円単!L125="","",ROUND(千円単!L125/1000,0)) -> 498 | M125: =IF(千円単!M125="","",ROUND(千円単!M125/1000,0)) -> 1498 | N125: =IF(千円単!N125="","",ROUND(千円単!N125/1000,0)) -> 307 | O125: =IF(千円単!O125="","",ROUND(千円単!O125/1000,0)) -> 924 | P125: =IF(千円単!P125="","",ROUND(千円単!P125/1000,0)) -> 36 | Q125: =IF(千円単!Q125="","",ROUND(千円単!Q125/1000,0)) -> -31 | R125: =IF(千円単!R125="","",ROUND(千円単!R125/1000,0)) -> 1291 | S125: =IF(千円単!S125="","",ROUND(千円単!S125/1000,0)) -> 432 | T125: =IF(千円単!T125="","",ROUND(千円単!T125/1000,0)) -> 395 | U125: =IF(千円単!U125="","",ROUND(千円単!U125/1000,0)) -> 1773 | V125: =IF(千円単!V125="","",ROUND(千円単!V125/1000,0)) -> 880 | W125: =IF(千円単!W125="","",ROUND(千円単!W125/1000,0)) -> 894 | X125: =IF(千円単!X125="","",ROUND(千円単!X125/1000,0)) -> -483 | Y125: =IF(千円単!Y125="","",ROUND(千円単!Y125/1000,0)) -> -31
A126: 2016 | B126: 46 | C126: 17 | D126: 1 | E126: 125 | F126: 公共 | G126: 172014 | H126: 石川県 | I126: 金沢市 | J126: =IF(千円単!J126="","",ROUND(千円単!J126/1000,0)) -> 16928 | K126: =IF(千円単!K126="","",ROUND(千円単!K126/1000,0)) -> 7054 | L126: =IF(千円単!L126="","",ROUND(千円単!L126/1000,0)) -> 5585 | M126: =IF(千円単!M126="","",ROUND(千円単!M126/1000,0)) -> 15778 | N126: =IF(千円単!N126="","",ROUND(千円単!N126/1000,0)) -> 2820 | O126: =IF(千円単!O126="","",ROUND(千円単!O126/1000,0)) -> 9675 | P126: =IF(千円単!P126="","",ROUND(千円単!P126/1000,0)) -> 483 | Q126: =IF(千円単!Q126="","",ROUND(千円単!Q126/1000,0)) -> 1150 | R126: =IF(千円単!R126="","",ROUND(千円単!R126/1000,0)) -> 6768 | S126: =IF(千円単!S126="","",ROUND(千円単!S126/1000,0)) -> 4191 | T126: =IF(千円単!T126="","",ROUND(千円単!T126/1000,0)) -> 20 | U126: =IF(千円単!U126="","",ROUND(千円単!U126/1000,0)) -> 13801 | V126: =IF(千円単!V126="","",ROUND(千円単!V126/1000,0)) -> 4061 | W126: =IF(千円単!W126="","",ROUND(千円単!W126/1000,0)) -> 9731 | X126: =IF(千円単!X126="","",ROUND(千円単!X126/1000,0)) -> -7033 | Y126: =IF(千円単!Y126="","",ROUND(千円単!Y126/1000,0)) -> 1150
A127: 2016 | B127: 46 | C127: 17 | D127: 1 | E127: 126 | F127: 公共 | G127: 172031 | H127: 石川県 | I127: 小松市 | J127: =IF(千円単!J127="","",ROUND(千円単!J127/1000,0)) -> 3532 | K127: =IF(千円単!K127="","",ROUND(千円単!K127/1000,0)) -> 953 | L127: =IF(千円単!L127="","",ROUND(千円単!L127/1000,0)) -> 1867 | M127: =IF(千円単!M127="","",ROUND(千円単!M127/1000,0)) -> 3672 | N127: =IF(千円単!N127="","",ROUND(千円単!N127/1000,0)) -> 870 | O127: =IF(千円単!O127="","",ROUND(千円単!O127/1000,0)) -> 2164 | P127: =IF(千円単!P127="","",ROUND(千円単!P127/1000,0)) -> 83 | Q127: =IF(千円単!Q127="","",ROUND(千円単!Q127/1000,0)) -> -140 | R127: =IF(千円単!R127="","",ROUND(千円単!R127/1000,0)) -> 3741 | S127: =IF(千円単!S127="","",ROUND(千円単!S127/1000,0)) -> 2518 | T127: =IF(千円単!T127="","",ROUND(千円単!T127/1000,0)) -> 223 | U127: =IF(千円単!U127="","",ROUND(千円単!U127/1000,0)) -> 4808 | V127: =IF(千円単!V127="","",ROUND(千円単!V127/1000,0)) -> 1794 | W127: =IF(千円単!W127="","",ROUND(千円単!W127/1000,0)) -> 2998 | X127: =IF(千円単!X127="","",ROUND(千円単!X127/1000,0)) -> -1066 | Y127: =IF(千円単!Y127="","",ROUND(千円単!Y127/1000,0)) -> -140
A128: 2016 | B128: 46 | C128: 17 | D128: 1 | E128: 127 | F128: 公共 | G128: 172073 | H128: 石川県 | I128: 羽咋市 | J128: =IF(千円単!J128="","",ROUND(千円単!J128/1000,0)) -> 666 | K128: =IF(千円単!K128="","",ROUND(千円単!K128/1000,0)) -> 190 | L128: =IF(千円単!L128="","",ROUND(千円単!L128/1000,0)) -> 333 | M128: =IF(千円単!M128="","",ROUND(千円単!M128/1000,0)) -> 657 | N128: =IF(千円単!N128="","",ROUND(千円単!N128/1000,0)) -> 165 | O128: =IF(千円単!O128="","",ROUND(千円単!O128/1000,0)) -> 398 | P128: =IF(千円単!P128="","",ROUND(千円単!P128/1000,0)) -> 15 | Q128: =IF(千円単!Q128="","",ROUND(千円単!Q128/1000,0)) -> 9 | R128: =IF(千円単!R128="","",ROUND(千円単!R128/1000,0)) -> 524 | S128: =IF(千円単!S128="","",ROUND(千円単!S128/1000,0)) -> 331 | T128: =IF(千円単!T128="","",ROUND(千円単!T128/1000,0)) -> 111 | U128: =IF(千円単!U128="","",ROUND(千円単!U128/1000,0)) -> 810 | V128: =IF(千円単!V128="","",ROUND(千円単!V128/1000,0)) -> 144 | W128: =IF(千円単!W128="","",ROUND(千円単!W128/1000,0)) -> 666 | X128: =IF(千円単!X128="","",ROUND(千円単!X128/1000,0)) -> -286 | Y128: =IF(千円単!Y128="","",ROUND(千円単!Y128/1000,0)) -> 9
A129: 2016 | B129: 46 | C129: 17 | D129: 1 | E129: 128 | F129: 公共 | G129: 172090 | H129: 石川県 | I129: かほく市 | J129: =IF(千円単!J129="","",ROUND(千円単!J129/1000,0)) -> 1746 | K129: =IF(千円単!K129="","",ROUND(千円単!K129/1000,0)) -> 327 | L129: =IF(千円単!L129="","",ROUND(千円単!L129/1000,0)) -> 974 | M129: =IF(千円単!M129="","",ROUND(千円単!M129/1000,0)) -> 1584 | N129: =IF(千円単!N129="","",ROUND(千円単!N129/1000,0)) -> 246 | O129: =IF(千円単!O129="","",ROUND(千円単!O129/1000,0)) -> 1138 | P129: =IF(千円単!P129="","",ROUND(千円単!P129/1000,0)) -> 8 | Q129: =IF(千円単!Q129="","",ROUND(千円単!Q129/1000,0)) -> 162 | R129: =IF(千円単!R129="","",ROUND(千円単!R129/1000,0)) -> 381 | S129: =IF(千円単!S129="","",ROUND(千円単!S129/1000,0)) -> 241 | T129: =IF(千円単!T129="","",ROUND(千円単!T129/1000,0)) -> 0 | U129: =IF(千円単!U129="","",ROUND(千円単!U129/1000,0)) -> 1249 | V129: =IF(千円単!V129="","",ROUND(千円単!V129/1000,0)) -> 245 | W129: =IF(千円単!W129="","",ROUND(千円単!W129/1000,0)) -> 1003 | X129: =IF(千円単!X129="","",ROUND(千円単!X129/1000,0)) -> -867 | Y129: =IF(千円単!Y129="","",ROUND(千円単!Y129/1000,0)) -> 162
A130: 2016 | B130: 46 | C130: 17 | D130: 1 | E130: 129 | F130: 公共 | G130: 172103 | H130: 石川県 | I130: 白山市 | J130: =IF(千円単!J130="","",ROUND(千円単!J130/1000,0)) -> 3573 | K130: =IF(千円単!K130="","",ROUND(千円単!K130/1000,0)) -> 1412 | L130: =IF(千円単!L130="","",ROUND(千円単!L130/1000,0)) -> 1299 | M130: =IF(千円単!M130="","",ROUND(千円単!M130/1000,0)) -> 3711 | N130: =IF(千円単!N130="","",ROUND(千円単!N130/1000,0)) -> 754 | O130: =IF(千円単!O130="","",ROUND(千円単!O130/1000,0)) -> 2107 | P130: =IF(千円単!P130="","",ROUND(千円単!P130/1000,0)) -> 64 | Q130: =IF(千円単!Q130="","",ROUND(千円単!Q130/1000,0)) -> -137 | R130: =IF(千円単!R130="","",ROUND(千円単!R130/1000,0)) -> 2400 | S130: =IF(千円単!S130="","",ROUND(千円単!S130/1000,0)) -> 1533 | T130: =IF(千円単!T130="","",ROUND(千円単!T130/1000,0)) -> 441 | U130: =IF(千円単!U130="","",ROUND(千円単!U130/1000,0)) -> 3410 | V130: =IF(千円単!V130="","",ROUND(千円単!V130/1000,0)) -> 824 | W130: =IF(千円単!W130="","",ROUND(千円単!W130/1000,0)) -> 2583 | X130: =IF(千円単!X130="","",ROUND(千円単!X130/1000,0)) -> -1010 | Y130: =IF(千円単!Y130="","",ROUND(千円単!Y130/1000,0)) -> -137
A131: 2016 | B131: 46 | C131: 17 | D131: 1 | E131: 130 | F131: 公共 | G131: 172111 | H131: 石川県 | I131: 能美市 | J131: =IF(千円単!J131="","",ROUND(千円単!J131/1000,0)) -> 1674 | K131: =IF(千円単!K131="","",ROUND(千円単!K131/1000,0)) -> 705 | L131: =IF(千円単!L131="","",ROUND(千円単!L131/1000,0)) -> 546 | M131: =IF(千円単!M131="","",ROUND(千円単!M131/1000,0)) -> 1587 | N131: =IF(千円単!N131="","",ROUND(千円単!N131/1000,0)) -> 338 | O131: =IF(千円単!O131="","",ROUND(千円単!O131/1000,0)) -> 846 | P131: =IF(千円単!P131="","",ROUND(千円単!P131/1000,0)) -> 11 | Q131: =IF(千円単!Q131="","",ROUND(千円単!Q131/1000,0)) -> 87 | R131: =IF(千円単!R131="","",ROUND(千円単!R131/1000,0)) -> 999 | S131: =IF(千円単!S131="","",ROUND(千円単!S131/1000,0)) -> 622 | T131: =IF(千円単!T131="","",ROUND(千円単!T131/1000,0)) -> 338 | U131: =IF(千円単!U131="","",ROUND(千円単!U131/1000,0)) -> 1359 | V131: =IF(千円単!V131="","",ROUND(千円単!V131/1000,0)) -> 77 | W131: =IF(千円単!W131="","",ROUND(千円単!W131/1000,0)) -> 1282 | X131: =IF(千円単!X131="","",ROUND(千円単!X131/1000,0)) -> -361 | Y131: =IF(千円単!Y131="","",ROUND(千円単!Y131/1000,0)) -> 87
A132: 2016 | B132: 46 | C132: 17 | D132: 1 | E132: 131 | F132: 公共 | G132: 172120 | H132: 石川県 | I132: 野々市市 | J132: =IF(千円単!J132="","",ROUND(千円単!J132/1000,0)) -> 1131 | K132: =IF(千円単!K132="","",ROUND(千円単!K132/1000,0)) -> 703 | L132: =IF(千円単!L132="","",ROUND(千円単!L132/1000,0)) -> 226 | M132: =IF(千円単!M132="","",ROUND(千円単!M132/1000,0)) -> 1270 | N132: =IF(千円単!N132="","",ROUND(千円単!N132/1000,0)) -> 263 | O132: =IF(千円単!O132="","",ROUND(千円単!O132/1000,0)) -> 684 | P132: =IF(千円単!P132="","",ROUND(千円単!P132/1000,0)) -> 41 | Q132: =IF(千円単!Q132="","",ROUND(千円単!Q132/1000,0)) -> -140 | R132: =IF(千円単!R132="","",ROUND(千円単!R132/1000,0)) -> 835 | S132: =IF(千円単!S132="","",ROUND(千円単!S132/1000,0)) -> 483 | T132: =IF(千円単!T132="","",ROUND(千円単!T132/1000,0)) -> 183 | U132: =IF(千円単!U132="","",ROUND(千円単!U132/1000,0)) -> 1154 | V132: =IF(千円単!V132="","",ROUND(千円単!V132/1000,0)) -> 331 | W132: =IF(千円単!W132="","",ROUND(千円単!W132/1000,0)) -> 823 | X132: =IF(千円単!X132="","",ROUND(千円単!X132/1000,0)) -> -319 | Y132: =IF(千円単!Y132="","",ROUND(千円単!Y132/1000,0)) -> -140
A133: 2016 | B133: 46 | C133: 17 | D133: 1 | E133: 132 | F133: 公共 | G133: 173614 | H133: 石川県 | I133: 津幡町 | J133: =IF(千円単!J133="","",ROUND(千円単!J133/1000,0)) -> 1402 | K133: =IF(千円単!K133="","",ROUND(千円単!K133/1000,0)) -> 478 | L133: =IF(千円単!L133="","",ROUND(千円単!L133/1000,0)) -> 533 | M133: =IF(千円単!M133="","",ROUND(千円単!M133/1000,0)) -> 1373 | N133: =IF(千円単!N133="","",ROUND(千円単!N133/1000,0)) -> 249 | O133: =IF(千円単!O133="","",ROUND(千円単!O133/1000,0)) -> 893 | P133: =IF(千円単!P133="","",ROUND(千円単!P133/1000,0)) -> 23 | Q133: =IF(千円単!Q133="","",ROUND(千円単!Q133/1000,0)) -> 29 | R133: =IF(千円単!R133="","",ROUND(千円単!R133/1000,0)) -> 1021 | S133: =IF(千円単!S133="","",ROUND(千円単!S133/1000,0)) -> 631 | T133: =IF(千円単!T133="","",ROUND(千円単!T133/1000,0)) -> 152 | U133: =IF(千円単!U133="","",ROUND(千円単!U133/1000,0)) -> 1506 | V133: =IF(千円単!V133="","",ROUND(千円単!V133/1000,0)) -> 482 | W133: =IF(千円単!W133="","",ROUND(千円単!W133/1000,0)) -> 1024 | X133: =IF(千円単!X133="","",ROUND(千円単!X133/1000,0)) -> -484 | Y133: =IF(千円単!Y133="","",ROUND(千円単!Y133/1000,0)) -> 29
A134: 2016 | B134: 46 | C134: 17 | D134: 1 | E134: 133 | F134: 公共 | G134: 182010 | H134: 福井県 | I134: 福井市 | J134: =IF(千円単!J134="","",ROUND(千円単!J134/1000,0)) -> 8549 | K134: =IF(千円単!K134="","",ROUND(千円単!K134/1000,0)) -> 3565 | L134: =IF(千円単!L134="","",ROUND(千円単!L134/1000,0)) -> 2396 | M134: =IF(千円単!M134="","",ROUND(千円単!M134/1000,0)) -> 7852 | N134: =IF(千円単!N134="","",ROUND(千円単!N134/1000,0)) -> 1189 | O134: =IF(千円単!O134="","",ROUND(千円単!O134/1000,0)) -> 4407 | P134: =IF(千円単!P134="","",ROUND(千円単!P134/1000,0)) -> 460 | Q134: =IF(千円単!Q134="","",ROUND(千円単!Q134/1000,0)) -> 698 | R134: =IF(千円単!R134="","",ROUND(千円単!R134/1000,0)) -> 5614 | S134: =IF(千円単!S134="","",ROUND(千円単!S134/1000,0)) -> 3504 | T134: =IF(千円単!T134="","",ROUND(千円単!T134/1000,0)) -> 740 | U134: =IF(千円単!U134="","",ROUND(千円単!U134/1000,0)) -> 7898 | V134: =IF(千円単!V134="","",ROUND(千円単!V134/1000,0)) -> 3969 | W134: =IF(千円単!W134="","",ROUND(千円単!W134/1000,0)) -> 3911 | X134: =IF(千円単!X134="","",ROUND(千円単!X134/1000,0)) -> -2284 | Y134: =IF(千円単!Y134="","",ROUND(千円単!Y134/1000,0)) -> 698
A135: 2016 | B135: 46 | C135: 17 | D135: 1 | E135: 134 | F135: 公共 | G135: 182079 | H135: 福井県 | I135: 鯖江市 | J135: =IF(千円単!J135="","",ROUND(千円単!J135/1000,0)) -> 1935 | K135: =IF(千円単!K135="","",ROUND(千円単!K135/1000,0)) -> 1033 | L135: =IF(千円単!L135="","",ROUND(千円単!L135/1000,0)) -> 497 | M135: =IF(千円単!M135="","",ROUND(千円単!M135/1000,0)) -> 1924 | N135: =IF(千円単!N135="","",ROUND(千円単!N135/1000,0)) -> 385 | O135: =IF(千円単!O135="","",ROUND(千円単!O135/1000,0)) -> 1168 | P135: =IF(千円単!P135="","",ROUND(千円単!P135/1000,0)) -> 20 | Q135: =IF(千円単!Q135="","",ROUND(千円単!Q135/1000,0)) -> 12 | R135: =IF(千円単!R135="","",ROUND(千円単!R135/1000,0)) -> 1227 | S135: =IF(千円単!S135="","",ROUND(千円単!S135/1000,0)) -> 759 | T135: =IF(千円単!T135="","",ROUND(千円単!T135/1000,0)) -> 270 | U135: =IF(千円単!U135="","",ROUND(千円単!U135/1000,0)) -> 1968 | V135: =IF(千円単!V135="","",ROUND(千円単!V135/1000,0)) -> 422 | W135: =IF(千円単!W135="","",ROUND(千円単!W135/1000,0)) -> 1546 | X135: =IF(千円単!X135="","",ROUND(千円単!X135/1000,0)) -> -741 | Y135: =IF(千円単!Y135="","",ROUND(千円単!Y135/1000,0)) -> 12
A136: 2016 | B136: 46 | C136: 17 | D136: 1 | E136: 135 | F136: 公共 | G136: 182087 | H136: 福井県 | I136: あわら市 | J136: =IF(千円単!J136="","",ROUND(千円単!J136/1000,0)) -> 1109 | K136: =IF(千円単!K136="","",ROUND(千円単!K136/1000,0)) -> 497 | L136: =IF(千円単!L136="","",ROUND(千円単!L136/1000,0)) -> 361 | M136: =IF(千円単!M136="","",ROUND(千円単!M136/1000,0)) -> 1109 | N136: =IF(千円単!N136="","",ROUND(千円単!N136/1000,0)) -> 201 | O136: =IF(千円単!O136="","",ROUND(千円単!O136/1000,0)) -> 603 | P136: =IF(千円単!P136="","",ROUND(千円単!P136/1000,0)) -> 23 | Q136: =IF(千円単!Q136="","",ROUND(千円単!Q136/1000,0)) -> 0 | R136: =IF(千円単!R136="","",ROUND(千円単!R136/1000,0)) -> 890 | S136: =IF(千円単!S136="","",ROUND(千円単!S136/1000,0)) -> 580 | T136: =IF(千円単!T136="","",ROUND(千円単!T136/1000,0)) -> 295 | U136: =IF(千円単!U136="","",ROUND(千円単!U136/1000,0)) -> 1315 | V136: =IF(千円単!V136="","",ROUND(千円単!V136/1000,0)) -> 506 | W136: =IF(千円単!W136="","",ROUND(千円単!W136/1000,0)) -> 808 | X136: =IF(千円単!X136="","",ROUND(千円単!X136/1000,0)) -> -425 | Y136: =IF(千円単!Y136="","",ROUND(千円単!Y136/1000,0)) -> 0
A137: 2016 | B137: 46 | C137: 17 | D137: 1 | E137: 136 | F137: 公共 | G137: 182109 | H137: 福井県 | I137: 坂井市 | J137: =IF(千円単!J137="","",ROUND(千円単!J137/1000,0)) -> 3079 | K137: =IF(千円単!K137="","",ROUND(千円単!K137/1000,0)) -> 1143 | L137: =IF(千円単!L137="","",ROUND(千円単!L137/1000,0)) -> 1040 | M137: =IF(千円単!M137="","",ROUND(千円単!M137/1000,0)) -> 3020 | N137: =IF(千円単!N137="","",ROUND(千円単!N137/1000,0)) -> 445 | O137: =IF(千円単!O137="","",ROUND(千円単!O137/1000,0)) -> 1868 | P137: =IF(千円単!P137="","",ROUND(千円単!P137/1000,0)) -> 28 | Q137: =IF(千円単!Q137="","",ROUND(千円単!Q137/1000,0)) -> 60 | R137: =IF(千円単!R137="","",ROUND(千円単!R137/1000,0)) -> 1740 | S137: =IF(千円単!S137="","",ROUND(千円単!S137/1000,0)) -> 1384 | T137: =IF(千円単!T137="","",ROUND(千円単!T137/1000,0)) -> 0 | U137: =IF(千円単!U137="","",ROUND(千円単!U137/1000,0)) -> 2742 | V137: =IF(千円単!V137="","",ROUND(千円単!V137/1000,0)) -> 704 | W137: =IF(千円単!W137="","",ROUND(千円単!W137/1000,0)) -> 1989 | X137: =IF(千円単!X137="","",ROUND(千円単!X137/1000,0)) -> -1002 | Y137: =IF(千円単!Y137="","",ROUND(千円単!Y137/1000,0)) -> 60
A138: 2016 | B138: 46 | C138: 17 | D138: 1 | E138: 137 | F138: 公共 | G138: 188433 | H138: 福井県 | I138: 五領川公共下水道事務組合 | J138: =IF(千円単!J138="","",ROUND(千円単!J138/1000,0)) -> 477 | K138: =IF(千円単!K138="","",ROUND(千円単!K138/1000,0)) -> 135 | L138: =IF(千円単!L138="","",ROUND(千円単!L138/1000,0)) -> 146 | M138: =IF(千円単!M138="","",ROUND(千円単!M138/1000,0)) -> 426 | N138: =IF(千円単!N138="","",ROUND(千円単!N138/1000,0)) -> 43 | O138: =IF(千円単!O138="","",ROUND(千円単!O138/1000,0)) -> 212 | P138: =IF(千円単!P138="","",ROUND(千円単!P138/1000,0)) -> 29 | Q138: =IF(千円単!Q138="","",ROUND(千円単!Q138/1000,0)) -> 51 | R138: =IF(千円単!R138="","",ROUND(千円単!R138/1000,0)) -> 116 | S138: =IF(千円単!S138="","",ROUND(千円単!S138/1000,0)) -> 70 | T138: =IF(千円単!T138="","",ROUND(千円単!T138/1000,0)) -> 4 | U138: =IF(千円単!U138="","",ROUND(千円単!U138/1000,0)) -> 297 | V138: =IF(千円単!V138="","",ROUND(千円単!V138/1000,0)) -> 112 | W138: =IF(千円単!W138="","",ROUND(千円単!W138/1000,0)) -> 182 | X138: =IF(千円単!X138="","",ROUND(千円単!X138/1000,0)) -> -181 | Y138: =IF(千円単!Y138="","",ROUND(千円単!Y138/1000,0)) -> 51
A139: 2016 | B139: 46 | C139: 17 | D139: 1 | E139: 138 | F139: 公共 | G139: 192015 | H139: 山梨県 | I139: 甲府市 | J139: =IF(千円単!J139="","",ROUND(千円単!J139/1000,0)) -> 6589 | K139: =IF(千円単!K139="","",ROUND(千円単!K139/1000,0)) -> 2855 | L139: =IF(千円単!L139="","",ROUND(千円単!L139/1000,0)) -> 1877 | M139: =IF(千円単!M139="","",ROUND(千円単!M139/1000,0)) -> 5361 | N139: =IF(千円単!N139="","",ROUND(千円単!N139/1000,0)) -> 878 | O139: =IF(千円単!O139="","",ROUND(千円単!O139/1000,0)) -> 3285 | P139: =IF(千円単!P139="","",ROUND(千円単!P139/1000,0)) -> 186 | Q139: =IF(千円単!Q139="","",ROUND(千円単!Q139/1000,0)) -> 1229 | R139: =IF(千円単!R139="","",ROUND(千円単!R139/1000,0)) -> 2993 | S139: =IF(千円単!S139="","",ROUND(千円単!S139/1000,0)) -> 1240 | T139: =IF(千円単!T139="","",ROUND(千円単!T139/1000,0)) -> 1134 | U139: =IF(千円単!U139="","",ROUND(千円単!U139/1000,0)) -> 5448 | V139: =IF(千円単!V139="","",ROUND(千円単!V139/1000,0)) -> 941 | W139: =IF(千円単!W139="","",ROUND(千円単!W139/1000,0)) -> 3913 | X139: =IF(千円単!X139="","",ROUND(千円単!X139/1000,0)) -> -2455 | Y139: =IF(千円単!Y139="","",ROUND(千円単!Y139/1000,0)) -> 1229
A140: 2016 | B140: 46 | C140: 17 | D140: 1 | E140: 139 | F140: 公共 | G140: 192112 | H140: 山梨県 | I140: 笛吹市 | J140: =IF(千円単!J140="","",ROUND(千円単!J140/1000,0)) -> 1937 | K140: =IF(千円単!K140="","",ROUND(千円単!K140/1000,0)) -> 535 | L140: =IF(千円単!L140="","",ROUND(千円単!L140/1000,0)) -> 1139 | M140: =IF(千円単!M140="","",ROUND(千円単!M140/1000,0)) -> 1945 | N140: =IF(千円単!N140="","",ROUND(千円単!N140/1000,0)) -> 379 | O140: =IF(千円単!O140="","",ROUND(千円単!O140/1000,0)) -> 1018 | P140: =IF(千円単!P140="","",ROUND(千円単!P140/1000,0)) -> 54 | Q140: =IF(千円単!Q140="","",ROUND(千円単!Q140/1000,0)) -> -7 | R140: =IF(千円単!R140="","",ROUND(千円単!R140/1000,0)) -> 938 | S140: =IF(千円単!S140="","",ROUND(千円単!S140/1000,0)) -> 228 | T140: =IF(千円単!T140="","",ROUND(千円単!T140/1000,0)) -> 600 | U140: =IF(千円単!U140="","",ROUND(千円単!U140/1000,0)) -> 1697 | V140: =IF(千円単!V140="","",ROUND(千円単!V140/1000,0)) -> 383 | W140: =IF(千円単!W140="","",ROUND(千円単!W140/1000,0)) -> 1315 | X140: =IF(千円単!X140="","",ROUND(千円単!X140/1000,0)) -> -759 | Y140: =IF(千円単!Y140="","",ROUND(千円単!Y140/1000,0)) -> -7
A141: 2016 | B141: 46 | C141: 17 | D141: 1 | E141: 140 | F141: 公共 | G141: 202011 | H141: 長野県 | I141: 長野市 | J141: =IF(千円単!J141="","",ROUND(千円単!J141/1000,0)) -> 12270 | K141: =IF(千円単!K141="","",ROUND(千円単!K141/1000,0)) -> 6727 | L141: =IF(千円単!L141="","",ROUND(千円単!L141/1000,0)) -> 2762 | M141: =IF(千円単!M141="","",ROUND(千円単!M141/1000,0)) -> 9916 | N141: =IF(千円単!N141="","",ROUND(千円単!N141/1000,0)) -> 1865 | O141: =IF(千円単!O141="","",ROUND(千円単!O141/1000,0)) -> 5318 | P141: =IF(千円単!P141="","",ROUND(千円単!P141/1000,0)) -> 280 | Q141: =IF(千円単!Q141="","",ROUND(千円単!Q141/1000,0)) -> 2353 | R141: =IF(千円単!R141="","",ROUND(千円単!R141/1000,0)) -> 3657 | S141: =IF(千円単!S141="","",ROUND(千円単!S141/1000,0)) -> 1449 | T141: =IF(千円単!T141="","",ROUND(千円単!T141/1000,0)) -> 956 | U141: =IF(千円単!U141="","",ROUND(千円単!U141/1000,0)) -> 8615 | V141: =IF(千円単!V141="","",ROUND(千円単!V141/1000,0)) -> 3050 | W141: =IF(千円単!W141="","",ROUND(千円単!W141/1000,0)) -> 5565 | X141: =IF(千円単!X141="","",ROUND(千円単!X141/1000,0)) -> -4958 | Y141: =IF(千円単!Y141="","",ROUND(千円単!Y141/1000,0)) -> 2353
A142: 2016 | B142: 46 | C142: 17 | D142: 1 | E142: 141 | F142: 公共 | G142: 202029 | H142: 長野県 | I142: 松本市 | J142: =IF(千円単!J142="","",ROUND(千円単!J142/1000,0)) -> 5579 | K142: =IF(千円単!K142="","",ROUND(千円単!K142/1000,0)) -> 4157 | L142: =IF(千円単!L142="","",ROUND(千円単!L142/1000,0)) -> 149 | M142: =IF(千円単!M142="","",ROUND(千円単!M142/1000,0)) -> 4830 | N142: =IF(千円単!N142="","",ROUND(千円単!N142/1000,0)) -> 576 | O142: =IF(千円単!O142="","",ROUND(千円単!O142/1000,0)) -> 2751 | P142: =IF(千円単!P142="","",ROUND(千円単!P142/1000,0)) -> 283 | Q142: =IF(千円単!Q142="","",ROUND(千円単!Q142/1000,0)) -> 748 | R142: =IF(千円単!R142="","",ROUND(千円単!R142/1000,0)) -> 2257 | S142: =IF(千円単!S142="","",ROUND(千円単!S142/1000,0)) -> 566 | T142: =IF(千円単!T142="","",ROUND(千円単!T142/1000,0)) -> 1025 | U142: =IF(千円単!U142="","",ROUND(千円単!U142/1000,0)) -> 4232 | V142: =IF(千円単!V142="","",ROUND(千円単!V142/1000,0)) -> 1362 | W142: =IF(千円単!W142="","",ROUND(千円単!W142/1000,0)) -> 2870 | X142: =IF(千円単!X142="","",ROUND(千円単!X142/1000,0)) -> -1976 | Y142: =IF(千円単!Y142="","",ROUND(千円単!Y142/1000,0)) -> 748
A143: 2016 | B143: 46 | C143: 17 | D143: 1 | E143: 142 | F143: 公共 | G143: 202037 | H143: 長野県 | I143: 上田市 | J143: =IF(千円単!J143="","",ROUND(千円単!J143/1000,0)) -> 4476 | K143: =IF(千円単!K143="","",ROUND(千円単!K143/1000,0)) -> 1838 | L143: =IF(千円単!L143="","",ROUND(千円単!L143/1000,0)) -> 1571 | M143: =IF(千円単!M143="","",ROUND(千円単!M143/1000,0)) -> 3945 | N143: =IF(千円単!N143="","",ROUND(千円単!N143/1000,0)) -> 720 | O143: =IF(千円単!O143="","",ROUND(千円単!O143/1000,0)) -> 2440 | P143: =IF(千円単!P143="","",ROUND(千円単!P143/1000,0)) -> 78 | Q143: =IF(千円単!Q143="","",ROUND(千円単!Q143/1000,0)) -> 531 | R143: =IF(千円単!R143="","",ROUND(千円単!R143/1000,0)) -> 612 | S143: =IF(千円単!S143="","",ROUND(千円単!S143/1000,0)) -> 192 | T143: =IF(千円単!T143="","",ROUND(千円単!T143/1000,0)) -> 197 | U143: =IF(千円単!U143="","",ROUND(千円単!U143/1000,0)) -> 2732 | V143: =IF(千円単!V143="","",ROUND(千円単!V143/1000,0)) -> 460 | W143: =IF(千円単!W143="","",ROUND(千円単!W143/1000,0)) -> 2272 | X143: =IF(千円単!X143="","",ROUND(千円単!X143/1000,0)) -> -2119 | Y143: =IF(千円単!Y143="","",ROUND(千円単!Y143/1000,0)) -> 531
A144: 2016 | B144: 46 | C144: 17 | D144: 1 | E144: 143 | F144: 公共 | G144: 202045 | H144: 長野県 | I144: 岡谷市 | J144: =IF(千円単!J144="","",ROUND(千円単!J144/1000,0)) -> 1722 | K144: =IF(千円単!K144="","",ROUND(千円単!K144/1000,0)) -> 973 | L144: =IF(千円単!L144="","",ROUND(千円単!L144/1000,0)) -> 316 | M144: =IF(千円単!M144="","",ROUND(千円単!M144/1000,0)) -> 1474 | N144: =IF(千円単!N144="","",ROUND(千円単!N144/1000,0)) -> 187 | O144: =IF(千円単!O144="","",ROUND(千円単!O144/1000,0)) -> 786 | P144: =IF(千円単!P144="","",ROUND(千円単!P144/1000,0)) -> 82 | Q144: =IF(千円単!Q144="","",ROUND(千円単!Q144/1000,0)) -> 248 | R144: =IF(千円単!R144="","",ROUND(千円単!R144/1000,0)) -> 815 | S144: =IF(千円単!S144="","",ROUND(千円単!S144/1000,0)) -> 520 | T144: =IF(千円単!T144="","",ROUND(千円単!T144/1000,0)) -> 161 | U144: =IF(千円単!U144="","",ROUND(千円単!U144/1000,0)) -> 1393 | V144: =IF(千円単!V144="","",ROUND(千円単!V144/1000,0)) -> 383 | W144: =IF(千円単!W144="","",ROUND(千円単!W144/1000,0)) -> 1010 | X144: =IF(千円単!X144="","",ROUND(千円単!X144/1000,0)) -> -578 | Y144: =IF(千円単!Y144="","",ROUND(千円単!Y144/1000,0)) -> 248
A145: 2016 | B145: 46 | C145: 17 | D145: 1 | E145: 144 | F145: 公共 | G145: 202053 | H145: 長野県 | I145: 飯田市 | J145: =IF(千円単!J145="","",ROUND(千円単!J145/1000,0)) -> 3533 | K145: =IF(千円単!K145="","",ROUND(千円単!K145/1000,0)) -> 1590 | L145: =IF(千円単!L145="","",ROUND(千円単!L145/1000,0)) -> 743 | M145: =IF(千円単!M145="","",ROUND(千円単!M145/1000,0)) -> 3032 | N145: =IF(千円単!N145="","",ROUND(千円単!N145/1000,0)) -> 419 | O145: =IF(千円単!O145="","",ROUND(千円単!O145/1000,0)) -> 1813 | P145: =IF(千円単!P145="","",ROUND(千円単!P145/1000,0)) -> 135 | Q145: =IF(千円単!Q145="","",ROUND(千円単!Q145/1000,0)) -> 500 | R145: =IF(千円単!R145="","",ROUND(千円単!R145/1000,0)) -> 1009 | S145: =IF(千円単!S145="","",ROUND(千円単!S145/1000,0)) -> 271 | T145: =IF(千円単!T145="","",ROUND(千円単!T145/1000,0)) -> 593 | U145: =IF(千円単!U145="","",ROUND(千円単!U145/1000,0)) -> 1899 | V145: =IF(千円単!V145="","",ROUND(千円単!V145/1000,0)) -> 384 | W145: =IF(千円単!W145="","",ROUND(千円単!W145/1000,0)) -> 1515 | X145: =IF(千円単!X145="","",ROUND(千円単!X145/1000,0)) -> -890 | Y145: =IF(千円単!Y145="","",ROUND(千円単!Y145/1000,0)) -> 500
A146: 2016 | B146: 46 | C146: 17 | D146: 1 | E146: 145 | F146: 公共 | G146: 202061 | H146: 長野県 | I146: 諏訪市 | J146: =IF(千円単!J146="","",ROUND(千円単!J146/1000,0)) -> 2383 | K146: =IF(千円単!K146="","",ROUND(千円単!K146/1000,0)) -> 1281 | L146: =IF(千円単!L146="","",ROUND(千円単!L146/1000,0)) -> 647 | M146: =IF(千円単!M146="","",ROUND(千円単!M146/1000,0)) -> 1881 | N146: =IF(千円単!N146="","",ROUND(千円単!N146/1000,0)) -> 251 | O146: =IF(千円単!O146="","",ROUND(千円単!O146/1000,0)) -> 1006 | P146: =IF(千円単!P146="","",ROUND(千円単!P146/1000,0)) -> 91 | Q146: =IF(千円単!Q146="","",ROUND(千円単!Q146/1000,0)) -> 502 | R146: =IF(千円単!R146="","",ROUND(千円単!R146/1000,0)) -> 376 | S146: =IF(千円単!S146="","",ROUND(千円単!S146/1000,0)) -> 165 | T146: =IF(千円単!T146="","",ROUND(千円単!T146/1000,0)) -> 157 | U146: =IF(千円単!U146="","",ROUND(千円単!U146/1000,0)) -> 1344 | V146: =IF(千円単!V146="","",ROUND(千円単!V146/1000,0)) -> 309 | W146: =IF(千円単!W146="","",ROUND(千円単!W146/1000,0)) -> 1036 | X146: =IF(千円単!X146="","",ROUND(千円単!X146/1000,0)) -> -968 | Y146: =IF(千円単!Y146="","",ROUND(千円単!Y146/1000,0)) -> 502
A147: 2016 | B147: 46 | C147: 17 | D147: 1 | E147: 146 | F147: 公共 | G147: 202070 | H147: 長野県 | I147: 須坂市 | J147: =IF(千円単!J147="","",ROUND(千円単!J147/1000,0)) -> 1689 | K147: =IF(千円単!K147="","",ROUND(千円単!K147/1000,0)) -> 745 | L147: =IF(千円単!L147="","",ROUND(千円単!L147/1000,0)) -> 616 | M147: =IF(千円単!M147="","",ROUND(千円単!M147/1000,0)) -> 1399 | N147: =IF(千円単!N147="","",ROUND(千円単!N147/1000,0)) -> 327 | O147: =IF(千円単!O147="","",ROUND(千円単!O147/1000,0)) -> 721 | P147: =IF(千円単!P147="","",ROUND(千円単!P147/1000,0)) -> 18 | Q147: =IF(千円単!Q147="","",ROUND(千円単!Q147/1000,0)) -> 291 | R147: =IF(千円単!R147="","",ROUND(千円単!R147/1000,0)) -> 914 | S147: =IF(千円単!S147="","",ROUND(千円単!S147/1000,0)) -> 574 | T147: =IF(千円単!T147="","",ROUND(千円単!T147/1000,0)) -> 322 | U147: =IF(千円単!U147="","",ROUND(千円単!U147/1000,0)) -> 1427 | V147: =IF(千円単!V147="","",ROUND(千円単!V147/1000,0)) -> 106 | W147: =IF(千円単!W147="","",ROUND(千円単!W147/1000,0)) -> 1321 | X147: =IF(千円単!X147="","",ROUND(千円単!X147/1000,0)) -> -513 | Y147: =IF(千円単!Y147="","",ROUND(千円単!Y147/1000,0)) -> 291
A148: 2016 | B148: 46 | C148: 17 | D148: 1 | E148: 147 | F148: 公共 | G148: 202088 | H148: 長野県 | I148: 小諸市 | J148: =IF(千円単!J148="","",ROUND(千円単!J148/1000,0)) -> 984 | K148: =IF(千円単!K148="","",ROUND(千円単!K148/1000,0)) -> 373 | L148: =IF(千円単!L148="","",ROUND(千円単!L148/1000,0)) -> 378 | M148: =IF(千円単!M148="","",ROUND(千円単!M148/1000,0)) -> 922 | N148: =IF(千円単!N148="","",ROUND(千円単!N148/1000,0)) -> 176 | O148: =IF(千円単!O148="","",ROUND(千円単!O148/1000,0)) -> 554 | P148: =IF(千円単!P148="","",ROUND(千円単!P148/1000,0)) -> 19 | Q148: =IF(千円単!Q148="","",ROUND(千円単!Q148/1000,0)) -> 62 | R148: =IF(千円単!R148="","",ROUND(千円単!R148/1000,0)) -> 540 | S148: =IF(千円単!S148="","",ROUND(千円単!S148/1000,0)) -> 336 | T148: =IF(千円単!T148="","",ROUND(千円単!T148/1000,0)) -> 109 | U148: =IF(千円単!U148="","",ROUND(千円単!U148/1000,0)) -> 841 | V148: =IF(千円単!V148="","",ROUND(千円単!V148/1000,0)) -> 156 | W148: =IF(千円単!W148="","",ROUND(千円単!W148/1000,0)) -> 685 | X148: =IF(千円単!X148="","",ROUND(千円単!X148/1000,0)) -> -302 | Y148: =IF(千円単!Y148="","",ROUND(千円単!Y148/1000,0)) -> 62
A149: 2016 | B149: 46 | C149: 17 | D149: 1 | E149: 148 | F149: 公共 | G149: 202096 | H149: 長野県 | I149: 伊那市 | J149: =IF(千円単!J149="","",ROUND(千円単!J149/1000,0)) -> 1472 | K149: =IF(千円単!K149="","",ROUND(千円単!K149/1000,0)) -> 633 | L149: =IF(千円単!L149="","",ROUND(千円単!L149/1000,0)) -> 439 | M149: =IF(千円単!M149="","",ROUND(千円単!M149/1000,0)) -> 1295 | N149: =IF(千円単!N149="","",ROUND(千円単!N149/1000,0)) -> 255 | O149: =IF(千円単!O149="","",ROUND(千円単!O149/1000,0)) -> 759 | P149: =IF(千円単!P149="","",ROUND(千円単!P149/1000,0)) -> 63 | Q149: =IF(千円単!Q149="","",ROUND(千円単!Q149/1000,0)) -> 177 | R149: =IF(千円単!R149="","",ROUND(千円単!R149/1000,0)) -> 1022 | S149: =IF(千円単!S149="","",ROUND(千円単!S149/1000,0)) -> 819 | T149: =IF(千円単!T149="","",ROUND(千円単!T149/1000,0)) -> 142 | U149: =IF(千円単!U149="","",ROUND(千円単!U149/1000,0)) -> 1400 | V149: =IF(千円単!V149="","",ROUND(千円単!V149/1000,0)) -> 142 | W149: =IF(千円単!W149="","",ROUND(千円単!W149/1000,0)) -> 1258 | X149: =IF(千円単!X149="","",ROUND(千円単!X149/1000,0)) -> -377 | Y149: =IF(千円単!Y149="","",ROUND(千円単!Y149/1000,0)) -> 177
A150: 2016 | B150: 46 | C150: 17 | D150: 1 | E150: 149 | F150: 公共 | G150: 202100 | H150: 長野県 | I150: 駒ケ根市 | J150: =IF(千円単!J150="","",ROUND(千円単!J150/1000,0)) -> 1009 | K150: =IF(千円単!K150="","",ROUND(千円単!K150/1000,0)) -> 373 | L150: =IF(千円単!L150="","",ROUND(千円単!L150/1000,0)) -> 384 | M150: =IF(千円単!M150="","",ROUND(千円単!M150/1000,0)) -> 868 | N150: =IF(千円単!N150="","",ROUND(千円単!N150/1000,0)) -> 158 | O150: =IF(千円単!O150="","",ROUND(千円単!O150/1000,0)) -> 498 | P150: =IF(千円単!P150="","",ROUND(千円単!P150/1000,0)) -> 23 | Q150: =IF(千円単!Q150="","",ROUND(千円単!Q150/1000,0)) -> 141 | R150: =IF(千円単!R150="","",ROUND(千円単!R150/1000,0)) -> 392 | S150: =IF(千円単!S150="","",ROUND(千円単!S150/1000,0)) -> 258 | T150: =IF(千円単!T150="","",ROUND(千円単!T150/1000,0)) -> 19 | U150: =IF(千円単!U150="","",ROUND(千円単!U150/1000,0)) -> 746 | V150: =IF(千円単!V150="","",ROUND(千円単!V150/1000,0)) -> 218 | W150: =IF(千円単!W150="","",ROUND(千円単!W150/1000,0)) -> 528 | X150: =IF(千円単!X150="","",ROUND(千円単!X150/1000,0)) -> -354 | Y150: =IF(千円単!Y150="","",ROUND(千円単!Y150/1000,0)) -> 141
A151: 2016 | B151: 46 | C151: 17 | D151: 1 | E151: 150 | F151: 公共 | G151: 202118 | H151: 長野県 | I151: 中野市 | J151: =IF(千円単!J151="","",ROUND(千円単!J151/1000,0)) -> 1502 | K151: =IF(千円単!K151="","",ROUND(千円単!K151/1000,0)) -> 438 | L151: =IF(千円単!L151="","",ROUND(千円単!L151/1000,0)) -> 543 | M151: =IF(千円単!M151="","",ROUND(千円単!M151/1000,0)) -> 1194 | N151: =IF(千円単!N151="","",ROUND(千円単!N151/1000,0)) -> 142 | O151: =IF(千円単!O151="","",ROUND(千円単!O151/1000,0)) -> 777 | P151: =IF(千円単!P151="","",ROUND(千円単!P151/1000,0)) -> 38 | Q151: =IF(千円単!Q151="","",ROUND(千円単!Q151/1000,0)) -> 308 | R151: =IF(千円単!R151="","",ROUND(千円単!R151/1000,0)) -> 460 | S151: =IF(千円単!S151="","",ROUND(千円単!S151/1000,0)) -> 236 | T151: =IF(千円単!T151="","",ROUND(千円単!T151/1000,0)) -> 0 | U151: =IF(千円単!U151="","",ROUND(千円単!U151/1000,0)) -> 867 | V151: =IF(千円単!V151="","",ROUND(千円単!V151/1000,0)) -> 218 | W151: =IF(千円単!W151="","",ROUND(千円単!W151/1000,0)) -> 648 | X151: =IF(千円単!X151="","",ROUND(千円単!X151/1000,0)) -> -407 | Y151: =IF(千円単!Y151="","",ROUND(千円単!Y151/1000,0)) -> 308
A152: 2016 | B152: 46 | C152: 17 | D152: 1 | E152: 151 | F152: 公共 | G152: 202126 | H152: 長野県 | I152: 大町市 | J152: =IF(千円単!J152="","",ROUND(千円単!J152/1000,0)) -> 829 | K152: =IF(千円単!K152="","",ROUND(千円単!K152/1000,0)) -> 262 | L152: =IF(千円単!L152="","",ROUND(千円単!L152/1000,0)) -> 402 | M152: =IF(千円単!M152="","",ROUND(千円単!M152/1000,0)) -> 778 | N152: =IF(千円単!N152="","",ROUND(千円単!N152/1000,0)) -> 145 | O152: =IF(千円単!O152="","",ROUND(千円単!O152/1000,0)) -> 419 | P152: =IF(千円単!P152="","",ROUND(千円単!P152/1000,0)) -> 42 | Q152: =IF(千円単!Q152="","",ROUND(千円単!Q152/1000,0)) -> 51 | R152: =IF(千円単!R152="","",ROUND(千円単!R152/1000,0)) -> 483 | S152: =IF(千円単!S152="","",ROUND(千円単!S152/1000,0)) -> 221 | T152: =IF(千円単!T152="","",ROUND(千円単!T152/1000,0)) -> 85 | U152: =IF(千円単!U152="","",ROUND(千円単!U152/1000,0)) -> 692 | V152: =IF(千円単!V152="","",ROUND(千円単!V152/1000,0)) -> 290 | W152: =IF(千円単!W152="","",ROUND(千円単!W152/1000,0)) -> 402 | X152: =IF(千円単!X152="","",ROUND(千円単!X152/1000,0)) -> -209 | Y152: =IF(千円単!Y152="","",ROUND(千円単!Y152/1000,0)) -> 51
A153: 2016 | B153: 46 | C153: 17 | D153: 1 | E153: 152 | F153: 公共 | G153: 202142 | H153: 長野県 | I153: 茅野市 | J153: =IF(千円単!J153="","",ROUND(千円単!J153/1000,0)) -> 2008 | K153: =IF(千円単!K153="","",ROUND(千円単!K153/1000,0)) -> 1082 | L153: =IF(千円単!L153="","",ROUND(千円単!L153/1000,0)) -> 708 | M153: =IF(千円単!M153="","",ROUND(千円単!M153/1000,0)) -> 1599 | N153: =IF(千円単!N153="","",ROUND(千円単!N153/1000,0)) -> 208 | O153: =IF(千円単!O153="","",ROUND(千円単!O153/1000,0)) -> 881 | P153: =IF(千円単!P153="","",ROUND(千円単!P153/1000,0)) -> 60 | Q153: =IF(千円単!Q153="","",ROUND(千円単!Q153/1000,0)) -> 409 | R153: =IF(千円単!R153="","",ROUND(千円単!R153/1000,0)) -> 264 | S153: =IF(千円単!S153="","",ROUND(千円単!S153/1000,0)) -> 101 | T153: =IF(千円単!T153="","",ROUND(千円単!T153/1000,0)) -> 125 | U153: =IF(千円単!U153="","",ROUND(千円単!U153/1000,0)) -> 1329 | V153: =IF(千円単!V153="","",ROUND(千円単!V153/1000,0)) -> 187 | W153: =IF(千円単!W153="","",ROUND(千円単!W153/1000,0)) -> 1143 | X153: =IF(千円単!X153="","",ROUND(千円単!X153/1000,0)) -> -1065 | Y153: =IF(千円単!Y153="","",ROUND(千円単!Y153/1000,0)) -> 409
A154: 2016 | B154: 46 | C154: 17 | D154: 1 | E154: 153 | F154: 公共 | G154: 202151 | H154: 長野県 | I154: 塩尻市 | J154: =IF(千円単!J154="","",ROUND(千円単!J154/1000,0)) -> 2199 | K154: =IF(千円単!K154="","",ROUND(千円単!K154/1000,0)) -> 1215 | L154: =IF(千円単!L154="","",ROUND(千円単!L154/1000,0)) -> 325 | M154: =IF(千円単!M154="","",ROUND(千円単!M154/1000,0)) -> 2096 | N154: =IF(千円単!N154="","",ROUND(千円単!N154/1000,0)) -> 323 | O154: =IF(千円単!O154="","",ROUND(千円単!O154/1000,0)) -> 1219 | P154: =IF(千円単!P154="","",ROUND(千円単!P154/1000,0)) -> 63 | Q154: =IF(千円単!Q154="","",ROUND(千円単!Q154/1000,0)) -> 104 | R154: =IF(千円単!R154="","",ROUND(千円単!R154/1000,0)) -> 802 | S154: =IF(千円単!S154="","",ROUND(千円単!S154/1000,0)) -> 350 | T154: =IF(千円単!T154="","",ROUND(千円単!T154/1000,0)) -> 274 | U154: =IF(千円単!U154="","",ROUND(千円単!U154/1000,0)) -> 1554 | V154: =IF(千円単!V154="","",ROUND(千円単!V154/1000,0)) -> 421 | W154: =IF(千円単!W154="","",ROUND(千円単!W154/1000,0)) -> 1132 | X154: =IF(千円単!X154="","",ROUND(千円単!X154/1000,0)) -> -752 | Y154: =IF(千円単!Y154="","",ROUND(千円単!Y154/1000,0)) -> 104
A155: 2016 | B155: 46 | C155: 17 | D155: 1 | E155: 154 | F155: 公共 | G155: 202177 | H155: 長野県 | I155: 佐久市 | J155: =IF(千円単!J155="","",ROUND(千円単!J155/1000,0)) -> 2715 | K155: =IF(千円単!K155="","",ROUND(千円単!K155/1000,0)) -> 1524 | L155: =IF(千円単!L155="","",ROUND(千円単!L155/1000,0)) -> 588 | M155: =IF(千円単!M155="","",ROUND(千円単!M155/1000,0)) -> 2204 | N155: =IF(千円単!N155="","",ROUND(千円単!N155/1000,0)) -> 372 | O155: =IF(千円単!O155="","",ROUND(千円単!O155/1000,0)) -> 1128 | P155: =IF(千円単!P155="","",ROUND(千円単!P155/1000,0)) -> 74 | Q155: =IF(千円単!Q155="","",ROUND(千円単!Q155/1000,0)) -> 511 | R155: =IF(千円単!R155="","",ROUND(千円単!R155/1000,0)) -> 1422 | S155: =IF(千円単!S155="","",ROUND(千円単!S155/1000,0)) -> 595 | T155: =IF(千円単!T155="","",ROUND(千円単!T155/1000,0)) -> 0 | U155: =IF(千円単!U155="","",ROUND(千円単!U155/1000,0)) -> 2278 | V155: =IF(千円単!V155="","",ROUND(千円単!V155/1000,0)) -> 1094 | W155: =IF(千円単!W155="","",ROUND(千円単!W155/1000,0)) -> 1184 | X155: =IF(千円単!X155="","",ROUND(千円単!X155/1000,0)) -> -857 | Y155: =IF(千円単!Y155="","",ROUND(千円単!Y155/1000,0)) -> 511
A156: 2016 | B156: 46 | C156: 17 | D156: 1 | E156: 155 | F156: 公共 | G156: 202185 | H156: 長野県 | I156: 千曲市 | J156: =IF(千円単!J156="","",ROUND(千円単!J156/1000,0)) -> 2740 | K156: =IF(千円単!K156="","",ROUND(千円単!K156/1000,0)) -> 905 | L156: =IF(千円単!L156="","",ROUND(千円単!L156/1000,0)) -> 1312 | M156: =IF(千円単!M156="","",ROUND(千円単!M156/1000,0)) -> 2328 | N156: =IF(千円単!N156="","",ROUND(千円単!N156/1000,0)) -> 577 | O156: =IF(千円単!O156="","",ROUND(千円単!O156/1000,0)) -> 1267 | P156: =IF(千円単!P156="","",ROUND(千円単!P156/1000,0)) -> 32 | Q156: =IF(千円単!Q156="","",ROUND(千円単!Q156/1000,0)) -> 412 | R156: =IF(千円単!R156="","",ROUND(千円単!R156/1000,0)) -> 902 | S156: =IF(千円単!S156="","",ROUND(千円単!S156/1000,0)) -> 500 | T156: =IF(千円単!T156="","",ROUND(千円単!T156/1000,0)) -> 163 | U156: =IF(千円単!U156="","",ROUND(千円単!U156/1000,0)) -> 2058 | V156: =IF(千円単!V156="","",ROUND(千円単!V156/1000,0)) -> 601 | W156: =IF(千円単!W156="","",ROUND(千円単!W156/1000,0)) -> 1457 | X156: =IF(千円単!X156="","",ROUND(千円単!X156/1000,0)) -> -1156 | Y156: =IF(千円単!Y156="","",ROUND(千円単!Y156/1000,0)) -> 412
A157: 2016 | B157: 46 | C157: 17 | D157: 1 | E157: 156 | F157: 公共 | G157: 202193 | H157: 長野県 | I157: 東御市 | J157: =IF(千円単!J157="","",ROUND(千円単!J157/1000,0)) -> 931 | K157: =IF(千円単!K157="","",ROUND(千円単!K157/1000,0)) -> 297 | L157: =IF(千円単!L157="","",ROUND(千円単!L157/1000,0)) -> 452 | M157: =IF(千円単!M157="","",ROUND(千円単!M157/1000,0)) -> 821 | N157: =IF(千円単!N157="","",ROUND(千円単!N157/1000,0)) -> 173 | O157: =IF(千円単!O157="","",ROUND(千円単!O157/1000,0)) -> 446 | P157: =IF(千円単!P157="","",ROUND(千円単!P157/1000,0)) -> 56 | Q157: =IF(千円単!Q157="","",ROUND(千円単!Q157/1000,0)) -> 110 | R157: =IF(千円単!R157="","",ROUND(千円単!R157/1000,0)) -> 499 | S157: =IF(千円単!S157="","",ROUND(千円単!S157/1000,0)) -> 45 | T157: =IF(千円単!T157="","",ROUND(千円単!T157/1000,0)) -> 10 | U157: =IF(千円単!U157="","",ROUND(千円単!U157/1000,0)) -> 831 | V157: =IF(千円単!V157="","",ROUND(千円単!V157/1000,0)) -> 205 | W157: =IF(千円単!W157="","",ROUND(千円単!W157/1000,0)) -> 626 | X157: =IF(千円単!X157="","",ROUND(千円単!X157/1000,0)) -> -332 | Y157: =IF(千円単!Y157="","",ROUND(千円単!Y157/1000,0)) -> 110
A158: 2016 | B158: 46 | C158: 17 | D158: 1 | E158: 157 | F158: 公共 | G158: 202207 | H158: 長野県 | I158: 安曇野市 | J158: =IF(千円単!J158="","",ROUND(千円単!J158/1000,0)) -> 3630 | K158: =IF(千円単!K158="","",ROUND(千円単!K158/1000,0)) -> 1407 | L158: =IF(千円単!L158="","",ROUND(千円単!L158/1000,0)) -> 1388 | M158: =IF(千円単!M158="","",ROUND(千円単!M158/1000,0)) -> 3253 | N158: =IF(千円単!N158="","",ROUND(千円単!N158/1000,0)) -> 627 | O158: =IF(千円単!O158="","",ROUND(千円単!O158/1000,0)) -> 1645 | P158: =IF(千円単!P158="","",ROUND(千円単!P158/1000,0)) -> 89 | Q158: =IF(千円単!Q158="","",ROUND(千円単!Q158/1000,0)) -> 376 | R158: =IF(千円単!R158="","",ROUND(千円単!R158/1000,0)) -> 755 | S158: =IF(千円単!S158="","",ROUND(千円単!S158/1000,0)) -> 99 | T158: =IF(千円単!T158="","",ROUND(千円単!T158/1000,0)) -> 537 | U158: =IF(千円単!U158="","",ROUND(千円単!U158/1000,0)) -> 1980 | V158: =IF(千円単!V158="","",ROUND(千円単!V158/1000,0)) -> 130 | W158: =IF(千円単!W158="","",ROUND(千円単!W158/1000,0)) -> 1849 | X158: =IF(千円単!X158="","",ROUND(千円単!X158/1000,0)) -> -1225 | Y158: =IF(千円単!Y158="","",ROUND(千円単!Y158/1000,0)) -> 376
A159: 2016 | B159: 46 | C159: 17 | D159: 1 | E159: 158 | F159: 公共 | G159: 203611 | H159: 長野県 | I159: 下諏訪町 | J159: =IF(千円単!J159="","",ROUND(千円単!J159/1000,0)) -> 558 | K159: =IF(千円単!K159="","",ROUND(千円単!K159/1000,0)) -> 444 | L159: =IF(千円単!L159="","",ROUND(千円単!L159/1000,0)) -> 19 | M159: =IF(千円単!M159="","",ROUND(千円単!M159/1000,0)) -> 547 | N159: =IF(千円単!N159="","",ROUND(千円単!N159/1000,0)) -> 49 | O159: =IF(千円単!O159="","",ROUND(千円単!O159/1000,0)) -> 269 | P159: =IF(千円単!P159="","",ROUND(千円単!P159/1000,0)) -> 22 | Q159: =IF(千円単!Q159="","",ROUND(千円単!Q159/1000,0)) -> 11 | R159: =IF(千円単!R159="","",ROUND(千円単!R159/1000,0)) -> 203 | S159: =IF(千円単!S159="","",ROUND(千円単!S159/1000,0)) -> 73 | T159: =IF(千円単!T159="","",ROUND(千円単!T159/1000,0)) -> 81 | U159: =IF(千円単!U159="","",ROUND(千円単!U159/1000,0)) -> 381 | V159: =IF(千円単!V159="","",ROUND(千円単!V159/1000,0)) -> 138 | W159: =IF(千円単!W159="","",ROUND(千円単!W159/1000,0)) -> 244 | X159: =IF(千円単!X159="","",ROUND(千円単!X159/1000,0)) -> -178 | Y159: =IF(千円単!Y159="","",ROUND(千円単!Y159/1000,0)) -> 11
A160: 2016 | B160: 46 | C160: 17 | D160: 1 | E160: 159 | F160: 公共 | G160: 203629 | H160: 長野県 | I160: 富士見町 | J160: =IF(千円単!J160="","",ROUND(千円単!J160/1000,0)) -> 1131 | K160: =IF(千円単!K160="","",ROUND(千円単!K160/1000,0)) -> 518 | L160: =IF(千円単!L160="","",ROUND(千円単!L160/1000,0)) -> 423 | M160: =IF(千円単!M160="","",ROUND(千円単!M160/1000,0)) -> 888 | N160: =IF(千円単!N160="","",ROUND(千円単!N160/1000,0)) -> 167 | O160: =IF(千円単!O160="","",ROUND(千円単!O160/1000,0)) -> 455 | P160: =IF(千円単!P160="","",ROUND(千円単!P160/1000,0)) -> 24 | Q160: =IF(千円単!Q160="","",ROUND(千円単!Q160/1000,0)) -> 244 | R160: =IF(千円単!R160="","",ROUND(千円単!R160/1000,0)) -> 142 | S160: =IF(千円単!S160="","",ROUND(千円単!S160/1000,0)) -> 0 | T160: =IF(千円単!T160="","",ROUND(千円単!T160/1000,0)) -> 0 | U160: =IF(千円単!U160="","",ROUND(千円単!U160/1000,0)) -> 723 | V160: =IF(千円単!V160="","",ROUND(千円単!V160/1000,0)) -> 144 | W160: =IF(千円単!W160="","",ROUND(千円単!W160/1000,0)) -> 573 | X160: =IF(千円単!X160="","",ROUND(千円単!X160/1000,0)) -> -581 | Y160: =IF(千円単!Y160="","",ROUND(千円単!Y160/1000,0)) -> 244
A161: 2016 | B161: 46 | C161: 17 | D161: 1 | E161: 160 | F161: 公共 | G161: 203831 | H161: 長野県 | I161: 箕輪町 | J161: =IF(千円単!J161="","",ROUND(千円単!J161/1000,0)) -> 510 | K161: =IF(千円単!K161="","",ROUND(千円単!K161/1000,0)) -> 197 | L161: =IF(千円単!L161="","",ROUND(千円単!L161/1000,0)) -> 172 | M161: =IF(千円単!M161="","",ROUND(千円単!M161/1000,0)) -> 509 | N161: =IF(千円単!N161="","",ROUND(千円単!N161/1000,0)) -> 112 | O161: =IF(千円単!O161="","",ROUND(千円単!O161/1000,0)) -> 305 | P161: =IF(千円単!P161="","",ROUND(千円単!P161/1000,0)) -> 11 | Q161: =IF(千円単!Q161="","",ROUND(千円単!Q161/1000,0)) -> 1 | R161: =IF(千円単!R161="","",ROUND(千円単!R161/1000,0)) -> 292 | S161: =IF(千円単!S161="","",ROUND(千円単!S161/1000,0)) -> 138 | T161: =IF(千円単!T161="","",ROUND(千円単!T161/1000,0)) -> 148 | U161: =IF(千円単!U161="","",ROUND(千円単!U161/1000,0)) -> 455 | V161: =IF(千円単!V161="","",ROUND(千円単!V161/1000,0)) -> 63 | W161: =IF(千円単!W161="","",ROUND(千円単!W161/1000,0)) -> 392 | X161: =IF(千円単!X161="","",ROUND(千円単!X161/1000,0)) -> -164 | Y161: =IF(千円単!Y161="","",ROUND(千円単!Y161/1000,0)) -> 1
A162: 2016 | B162: 46 | C162: 17 | D162: 1 | E162: 161 | F162: 公共 | G162: 203858 | H162: 長野県 | I162: 南箕輪村 | J162: =IF(千円単!J162="","",ROUND(千円単!J162/1000,0)) -> 625 | K162: =IF(千円単!K162="","",ROUND(千円単!K162/1000,0)) -> 245 | L162: =IF(千円単!L162="","",ROUND(千円単!L162/1000,0)) -> 185 | M162: =IF(千円単!M162="","",ROUND(千円単!M162/1000,0)) -> 626 | N162: =IF(千円単!N162="","",ROUND(千円単!N162/1000,0)) -> 134 | O162: =IF(千円単!O162="","",ROUND(千円単!O162/1000,0)) -> 387 | P162: =IF(千円単!P162="","",ROUND(千円単!P162/1000,0)) -> 19 | Q162: =IF(千円単!Q162="","",ROUND(千円単!Q162/1000,0)) -> -1 | R162: =IF(千円単!R162="","",ROUND(千円単!R162/1000,0)) -> 296 | S162: =IF(千円単!S162="","",ROUND(千円単!S162/1000,0)) -> 49 | T162: =IF(千円単!T162="","",ROUND(千円単!T162/1000,0)) -> 123 | U162: =IF(千円単!U162="","",ROUND(千円単!U162/1000,0)) -> 495 | V162: =IF(千円単!V162="","",ROUND(千円単!V162/1000,0)) -> 126 | W162: =IF(千円単!W162="","",ROUND(千円単!W162/1000,0)) -> 368 | X162: =IF(千円単!X162="","",ROUND(千円単!X162/1000,0)) -> -199 | Y162: =IF(千円単!Y162="","",ROUND(千円単!Y162/1000,0)) -> -1
A163: 2016 | B163: 46 | C163: 17 | D163: 1 | E163: 162 | F163: 公共 | G163: 203882 | H163: 長野県 | I163: 宮田村 | J163: =IF(千円単!J163="","",ROUND(千円単!J163/1000,0)) -> 181 | K163: =IF(千円単!K163="","",ROUND(千円単!K163/1000,0)) -> 116 | L163: =IF(千円単!L163="","",ROUND(千円単!L163/1000,0)) -> 9 | M163: =IF(千円単!M163="","",ROUND(千円単!M163/1000,0)) -> 221 | N163: =IF(千円単!N163="","",ROUND(千円単!N163/1000,0)) -> 38 | O163: =IF(千円単!O163="","",ROUND(千円単!O163/1000,0)) -> 112 | P163: =IF(千円単!P163="","",ROUND(千円単!P163/1000,0)) -> 9 | Q163: =IF(千円単!Q163="","",ROUND(千円単!Q163/1000,0)) -> -39 | R163: =IF(千円単!R163="","",ROUND(千円単!R163/1000,0)) -> 196 | S163: =IF(千円単!S163="","",ROUND(千円単!S163/1000,0)) -> 0 | T163: =IF(千円単!T163="","",ROUND(千円単!T163/1000,0)) -> 0 | U163: =IF(千円単!U163="","",ROUND(千円単!U163/1000,0)) -> 206 | V163: =IF(千円単!V163="","",ROUND(千円単!V163/1000,0)) -> 30 | W163: =IF(千円単!W163="","",ROUND(千円単!W163/1000,0)) -> 176 | X163: =IF(千円単!X163="","",ROUND(千円単!X163/1000,0)) -> -11 | Y163: =IF(千円単!Y163="","",ROUND(千円単!Y163/1000,0)) -> -39
A164: 2016 | B164: 46 | C164: 17 | D164: 1 | E164: 163 | F164: 公共 | G164: 212016 | H164: 岐阜県 | I164: 岐阜市 | J164: =IF(千円単!J164="","",ROUND(千円単!J164/1000,0)) -> 8495 | K164: =IF(千円単!K164="","",ROUND(千円単!K164/1000,0)) -> 5367 | L164: =IF(千円単!L164="","",ROUND(千円単!L164/1000,0)) -> 1507 | M164: =IF(千円単!M164="","",ROUND(千円単!M164/1000,0)) -> 7896 | N164: =IF(千円単!N164="","",ROUND(千円単!N164/1000,0)) -> 1270 | O164: =IF(千円単!O164="","",ROUND(千円単!O164/1000,0)) -> 3601 | P164: =IF(千円単!P164="","",ROUND(千円単!P164/1000,0)) -> 731 | Q164: =IF(千円単!Q164="","",ROUND(千円単!Q164/1000,0)) -> 599 | R164: =IF(千円単!R164="","",ROUND(千円単!R164/1000,0)) -> 4761 | S164: =IF(千円単!S164="","",ROUND(千円単!S164/1000,0)) -> 3099 | T164: =IF(千円単!T164="","",ROUND(千円単!T164/1000,0)) -> 384 | U164: =IF(千円単!U164="","",ROUND(千円単!U164/1000,0)) -> 7297 | V164: =IF(千円単!V164="","",ROUND(千円単!V164/1000,0)) -> 3403 | W164: =IF(千円単!W164="","",ROUND(千円単!W164/1000,0)) -> 3895 | X164: =IF(千円単!X164="","",ROUND(千円単!X164/1000,0)) -> -2537 | Y164: =IF(千円単!Y164="","",ROUND(千円単!Y164/1000,0)) -> 599
A165: 2016 | B165: 46 | C165: 17 | D165: 1 | E165: 164 | F165: 公共 | G165: 212083 | H165: 岐阜県 | I165: 瑞浪市 | J165: =IF(千円単!J165="","",ROUND(千円単!J165/1000,0)) -> 963 | K165: =IF(千円単!K165="","",ROUND(千円単!K165/1000,0)) -> 479 | L165: =IF(千円単!L165="","",ROUND(千円単!L165/1000,0)) -> 186 | M165: =IF(千円単!M165="","",ROUND(千円単!M165/1000,0)) -> 962 | N165: =IF(千円単!N165="","",ROUND(千円単!N165/1000,0)) -> 129 | O165: =IF(千円単!O165="","",ROUND(千円単!O165/1000,0)) -> 569 | P165: =IF(千円単!P165="","",ROUND(千円単!P165/1000,0)) -> 87 | Q165: =IF(千円単!Q165="","",ROUND(千円単!Q165/1000,0)) -> 1 | R165: =IF(千円単!R165="","",ROUND(千円単!R165/1000,0)) -> 539 | S165: =IF(千円単!S165="","",ROUND(千円単!S165/1000,0)) -> 64 | T165: =IF(千円単!T165="","",ROUND(千円単!T165/1000,0)) -> 12 | U165: =IF(千円単!U165="","",ROUND(千円単!U165/1000,0)) -> 768 | V165: =IF(千円単!V165="","",ROUND(千円単!V165/1000,0)) -> 329 | W165: =IF(千円単!W165="","",ROUND(千円単!W165/1000,0)) -> 439 | X165: =IF(千円単!X165="","",ROUND(千円単!X165/1000,0)) -> -230 | Y165: =IF(千円単!Y165="","",ROUND(千円単!Y165/1000,0)) -> 1
A166: 2016 | B166: 46 | C166: 17 | D166: 1 | E166: 165 | F166: 公共 | G166: 212113 | H166: 岐阜県 | I166: 美濃加茂市 | J166: =IF(千円単!J166="","",ROUND(千円単!J166/1000,0)) -> 1894 | K166: =IF(千円単!K166="","",ROUND(千円単!K166/1000,0)) -> 618 | L166: =IF(千円単!L166="","",ROUND(千円単!L166/1000,0)) -> 768 | M166: =IF(千円単!M166="","",ROUND(千円単!M166/1000,0)) -> 1788 | N166: =IF(千円単!N166="","",ROUND(千円単!N166/1000,0)) -> 350 | O166: =IF(千円単!O166="","",ROUND(千円単!O166/1000,0)) -> 924 | P166: =IF(千円単!P166="","",ROUND(千円単!P166/1000,0)) -> 31 | Q166: =IF(千円単!Q166="","",ROUND(千円単!Q166/1000,0)) -> 106 | R166: =IF(千円単!R166="","",ROUND(千円単!R166/1000,0)) -> 839 | S166: =IF(千円単!S166="","",ROUND(千円単!S166/1000,0)) -> 585 | T166: =IF(千円単!T166="","",ROUND(千円単!T166/1000,0)) -> 150 | U166: =IF(千円単!U166="","",ROUND(千円単!U166/1000,0)) -> 1344 | V166: =IF(千円単!V166="","",ROUND(千円単!V166/1000,0)) -> 177 | W166: =IF(千円単!W166="","",ROUND(千円単!W166/1000,0)) -> 1167 | X166: =IF(千円単!X166="","",ROUND(千円単!X166/1000,0)) -> -505 | Y166: =IF(千円単!Y166="","",ROUND(千円単!Y166/1000,0)) -> 106
A167: 2016 | B167: 46 | C167: 17 | D167: 1 | E167: 166 | F167: 公共 | G167: 221007 | H167: 静岡県 | I167: 静岡市 | J167: =IF(千円単!J167="","",ROUND(千円単!J167/1000,0)) -> 21487 | K167: =IF(千円単!K167="","",ROUND(千円単!K167/1000,0)) -> 9634 | L167: =IF(千円単!L167="","",ROUND(千円単!L167/1000,0)) -> 7199 | M167: =IF(千円単!M167="","",ROUND(千円単!M167/1000,0)) -> 19617 | N167: =IF(千円単!N167="","",ROUND(千円単!N167/1000,0)) -> 3116 | O167: =IF(千円単!O167="","",ROUND(千円単!O167/1000,0)) -> 10909 | P167: =IF(千円単!P167="","",ROUND(千円単!P167/1000,0)) -> 995 | Q167: =IF(千円単!Q167="","",ROUND(千円単!Q167/1000,0)) -> 1869 | R167: =IF(千円単!R167="","",ROUND(千円単!R167/1000,0)) -> 14523 | S167: =IF(千円単!S167="","",ROUND(千円単!S167/1000,0)) -> 10028 | T167: =IF(千円単!T167="","",ROUND(千円単!T167/1000,0)) -> 0 | U167: =IF(千円単!U167="","",ROUND(千円単!U167/1000,0)) -> 22361 | V167: =IF(千円単!V167="","",ROUND(千円単!V167/1000,0)) -> 10912 | W167: =IF(千円単!W167="","",ROUND(千円単!W167/1000,0)) -> 11335 | X167: =IF(千円単!X167="","",ROUND(千円単!X167/1000,0)) -> -7838 | Y167: =IF(千円単!Y167="","",ROUND(千円単!Y167/1000,0)) -> 1869
A168: 2016 | B168: 46 | C168: 17 | D168: 1 | E168: 167 | F168: 公共 | G168: 221309 | H168: 静岡県 | I168: 浜松市 | J168: =IF(千円単!J168="","",ROUND(千円単!J168/1000,0)) -> 19372 | K168: =IF(千円単!K168="","",ROUND(千円単!K168/1000,0)) -> 9179 | L168: =IF(千円単!L168="","",ROUND(千円単!L168/1000,0)) -> 4907 | M168: =IF(千円単!M168="","",ROUND(千円単!M168/1000,0)) -> 21487 | N168: =IF(千円単!N168="","",ROUND(千円単!N168/1000,0)) -> 2906 | O168: =IF(千円単!O168="","",ROUND(千円単!O168/1000,0)) -> 11401 | P168: =IF(千円単!P168="","",ROUND(千円単!P168/1000,0)) -> 396 | Q168: =IF(千円単!Q168="","",ROUND(千円単!Q168/1000,0)) -> -2115 | R168: =IF(千円単!R168="","",ROUND(千円単!R168/1000,0)) -> 9779 | S168: =IF(千円単!S168="","",ROUND(千円単!S168/1000,0)) -> 5467 | T168: =IF(千円単!T168="","",ROUND(千円単!T168/1000,0)) -> 0 | U168: =IF(千円単!U168="","",ROUND(千円単!U168/1000,0)) -> 16727 | V168: =IF(千円単!V168="","",ROUND(千円単!V168/1000,0)) -> 6820 | W168: =IF(千円単!W168="","",ROUND(千円単!W168/1000,0)) -> 9907 | X168: =IF(千円単!X168="","",ROUND(千円単!X168/1000,0)) -> -6949 | Y168: =IF(千円単!Y168="","",ROUND(千円単!Y168/1000,0)) -> -2115
A169: 2016 | B169: 46 | C169: 17 | D169: 1 | E169: 168 | F169: 公共 | G169: 222038 | H169: 静岡県 | I169: 沼津市 | J169: =IF(千円単!J169="","",ROUND(千円単!J169/1000,0)) -> 4315 | K169: =IF(千円単!K169="","",ROUND(千円単!K169/1000,0)) -> 1367 | L169: =IF(千円単!L169="","",ROUND(千円単!L169/1000,0)) -> 2112 | M169: =IF(千円単!M169="","",ROUND(千円単!M169/1000,0)) -> 4147 | N169: =IF(千円単!N169="","",ROUND(千円単!N169/1000,0)) -> 695 | O169: =IF(千円単!O169="","",ROUND(千円単!O169/1000,0)) -> 2171 | P169: =IF(千円単!P169="","",ROUND(千円単!P169/1000,0)) -> 175 | Q169: =IF(千円単!Q169="","",ROUND(千円単!Q169/1000,0)) -> 167 | R169: =IF(千円単!R169="","",ROUND(千円単!R169/1000,0)) -> 1855 | S169: =IF(千円単!S169="","",ROUND(千円単!S169/1000,0)) -> 1389 | T169: =IF(千円単!T169="","",ROUND(千円単!T169/1000,0)) -> 2 | U169: =IF(千円単!U169="","",ROUND(千円単!U169/1000,0)) -> 3309 | V169: =IF(千円単!V169="","",ROUND(千円単!V169/1000,0)) -> 1297 | W169: =IF(千円単!W169="","",ROUND(千円単!W169/1000,0)) -> 2012 | X169: =IF(千円単!X169="","",ROUND(千円単!X169/1000,0)) -> -1454 | Y169: =IF(千円単!Y169="","",ROUND(千円単!Y169/1000,0)) -> 167
A170: 2016 | B170: 46 | C170: 17 | D170: 1 | E170: 169 | F170: 公共 | G170: 222054 | H170: 静岡県 | I170: 熱海市 | J170: =IF(千円単!J170="","",ROUND(千円単!J170/1000,0)) -> 1944 | K170: =IF(千円単!K170="","",ROUND(千円単!K170/1000,0)) -> 1147 | L170: =IF(千円単!L170="","",ROUND(千円単!L170/1000,0)) -> 323 | M170: =IF(千円単!M170="","",ROUND(千円単!M170/1000,0)) -> 1718 | N170: =IF(千円単!N170="","",ROUND(千円単!N170/1000,0)) -> 203 | O170: =IF(千円単!O170="","",ROUND(千円単!O170/1000,0)) -> 1039 | P170: =IF(千円単!P170="","",ROUND(千円単!P170/1000,0)) -> 52 | Q170: =IF(千円単!Q170="","",ROUND(千円単!Q170/1000,0)) -> 226 | R170: =IF(千円単!R170="","",ROUND(千円単!R170/1000,0)) -> 594 | S170: =IF(千円単!S170="","",ROUND(千円単!S170/1000,0)) -> 129 | T170: =IF(千円単!T170="","",ROUND(千円単!T170/1000,0)) -> 0 | U170: =IF(千円単!U170="","",ROUND(千円単!U170/1000,0)) -> 921 | V170: =IF(千円単!V170="","",ROUND(千円単!V170/1000,0)) -> 313 | W170: =IF(千円単!W170="","",ROUND(千円単!W170/1000,0)) -> 608 | X170: =IF(千円単!X170="","",ROUND(千円単!X170/1000,0)) -> -327 | Y170: =IF(千円単!Y170="","",ROUND(千円単!Y170/1000,0)) -> 226
A171: 2016 | B171: 46 | C171: 17 | D171: 1 | E171: 170 | F171: 公共 | G171: 222101 | H171: 静岡県 | I171: 富士市 | J171: =IF(千円単!J171="","",ROUND(千円単!J171/1000,0)) -> 6301 | K171: =IF(千円単!K171="","",ROUND(千円単!K171/1000,0)) -> 2763 | L171: =IF(千円単!L171="","",ROUND(千円単!L171/1000,0)) -> 2333 | M171: =IF(千円単!M171="","",ROUND(千円単!M171/1000,0)) -> 5010 | N171: =IF(千円単!N171="","",ROUND(千円単!N171/1000,0)) -> 811 | O171: =IF(千円単!O171="","",ROUND(千円単!O171/1000,0)) -> 2705 | P171: =IF(千円単!P171="","",ROUND(千円単!P171/1000,0)) -> 221 | Q171: =IF(千円単!Q171="","",ROUND(千円単!Q171/1000,0)) -> 1291 | R171: =IF(千円単!R171="","",ROUND(千円単!R171/1000,0)) -> 2036 | S171: =IF(千円単!S171="","",ROUND(千円単!S171/1000,0)) -> 1122 | T171: =IF(千円単!T171="","",ROUND(千円単!T171/1000,0)) -> 117 | U171: =IF(千円単!U171="","",ROUND(千円単!U171/1000,0)) -> 4831 | V171: =IF(千円単!V171="","",ROUND(千円単!V171/1000,0)) -> 2233 | W171: =IF(千円単!W171="","",ROUND(千円単!W171/1000,0)) -> 2598 | X171: =IF(千円単!X171="","",ROUND(千円単!X171/1000,0)) -> -2796 | Y171: =IF(千円単!Y171="","",ROUND(千円単!Y171/1000,0)) -> 1291
A172: 2016 | B172: 46 | C172: 17 | D172: 1 | E172: 171 | F172: 公共 | G172: 231002 | H172: 愛知県 | I172: 名古屋市 | J172: =IF(千円単!J172="","",ROUND(千円単!J172/1000,0)) -> 72431 | K172: =IF(千円単!K172="","",ROUND(千円単!K172/1000,0)) -> 31159 | L172: =IF(千円単!L172="","",ROUND(千円単!L172/1000,0)) -> 34917 | M172: =IF(千円単!M172="","",ROUND(千円単!M172/1000,0)) -> 70216 | N172: =IF(千円単!N172="","",ROUND(千円単!N172/1000,0)) -> 8267 | O172: =IF(千円単!O172="","",ROUND(千円単!O172/1000,0)) -> 36099 | P172: =IF(千円単!P172="","",ROUND(千円単!P172/1000,0)) -> 6736 | Q172: =IF(千円単!Q172="","",ROUND(千円単!Q172/1000,0)) -> 2215 | R172: =IF(千円単!R172="","",ROUND(千円単!R172/1000,0)) -> 25162 | S172: =IF(千円単!S172="","",ROUND(千円単!S172/1000,0)) -> 16000 | T172: =IF(千円単!T172="","",ROUND(千円単!T172/1000,0)) -> 0 | U172: =IF(千円単!U172="","",ROUND(千円単!U172/1000,0)) -> 65043 | V172: =IF(千円単!V172="","",ROUND(千円単!V172/1000,0)) -> 35759 | W172: =IF(千円単!W172="","",ROUND(千円単!W172/1000,0)) -> 29270 | X172: =IF(千円単!X172="","",ROUND(千円単!X172/1000,0)) -> -39881 | Y172: =IF(千円単!Y172="","",ROUND(千円単!Y172/1000,0)) -> 2215
A173: 2016 | B173: 46 | C173: 17 | D173: 1 | E173: 172 | F173: 公共 | G173: 232017 | H173: 愛知県 | I173: 豊橋市 | J173: =IF(千円単!J173="","",ROUND(千円単!J173/1000,0)) -> 7295 | K173: =IF(千円単!K173="","",ROUND(千円単!K173/1000,0)) -> 3629 | L173: =IF(千円単!L173="","",ROUND(千円単!L173/1000,0)) -> 2102 | M173: =IF(千円単!M173="","",ROUND(千円単!M173/1000,0)) -> 7265 | N173: =IF(千円単!N173="","",ROUND(千円単!N173/1000,0)) -> 805 | O173: =IF(千円単!O173="","",ROUND(千円単!O173/1000,0)) -> 3757 | P173: =IF(千円単!P173="","",ROUND(千円単!P173/1000,0)) -> 460 | Q173: =IF(千円単!Q173="","",ROUND(千円単!Q173/1000,0)) -> 30 | R173: =IF(千円単!R173="","",ROUND(千円単!R173/1000,0)) -> 4778 | S173: =IF(千円単!S173="","",ROUND(千円単!S173/1000,0)) -> 1475 | T173: =IF(千円単!T173="","",ROUND(千円単!T173/1000,0)) -> 203 | U173: =IF(千円単!U173="","",ROUND(千円単!U173/1000,0)) -> 7307 | V173: =IF(千円単!V173="","",ROUND(千円単!V173/1000,0)) -> 4463 | W173: =IF(千円単!W173="","",ROUND(千円単!W173/1000,0)) -> 2844 | X173: =IF(千円単!X173="","",ROUND(千円単!X173/1000,0)) -> -2529 | Y173: =IF(千円単!Y173="","",ROUND(千円単!Y173/1000,0)) -> 30
A174: 2016 | B174: 46 | C174: 17 | D174: 1 | E174: 173 | F174: 公共 | G174: 232025 | H174: 愛知県 | I174: 岡崎市 | J174: =IF(千円単!J174="","",ROUND(千円単!J174/1000,0)) -> 8470 | K174: =IF(千円単!K174="","",ROUND(千円単!K174/1000,0)) -> 3745 | L174: =IF(千円単!L174="","",ROUND(千円単!L174/1000,0)) -> 3460 | M174: =IF(千円単!M174="","",ROUND(千円単!M174/1000,0)) -> 8085 | N174: =IF(千円単!N174="","",ROUND(千円単!N174/1000,0)) -> 1421 | O174: =IF(千円単!O174="","",ROUND(千円単!O174/1000,0)) -> 4057 | P174: =IF(千円単!P174="","",ROUND(千円単!P174/1000,0)) -> 254 | Q174: =IF(千円単!Q174="","",ROUND(千円単!Q174/1000,0)) -> 385 | R174: =IF(千円単!R174="","",ROUND(千円単!R174/1000,0)) -> 3557 | S174: =IF(千円単!S174="","",ROUND(千円単!S174/1000,0)) -> 1693 | T174: =IF(千円単!T174="","",ROUND(千円単!T174/1000,0)) -> 133 | U174: =IF(千円単!U174="","",ROUND(千円単!U174/1000,0)) -> 7077 | V174: =IF(千円単!V174="","",ROUND(千円単!V174/1000,0)) -> 3504 | W174: =IF(千円単!W174="","",ROUND(千円単!W174/1000,0)) -> 3568 | X174: =IF(千円単!X174="","",ROUND(千円単!X174/1000,0)) -> -3520 | Y174: =IF(千円単!Y174="","",ROUND(千円単!Y174/1000,0)) -> 385
A175: 2016 | B175: 46 | C175: 17 | D175: 1 | E175: 174 | F175: 公共 | G175: 232033 | H175: 愛知県 | I175: 一宮市 | J175: =IF(千円単!J175="","",ROUND(千円単!J175/1000,0)) -> 8060 | K175: =IF(千円単!K175="","",ROUND(千円単!K175/1000,0)) -> 2361 | L175: =IF(千円単!L175="","",ROUND(千円単!L175/1000,0)) -> 4593 | M175: =IF(千円単!M175="","",ROUND(千円単!M175/1000,0)) -> 8021 | N175: =IF(千円単!N175="","",ROUND(千円単!N175/1000,0)) -> 1548 | O175: =IF(千円単!O175="","",ROUND(千円単!O175/1000,0)) -> 3857 | P175: =IF(千円単!P175="","",ROUND(千円単!P175/1000,0)) -> 416 | Q175: =IF(千円単!Q175="","",ROUND(千円単!Q175/1000,0)) -> 39 | R175: =IF(千円単!R175="","",ROUND(千円単!R175/1000,0)) -> 4952 | S175: =IF(千円単!S175="","",ROUND(千円単!S175/1000,0)) -> 3211 | T175: =IF(千円単!T175="","",ROUND(千円単!T175/1000,0)) -> 304 | U175: =IF(千円単!U175="","",ROUND(千円単!U175/1000,0)) -> 8332 | V175: =IF(千円単!V175="","",ROUND(千円単!V175/1000,0)) -> 4094 | W175: =IF(千円単!W175="","",ROUND(千円単!W175/1000,0)) -> 4103 | X175: =IF(千円単!X175="","",ROUND(千円単!X175/1000,0)) -> -3381 | Y175: =IF(千円単!Y175="","",ROUND(千円単!Y175/1000,0)) -> 39
A176: 2016 | B176: 46 | C176: 17 | D176: 1 | E176: 175 | F176: 公共 | G176: 232050 | H176: 愛知県 | I176: 半田市 | J176: =IF(千円単!J176="","",ROUND(千円単!J176/1000,0)) -> 3964 | K176: =IF(千円単!K176="","",ROUND(千円単!K176/1000,0)) -> 1136 | L176: =IF(千円単!L176="","",ROUND(千円単!L176/1000,0)) -> 1675 | M176: =IF(千円単!M176="","",ROUND(千円単!M176/1000,0)) -> 3905 | N176: =IF(千円単!N176="","",ROUND(千円単!N176/1000,0)) -> 651 | O176: =IF(千円単!O176="","",ROUND(千円単!O176/1000,0)) -> 2236 | P176: =IF(千円単!P176="","",ROUND(千円単!P176/1000,0)) -> 75 | Q176: =IF(千円単!Q176="","",ROUND(千円単!Q176/1000,0)) -> 59 | R176: =IF(千円単!R176="","",ROUND(千円単!R176/1000,0)) -> 2031 | S176: =IF(千円単!S176="","",ROUND(千円単!S176/1000,0)) -> 488 | T176: =IF(千円単!T176="","",ROUND(千円単!T176/1000,0)) -> 239 | U176: =IF(千円単!U176="","",ROUND(千円単!U176/1000,0)) -> 3163 | V176: =IF(千円単!V176="","",ROUND(千円単!V176/1000,0)) -> 795 | W176: =IF(千円単!W176="","",ROUND(千円単!W176/1000,0)) -> 2368 | X176: =IF(千円単!X176="","",ROUND(千円単!X176/1000,0)) -> -1132 | Y176: =IF(千円単!Y176="","",ROUND(千円単!Y176/1000,0)) -> 59
A177: 2016 | B177: 46 | C177: 17 | D177: 1 | E177: 176 | F177: 公共 | G177: 232068 | H177: 愛知県 | I177: 春日井市 | J177: =IF(千円単!J177="","",ROUND(千円単!J177/1000,0)) -> 6892 | K177: =IF(千円単!K177="","",ROUND(千円単!K177/1000,0)) -> 2107 | L177: =IF(千円単!L177="","",ROUND(千円単!L177/1000,0)) -> 2583 | M177: =IF(千円単!M177="","",ROUND(千円単!M177/1000,0)) -> 6892 | N177: =IF(千円単!N177="","",ROUND(千円単!N177/1000,0)) -> 1054 | O177: =IF(千円単!O177="","",ROUND(千円単!O177/1000,0)) -> 4194 | P177: =IF(千円単!P177="","",ROUND(千円単!P177/1000,0)) -> 222 | Q177: =IF(千円単!Q177="","",ROUND(千円単!Q177/1000,0)) -> 0 | R177: =IF(千円単!R177="","",ROUND(千円単!R177/1000,0)) -> 4055 | S177: =IF(千円単!S177="","",ROUND(千円単!S177/1000,0)) -> 2599 | T177: =IF(千円単!T177="","",ROUND(千円単!T177/1000,0)) -> 0 | U177: =IF(千円単!U177="","",ROUND(千円単!U177/1000,0)) -> 6220 | V177: =IF(千円単!V177="","",ROUND(千円単!V177/1000,0)) -> 2286 | W177: =IF(千円単!W177="","",ROUND(千円単!W177/1000,0)) -> 3934 | X177: =IF(千円単!X177="","",ROUND(千円単!X177/1000,0)) -> -2165 | Y177: =IF(千円単!Y177="","",ROUND(千円単!Y177/1000,0)) -> 0
A178: 2016 | B178: 46 | C178: 17 | D178: 1 | E178: 177 | F178: 公共 | G178: 232084 | H178: 愛知県 | I178: 津島市 | J178: =IF(千円単!J178="","",ROUND(千円単!J178/1000,0)) -> 341 | K178: =IF(千円単!K178="","",ROUND(千円単!K178/1000,0)) -> 163 | L178: =IF(千円単!L178="","",ROUND(千円単!L178/1000,0)) -> 122 | M178: =IF(千円単!M178="","",ROUND(千円単!M178/1000,0)) -> 294 | N178: =IF(千円単!N178="","",ROUND(千円単!N178/1000,0)) -> 17 | O178: =IF(千円単!O178="","",ROUND(千円単!O178/1000,0)) -> 125 | P178: =IF(千円単!P178="","",ROUND(千円単!P178/1000,0)) -> 22 | Q178: =IF(千円単!Q178="","",ROUND(千円単!Q178/1000,0)) -> 47 | R178: =IF(千円単!R178="","",ROUND(千円単!R178/1000,0)) -> 118 | S178: =IF(千円単!S178="","",ROUND(千円単!S178/1000,0)) -> 74 | T178: =IF(千円単!T178="","",ROUND(千円単!T178/1000,0)) -> 21 | U178: =IF(千円単!U178="","",ROUND(千円単!U178/1000,0)) -> 269 | V178: =IF(千円単!V178="","",ROUND(千円単!V178/1000,0)) -> 90 | W178: =IF(千円単!W178="","",ROUND(千円単!W178/1000,0)) -> 179 | X178: =IF(千円単!X178="","",ROUND(千円単!X178/1000,0)) -> -151 | Y178: =IF(千円単!Y178="","",ROUND(千円単!Y178/1000,0)) -> 47
A179: 2016 | B179: 46 | C179: 17 | D179: 1 | E179: 178 | F179: 公共 | G179: 232114 | H179: 愛知県 | I179: 豊田市 | J179: =IF(千円単!J179="","",ROUND(千円単!J179/1000,0)) -> 7374 | K179: =IF(千円単!K179="","",ROUND(千円単!K179/1000,0)) -> 3473 | L179: =IF(千円単!L179="","",ROUND(千円単!L179/1000,0)) -> 2340 | M179: =IF(千円単!M179="","",ROUND(千円単!M179/1000,0)) -> 7020 | N179: =IF(千円単!N179="","",ROUND(千円単!N179/1000,0)) -> 941 | O179: =IF(千円単!O179="","",ROUND(千円単!O179/1000,0)) -> 4237 | P179: =IF(千円単!P179="","",ROUND(千円単!P179/1000,0)) -> 188 | Q179: =IF(千円単!Q179="","",ROUND(千円単!Q179/1000,0)) -> 353 | R179: =IF(千円単!R179="","",ROUND(千円単!R179/1000,0)) -> 3025 | S179: =IF(千円単!S179="","",ROUND(千円単!S179/1000,0)) -> 1015 | T179: =IF(千円単!T179="","",ROUND(千円単!T179/1000,0)) -> 139 | U179: =IF(千円単!U179="","",ROUND(千円単!U179/1000,0)) -> 5808 | V179: =IF(千円単!V179="","",ROUND(千円単!V179/1000,0)) -> 3224 | W179: =IF(千円単!W179="","",ROUND(千円単!W179/1000,0)) -> 2584 | X179: =IF(千円単!X179="","",ROUND(千円単!X179/1000,0)) -> -2783 | Y179: =IF(千円単!Y179="","",ROUND(千円単!Y179/1000,0)) -> 353
A180: 2016 | B180: 46 | C180: 17 | D180: 1 | E180: 179 | F180: 公共 | G180: 232203 | H180: 愛知県 | I180: 稲沢市 | J180: =IF(千円単!J180="","",ROUND(千円単!J180/1000,0)) -> 1632 | K180: =IF(千円単!K180="","",ROUND(千円単!K180/1000,0)) -> 664 | L180: =IF(千円単!L180="","",ROUND(千円単!L180/1000,0)) -> 755 | M180: =IF(千円単!M180="","",ROUND(千円単!M180/1000,0)) -> 1654 | N180: =IF(千円単!N180="","",ROUND(千円単!N180/1000,0)) -> 331 | O180: =IF(千円単!O180="","",ROUND(千円単!O180/1000,0)) -> 866 | P180: =IF(千円単!P180="","",ROUND(千円単!P180/1000,0)) -> 43 | Q180: =IF(千円単!Q180="","",ROUND(千円単!Q180/1000,0)) -> -22 | R180: =IF(千円単!R180="","",ROUND(千円単!R180/1000,0)) -> 946 | S180: =IF(千円単!S180="","",ROUND(千円単!S180/1000,0)) -> 308 | T180: =IF(千円単!T180="","",ROUND(千円単!T180/1000,0)) -> 54 | U180: =IF(千円単!U180="","",ROUND(千円単!U180/1000,0)) -> 1606 | V180: =IF(千円単!V180="","",ROUND(千円単!V180/1000,0)) -> 758 | W180: =IF(千円単!W180="","",ROUND(千円単!W180/1000,0)) -> 848 | X180: =IF(千円単!X180="","",ROUND(千円単!X180/1000,0)) -> -660 | Y180: =IF(千円単!Y180="","",ROUND(千円単!Y180/1000,0)) -> -22
A181: 2016 | B181: 46 | C181: 17 | D181: 1 | E181: 180 | F181: 公共 | G181: 232211 | H181: 愛知県 | I181: 新城市 | J181: =IF(千円単!J181="","",ROUND(千円単!J181/1000,0)) -> 505 | K181: =IF(千円単!K181="","",ROUND(千円単!K181/1000,0)) -> 221 | L181: =IF(千円単!L181="","",ROUND(千円単!L181/1000,0)) -> 142 | M181: =IF(千円単!M181="","",ROUND(千円単!M181/1000,0)) -> 531 | N181: =IF(千円単!N181="","",ROUND(千円単!N181/1000,0)) -> 94 | O181: =IF(千円単!O181="","",ROUND(千円単!O181/1000,0)) -> 306 | P181: =IF(千円単!P181="","",ROUND(千円単!P181/1000,0)) -> 26 | Q181: =IF(千円単!Q181="","",ROUND(千円単!Q181/1000,0)) -> -26 | R181: =IF(千円単!R181="","",ROUND(千円単!R181/1000,0)) -> 408 | S181: =IF(千円単!S181="","",ROUND(千円単!S181/1000,0)) -> 231 | T181: =IF(千円単!T181="","",ROUND(千円単!T181/1000,0)) -> 0 | U181: =IF(千円単!U181="","",ROUND(千円単!U181/1000,0)) -> 546 | V181: =IF(千円単!V181="","",ROUND(千円単!V181/1000,0)) -> 203 | W181: =IF(千円単!W181="","",ROUND(千円単!W181/1000,0)) -> 344 | X181: =IF(千円単!X181="","",ROUND(千円単!X181/1000,0)) -> -138 | Y181: =IF(千円単!Y181="","",ROUND(千円単!Y181/1000,0)) -> -26
A182: 2016 | B182: 46 | C182: 17 | D182: 1 | E182: 181 | F182: 公共 | G182: 232246 | H182: 愛知県 | I182: 知多市 | J182: =IF(千円単!J182="","",ROUND(千円単!J182/1000,0)) -> 1447 | K182: =IF(千円単!K182="","",ROUND(千円単!K182/1000,0)) -> 735 | L182: =IF(千円単!L182="","",ROUND(千円単!L182/1000,0)) -> 228 | M182: =IF(千円単!M182="","",ROUND(千円単!M182/1000,0)) -> 1625 | N182: =IF(千円単!N182="","",ROUND(千円単!N182/1000,0)) -> 118 | O182: =IF(千円単!O182="","",ROUND(千円単!O182/1000,0)) -> 841 | P182: =IF(千円単!P182="","",ROUND(千円単!P182/1000,0)) -> 62 | Q182: =IF(千円単!Q182="","",ROUND(千円単!Q182/1000,0)) -> -178 | R182: =IF(千円単!R182="","",ROUND(千円単!R182/1000,0)) -> 951 | S182: =IF(千円単!S182="","",ROUND(千円単!S182/1000,0)) -> 255 | T182: =IF(千円単!T182="","",ROUND(千円単!T182/1000,0)) -> 415 | U182: =IF(千円単!U182="","",ROUND(千円単!U182/1000,0)) -> 1219 | V182: =IF(千円単!V182="","",ROUND(千円単!V182/1000,0)) -> 703 | W182: =IF(千円単!W182="","",ROUND(千円単!W182/1000,0)) -> 516 | X182: =IF(千円単!X182="","",ROUND(千円単!X182/1000,0)) -> -268 | Y182: =IF(千円単!Y182="","",ROUND(千円単!Y182/1000,0)) -> -178
A183: 2016 | B183: 46 | C183: 17 | D183: 1 | E183: 182 | F183: 公共 | G183: 242012 | H183: 三重県 | I183: 津市 | J183: =IF(千円単!J183="","",ROUND(千円単!J183/1000,0)) -> 7356 | K183: =IF(千円単!K183="","",ROUND(千円単!K183/1000,0)) -> 1340 | L183: =IF(千円単!L183="","",ROUND(千円単!L183/1000,0)) -> 3245 | M183: =IF(千円単!M183="","",ROUND(千円単!M183/1000,0)) -> 7591 | N183: =IF(千円単!N183="","",ROUND(千円単!N183/1000,0)) -> 1130 | O183: =IF(千円単!O183="","",ROUND(千円単!O183/1000,0)) -> 4525 | P183: =IF(千円単!P183="","",ROUND(千円単!P183/1000,0)) -> 312 | Q183: =IF(千円単!Q183="","",ROUND(千円単!Q183/1000,0)) -> -235 | R183: =IF(千円単!R183="","",ROUND(千円単!R183/1000,0)) -> 5824 | S183: =IF(千円単!S183="","",ROUND(千円単!S183/1000,0)) -> 2962 | T183: =IF(千円単!T183="","",ROUND(千円単!T183/1000,0)) -> 1982 | U183: =IF(千円単!U183="","",ROUND(千円単!U183/1000,0)) -> 7441 | V183: =IF(千円単!V183="","",ROUND(千円単!V183/1000,0)) -> 3221 | W183: =IF(千円単!W183="","",ROUND(千円単!W183/1000,0)) -> 4219 | X183: =IF(千円単!X183="","",ROUND(千円単!X183/1000,0)) -> -1617 | Y183: =IF(千円単!Y183="","",ROUND(千円単!Y183/1000,0)) -> -235
A184: 2016 | B184: 46 | C184: 17 | D184: 1 | E184: 183 | F184: 公共 | G184: 242021 | H184: 三重県 | I184: 四日市市 | J184: =IF(千円単!J184="","",ROUND(千円単!J184/1000,0)) -> 14559 | K184: =IF(千円単!K184="","",ROUND(千円単!K184/1000,0)) -> 3695 | L184: =IF(千円単!L184="","",ROUND(千円単!L184/1000,0)) -> 6282 | M184: =IF(千円単!M184="","",ROUND(千円単!M184/1000,0)) -> 12980 | N184: =IF(千円単!N184="","",ROUND(千円単!N184/1000,0)) -> 1743 | O184: =IF(千円単!O184="","",ROUND(千円単!O184/1000,0)) -> 7943 | P184: =IF(千円単!P184="","",ROUND(千円単!P184/1000,0)) -> 360 | Q184: =IF(千円単!Q184="","",ROUND(千円単!Q184/1000,0)) -> 1580 | R184: =IF(千円単!R184="","",ROUND(千円単!R184/1000,0)) -> 5641 | S184: =IF(千円単!S184="","",ROUND(千円単!S184/1000,0)) -> 3020 | T184: =IF(千円単!T184="","",ROUND(千円単!T184/1000,0)) -> 592 | U184: =IF(千円単!U184="","",ROUND(千円単!U184/1000,0)) -> 11442 | V184: =IF(千円単!V184="","",ROUND(千円単!V184/1000,0)) -> 6048 | W184: =IF(千円単!W184="","",ROUND(千円単!W184/1000,0)) -> 5394 | X184: =IF(千円単!X184="","",ROUND(千円単!X184/1000,0)) -> -5801 | Y184: =IF(千円単!Y184="","",ROUND(千円単!Y184/1000,0)) -> 1580
A185: 2016 | B185: 46 | C185: 17 | D185: 1 | E185: 184 | F185: 公共 | G185: 242039 | H185: 三重県 | I185: 伊勢市 | J185: =IF(千円単!J185="","",ROUND(千円単!J185/1000,0)) -> 3260 | K185: =IF(千円単!K185="","",ROUND(千円単!K185/1000,0)) -> 834 | L185: =IF(千円単!L185="","",ROUND(千円単!L185/1000,0)) -> 1457 | M185: =IF(千円単!M185="","",ROUND(千円単!M185/1000,0)) -> 3042 | N185: =IF(千円単!N185="","",ROUND(千円単!N185/1000,0)) -> 533 | O185: =IF(千円単!O185="","",ROUND(千円単!O185/1000,0)) -> 1511 | P185: =IF(千円単!P185="","",ROUND(千円単!P185/1000,0)) -> 172 | Q185: =IF(千円単!Q185="","",ROUND(千円単!Q185/1000,0)) -> 218 | R185: =IF(千円単!R185="","",ROUND(千円単!R185/1000,0)) -> 3096 | S185: =IF(千円単!S185="","",ROUND(千円単!S185/1000,0)) -> 1683 | T185: =IF(千円単!T185="","",ROUND(千円単!T185/1000,0)) -> 188 | U185: =IF(千円単!U185="","",ROUND(千円単!U185/1000,0)) -> 4239 | V185: =IF(千円単!V185="","",ROUND(千円単!V185/1000,0)) -> 3163 | W185: =IF(千円単!W185="","",ROUND(千円単!W185/1000,0)) -> 1075 | X185: =IF(千円単!X185="","",ROUND(千円単!X185/1000,0)) -> -1143 | Y185: =IF(千円単!Y185="","",ROUND(千円単!Y185/1000,0)) -> 218
A186: 2016 | B186: 46 | C186: 17 | D186: 1 | E186: 185 | F186: 公共 | G186: 242047 | H186: 三重県 | I186: 松阪市 | J186: =IF(千円単!J186="","",ROUND(千円単!J186/1000,0)) -> 3893 | K186: =IF(千円単!K186="","",ROUND(千円単!K186/1000,0)) -> 1306 | L186: =IF(千円単!L186="","",ROUND(千円単!L186/1000,0)) -> 1727 | M186: =IF(千円単!M186="","",ROUND(千円単!M186/1000,0)) -> 3948 | N186: =IF(千円単!N186="","",ROUND(千円単!N186/1000,0)) -> 858 | O186: =IF(千円単!O186="","",ROUND(千円単!O186/1000,0)) -> 2094 | P186: =IF(千円単!P186="","",ROUND(千円単!P186/1000,0)) -> 83 | Q186: =IF(千円単!Q186="","",ROUND(千円単!Q186/1000,0)) -> -55 | R186: =IF(千円単!R186="","",ROUND(千円単!R186/1000,0)) -> 3579 | S186: =IF(千円単!S186="","",ROUND(千円単!S186/1000,0)) -> 1454 | T186: =IF(千円単!T186="","",ROUND(千円単!T186/1000,0)) -> 938 | U186: =IF(千円単!U186="","",ROUND(千円単!U186/1000,0)) -> 4935 | V186: =IF(千円単!V186="","",ROUND(千円単!V186/1000,0)) -> 2740 | W186: =IF(千円単!W186="","",ROUND(千円単!W186/1000,0)) -> 2194 | X186: =IF(千円単!X186="","",ROUND(千円単!X186/1000,0)) -> -1357 | Y186: =IF(千円単!Y186="","",ROUND(千円単!Y186/1000,0)) -> -55
A187: 2016 | B187: 46 | C187: 17 | D187: 1 | E187: 186 | F187: 公共 | G187: 242055 | H187: 三重県 | I187: 桑名市 | J187: =IF(千円単!J187="","",ROUND(千円単!J187/1000,0)) -> 5080 | K187: =IF(千円単!K187="","",ROUND(千円単!K187/1000,0)) -> 1762 | L187: =IF(千円単!L187="","",ROUND(千円単!L187/1000,0)) -> 1355 | M187: =IF(千円単!M187="","",ROUND(千円単!M187/1000,0)) -> 4814 | N187: =IF(千円単!N187="","",ROUND(千円単!N187/1000,0)) -> 672 | O187: =IF(千円単!O187="","",ROUND(千円単!O187/1000,0)) -> 2876 | P187: =IF(千円単!P187="","",ROUND(千円単!P187/1000,0)) -> 110 | Q187: =IF(千円単!Q187="","",ROUND(千円単!Q187/1000,0)) -> 265 | R187: =IF(千円単!R187="","",ROUND(千円単!R187/1000,0)) -> 1991 | S187: =IF(千円単!S187="","",ROUND(千円単!S187/1000,0)) -> 1039 | T187: =IF(千円単!T187="","",ROUND(千円単!T187/1000,0)) -> 498 | U187: =IF(千円単!U187="","",ROUND(千円単!U187/1000,0)) -> 3180 | V187: =IF(千円単!V187="","",ROUND(千円単!V187/1000,0)) -> 784 | W187: =IF(千円単!W187="","",ROUND(千円単!W187/1000,0)) -> 2396 | X187: =IF(千円単!X187="","",ROUND(千円単!X187/1000,0)) -> -1189 | Y187: =IF(千円単!Y187="","",ROUND(千円単!Y187/1000,0)) -> 265
A188: 2016 | B188: 46 | C188: 17 | D188: 1 | E188: 187 | F188: 公共 | G188: 242071 | H188: 三重県 | I188: 鈴鹿市 | J188: =IF(千円単!J188="","",ROUND(千円単!J188/1000,0)) -> 4552 | K188: =IF(千円単!K188="","",ROUND(千円単!K188/1000,0)) -> 1361 | L188: =IF(千円単!L188="","",ROUND(千円単!L188/1000,0)) -> 1908 | M188: =IF(千円単!M188="","",ROUND(千円単!M188/1000,0)) -> 4220 | N188: =IF(千円単!N188="","",ROUND(千円単!N188/1000,0)) -> 816 | O188: =IF(千円単!O188="","",ROUND(千円単!O188/1000,0)) -> 2201 | P188: =IF(千円単!P188="","",ROUND(千円単!P188/1000,0)) -> 177 | Q188: =IF(千円単!Q188="","",ROUND(千円単!Q188/1000,0)) -> 332 | R188: =IF(千円単!R188="","",ROUND(千円単!R188/1000,0)) -> 4639 | S188: =IF(千円単!S188="","",ROUND(千円単!S188/1000,0)) -> 2514 | T188: =IF(千円単!T188="","",ROUND(千円単!T188/1000,0)) -> 495 | U188: =IF(千円単!U188="","",ROUND(千円単!U188/1000,0)) -> 6227 | V188: =IF(千円単!V188="","",ROUND(千円単!V188/1000,0)) -> 4011 | W188: =IF(千円単!W188="","",ROUND(千円単!W188/1000,0)) -> 2216 | X188: =IF(千円単!X188="","",ROUND(千円単!X188/1000,0)) -> -1588 | Y188: =IF(千円単!Y188="","",ROUND(千円単!Y188/1000,0)) -> 332
A189: 2016 | B189: 46 | C189: 17 | D189: 1 | E189: 188 | F189: 公共 | G189: 242101 | H189: 三重県 | I189: 亀山市 | J189: =IF(千円単!J189="","",ROUND(千円単!J189/1000,0)) -> 894 | K189: =IF(千円単!K189="","",ROUND(千円単!K189/1000,0)) -> 391 | L189: =IF(千円単!L189="","",ROUND(千円単!L189/1000,0)) -> 277 | M189: =IF(千円単!M189="","",ROUND(千円単!M189/1000,0)) -> 881 | N189: =IF(千円単!N189="","",ROUND(千円単!N189/1000,0)) -> 147 | O189: =IF(千円単!O189="","",ROUND(千円単!O189/1000,0)) -> 397 | P189: =IF(千円単!P189="","",ROUND(千円単!P189/1000,0)) -> 42 | Q189: =IF(千円単!Q189="","",ROUND(千円単!Q189/1000,0)) -> 13 | R189: =IF(千円単!R189="","",ROUND(千円単!R189/1000,0)) -> 1110 | S189: =IF(千円単!S189="","",ROUND(千円単!S189/1000,0)) -> 516 | T189: =IF(千円単!T189="","",ROUND(千円単!T189/1000,0)) -> 112 | U189: =IF(千円単!U189="","",ROUND(千円単!U189/1000,0)) -> 1339 | V189: =IF(千円単!V189="","",ROUND(千円単!V189/1000,0)) -> 990 | W189: =IF(千円単!W189="","",ROUND(千円単!W189/1000,0)) -> 349 | X189: =IF(千円単!X189="","",ROUND(千円単!X189/1000,0)) -> -229 | Y189: =IF(千円単!Y189="","",ROUND(千円単!Y189/1000,0)) -> 13
A190: 2016 | B190: 46 | C190: 17 | D190: 1 | E190: 189 | F190: 公共 | G190: 243418 | H190: 三重県 | I190: 菰野町 | J190: =IF(千円単!J190="","",ROUND(千円単!J190/1000,0)) -> 410 | K190: =IF(千円単!K190="","",ROUND(千円単!K190/1000,0)) -> 247 | L190: =IF(千円単!L190="","",ROUND(千円単!L190/1000,0)) -> 62 | M190: =IF(千円単!M190="","",ROUND(千円単!M190/1000,0)) -> 415 | N190: =IF(千円単!N190="","",ROUND(千円単!N190/1000,0)) -> 74 | O190: =IF(千円単!O190="","",ROUND(千円単!O190/1000,0)) -> 208 | P190: =IF(千円単!P190="","",ROUND(千円単!P190/1000,0)) -> 25 | Q190: =IF(千円単!Q190="","",ROUND(千円単!Q190/1000,0)) -> -5 | R190: =IF(千円単!R190="","",ROUND(千円単!R190/1000,0)) -> 217 | S190: =IF(千円単!S190="","",ROUND(千円単!S190/1000,0)) -> 96 | T190: =IF(千円単!T190="","",ROUND(千円単!T190/1000,0)) -> 107 | U190: =IF(千円単!U190="","",ROUND(千円単!U190/1000,0)) -> 328 | V190: =IF(千円単!V190="","",ROUND(千円単!V190/1000,0)) -> 54 | W190: =IF(千円単!W190="","",ROUND(千円単!W190/1000,0)) -> 274 | X190: =IF(千円単!X190="","",ROUND(千円単!X190/1000,0)) -> -110 | Y190: =IF(千円単!Y190="","",ROUND(千円単!Y190/1000,0)) -> -5
A191: 2016 | B191: 46 | C191: 17 | D191: 1 | E191: 190 | F191: 公共 | G191: 244619 | H191: 三重県 | I191: 玉城町 | J191: =IF(千円単!J191="","",ROUND(千円単!J191/1000,0)) -> 357 | K191: =IF(千円単!K191="","",ROUND(千円単!K191/1000,0)) -> 96 | L191: =IF(千円単!L191="","",ROUND(千円単!L191/1000,0)) -> 130 | M191: =IF(千円単!M191="","",ROUND(千円単!M191/1000,0)) -> 482 | N191: =IF(千円単!N191="","",ROUND(千円単!N191/1000,0)) -> 98 | O191: =IF(千円単!O191="","",ROUND(千円単!O191/1000,0)) -> 262 | P191: =IF(千円単!P191="","",ROUND(千円単!P191/1000,0)) -> 0 | Q191: =IF(千円単!Q191="","",ROUND(千円単!Q191/1000,0)) -> -124 | R191: =IF(千円単!R191="","",ROUND(千円単!R191/1000,0)) -> 616 | S191: =IF(千円単!S191="","",ROUND(千円単!S191/1000,0)) -> 225 | T191: =IF(千円単!T191="","",ROUND(千円単!T191/1000,0)) -> 222 | U191: =IF(千円単!U191="","",ROUND(千円単!U191/1000,0)) -> 616 | V191: =IF(千円単!V191="","",ROUND(千円単!V191/1000,0)) -> 423 | W191: =IF(千円単!W191="","",ROUND(千円単!W191/1000,0)) -> 193 | X191: =IF(千円単!X191="","",ROUND(千円単!X191/1000,0)) -> 0 | Y191: =IF(千円単!Y191="","",ROUND(千円単!Y191/1000,0)) -> -124
A192: 2016 | B192: 46 | C192: 17 | D192: 1 | E192: 191 | F192: 公共 | G192: 252018 | H192: 滋賀県 | I192: 大津市 | J192: =IF(千円単!J192="","",ROUND(千円単!J192/1000,0)) -> 10600 | K192: =IF(千円単!K192="","",ROUND(千円単!K192/1000,0)) -> 6858 | L192: =IF(千円単!L192="","",ROUND(千円単!L192/1000,0)) -> 1430 | M192: =IF(千円単!M192="","",ROUND(千円単!M192/1000,0)) -> 8963 | N192: =IF(千円単!N192="","",ROUND(千円単!N192/1000,0)) -> 1136 | O192: =IF(千円単!O192="","",ROUND(千円単!O192/1000,0)) -> 4603 | P192: =IF(千円単!P192="","",ROUND(千円単!P192/1000,0)) -> 476 | Q192: =IF(千円単!Q192="","",ROUND(千円単!Q192/1000,0)) -> 1638 | R192: =IF(千円単!R192="","",ROUND(千円単!R192/1000,0)) -> 546 | S192: =IF(千円単!S192="","",ROUND(千円単!S192/1000,0)) -> 115 | T192: =IF(千円単!T192="","",ROUND(千円単!T192/1000,0)) -> 0 | U192: =IF(千円単!U192="","",ROUND(千円単!U192/1000,0)) -> 5529 | V192: =IF(千円単!V192="","",ROUND(千円単!V192/1000,0)) -> 1301 | W192: =IF(千円単!W192="","",ROUND(千円単!W192/1000,0)) -> 4215 | X192: =IF(千円単!X192="","",ROUND(千円単!X192/1000,0)) -> -4982 | Y192: =IF(千円単!Y192="","",ROUND(千円単!Y192/1000,0)) -> 1638
A193: 2016 | B193: 46 | C193: 17 | D193: 1 | E193: 192 | F193: 公共 | G193: 252069 | H193: 滋賀県 | I193: 草津市 | J193: =IF(千円単!J193="","",ROUND(千円単!J193/1000,0)) -> 2973 | K193: =IF(千円単!K193="","",ROUND(千円単!K193/1000,0)) -> 1735 | L193: =IF(千円単!L193="","",ROUND(千円単!L193/1000,0)) -> 477 | M193: =IF(千円単!M193="","",ROUND(千円単!M193/1000,0)) -> 2567 | N193: =IF(千円単!N193="","",ROUND(千円単!N193/1000,0)) -> 341 | O193: =IF(千円単!O193="","",ROUND(千円単!O193/1000,0)) -> 1272 | P193: =IF(千円単!P193="","",ROUND(千円単!P193/1000,0)) -> 97 | Q193: =IF(千円単!Q193="","",ROUND(千円単!Q193/1000,0)) -> 406 | R193: =IF(千円単!R193="","",ROUND(千円単!R193/1000,0)) -> 1104 | S193: =IF(千円単!S193="","",ROUND(千円単!S193/1000,0)) -> 334 | T193: =IF(千円単!T193="","",ROUND(千円単!T193/1000,0)) -> 601 | U193: =IF(千円単!U193="","",ROUND(千円単!U193/1000,0)) -> 2176 | V193: =IF(千円単!V193="","",ROUND(千円単!V193/1000,0)) -> 536 | W193: =IF(千円単!W193="","",ROUND(千円単!W193/1000,0)) -> 1641 | X193: =IF(千円単!X193="","",ROUND(千円単!X193/1000,0)) -> -1072 | Y193: =IF(千円単!Y193="","",ROUND(千円単!Y193/1000,0)) -> 406
A194: 2016 | B194: 46 | C194: 17 | D194: 1 | E194: 193 | F194: 公共 | G194: 252077 | H194: 滋賀県 | I194: 守山市 | J194: =IF(千円単!J194="","",ROUND(千円単!J194/1000,0)) -> 1966 | K194: =IF(千円単!K194="","",ROUND(千円単!K194/1000,0)) -> 1206 | L194: =IF(千円単!L194="","",ROUND(千円単!L194/1000,0)) -> 343 | M194: =IF(千円単!M194="","",ROUND(千円単!M194/1000,0)) -> 1954 | N194: =IF(千円単!N194="","",ROUND(千円単!N194/1000,0)) -> 301 | O194: =IF(千円単!O194="","",ROUND(千円単!O194/1000,0)) -> 1048 | P194: =IF(千円単!P194="","",ROUND(千円単!P194/1000,0)) -> 29 | Q194: =IF(千円単!Q194="","",ROUND(千円単!Q194/1000,0)) -> 12 | R194: =IF(千円単!R194="","",ROUND(千円単!R194/1000,0)) -> 846 | S194: =IF(千円単!S194="","",ROUND(千円単!S194/1000,0)) -> 519 | T194: =IF(千円単!T194="","",ROUND(千円単!T194/1000,0)) -> 0 | U194: =IF(千円単!U194="","",ROUND(千円単!U194/1000,0)) -> 1591 | V194: =IF(千円単!V194="","",ROUND(千円単!V194/1000,0)) -> 524 | W194: =IF(千円単!W194="","",ROUND(千円単!W194/1000,0)) -> 1067 | X194: =IF(千円単!X194="","",ROUND(千円単!X194/1000,0)) -> -745 | Y194: =IF(千円単!Y194="","",ROUND(千円単!Y194/1000,0)) -> 12
A195: 2016 | B195: 46 | C195: 17 | D195: 1 | E195: 194 | F195: 公共 | G195: 252085 | H195: 滋賀県 | I195: 栗東市 | J195: =IF(千円単!J195="","",ROUND(千円単!J195/1000,0)) -> 1760 | K195: =IF(千円単!K195="","",ROUND(千円単!K195/1000,0)) -> 988 | L195: =IF(千円単!L195="","",ROUND(千円単!L195/1000,0)) -> 353 | M195: =IF(千円単!M195="","",ROUND(千円単!M195/1000,0)) -> 1568 | N195: =IF(千円単!N195="","",ROUND(千円単!N195/1000,0)) -> 296 | O195: =IF(千円単!O195="","",ROUND(千円単!O195/1000,0)) -> 753 | P195: =IF(千円単!P195="","",ROUND(千円単!P195/1000,0)) -> 32 | Q195: =IF(千円単!Q195="","",ROUND(千円単!Q195/1000,0)) -> 192 | R195: =IF(千円単!R195="","",ROUND(千円単!R195/1000,0)) -> 793 | S195: =IF(千円単!S195="","",ROUND(千円単!S195/1000,0)) -> 599 | T195: =IF(千円単!T195="","",ROUND(千円単!T195/1000,0)) -> 0 | U195: =IF(千円単!U195="","",ROUND(千円単!U195/1000,0)) -> 1519 | V195: =IF(千円単!V195="","",ROUND(千円単!V195/1000,0)) -> 338 | W195: =IF(千円単!W195="","",ROUND(千円単!W195/1000,0)) -> 1182 | X195: =IF(千円単!X195="","",ROUND(千円単!X195/1000,0)) -> -726 | Y195: =IF(千円単!Y195="","",ROUND(千円単!Y195/1000,0)) -> 192
A196: 2016 | B196: 46 | C196: 17 | D196: 1 | E196: 195 | F196: 公共 | G196: 252093 | H196: 滋賀県 | I196: 甲賀市 | J196: =IF(千円単!J196="","",ROUND(千円単!J196/1000,0)) -> 2062 | K196: =IF(千円単!K196="","",ROUND(千円単!K196/1000,0)) -> 874 | L196: =IF(千円単!L196="","",ROUND(千円単!L196/1000,0)) -> 630 | M196: =IF(千円単!M196="","",ROUND(千円単!M196/1000,0)) -> 1965 | N196: =IF(千円単!N196="","",ROUND(千円単!N196/1000,0)) -> 329 | O196: =IF(千円単!O196="","",ROUND(千円単!O196/1000,0)) -> 1138 | P196: =IF(千円単!P196="","",ROUND(千円単!P196/1000,0)) -> 72 | Q196: =IF(千円単!Q196="","",ROUND(千円単!Q196/1000,0)) -> 96 | R196: =IF(千円単!R196="","",ROUND(千円単!R196/1000,0)) -> 1024 | S196: =IF(千円単!S196="","",ROUND(千円単!S196/1000,0)) -> 360 | T196: =IF(千円単!T196="","",ROUND(千円単!T196/1000,0)) -> 0 | U196: =IF(千円単!U196="","",ROUND(千円単!U196/1000,0)) -> 1628 | V196: =IF(千円単!V196="","",ROUND(千円単!V196/1000,0)) -> 632 | W196: =IF(千円単!W196="","",ROUND(千円単!W196/1000,0)) -> 996 | X196: =IF(千円単!X196="","",ROUND(千円単!X196/1000,0)) -> -603 | Y196: =IF(千円単!Y196="","",ROUND(千円単!Y196/1000,0)) -> 96
A197: 2016 | B197: 46 | C197: 17 | D197: 1 | E197: 196 | F197: 公共 | G197: 252115 | H197: 滋賀県 | I197: 湖南市 | J197: =IF(千円単!J197="","",ROUND(千円単!J197/1000,0)) -> 1750 | K197: =IF(千円単!K197="","",ROUND(千円単!K197/1000,0)) -> 870 | L197: =IF(千円単!L197="","",ROUND(千円単!L197/1000,0)) -> 429 | M197: =IF(千円単!M197="","",ROUND(千円単!M197/1000,0)) -> 1717 | N197: =IF(千円単!N197="","",ROUND(千円単!N197/1000,0)) -> 322 | O197: =IF(千円単!O197="","",ROUND(千円単!O197/1000,0)) -> 931 | P197: =IF(千円単!P197="","",ROUND(千円単!P197/1000,0)) -> 31 | Q197: =IF(千円単!Q197="","",ROUND(千円単!Q197/1000,0)) -> 33 | R197: =IF(千円単!R197="","",ROUND(千円単!R197/1000,0)) -> 961 | S197: =IF(千円単!S197="","",ROUND(千円単!S197/1000,0)) -> 618 | T197: =IF(千円単!T197="","",ROUND(千円単!T197/1000,0)) -> 27 | U197: =IF(千円単!U197="","",ROUND(千円単!U197/1000,0)) -> 1528 | V197: =IF(千円単!V197="","",ROUND(千円単!V197/1000,0)) -> 408 | W197: =IF(千円単!W197="","",ROUND(千円単!W197/1000,0)) -> 1120 | X197: =IF(千円単!X197="","",ROUND(千円単!X197/1000,0)) -> -567 | Y197: =IF(千円単!Y197="","",ROUND(千円単!Y197/1000,0)) -> 33
A198: 2016 | B198: 46 | C198: 17 | D198: 1 | E198: 197 | F198: 公共 | G198: 261009 | H198: 京都府 | I198: 京都市 | J198: =IF(千円単!J198="","",ROUND(千円単!J198/1000,0)) -> 50606 | K198: =IF(千円単!K198="","",ROUND(千円単!K198/1000,0)) -> 22228 | L198: =IF(千円単!L198="","",ROUND(千円単!L198/1000,0)) -> 19962 | M198: =IF(千円単!M198="","",ROUND(千円単!M198/1000,0)) -> 45916 | N198: =IF(千円単!N198="","",ROUND(千円単!N198/1000,0)) -> 5794 | O198: =IF(千円単!O198="","",ROUND(千円単!O198/1000,0)) -> 26527 | P198: =IF(千円単!P198="","",ROUND(千円単!P198/1000,0)) -> 3735 | Q198: =IF(千円単!Q198="","",ROUND(千円単!Q198/1000,0)) -> 4689 | R198: =IF(千円単!R198="","",ROUND(千円単!R198/1000,0)) -> 21044 | S198: =IF(千円単!S198="","",ROUND(千円単!S198/1000,0)) -> 14167 | T198: =IF(千円単!T198="","",ROUND(千円単!T198/1000,0)) -> 1214 | U198: =IF(千円単!U198="","",ROUND(千円単!U198/1000,0)) -> 43268 | V198: =IF(千円単!V198="","",ROUND(千円単!V198/1000,0)) -> 20525 | W198: =IF(千円単!W198="","",ROUND(千円単!W198/1000,0)) -> 22541 | X198: =IF(千円単!X198="","",ROUND(千円単!X198/1000,0)) -> -22224 | Y198: =IF(千円単!Y198="","",ROUND(千円単!Y198/1000,0)) -> 4689
A199: 2016 | B199: 46 | C199: 17 | D199: 1 | E199: 198 | F199: 公共 | G199: 262013 | H199: 京都府 | I199: 福知山市 | J199: =IF(千円単!J199="","",ROUND(千円単!J199/1000,0)) -> 2802 | K199: =IF(千円単!K199="","",ROUND(千円単!K199/1000,0)) -> 1322 | L199: =IF(千円単!L199="","",ROUND(千円単!L199/1000,0)) -> 656 | M199: =IF(千円単!M199="","",ROUND(千円単!M199/1000,0)) -> 2759 | N199: =IF(千円単!N199="","",ROUND(千円単!N199/1000,0)) -> 272 | O199: =IF(千円単!O199="","",ROUND(千円単!O199/1000,0)) -> 1634 | P199: =IF(千円単!P199="","",ROUND(千円単!P199/1000,0)) -> 52 | Q199: =IF(千円単!Q199="","",ROUND(千円単!Q199/1000,0)) -> 43 | R199: =IF(千円単!R199="","",ROUND(千円単!R199/1000,0)) -> 2355 | S199: =IF(千円単!S199="","",ROUND(千円単!S199/1000,0)) -> 1201 | T199: =IF(千円単!T199="","",ROUND(千円単!T199/1000,0)) -> 75 | U199: =IF(千円単!U199="","",ROUND(千円単!U199/1000,0)) -> 3469 | V199: =IF(千円単!V199="","",ROUND(千円単!V199/1000,0)) -> 2488 | W199: =IF(千円単!W199="","",ROUND(千円単!W199/1000,0)) -> 981 | X199: =IF(千円単!X199="","",ROUND(千円単!X199/1000,0)) -> -1115 | Y199: =IF(千円単!Y199="","",ROUND(千円単!Y199/1000,0)) -> 43
A200: 2016 | B200: 46 | C200: 17 | D200: 1 | E200: 199 | F200: 公共 | G200: 262048 | H200: 京都府 | I200: 宇治市 | J200: =IF(千円単!J200="","",ROUND(千円単!J200/1000,0)) -> 5219 | K200: =IF(千円単!K200="","",ROUND(千円単!K200/1000,0)) -> 2538 | L200: =IF(千円単!L200="","",ROUND(千円単!L200/1000,0)) -> 1009 | M200: =IF(千円単!M200="","",ROUND(千円単!M200/1000,0)) -> 5168 | N200: =IF(千円単!N200="","",ROUND(千円単!N200/1000,0)) -> 814 | O200: =IF(千円単!O200="","",ROUND(千円単!O200/1000,0)) -> 3073 | P200: =IF(千円単!P200="","",ROUND(千円単!P200/1000,0)) -> 185 | Q200: =IF(千円単!Q200="","",ROUND(千円単!Q200/1000,0)) -> 50 | R200: =IF(千円単!R200="","",ROUND(千円単!R200/1000,0)) -> 3370 | S200: =IF(千円単!S200="","",ROUND(千円単!S200/1000,0)) -> 2085 | T200: =IF(千円単!T200="","",ROUND(千円単!T200/1000,0)) -> 337 | U200: =IF(千円単!U200="","",ROUND(千円単!U200/1000,0)) -> 4893 | V200: =IF(千円単!V200="","",ROUND(千円単!V200/1000,0)) -> 2779 | W200: =IF(千円単!W200="","",ROUND(千円単!W200/1000,0)) -> 2114 | X200: =IF(千円単!X200="","",ROUND(千円単!X200/1000,0)) -> -1522 | Y200: =IF(千円単!Y200="","",ROUND(千円単!Y200/1000,0)) -> 50
... 3532 more rows

Sheet 27収支
A1: 決算年度 | B1: 業務コード | C1: 業種コード | D1: 事業コード | E1: 並び順 | F1: 事業区分 | G1: 団体コード | H1: 都道府県 | I1: 団体名 | J1: 収入 | K1: 料金収入 | L1: 繰入金 | M1: 支出 | N1: 支払利息 | O1: 減価償却費 | P1: 職員給与費 | Q1: 収支差引 | R1: 収入 | S1: 地方債 | T1: 繰入金 | U1: 支出 | V1: 建設改良費 | W1: 元金償還金 | X1: 収支差引 | Y1: 収支再差引
A2: 2015 | B2: 46 | C2: 17 | D2: 1 | E2: 1 | F2: 公共 | G2: 011002 | H2: 北海道 | I2: 札幌市 | J2: 52316 | K2: 19453 | L2: 20003 | M2: 47363 | N2: 5352 | O2: 24813 | P2: 3257 | Q2: 4953 | R2: 18088 | S2: 12103 | T2: 772 | U2: 36797 | V2: 16030 | W2: 20739 | X2: -18709 | Y2: 4953
A3: 2015 | B3: 46 | C3: 17 | D3: 1 | E3: 2 | F3: 公共 | G3: 012025 | H3: 北海道 | I3: 函館市 | J3: 7463 | K3: 4298 | L3: 1190 | M3: 6509 | N3: 1152 | O3: 3438 | P3: 403 | Q3: 954 | R3: 2867 | S3: 2057 | T3: 386 | U3: 5353 | V3: 1411 | W3: 3934 | X3: -2486 | Y3: 954
A4: 2015 | B4: 46 | C4: 17 | D4: 1 | E4: 3 | F4: 公共 | G4: 012033 | H4: 北海道 | I4: 小樽市 | J4: 4015 | K4: 1905 | L4: 1018 | M4: 3459 | N4: 342 | O4: 1975 | P4: 67 | Q4: 556 | R4: 1701 | S4: 756 | T4: 340 | U4: 3325 | V4: 882 | W4: 2442 | X4: -1623 | Y4: 556
A5: 2015 | B5: 46 | C5: 17 | D5: 1 | E5: 4 | F5: 公共 | G5: 012041 | H5: 北海道 | I5: 旭川市 | J5: 9148 | K5: 5365 | L5: 1057 | M5: 8616 | N5: 870 | O5: 4784 | P5: 378 | Q5: 532 | R5: 2833 | S5: 1987 | T5: 316 | U5: 5400 | V5: 1334 | W5: 4066 | X5: -2567 | Y5: 532
A6: 2015 | B6: 46 | C6: 17 | D6: 1 | E6: 5 | F6: 公共 | G6: 012050 | H6: 北海道 | I6: 室蘭市 | J6: 3150 | K6: 1495 | L6: 879 | M6: 2696 | N6: 294 | O6: 1389 | P6: 104 | Q6: 454 | R6: 1154 | S6: 528 | T6: 67 | U6: 1944 | V6: 1191 | W6: 749 | X6: -790 | Y6: 454
A7: 2015 | B7: 46 | C7: 17 | D7: 1 | E7: 6 | F7: 公共 | G7: 012068 | H7: 北海道 | I7: 釧路市 | J7: 6772 | K7: 3615 | L7: 1105 | M7: 5180 | N7: 631 | O7: 2849 | P7: 225 | Q7: 1592 | R7: 1485 | S7: 1012 | T7: 43 | U7: 3554 | V7: 1092 | W7: 2461 | X7: -2070 | Y7: 1592
A8: 2015 | B8: 46 | C8: 17 | D8: 1 | E8: 7 | F8: 公共 | G8: 012076 | H8: 北海道 | I8: 帯広市 | J8: 4815 | K8: 2661 | L8: 878 | M8: 4340 | N8: 619 | O8: 2184 | P8: 117 | Q8: 475 | R8: 1288 | S8: 854 | T8: 188 | U8: 2929 | V8: 817 | W8: 2112 | X8: -1641 | Y8: 475
A9: 2015 | B9: 46 | C9: 17 | D9: 1 | E9: 8 | F9: 公共 | G9: 012084 | H9: 北海道 | I9: 北見市 | J9: 4274 | K9: 1762 | L9: 1100 | M9: 3971 | N9: 637 | O9: 2327 | P9: 189 | Q9: 303 | R9: 2673 | S9: 1715 | T9: 323 | U9: 3755 | V9: 1513 | W9: 2241 | X9: -1082 | Y9: 303
A10: 2015 | B10: 46 | C10: 17 | D10: 1 | E10: 9 | F10: 公共 | G10: 012106 | H10: 北海道 | I10: 岩見沢市 | J10: 2549 | K10: 1231 | L10: 571 | M10: 2145 | N10: 342 | O10: 1136 | P10: 35 | Q10: 403 | R10: 1389 | S10: 470 | T10: 402 | U10: 2250 | V10: 1033 | W10: 1217 | X10: -861 | Y10: 403
A11: 2015 | B11: 46 | C11: 17 | D11: 1 | E11: 10 | F11: 公共 | G11: 012131 | H11: 北海道 | I11: 苫小牧市 | J11: 5141 | K11: 2330 | L11: 1166 | M11: 4613 | N11: 652 | O11: 2635 | P11: 142 | Q11: 528 | R11: 2498 | S11: 1619 | T11: 271 | U11: 4217 | V11: 2187 | W11: 2026 | X11: -1719 | Y11: 528
A12: 2015 | B12: 46 | C12: 17 | D12: 1 | E12: 11 | F12: 公共 | G12: 012149 | H12: 北海道 | I12: 稚内市 | J12: 1127 | K12: 482 | L12: 400 | M12: 1066 | N12: 177 | O12: 574 | P12: 15 | Q12: 61 | R12: 628 | S12: 348 | T12: 0 | U12: 1061 | V12: 442 | W12: 620 | X12: -434 | Y12: 61
A13: 2015 | B13: 46 | C13: 17 | D13: 1 | E13: 12 | F13: 公共 | G13: 012173 | H13: 北海道 | I13: 江別市 | J13: 3496 | K13: 1249 | L13: 986 | M13: 3252 | N13: 353 | O13: 1977 | P13: 128 | Q13: 244 | R13: 1257 | S13: 513 | T13: 64 | U13: 2434 | V13: 1144 | W13: 1140 | X13: -1177 | Y13: 244
A14: 2015 | B14: 46 | C14: 17 | D14: 1 | E14: 13 | F14: 公共 | G14: 012190 | H14: 北海道 | I14: 紋別市 | J14: 1272 | K14: 371 | L14: 563 | M14: 1150 | N14: 164 | O14: 661 | P14: 63 | Q14: 121 | R14: 912 | S14: 605 | T14: 39 | U14: 1403 | V14: 688 | W14: 716 | X14: -491 | Y14: 121
A15: 2015 | B15: 46 | C15: 17 | D15: 1 | E15: 14 | F15: 公共 | G15: 012220 | H15: 北海道 | I15: 三笠市 | J15: 595 | K15: 182 | L15: 255 | M15: 570 | N15: 92 | O15: 361 | P15: 19 | Q15: 25 | R15: 294 | S15: 42 | T15: 0 | U15: 500 | V15: 88 | W15: 413 | X15: -207 | Y15: 25
A16: 2015 | B16: 46 | C16: 17 | D16: 1 | E16: 15 | F16: 公共 | G16: 012238 | H16: 北海道 | I16: 根室市 | J16: 1727 | K16: 442 | L16: 1058 | M16: 729 | N16: 58 | O16: 422 | P16: 20 | Q16: 998 | R16: 169 | S16: 70 | T16: 34 | U16: 1391 | V16: 165 | W16: 222 | X16: -1222 | Y16: 998
A17: 2015 | B17: 46 | C17: 17 | D17: 1 | E17: 16 | F17: 公共 | G17: 012246 | H17: 北海道 | I17: 千歳市 | J17: 3492 | K17: 1567 | L17: 774 | M17: 3063 | N17: 243 | O17: 1861 | P17: 128 | Q17: 428 | R17: 589 | S17: 143 | T17: 130 | U17: 1484 | V17: 544 | W17: 934 | X17: -895 | Y17: 428
A18: 2015 | B18: 46 | C18: 17 | D18: 1 | E18: 17 | F18: 公共 | G18: 012254 | H18: 北海道 | I18: 滝川市 | J18: 1307 | K18: 740 | L18: 240 | M18: 1245 | N18: 201 | O18: 785 | P18: 13 | Q18: 62 | R18: 624 | S18: 174 | T18: 170 | U18: 1185 | V18: 151 | W18: 1034 | X18: -561 | Y18: 62
A19: 2015 | B19: 46 | C19: 17 | D19: 1 | E19: 18 | F19: 公共 | G19: 012301 | H19: 北海道 | I19: 登別市 | J19: 1765 | K19: 574 | L19: 727 | M19: 1757 | N19: 374 | O19: 985 | P19: 60 | Q19: 7 | R19: 1088 | S19: 757 | T19: 145 | U19: 1664 | V19: 501 | W19: 1163 | X19: -577 | Y19: 7
A20: 2015 | B20: 46 | C20: 17 | D20: 1 | E20: 19 | F20: 公共 | G20: 012319 | H20: 北海道 | I20: 恵庭市 | J20: 2808 | K20: 1007 | L20: 836 | M20: 2602 | N20: 270 | O20: 1568 | P20: 65 | Q20: 206 | R20: 831 | S20: 455 | T20: 115 | U20: 1874 | V20: 715 | W20: 1158 | X20: -1043 | Y20: 206
A21: 2015 | B21: 46 | C21: 17 | D21: 1 | E21: 20 | F21: 公共 | G21: 012351 | H21: 北海道 | I21: 石狩市 | J21: 1316 | K21: 549 | L21: 449 | M21: 1320 | N21: 216 | O21: 783 | P21: 44 | Q21: -4 | R21: 501 | S21: 379 | T21: 63 | U21: 987 | V21: 235 | W21: 752 | X21: -486 | Y21: -4
A22: 2015 | B22: 46 | C22: 17 | D22: 1 | E22: 21 | F22: 公共 | G22: 013455 | H22: 北海道 | I22: 森町 | J22: 460 | K22: 85 | L22: 236 | M22: 464 | N22: 79 | O22: 270 | P22: 14 | Q22: -4 | R22: 157 | S22: 49 | T22: 0 | U22: 285 | V22: 91 | W22: 194 | X22: -128 | Y22: -4
A23: 2015 | B23: 46 | C23: 17 | D23: 1 | E23: 22 | F23: 公共 | G23: 014028 | H23: 北海道 | I23: 岩内町 | J23: 511 | K23: 51 | L23: 256 | M23: 511 | N23: 70 | O23: 321 | P23: 21 | Q23: 0 | R23: 596 | S23: 392 | T23: 0 | U23: 749 | V23: 288 | W23: 460 | X23: -153 | Y23: 0
A24: 2015 | B24: 46 | C24: 17 | D24: 1 | E24: 23 | F24: 公共 | G24: 014290 | H24: 北海道 | I24: 栗山町 | J24: 539 | K24: 188 | L24: 195 | M24: 451 | N24: 60 | O24: 291 | P24: 7 | Q24: 89 | R24: 527 | S24: 336 | T24: 61 | U24: 734 | V24: 266 | W24: 468 | X24: -207 | Y24: 89
A25: 2015 | B25: 46 | C25: 17 | D25: 1 | E25: 24 | F25: 公共 | G25: 015148 | H25: 北海道 | I25: 枝幸町 | J25: 271 | K25: 64 | L25: 137 | M25: 264 | N25: 39 | O25: 153 | P25: 8 | Q25: 7 | R25: 89 | S25: 4 | T25: 24 | U25: 173 | V25: 26 | W25: 147 | X25: -83 | Y25: 7
A26: 2015 | B26: 46 | C26: 17 | D26: 1 | E26: 25 | F26: 公共 | G26: 015555 | H26: 北海道 | I26: 遠軽町 | J26: 858 | K26: 229 | L26: 420 | M26: 718 | N26: 91 | O26: 393 | P26: 41 | Q26: 140 | R26: 580 | S26: 271 | T26: 49 | U26: 876 | V26: 532 | W26: 345 | X26: -296 | Y26: 140
A27: 2015 | B27: 46 | C27: 17 | D27: 1 | E27: 26 | F27: 公共 | G27: 015865 | H27: 北海道 | I27: むかわ町 | J27: 248 | K27: 55 | L27: 97 | M27: 246 | N27: 34 | O27: 145 | P27: 11 | Q27: 2 | R27: 93 | S27: 18 | T27: 0 | U27: 152 | V27: 31 | W27: 117 | X27: -59 | Y27: 2
A28: 2015 | B28: 46 | C28: 17 | D28: 1 | E28: 27 | F28: 公共 | G28: 016314 | H28: 北海道 | I28: 音更町 | J28: 1039 | K28: 557 | L28: 227 | M28: 930 | N28: 169 | O28: 547 | P28: 3 | Q28: 108 | R28: 447 | S28: 319 | T28: 71 | U28: 897 | V28: 221 | W28: 677 | X28: -450 | Y28: 108
A29: 2015 | B29: 46 | C29: 17 | D29: 1 | E29: 28 | F29: 公共 | G29: 016365 | H29: 北海道 | I29: 清水町 | J29: 298 | K29: 92 | L29: 142 | M29: 230 | N29: 14 | O29: 144 | P29: 18 | Q29: 68 | R29: 42 | S29: 0 | T29: 15 | U29: 190 | V29: 9 | W29: 172 | X29: -149 | Y29: 68
A30: 2015 | B30: 46 | C30: 17 | D30: 1 | E30: 29 | F30: 公共 | G30: 022021 | H30: 青森県 | I30: 弘前市 | J30: 5418 | K30: 2872 | L30: 1575 | M30: 5077 | N30: 734 | O30: 2131 | P30: 254 | Q30: 340 | R30: 2063 | S30: 1407 | T30: 0 | U30: 3808 | V30: 720 | W30: 3088 | X30: -1745 | Y30: 340
A31: 2015 | B31: 46 | C31: 17 | D31: 1 | E31: 30 | F31: 公共 | G31: 022047 | H31: 青森県 | I31: 黒石市 | J31: 924 | K31: 322 | L31: 279 | M31: 636 | N31: 146 | O31: 306 | P31: 17 | Q31: 288 | R31: 707 | S31: 449 | T31: 242 | U31: 790 | V31: 59 | W31: 732 | X31: -83 | Y31: 288
A32: 2015 | B32: 46 | C32: 17 | D32: 1 | E32: 31 | F32: 公共 | G32: 022055 | H32: 青森県 | I32: 五所川原市 | J32: 672 | K32: 367 | L32: 130 | M32: 754 | N32: 122 | O32: 383 | P32: 39 | Q32: -82 | R32: 555 | S32: 282 | T32: 0 | U32: 658 | V32: 194 | W32: 464 | X32: -103 | Y32: -82
A33: 2015 | B33: 46 | C33: 17 | D33: 1 | E33: 32 | F33: 公共 | G33: 022063 | H33: 青森県 | I33: 十和田市 | J33: 1619 | K33: 800 | L33: 379 | M33: 1538 | N33: 299 | O33: 858 | P33: 69 | Q33: 82 | R33: 917 | S33: 595 | T33: 117 | U33: 1460 | V33: 379 | W33: 1081 | X33: -543 | Y33: 82
A34: 2015 | B34: 46 | C34: 17 | D34: 1 | E34: 33 | F34: 公共 | G34: 022101 | H34: 青森県 | I34: 平川市 | J34: 671 | K34: 302 | L34: 238 | M34: 660 | N34: 122 | O34: 335 | P34: 45 | Q34: 11 | R34: 250 | S34: 11 | T34: 0 | U34: 494 | V34: 20 | W34: 475 | X34: -245 | Y34: 11
A35: 2015 | B35: 46 | C35: 17 | D35: 1 | E35: 34 | F35: 公共 | G35: 023612 | H35: 青森県 | I35: 藤崎町 | J35: 270 | K35: 87 | L35: 104 | M35: 268 | N35: 52 | O35: 165 | P35: 6 | Q35: 3 | R35: 165 | S35: 104 | T35: 0 | U35: 283 | V35: 49 | W35: 235 | X35: -118 | Y35: 3
A36: 2015 | B36: 46 | C36: 17 | D36: 1 | E36: 35 | F36: 公共 | G36: 023671 | H36: 青森県 | I36: 田舎館村 | J36: 348 | K36: 102 | L36: 135 | M36: 249 | N36: 61 | O36: 128 | P36: 8 | Q36: 99 | R36: 155 | S36: 93 | T36: 60 | U36: 223 | V36: 2 | W36: 221 | X36: -69 | Y36: 99
A37: 2015 | B37: 46 | C37: 17 | D37: 1 | E37: 36 | F37: 公共 | G37: 023817 | H37: 青森県 | I37: 板柳町 | J37: 288 | K37: 79 | L37: 87 | M37: 276 | N37: 68 | O37: 150 | P37: 7 | Q37: 13 | R37: 256 | S37: 141 | T37: 51 | U37: 320 | V37: 150 | W37: 170 | X37: -64 | Y37: 13
A38: 2015 | B38: 46 | C38: 17 | D38: 1 | E38: 37 | F38: 公共 | G38: 023841 | H38: 青森県 | I38: 鶴田町 | J38: 441 | K38: 54 | L38: 245 | M38: 340 | N38: 68 | O38: 235 | P38: 8 | Q38: 101 | R38: 37 | S38: 30 | T38: 5 | U38: 221 | V38: 34 | W38: 186 | X38: -184 | Y38: 101
A39: 2015 | B39: 46 | C39: 17 | D39: 1 | E39: 38 | F39: 公共 | G39: 024112 | H39: 青森県 | I39: 六ケ所村 | J39: 548 | K39: 41 | L39: 266 | M39: 533 | N39: 79 | O39: 336 | P39: 23 | Q39: 14 | R39: 775 | S39: 300 | T39: 0 | U39: 975 | V39: 833 | W39: 142 | X39: -201 | Y39: 14
A40: 2015 | B40: 46 | C40: 17 | D40: 1 | E40: 39 | F40: 公共 | G40: 032018 | H40: 岩手県 | I40: 盛岡市 | J40: 8278 | K40: 4357 | L40: 2858 | M40: 7574 | N40: 1124 | O40: 3990 | P40: 367 | Q40: 704 | R40: 1945 | S40: 798 | T40: 521 | U40: 5539 | V40: 1622 | W40: 3914 | X40: -3594 | Y40: 704
A41: 2015 | B41: 46 | C41: 17 | D41: 1 | E41: 40 | F41: 公共 | G41: 032026 | H41: 岩手県 | I41: 宮古市 | J41: 1450 | K41: 531 | L41: 609 | M41: 1145 | N41: 200 | O41: 638 | P41: 52 | Q41: 305 | R41: 747 | S41: 424 | T41: 185 | U41: 1339 | V41: 312 | W41: 1026 | X41: -591 | Y41: 305
A42: 2015 | B42: 46 | C42: 17 | D42: 1 | E42: 41 | F42: 公共 | G42: 032069 | H42: 岩手県 | I42: 北上市 | J42: 2344 | K42: 1155 | L42: 952 | M42: 2081 | N42: 406 | O42: 952 | P42: 53 | Q42: 262 | R42: 810 | S42: 418 | T42: 0 | U42: 1812 | V42: 215 | W42: 1542 | X42: -1001 | Y42: 262
A43: 2015 | B43: 46 | C43: 17 | D43: 1 | E43: 42 | F43: 公共 | G43: 032166 | H43: 岩手県 | I43: 滝沢市 | J43: 1082 | K43: 456 | L43: 305 | M43: 933 | N43: 131 | O43: 542 | P43: 20 | Q43: 149 | R43: 461 | S43: 271 | T43: 18 | U43: 841 | V43: 485 | W43: 356 | X43: -380 | Y43: 149
A44: 2015 | B44: 46 | C44: 17 | D44: 1 | E44: 43 | F44: 公共 | G44: 033014 | H44: 岩手県 | I44: 雫石町 | J44: 467 | K44: 111 | L44: 232 | M44: 468 | N44: 96 | O44: 307 | P44: 6 | Q44: -1 | R44: 351 | S44: 179 | T44: 20 | U44: 515 | V44: 140 | W44: 375 | X44: -164 | Y44: -1
A45: 2015 | B45: 46 | C45: 17 | D45: 1 | E45: 44 | F45: 公共 | G45: 033219 | H45: 岩手県 | I45: 紫波町 | J45: 750 | K45: 269 | L45: 456 | M45: 749 | N45: 112 | O45: 462 | P45: 25 | Q45: 1 | R45: 340 | S45: 145 | T45: 29 | U45: 767 | V45: 297 | W45: 470 | X45: -427 | Y45: 1
A46: 2015 | B46: 46 | C46: 17 | D46: 1 | E46: 45 | F46: 公共 | G46: 033227 | H46: 岩手県 | I46: 矢巾町 | J46: 752 | K46: 296 | L46: 268 | M46: 573 | N46: 83 | O46: 339 | P46: 0 | Q46: 179 | R46: 697 | S46: 430 | T46: 0 | U46: 977 | V46: 764 | W46: 213 | X46: -280 | Y46: 179
A47: 2015 | B47: 46 | C47: 17 | D47: 1 | E47: 46 | F47: 公共 | G47: 041009 | H47: 宮城県 | I47: 仙台市 | J47: 32471 | K47: 16229 | L47: 7068 | M47: 28976 | N47: 4506 | O47: 17065 | P47: 1244 | Q47: 3495 | R47: 37517 | S47: 14102 | T47: 5634 | U47: 48157 | V47: 30848 | W47: 17309 | X47: -10641 | Y47: 3495
A48: 2015 | B48: 46 | C48: 17 | D48: 1 | E48: 47 | F48: 公共 | G48: 042064 | H48: 宮城県 | I48: 白石市 | J48: 899 | K48: 419 | L48: 277 | M48: 1009 | N48: 160 | O48: 456 | P48: 20 | Q48: -109 | R48: 1360 | S48: 503 | T48: 823 | U48: 1554 | V48: 697 | W48: 825 | X48: -194 | Y48: -109
A49: 2015 | B49: 46 | C49: 17 | D49: 1 | E49: 48 | F49: 公共 | G49: 042072 | H49: 宮城県 | I49: 名取市 | J49: 2578 | K49: 1251 | L49: 736 | M49: 2547 | N49: 454 | O49: 1490 | P49: 54 | Q49: 31 | R49: 2933 | S49: 786 | T49: 0 | U49: 3656 | V49: 1359 | W49: 2297 | X49: -724 | Y49: 31
A50: 2015 | B50: 46 | C50: 17 | D50: 1 | E50: 49 | F50: 公共 | G50: 052019 | H50: 秋田県 | I50: 秋田市 | J50: 10276 | K50: 4978 | L50: 3414 | M50: 9147 | N50: 1475 | O50: 5023 | P50: 437 | Q50: 1129 | R50: 3764 | S50: 2280 | T50: 888 | U50: 7781 | V50: 2068 | W50: 5713 | X50: -4017 | Y50: 1129
A51: 2015 | B51: 46 | C51: 17 | D51: 1 | E51: 50 | F51: 公共 | G51: 052027 | H51: 秋田県 | I51: 能代市 | J51: 1256 | K51: 320 | L51: 648 | M51: 1195 | N51: 194 | O51: 654 | P51: 30 | Q51: 60 | R51: 1750 | S51: 1064 | T51: 78 | U51: 2178 | V51: 1561 | W51: 617 | X51: -428 | Y51: 60
A52: 2015 | B52: 46 | C52: 17 | D52: 1 | E52: 51 | F52: 公共 | G52: 052035 | H52: 秋田県 | I52: 横手市 | J52: 1753 | K52: 630 | L52: 860 | M52: 1724 | N52: 357 | O52: 825 | P52: 101 | Q52: 28 | R52: 1205 | S52: 619 | T52: 480 | U52: 1712 | V52: 316 | W52: 1396 | X52: -506 | Y52: 28
A53: 2015 | B53: 46 | C53: 17 | D53: 1 | E53: 52 | F53: 公共 | G53: 052043 | H53: 秋田県 | I53: 大館市 | J53: 1142 | K53: 426 | L53: 515 | M53: 1215 | N53: 268 | O53: 593 | P53: 56 | Q53: -73 | R53: 1303 | S53: 773 | T53: 137 | U53: 1754 | V53: 862 | W53: 892 | X53: -450 | Y53: -73
A54: 2015 | B54: 46 | C54: 17 | D54: 1 | E54: 53 | F54: 公共 | G54: 052060 | H54: 秋田県 | I54: 男鹿市 | J54: 748 | K54: 193 | L54: 323 | M54: 615 | N54: 161 | O54: 337 | P54: 29 | Q54: 133 | R54: 793 | S54: 432 | T54: 171 | U54: 1040 | V54: 503 | W54: 537 | X54: -247 | Y54: 133
A55: 2015 | B55: 46 | C55: 17 | D55: 1 | E55: 54 | F55: 公共 | G55: 062014 | H55: 山形県 | I55: 山形市 | J55: 7980 | K55: 3910 | L55: 2406 | M55: 7490 | N55: 1701 | O55: 4063 | P55: 251 | Q55: 490 | R55: 4852 | S55: 3190 | T55: 716 | U55: 7751 | V55: 2408 | W55: 5343 | X55: -2898 | Y55: 490
A56: 2015 | B56: 46 | C56: 17 | D56: 1 | E56: 55 | F56: 公共 | G56: 062031 | H56: 山形県 | I56: 鶴岡市 | J56: 4551 | K56: 2108 | L56: 1285 | M56: 4516 | N56: 739 | O56: 2661 | P56: 171 | Q56: 34 | R56: 2091 | S56: 1025 | T56: 369 | U56: 3941 | V56: 1578 | W56: 2362 | X56: -1850 | Y56: 34
A57: 2015 | B57: 46 | C57: 17 | D57: 1 | E57: 56 | F57: 公共 | G57: 062103 | H57: 山形県 | I57: 天童市 | J57: 1257 | K57: 858 | L57: 182 | M57: 1178 | N57: 183 | O57: 581 | P57: 20 | Q57: 79 | R57: 691 | S57: 328 | T57: 174 | U57: 1136 | V57: 504 | W57: 632 | X57: -445 | Y57: 79
A58: 2015 | B58: 46 | C58: 17 | D58: 1 | E58: 57 | F58: 公共 | G58: 062138 | H58: 山形県 | I58: 南陽市 | J58: 968 | K58: 338 | L58: 437 | M58: 970 | N58: 197 | O58: 531 | P58: 31 | Q58: -2 | R58: 625 | S58: 288 | T58: 65 | U58: 982 | V58: 230 | W58: 753 | X58: -357 | Y58: -2
A59: 2015 | B59: 46 | C59: 17 | D59: 1 | E59: 58 | F59: 公共 | G59: 072036 | H59: 福島県 | I59: 郡山市 | J59: 7882 | K59: 3923 | L59: 2433 | M59: 7882 | N59: 1463 | O59: 3926 | P59: 261 | Q59: 0 | R59: 4731 | S59: 1874 | T59: 0 | U59: 7519 | V59: 2243 | W59: 5274 | X59: -2788 | Y59: 0
A60: 2015 | B60: 46 | C60: 17 | D60: 1 | E60: 59 | F60: 公共 | G60: 072109 | H60: 福島県 | I60: 二本松市 | J60: 544 | K60: 144 | L60: 289 | M60: 544 | N60: 92 | O60: 230 | P60: 39 | Q60: 0 | R60: 72 | S60: 36 | T60: 5 | U60: 292 | V60: 66 | W60: 227 | X60: -220 | Y60: 0
A61: 2015 | B61: 46 | C61: 17 | D61: 1 | E61: 60 | F61: 公共 | G61: 072125 | H61: 福島県 | I61: 南相馬市 | J61: 1917 | K61: 448 | L61: 757 | M61: 1686 | N61: 220 | O61: 914 | P61: 53 | Q61: 231 | R61: 498 | S61: 322 | T61: 0 | U61: 995 | V61: 249 | W61: 746 | X61: -497 | Y61: 231
A62: 2015 | B62: 46 | C62: 17 | D62: 1 | E62: 61 | F62: 公共 | G62: 075213 | H62: 福島県 | I62: 三春町 | J62: 184 | K62: 67 | L62: 31 | M62: 207 | N62: 31 | O62: 135 | P62: 10 | Q62: -23 | R62: 70 | S62: 0 | T62: 0 | U62: 123 | V62: 12 | W62: 110 | X62: -53 | Y62: -23
A63: 2015 | B63: 46 | C63: 17 | D63: 1 | E63: 62 | F63: 公共 | G63: 082015 | H63: 茨城県 | I63: 水戸市 | J63: 9192 | K63: 3376 | L63: 4062 | M63: 8890 | N63: 1809 | O63: 5201 | P63: 182 | Q63: 302 | R63: 6501 | S63: 3158 | T63: 470 | U63: 9665 | V63: 4640 | W63: 5022 | X63: -3164 | Y63: 302
A64: 2015 | B64: 46 | C64: 17 | D64: 1 | E64: 63 | F64: 公共 | G64: 082023 | H64: 茨城県 | I64: 日立市 | J64: 3992 | K64: 2684 | L64: 106 | M64: 3790 | N64: 327 | O64: 1996 | P64: 109 | Q64: 203 | R64: 1671 | S64: 589 | T64: 495 | U64: 2803 | V64: 1336 | W64: 1467 | X64: -1132 | Y64: 203
A65: 2015 | B65: 46 | C65: 17 | D65: 1 | E65: 64 | F65: 公共 | G65: 082244 | H65: 茨城県 | I65: 守谷市 | J65: 1860 | K65: 1374 | L65: 24 | M65: 1635 | N65: 102 | O65: 853 | P65: 63 | Q65: 225 | R65: 76 | S65: 0 | T65: 16 | U65: 344 | V65: 41 | W65: 304 | X65: -269 | Y65: 225
A66: 2015 | B66: 46 | C66: 17 | D66: 1 | E66: 65 | F66: 公共 | G66: 092011 | H66: 栃木県 | I66: 宇都宮市 | J66: 12243 | K66: 6738 | L66: 3101 | M66: 10891 | N66: 1353 | O66: 5664 | P66: 485 | Q66: 1353 | R66: 3641 | S66: 2255 | T66: 190 | U66: 8135 | V66: 3400 | W66: 4736 | X66: -4494 | Y66: 1353
A67: 2015 | B67: 46 | C67: 17 | D67: 1 | E67: 66 | F67: 公共 | G67: 102016 | H67: 群馬県 | I67: 前橋市 | J67: 7058 | K67: 3057 | L67: 2613 | M67: 6540 | N67: 948 | O67: 2989 | P67: 393 | Q67: 518 | R67: 3001 | S67: 1696 | T67: 412 | U67: 5417 | V67: 2435 | W67: 2981 | X67: -2416 | Y67: 518
A68: 2015 | B68: 46 | C68: 17 | D68: 1 | E68: 67 | F68: 公共 | G68: 102024 | H68: 群馬県 | I68: 高崎市 | J68: 8460 | K68: 3718 | L68: 3256 | M68: 6688 | N68: 1065 | O68: 3273 | P68: 417 | Q68: 1772 | R68: 3017 | S68: 1390 | T68: 614 | U68: 6387 | V68: 3078 | W68: 3304 | X68: -3369 | Y68: 1772
A69: 2015 | B69: 46 | C69: 17 | D69: 1 | E69: 68 | F69: 公共 | G69: 102059 | H69: 群馬県 | I69: 太田市 | J69: 2853 | K69: 786 | L69: 1280 | M69: 2777 | N69: 474 | O69: 1454 | P69: 80 | Q69: 77 | R69: 1897 | S69: 975 | T69: 598 | U69: 2778 | V69: 1348 | W69: 1430 | X69: -881 | Y69: 77
A70: 2015 | B70: 46 | C70: 17 | D70: 1 | E70: 69 | F70: 公共 | G70: 111007 | H70: 埼玉県 | I70: さいたま市 | J70: 23749 | K70: 16471 | L70: 4379 | M70: 23147 | N70: 3698 | O70: 11975 | P70: 570 | Q70: 602 | R70: 20689 | S70: 16661 | T70: 399 | U70: 28472 | V70: 15151 | W70: 13316 | X70: -7782 | Y70: 602
A71: 2015 | B71: 46 | C71: 17 | D71: 1 | E71: 70 | F71: 公共 | G71: 112011 | H71: 埼玉県 | I71: 川越市 | J71: 5967 | K71: 3228 | L71: 1851 | M71: 5750 | N71: 451 | O71: 2631 | P71: 377 | Q71: 217 | R71: 1431 | S71: 937 | T71: 351 | U71: 2970 | V71: 1824 | W71: 1146 | X71: -1539 | Y71: 217
A72: 2015 | B72: 46 | C72: 17 | D72: 1 | E72: 71 | F72: 公共 | G72: 112089 | H72: 埼玉県 | I72: 所沢市 | J72: 5491 | K72: 2627 | L72: 1792 | M72: 5479 | N72: 476 | O72: 2887 | P72: 409 | Q72: 13 | R72: 824 | S72: 178 | T72: 170 | U72: 2770 | V72: 1514 | W72: 1255 | X72: -1946 | Y72: 13
A73: 2015 | B73: 46 | C73: 17 | D73: 1 | E73: 72 | F73: 公共 | G73: 112101 | H73: 埼玉県 | I73: 加須市 | J73: 1773 | K73: 508 | L73: 696 | M73: 1696 | N73: 270 | O73: 972 | P73: 49 | Q73: 78 | R73: 1227 | S73: 653 | T73: 285 | U73: 1692 | V73: 624 | W73: 1066 | X73: -465 | Y73: 78
A74: 2015 | B74: 46 | C74: 17 | D74: 1 | E74: 73 | F74: 公共 | G74: 112119 | H74: 埼玉県 | I74: 本庄市 | J74: 1444 | K74: 589 | L74: 60 | M74: 1418 | N74: 154 | O74: 810 | P74: 49 | Q74: 27 | R74: 1101 | S74: 308 | T74: 597 | U74: 1249 | V74: 691 | W74: 558 | X74: -148 | Y74: 27
A75: 2015 | B75: 46 | C75: 17 | D75: 1 | E75: 74 | F75: 公共 | G75: 112143 | H75: 埼玉県 | I75: 春日部市 | J75: 4782 | K75: 2043 | L75: 2002 | M75: 4169 | N75: 871 | O75: 2163 | P75: 87 | Q75: 613 | R75: 2322 | S75: 1956 | T75: 201 | U75: 4209 | V75: 1005 | W75: 3204 | X75: -1887 | Y75: 613
A76: 2015 | B76: 46 | C76: 17 | D76: 1 | E76: 75 | F76: 公共 | G76: 112151 | H76: 埼玉県 | I76: 狭山市 | J76: 3211 | K76: 1548 | L76: 930 | M76: 3095 | N76: 411 | O76: 1813 | P76: 95 | Q76: 116 | R76: 521 | S76: 284 | T76: 119 | U76: 1667 | V76: 612 | W76: 1055 | X76: -1146 | Y76: 116
A77: 2015 | B77: 46 | C77: 17 | D77: 1 | E77: 76 | F77: 公共 | G77: 112178 | H77: 埼玉県 | I77: 鴻巣市 | J77: 2158 | K77: 1017 | L77: 679 | M77: 2060 | N77: 303 | O77: 1150 | P77: 52 | Q77: 98 | R77: 2333 | S77: 1189 | T77: 472 | U77: 3224 | V77: 1946 | W77: 1278 | X77: -891 | Y77: 98
A78: 2015 | B78: 46 | C78: 17 | D78: 1 | E78: 77 | F78: 公共 | G78: 112186 | H78: 埼玉県 | I78: 深谷市 | J78: 2359 | K78: 772 | L78: 944 | M78: 2256 | N78: 352 | O78: 1338 | P78: 56 | Q78: 103 | R78: 1173 | S78: 719 | T78: 0 | U78: 1980 | V78: 1021 | W78: 958 | X78: -807 | Y78: 103
A79: 2015 | B79: 46 | C79: 17 | D79: 1 | E79: 78 | F79: 公共 | G79: 112241 | H79: 埼玉県 | I79: 戸田市 | J79: 2609 | K79: 1004 | L79: 969 | M79: 2671 | N79: 212 | O79: 1289 | P79: 56 | Q79: -63 | R79: 1062 | S79: 897 | T79: 22 | U79: 1798 | V79: 1128 | W79: 670 | X79: -737 | Y79: -63
A80: 2015 | B80: 46 | C80: 17 | D80: 1 | E80: 79 | F80: 公共 | G80: 112259 | H80: 埼玉県 | I80: 入間市 | J80: 2298 | K80: 1344 | L80: 457 | M80: 2185 | N80: 265 | O80: 1259 | P80: 62 | Q80: 113 | R80: 301 | S80: 126 | T80: 171 | U80: 1012 | V80: 185 | W80: 827 | X80: -711 | Y80: 113
A81: 2015 | B81: 46 | C81: 17 | D81: 1 | E81: 80 | F81: 公共 | G81: 112283 | H81: 埼玉県 | I81: 志木市 | J81: 1927 | K81: 800 | L81: 451 | M81: 1772 | N81: 200 | O81: 886 | P81: 99 | Q81: 155 | R81: 535 | S81: 41 | T81: 479 | U81: 765 | V81: 134 | W81: 628 | X81: -230 | Y81: 155
A82: 2015 | B82: 46 | C82: 17 | D82: 1 | E82: 81 | F82: 公共 | G82: 112291 | H82: 埼玉県 | I82: 和光市 | J82: 1086 | K82: 592 | L82: 356 | M82: 980 | N82: 117 | O82: 443 | P82: 26 | Q82: 106 | R82: 110 | S82: 53 | T82: 57 | U82: 492 | V82: 112 | W82: 380 | X82: -382 | Y82: 106
A83: 2015 | B83: 46 | C83: 17 | D83: 1 | E83: 82 | F83: 公共 | G83: 112356 | H83: 埼玉県 | I83: 富士見市 | J83: 1604 | K83: 869 | L83: 457 | M83: 1330 | N83: 210 | O83: 622 | P83: 32 | Q83: 275 | R83: 969 | S83: 645 | T83: 118 | U83: 1506 | V83: 834 | W83: 672 | X83: -537 | Y83: 275
A84: 2015 | B84: 46 | C84: 17 | D84: 1 | E84: 83 | F84: 公共 | G84: 112429 | H84: 埼玉県 | I84: 日高市 | J84: 1008 | K84: 563 | L84: 190 | M84: 942 | N84: 126 | O84: 453 | P84: 64 | Q84: 66 | R84: 480 | S84: 421 | T84: 46 | U84: 817 | V84: 250 | W84: 567 | X84: -336 | Y84: 66
A85: 2015 | B85: 46 | C85: 17 | D85: 1 | E85: 84 | F85: 公共 | G85: 113859 | H85: 埼玉県 | I85: 上里町 | J85: 204 | K85: 52 | L85: 118 | M85: 199 | N85: 44 | O85: 104 | P85: 16 | Q85: 4 | R85: 145 | S85: 65 | T85: 0 | U85: 201 | V85: 126 | W85: 75 | X85: -55 | Y85: 4
A86: 2015 | B86: 46 | C86: 17 | D86: 1 | E86: 85 | F86: 公共 | G86: 121002 | H86: 千葉県 | I86: 千葉市 | J86: 27829 | K86: 12666 | L86: 7775 | M86: 26330 | N86: 4524 | O86: 14951 | P86: 726 | Q86: 1498 | R86: 12808 | S86: 9748 | T86: 104 | U86: 22473 | V86: 8215 | W86: 14252 | X86: -9664 | Y86: 1498
A87: 2015 | B87: 46 | C87: 17 | D87: 1 | E87: 86 | F87: 公共 | G87: 122122 | H87: 千葉県 | I87: 佐倉市 | J87: 3106 | K87: 1779 | L87: 214 | M87: 2992 | N87: 100 | O87: 1580 | P87: 131 | Q87: 115 | R87: 425 | S87: 184 | T87: 70 | U87: 929 | V87: 554 | W87: 375 | X87: -504 | Y87: 115
A88: 2015 | B88: 46 | C88: 17 | D88: 1 | E88: 87 | F88: 公共 | G88: 122173 | H88: 千葉県 | I88: 柏市 | J88: 9135 | K88: 5246 | L88: 1475 | M88: 8720 | N88: 1050 | O88: 4412 | P88: 227 | Q88: 415 | R88: 4303 | S88: 1632 | T88: 292 | U88: 7020 | V88: 3282 | W88: 3735 | X88: -2717 | Y88: 415
A89: 2015 | B89: 46 | C89: 17 | D89: 1 | E89: 88 | F89: 公共 | G89: 122203 | H89: 千葉県 | I89: 流山市 | J89: 2977 | K89: 1669 | L89: 548 | M89: 2913 | N89: 437 | O89: 1357 | P89: 102 | Q89: 65 | R89: 1840 | S89: 630 | T89: 1 | U89: 2234 | V89: 1245 | W89: 989 | X89: -394 | Y89: 65
A90: 2015 | B90: 46 | C90: 17 | D90: 1 | E90: 89 | F90: 公共 | G90: 122211 | H90: 千葉県 | I90: 八千代市 | J90: 3329 | K90: 2161 | L90: 500 | M90: 3264 | N90: 233 | O90: 1428 | P90: 122 | Q90: 65 | R90: 829 | S90: 310 | T90: 262 | U90: 1581 | V90: 820 | W90: 629 | X90: -752 | Y90: 65
A91: 2015 | B91: 46 | C91: 17 | D91: 1 | E91: 90 | F91: 公共 | G91: 123226 | H91: 千葉県 | I91: 酒々井町 | J91: 271 | K91: 229 | L91: 9 | M91: 305 | N91: 25 | O91: 162 | P91: 5 | Q91: -35 | R91: 29 | S91: 4 | T91: 17 | U91: 90 | V91: 18 | W91: 73 | X91: -61 | Y91: -35
A92: 2015 | B92: 46 | C92: 17 | D92: 1 | E92: 91 | F92: 公共 | G92: 130001 | H92: 東京都 | I92: 東京都 | J92: 342513 | K92: 158463 | L92: 123890 | M92: 307686 | N92: 32885 | O92: 167283 | P92: 15081 | Q92: 34827 | R92: 161762 | S92: 74492 | T92: 0 | U92: 352979 | V92: 189091 | W92: 163888 | X92: -191217 | Y92: 34827
A93: 2015 | B93: 46 | C93: 17 | D93: 1 | E93: 92 | F93: 公共 | G93: 141003 | H93: 神奈川県 | I93: 横浜市 | J93: 130257 | K93: 56368 | L93: 44259 | M93: 114512 | N93: 14067 | O93: 73588 | P93: 5536 | Q93: 15746 | R93: 81211 | S93: 67143 | T93: 0 | U93: 140953 | V93: 34760 | W93: 106192 | X93: -59742 | Y93: 15746
A94: 2015 | B94: 46 | C94: 17 | D94: 1 | E94: 93 | F94: 公共 | G94: 141305 | H94: 神奈川県 | I94: 川崎市 | J94: 43396 | K94: 22234 | L94: 12576 | M94: 41588 | N94: 6958 | O94: 22945 | P94: 2796 | Q94: 1808 | R94: 47256 | S94: 32946 | T94: 1773 | U94: 65808 | V94: 18420 | W94: 44639 | X94: -18552 | Y94: 1808
A95: 2015 | B95: 46 | C95: 17 | D95: 1 | E95: 94 | F95: 公共 | G95: 141500 | H95: 神奈川県 | I95: 相模原市 | J95: 15192 | K95: 8603 | L95: 4257 | M95: 14824 | N95: 2406 | O95: 8036 | P95: 492 | Q95: 368 | R95: 3388 | S95: 2079 | T95: 288 | U95: 10008 | V95: 3100 | W95: 6891 | X95: -6620 | Y95: 368
A96: 2015 | B96: 46 | C96: 17 | D96: 1 | E96: 95 | F96: 公共 | G96: 142018 | H96: 神奈川県 | I96: 横須賀市 | J96: 16426 | K96: 6960 | L96: 3198 | M96: 14863 | N96: 1846 | O96: 8487 | P96: 703 | Q96: 1564 | R96: 6900 | S96: 4241 | T96: 1033 | U96: 10828 | V96: 3862 | W96: 6791 | X96: -3928 | Y96: 1564
A97: 2015 | B97: 46 | C97: 17 | D97: 1 | E97: 96 | F97: 公共 | G97: 142051 | H97: 神奈川県 | I97: 藤沢市 | J97: 12308 | K97: 5457 | L97: 4516 | M97: 11700 | N97: 1673 | O97: 5146 | P97: 414 | Q97: 608 | R97: 4562 | S97: 3203 | T97: 312 | U97: 8056 | V97: 3305 | W97: 4749 | X97: -3494 | Y97: 608
A98: 2015 | B98: 46 | C98: 17 | D98: 1 | E98: 97 | F98: 公共 | G98: 142077 | H98: 神奈川県 | I98: 茅ヶ崎市 | J98: 5200 | K98: 2560 | L98: 1664 | M98: 4924 | N98: 821 | O98: 2447 | P98: 144 | Q98: 276 | R98: 1699 | S98: 1078 | T98: 171 | U98: 3652 | V98: 1513 | W98: 2139 | X98: -1953 | Y98: 276
A99: 2015 | B99: 46 | C99: 17 | D99: 1 | E99: 98 | F99: 公共 | G99: 143219 | H99: 神奈川県 | I99: 寒川町 | J99: 1316 | K99: 533 | L99: 476 | M99: 1315 | N99: 199 | O99: 744 | P99: 62 | Q99: 2 | R99: 411 | S99: 295 | T99: 43 | U99: 867 | V99: 273 | W99: 593 | X99: -455 | Y99: 2
A100: 2015 | B100: 46 | C100: 17 | D100: 1 | E100: 99 | F100: 公共 | G100: 151009 | H100: 新潟県 | I100: 新潟市 | J100: 31129 | K100: 11874 | L100: 11840 | M100: 29892 | N100: 6361 | O100: 17543 | P100: 1053 | Q100: 1237 | R100: 20678 | S100: 12753 | T100: 2539 | U100: 32852 | V100: 15805 | W100: 17047 | X100: -12174 | Y100: 1237
A101: 2015 | B101: 46 | C101: 17 | D101: 1 | E101: 100 | F101: 公共 | G101: 152021 | H101: 新潟県 | I101: 長岡市 | J101: 8165 | K101: 3357 | L101: 2266 | M101: 7948 | N101: 1209 | O101: 4887 | P101: 168 | Q101: 217 | R101: 3543 | S101: 901 | T101: 0 | U101: 6017 | V101: 1540 | W101: 4477 | X101: -2473 | Y101: 217
A102: 2015 | B102: 46 | C102: 17 | D102: 1 | E102: 101 | F102: 公共 | G102: 152056 | H102: 新潟県 | I102: 柏崎市 | J102: 3480 | K102: 1013 | L102: 1342 | M102: 3186 | N102: 463 | O102: 2054 | P102: 99 | Q102: 294 | R102: 2191 | S102: 1274 | T102: 246 | U102: 3221 | V102: 1012 | W102: 2209 | X102: -1030 | Y102: 294
A103: 2015 | B103: 46 | C103: 17 | D103: 1 | E103: 102 | F103: 公共 | G103: 152081 | H103: 新潟県 | I103: 小千谷市 | J103: 1426 | K103: 482 | L103: 740 | M103: 1018 | N103: 239 | O103: 551 | P103: 42 | Q103: 408 | R103: 465 | S103: 232 | T103: 114 | U103: 1235 | V103: 257 | W103: 977 | X103: -770 | Y103: 408
A104: 2015 | B104: 46 | C104: 17 | D104: 1 | E104: 103 | F104: 公共 | G104: 152111 | H104: 新潟県 | I104: 見附市 | J104: 1737 | K104: 561 | L104: 705 | M104: 1753 | N104: 234 | O104: 919 | P104: 56 | Q104: -16 | R104: 1526 | S104: 662 | T104: 226 | U104: 2046 | V104: 1380 | W104: 665 | X104: -520 | Y104: -16
A105: 2015 | B105: 46 | C105: 17 | D105: 1 | E105: 104 | F105: 公共 | G105: 152170 | H105: 新潟県 | I105: 妙高市 | J105: 1060 | K105: 360 | L105: 468 | M105: 740 | N105: 132 | O105: 370 | P105: 18 | Q105: 319 | R105: 248 | S105: 100 | T105: 124 | U105: 711 | V105: 103 | W105: 552 | X105: -463 | Y105: 319
A106: 2015 | B106: 46 | C106: 17 | D106: 1 | E106: 105 | F106: 公共 | G106: 152251 | H106: 新潟県 | I106: 魚沼市 | J106: 1243 | K106: 513 | L106: 513 | M106: 1077 | N106: 226 | O106: 575 | P106: 17 | Q106: 165 | R106: 514 | S106: 35 | T106: 0 | U106: 946 | V106: 57 | W106: 888 | X106: -432 | Y106: 165
A107: 2015 | B107: 46 | C107: 17 | D107: 1 | E107: 106 | F107: 公共 | G107: 152277 | H107: 新潟県 | I107: 胎内市 | J107: 751 | K107: 197 | L107: 246 | M107: 723 | N107: 148 | O107: 447 | P107: 13 | Q107: 28 | R107: 421 | S107: 363 | T107: 23 | U107: 659 | V107: 89 | W107: 569 | X107: -238 | Y107: 28
A108: 2015 | B108: 46 | C108: 17 | D108: 1 | E108: 107 | F108: 公共 | G108: 153079 | H108: 新潟県 | I108: 聖籠町 | J108: 509 | K108: 146 | L108: 222 | M108: 509 | N108: 93 | O108: 296 | P108: 17 | Q108: 0 | R108: 100 | S108: 95 | T108: 0 | U108: 256 | V108: 38 | W108: 217 | X108: -155 | Y108: 0
A109: 2015 | B109: 46 | C109: 17 | D109: 1 | E109: 108 | F109: 公共 | G109: 162019 | H109: 富山県 | I109: 富山市 | J109: 13568 | K109: 6120 | L109: 4673 | M109: 11782 | N109: 2245 | O109: 7036 | P109: 251 | Q109: 1786 | R109: 6190 | S109: 2583 | T109: 1498 | U109: 11941 | V109: 4329 | W109: 7611 | X109: -5751 | Y109: 1786
A110: 2015 | B110: 46 | C110: 17 | D110: 1 | E110: 109 | F110: 公共 | G110: 162027 | H110: 富山県 | I110: 高岡市 | J110: 4414 | K110: 2540 | L110: 826 | M110: 4234 | N110: 769 | O110: 2045 | P110: 81 | Q110: 181 | R110: 2997 | S110: 2018 | T110: 218 | U110: 4302 | V110: 1332 | W110: 2968 | X110: -1305 | Y110: 181
A111: 2015 | B111: 46 | C111: 17 | D111: 1 | E111: 110 | F111: 公共 | G111: 162078 | H111: 富山県 | I111: 黒部市 | J111: 1087 | K111: 253 | L111: 521 | M111: 1066 | N111: 165 | O111: 574 | P111: 21 | Q111: 20 | R111: 491 | S111: 293 | T111: 0 | U111: 851 | V111: 183 | W111: 668 | X111: -360 | Y111: 20
A112: 2015 | B112: 46 | C112: 17 | D112: 1 | E112: 111 | F112: 公共 | G112: 162108 | H112: 富山県 | I112: 南砺市 | J112: 1100 | K112: 378 | L112: 603 | M112: 756 | N112: 142 | O112: 416 | P112: 15 | Q112: 344 | R112: 353 | S112: 177 | T112: 152 | U112: 906 | V112: 106 | W112: 800 | X112: -553 | Y112: 344
A113: 2015 | B113: 46 | C113: 17 | D113: 1 | E113: 112 | F113: 公共 | G113: 162116 | H113: 富山県 | I113: 射水市 | J113: 2450 | K113: 930 | L113: 1055 | M113: 2340 | N113: 445 | O113: 1211 | P113: 71 | Q113: 110 | R113: 2222 | S113: 990 | T113: 0 | U113: 3142 | V113: 1898 | W113: 1234 | X113: -920 | Y113: 110
A114: 2015 | B114: 46 | C114: 17 | D114: 1 | E114: 113 | F114: 公共 | G114: 172014 | H114: 石川県 | I114: 金沢市 | J114: 17310 | K114: 7064 | L114: 5687 | M114: 16554 | N114: 3079 | O114: 9868 | P114: 500 | Q114: 756 | R114: 7120 | S114: 4525 | T114: 44 | U114: 14119 | V114: 4459 | W114: 9651 | X114: -7000 | Y114: 756
A115: 2015 | B115: 46 | C115: 17 | D115: 1 | E115: 114 | F115: 公共 | G115: 172031 | H115: 石川県 | I115: 小松市 | J115: 3555 | K115: 923 | L115: 1911 | M115: 3741 | N115: 928 | O115: 2166 | P115: 98 | Q115: -186 | R115: 2523 | S115: 1884 | T115: 213 | U115: 3549 | V115: 723 | W115: 2811 | X115: -1027 | Y115: -186
A116: 2015 | B116: 46 | C116: 17 | D116: 1 | E116: 115 | F116: 公共 | G116: 172073 | H116: 石川県 | I116: 羽咋市 | J116: 669 | K116: 191 | L116: 333 | M116: 669 | N116: 179 | O116: 397 | P116: 15 | Q116: 0 | R116: 492 | S116: 333 | T116: 109 | U116: 741 | V116: 101 | W116: 640 | X116: -248 | Y116: 0
A117: 2015 | B117: 46 | C117: 17 | D117: 1 | E117: 116 | F117: 公共 | G117: 172090 | H117: 石川県 | I117: かほく市 | J117: 1722 | K117: 323 | L117: 959 | M117: 1595 | N117: 269 | O117: 1146 | P117: 8 | Q117: 128 | R117: 289 | S117: 204 | T117: 0 | U117: 1147 | V117: 159 | W117: 988 | X117: -858 | Y117: 128
A118: 2015 | B118: 46 | C118: 17 | D118: 1 | E118: 117 | F118: 公共 | G118: 172103 | H118: 石川県 | I118: 白山市 | J118: 3509 | K118: 1389 | L118: 1313 | M118: 3667 | N118: 819 | O118: 2070 | P118: 64 | Q118: -158 | R118: 2379 | S118: 1554 | T118: 421 | U118: 3471 | V118: 941 | W118: 2520 | X118: -1092 | Y118: -158
A119: 2015 | B119: 46 | C119: 17 | D119: 1 | E119: 118 | F119: 公共 | G119: 172111 | H119: 石川県 | I119: 能美市 | J119: 1831 | K119: 693 | L119: 556 | M119: 1918 | N119: 364 | O119: 849 | P119: 12 | Q119: -87 | R119: 934 | S119: 575 | T119: 328 | U119: 1286 | V119: 48 | W119: 1238 | X119: -353 | Y119: -87
A120: 2015 | B120: 46 | C120: 17 | D120: 1 | E120: 119 | F120: 公共 | G120: 172120 | H120: 石川県 | I120: 野々市市 | J120: 1163 | K120: 686 | L120: 286 | M120: 1293 | N120: 280 | O120: 676 | P120: 44 | Q120: -130 | R120: 908 | S120: 520 | T120: 175 | U120: 1210 | V120: 429 | W120: 781 | X120: -302 | Y120: -130
A121: 2015 | B121: 46 | C121: 17 | D121: 1 | E121: 120 | F121: 公共 | G121: 173614 | H121: 石川県 | I121: 津幡町 | J121: 1565 | K121: 469 | L121: 592 | M121: 1349 | N121: 286 | O121: 829 | P121: 26 | Q121: 216 | R121: 929 | S121: 622 | T121: 77 | U121: 1479 | V121: 465 | W121: 1015 | X121: -550 | Y121: 216
A122: 2015 | B122: 46 | C122: 17 | D122: 1 | E122: 121 | F122: 公共 | G122: 182010 | H122: 福井県 | I122: 福井市 | J122: 8600 | K122: 3467 | L122: 2519 | M122: 8108 | N122: 1275 | O122: 4359 | P122: 605 | Q122: 492 | R122: 5089 | S122: 3136 | T122: 686 | U122: 7432 | V122: 3640 | W122: 3774 | X122: -2343 | Y122: 492
A123: 2015 | B123: 46 | C123: 17 | D123: 1 | E123: 122 | F123: 公共 | G123: 182087 | H123: 福井県 | I123: あわら市 | J123: 1147 | K123: 504 | L123: 393 | M123: 1138 | N123: 216 | O123: 598 | P123: 28 | Q123: 10 | R123: 804 | S123: 547 | T123: 241 | U123: 1208 | V123: 414 | W123: 795 | X123: -404 | Y123: 10
A124: 2015 | B124: 46 | C124: 17 | D124: 1 | E124: 123 | F124: 公共 | G124: 182109 | H124: 福井県 | I124: 坂井市 | J124: 3047 | K124: 1119 | L124: 1047 | M124: 3093 | N124: 484 | O124: 1844 | P124: 36 | Q124: -46 | R124: 2470 | S124: 1728 | T124: 203 | U124: 3366 | V124: 1323 | W124: 1993 | X124: -895 | Y124: -46
A125: 2015 | B125: 46 | C125: 17 | D125: 1 | E125: 124 | F125: 公共 | G125: 188433 | H125: 福井県 | I125: 五領川公共下水道事務組合 | J125: 477 | K125: 132 | L125: 150 | M125: 422 | N125: 47 | O125: 210 | P125: 32 | Q125: 55 | R125: 79 | S125: 47 | T125: 4 | U125: 246 | V125: 65 | W125: 178 | X125: -168 | Y125: 55
A126: 2015 | B126: 46 | C126: 17 | D126: 1 | E126: 125 | F126: 公共 | G126: 192015 | H126: 山梨県 | I126: 甲府市 | J126: 6441 | K126: 2856 | L126: 1837 | M126: 5423 | N126: 980 | O126: 3184 | P126: 204 | Q126: 1019 | R126: 3586 | S126: 1639 | T126: 1220 | U126: 6081 | V126: 1869 | W126: 3990 | X126: -2495 | Y126: 1019
A127: 2015 | B127: 46 | C127: 17 | D127: 1 | E127: 126 | F127: 公共 | G127: 202011 | H127: 長野県 | I127: 長野市 | J127: 12305 | K127: 6655 | L127: 2787 | M127: 9902 | N127: 1995 | O127: 5243 | P127: 278 | Q127: 2403 | R127: 4139 | S127: 1845 | T127: 906 | U127: 9098 | V127: 3630 | W127: 5468 | X127: -4959 | Y127: 2403
A128: 2015 | B128: 46 | C128: 17 | D128: 1 | E128: 127 | F128: 公共 | G128: 202029 | H128: 長野県 | I128: 松本市 | J128: 5570 | K128: 4153 | L128: 155 | M128: 4915 | N128: 658 | O128: 2762 | P128: 224 | Q128: 655 | R128: 1623 | S128: 237 | T128: 1022 | U128: 3556 | V128: 731 | W128: 2823 | X128: -1933 | Y128: 655
A129: 2015 | B129: 46 | C129: 17 | D129: 1 | E129: 128 | F129: 公共 | G129: 202037 | H129: 長野県 | I129: 上田市 | J129: 4423 | K129: 1810 | L129: 1541 | M129: 3896 | N129: 773 | O129: 2485 | P129: 53 | Q129: 527 | R129: 414 | S129: 102 | T129: 194 | U129: 2426 | V129: 244 | W129: 2182 | X129: -2012 | Y129: 527
A130: 2015 | B130: 46 | C130: 17 | D130: 1 | E130: 129 | F130: 公共 | G130: 202045 | H130: 長野県 | I130: 岡谷市 | J130: 1750 | K130: 974 | L130: 346 | M130: 1518 | N130: 210 | O130: 795 | P130: 81 | Q130: 232 | R130: 930 | S130: 591 | T130: 175 | U130: 1464 | V130: 397 | W130: 1067 | X130: -534 | Y130: 232
A131: 2015 | B131: 46 | C131: 17 | D131: 1 | E131: 130 | F131: 公共 | G131: 202061 | H131: 長野県 | I131: 諏訪市 | J131: 2199 | K131: 1280 | L131: 612 | M131: 1898 | N131: 277 | O131: 990 | P131: 90 | Q131: 301 | R131: 347 | S131: 150 | T131: 131 | U131: 1368 | V131: 342 | W131: 1027 | X131: -1022 | Y131: 301
A132: 2015 | B132: 46 | C132: 17 | D132: 1 | E132: 131 | F132: 公共 | G132: 202070 | H132: 長野県 | I132: 須坂市 | J132: 1700 | K132: 740 | L132: 642 | M132: 1411 | N132: 356 | O132: 719 | P132: 18 | Q132: 289 | R132: 811 | S132: 502 | T132: 300 | U132: 1361 | V132: 64 | W132: 1297 | X132: -550 | Y132: 289
A133: 2015 | B133: 46 | C133: 17 | D133: 1 | E133: 132 | F133: 公共 | G133: 202088 | H133: 長野県 | I133: 小諸市 | J133: 1178 | K133: 362 | L133: 584 | M133: 1040 | N133: 193 | O133: 544 | P133: 20 | Q133: 138 | R133: 632 | S133: 297 | T133: 104 | U133: 1108 | V133: 409 | W133: 689 | X133: -476 | Y133: 138
A134: 2015 | B134: 46 | C134: 17 | D134: 1 | E134: 133 | F134: 公共 | G134: 202096 | H134: 長野県 | I134: 伊那市 | J134: 1469 | K134: 622 | L134: 441 | M134: 1317 | N134: 276 | O134: 773 | P134: 61 | Q134: 152 | R134: 859 | S134: 667 | T134: 133 | U134: 1359 | V134: 148 | W134: 1211 | X134: -500 | Y134: 152
A135: 2015 | B135: 46 | C135: 17 | D135: 1 | E135: 134 | F135: 公共 | G135: 202100 | H135: 長野県 | I135: 駒ケ根市 | J135: 1057 | K135: 370 | L135: 402 | M135: 938 | N135: 180 | O135: 490 | P135: 12 | Q135: 119 | R135: 476 | S135: 265 | T135: 18 | U135: 850 | V135: 345 | W135: 505 | X135: -373 | Y135: 119
A136: 2015 | B136: 46 | C136: 17 | D136: 1 | E136: 135 | F136: 公共 | G136: 202126 | H136: 長野県 | I136: 大町市 | J136: 808 | K136: 276 | L136: 370 | M136: 774 | N136: 155 | O136: 419 | P136: 48 | Q136: 34 | R136: 290 | S136: 133 | T136: 92 | U136: 539 | V136: 152 | W136: 387 | X136: -249 | Y136: 34
A137: 2015 | B137: 46 | C137: 17 | D137: 1 | E137: 136 | F137: 公共 | G137: 202142 | H137: 長野県 | I137: 茅野市 | J137: 2050 | K137: 1113 | L137: 748 | M137: 1627 | N137: 237 | O137: 883 | P137: 67 | Q137: 423 | R137: 482 | S137: 213 | T137: 177 | U137: 1527 | V137: 359 | W137: 1168 | X137: -1045 | Y137: 423
A138: 2015 | B138: 46 | C138: 17 | D138: 1 | E138: 137 | F138: 公共 | G138: 202151 | H138: 長野県 | I138: 塩尻市 | J138: 2282 | K138: 1200 | L138: 323 | M138: 2061 | N138: 345 | O138: 1216 | P138: 72 | Q138: 221 | R138: 925 | S138: 440 | T138: 269 | U138: 1619 | V138: 537 | W138: 1082 | X138: -694 | Y138: 221
A139: 2015 | B139: 46 | C139: 17 | D139: 1 | E139: 138 | F139: 公共 | G139: 202177 | H139: 長野県 | I139: 佐久市 | J139: 2758 | K139: 1491 | L139: 601 | M139: 2312 | N139: 399 | O139: 1144 | P139: 73 | Q139: 446 | R139: 1181 | S139: 484 | T139: 0 | U139: 2014 | V139: 877 | W139: 1131 | X139: -833 | Y139: 446
A140: 2015 | B140: 46 | C140: 17 | D140: 1 | E140: 139 | F140: 公共 | G140: 202185 | H140: 長野県 | I140: 千曲市 | J140: 2748 | K140: 881 | L140: 1305 | M140: 2338 | N140: 606 | O140: 1256 | P140: 34 | Q140: 411 | R140: 933 | S140: 568 | T140: 152 | U140: 2005 | V140: 608 | W140: 1397 | X140: -1072 | Y140: 411
A141: 2015 | B141: 46 | C141: 17 | D141: 1 | E141: 140 | F141: 公共 | G141: 202193 | H141: 長野県 | I141: 東御市 | J141: 952 | K141: 295 | L141: 469 | M141: 845 | N141: 191 | O141: 456 | P141: 55 | Q141: 106 | R141: 451 | S141: 0 | T141: 34 | U141: 769 | V141: 152 | W141: 616 | X141: -317 | Y141: 106
A142: 2015 | B142: 46 | C142: 17 | D142: 1 | E142: 141 | F142: 公共 | G142: 203611 | H142: 長野県 | I142: 下諏訪町 | J142: 555 | K142: 445 | L142: 27 | M142: 547 | N142: 55 | O142: 268 | P142: 24 | Q142: 8 | R142: 158 | S142: 53 | T142: 63 | U142: 364 | V142: 100 | W142: 264 | X142: -206 | Y142: 8
A143: 2015 | B143: 46 | C143: 17 | D143: 1 | E143: 142 | F143: 公共 | G143: 203629 | H143: 長野県 | I143: 富士見町 | J143: 1130 | K143: 494 | L143: 456 | M143: 887 | N143: 182 | O143: 493 | P143: 24 | Q143: 244 | R143: 108 | S143: 0 | T143: 0 | U143: 718 | V143: 141 | W143: 557 | X143: -610 | Y143: 244
A144: 2015 | B144: 46 | C144: 17 | D144: 1 | E144: 143 | F144: 公共 | G144: 203831 | H144: 長野県 | I144: 箕輪町 | J144: 511 | K144: 193 | L144: 176 | M144: 511 | N144: 120 | O144: 309 | P144: 10 | Q144: 0 | R144: 216 | S144: 98 | T144: 95 | U144: 434 | V144: 54 | W144: 380 | X144: -218 | Y144: 0
A145: 2015 | B145: 46 | C145: 17 | D145: 1 | E145: 144 | F145: 公共 | G145: 203858 | H145: 長野県 | I145: 南箕輪村 | J145: 638 | K145: 240 | L145: 206 | M145: 630 | N145: 142 | O145: 382 | P145: 20 | Q145: 7 | R145: 252 | S145: 50 | T145: 101 | U145: 485 | V145: 129 | W145: 355 | X145: -233 | Y145: 7
A146: 2015 | B146: 46 | C146: 17 | D146: 1 | E146: 145 | F146: 公共 | G146: 203882 | H146: 長野県 | I146: 宮田村 | J146: 175 | K146: 115 | L146: 2 | M146: 228 | N146: 43 | O146: 113 | P146: 9 | Q146: -53 | R146: 197 | S146: 0 | T146: 0 | U146: 206 | V146: 35 | W146: 171 | X146: -9 | Y146: -53
A147: 2015 | B147: 46 | C147: 17 | D147: 1 | E147: 146 | F147: 公共 | G147: 212016 | H147: 岐阜県 | I147: 岐阜市 | J147: 8027 | K147: 4868 | L147: 1567 | M147: 7857 | N147: 1362 | O147: 3624 | P147: 680 | Q147: 171 | R147: 3605 | S147: 2532 | T147: 350 | U147: 6014 | V147: 2252 | W147: 3762 | X147: -2409 | Y147: 171
A148: 2015 | B148: 46 | C148: 17 | D148: 1 | E148: 147 | F148: 公共 | G148: 212113 | H148: 岐阜県 | I148: 美濃加茂市 | J148: 1898 | K148: 618 | L148: 771 | M148: 1812 | N148: 375 | O148: 922 | P148: 46 | Q148: 86 | R148: 778 | S148: 575 | T148: 147 | U148: 1235 | V148: 146 | W148: 1088 | X148: -457 | Y148: 86
A149: 2015 | B149: 46 | C149: 17 | D149: 1 | E149: 148 | F149: 公共 | G149: 221007 | H149: 静岡県 | I149: 静岡市 | J149: 21458 | K149: 9585 | L149: 7294 | M149: 20021 | N149: 3369 | O149: 10826 | P149: 1037 | Q149: 1437 | R149: 12043 | S149: 7925 | T149: 1 | U149: 18003 | V149: 7609 | W149: 10394 | X149: -5961 | Y149: 1437
A150: 2015 | B150: 46 | C150: 17 | D150: 1 | E150: 149 | F150: 公共 | G150: 221309 | H150: 静岡県 | I150: 浜松市 | J150: 16910 | K150: 9099 | L150: 4606 | M150: 14629 | N150: 2847 | O150: 8425 | P150: 395 | Q150: 2281 | R150: 7825 | S150: 4736 | T150: 0 | U150: 14500 | V150: 5501 | W150: 8998 | X150: -6675 | Y150: 2281
A151: 2015 | B151: 46 | C151: 17 | D151: 1 | E151: 150 | F151: 公共 | G151: 222038 | H151: 静岡県 | I151: 沼津市 | J151: 4286 | K151: 1363 | L151: 2099 | M151: 4171 | N151: 736 | O151: 2183 | P151: 177 | Q151: 116 | R151: 1889 | S151: 1314 | T151: 2 | U151: 3377 | V151: 1495 | W151: 1882 | X151: -1487 | Y151: 116
A152: 2015 | B152: 46 | C152: 17 | D152: 1 | E152: 151 | F152: 公共 | G152: 222054 | H152: 静岡県 | I152: 熱海市 | J152: 2001 | K152: 1163 | L152: 323 | M152: 1819 | N152: 222 | O152: 995 | P152: 58 | Q152: 181 | R152: 977 | S152: 348 | T152: 0 | U152: 1624 | V152: 700 | W152: 624 | X152: -647 | Y152: 181
A153: 2015 | B153: 46 | C153: 17 | D153: 1 | E153: 152 | F153: 公共 | G153: 222101 | H153: 静岡県 | I153: 富士市 | J153: 6336 | K153: 2730 | L153: 2405 | M153: 5062 | N153: 894 | O153: 2674 | P153: 235 | Q153: 1274 | R153: 2150 | S153: 1187 | T153: 135 | U153: 4965 | V153: 2336 | W153: 2628 | X153: -2815 | Y153: 1274
A154: 2015 | B154: 46 | C154: 17 | D154: 1 | E154: 153 | F154: 公共 | G154: 231002 | H154: 愛知県 | I154: 名古屋市 | J154: 72849 | K154: 31275 | L154: 35972 | M154: 71042 | N154: 9124 | O154: 35700 | P154: 6506 | Q154: 1807 | R154: 31247 | S154: 20387 | T154: 0 | U154: 70415 | V154: 40125 | W154: 30265 | X154: -39168 | Y154: 1807
A155: 2015 | B155: 46 | C155: 17 | D155: 1 | E155: 154 | F155: 公共 | G155: 232017 | H155: 愛知県 | I155: 豊橋市 | J155: 7358 | K155: 3611 | L155: 2203 | M155: 7433 | N155: 885 | O155: 3777 | P155: 492 | Q155: -75 | R155: 2902 | S155: 1134 | T155: 202 | U155: 5136 | V155: 2299 | W155: 2837 | X155: -2235 | Y155: -75
A156: 2015 | B156: 46 | C156: 17 | D156: 1 | E156: 155 | F156: 公共 | G156: 232025 | H156: 愛知県 | I156: 岡崎市 | J156: 8433 | K156: 3693 | L156: 3532 | M156: 7946 | N156: 1508 | O156: 4023 | P156: 216 | Q156: 488 | R156: 3500 | S156: 1560 | T156: 128 | U156: 7029 | V156: 3580 | W156: 3445 | X156: -3529 | Y156: 488
A157: 2015 | B157: 46 | C157: 17 | D157: 1 | E157: 156 | F157: 公共 | G157: 232033 | H157: 愛知県 | I157: 一宮市 | J157: 8036 | K157: 2329 | L157: 4729 | M157: 7941 | N157: 1640 | O157: 3798 | P157: 457 | Q157: 95 | R157: 6258 | S157: 3526 | T157: 373 | U157: 9386 | V157: 5339 | W157: 3746 | X157: -3128 | Y157: 95
A158: 2015 | B158: 46 | C158: 17 | D158: 1 | E158: 157 | F158: 公共 | G158: 232084 | H158: 愛知県 | I158: 津島市 | J158: 356 | K158: 164 | L158: 136 | M158: 318 | N158: 24 | O158: 126 | P158: 24 | Q158: 38 | R158: 128 | S158: 76 | T158: 20 | U158: 265 | V158: 85 | W158: 180 | X158: -137 | Y158: 38
A159: 2015 | B159: 46 | C159: 17 | D159: 1 | E159: 158 | F159: 公共 | G159: 232114 | H159: 愛知県 | I159: 豊田市 | J159: 7205 | K159: 3329 | L159: 2356 | M159: 6938 | N159: 1005 | O159: 4106 | P159: 190 | Q159: 267 | R159: 2439 | S159: 1041 | T159: 130 | U159: 5505 | V159: 2983 | W159: 2522 | X159: -3066 | Y159: 267
A160: 2015 | B160: 46 | C160: 17 | D160: 1 | E160: 159 | F160: 公共 | G160: 232203 | H160: 愛知県 | I160: 稲沢市 | J160: 1858 | K160: 652 | L160: 959 | M160: 1636 | N160: 351 | O160: 847 | P160: 48 | Q160: 222 | R160: 1161 | S160: 544 | T160: 53 | U160: 1937 | V160: 1125 | W160: 812 | X160: -776 | Y160: 222
A161: 2015 | B161: 46 | C161: 17 | D161: 1 | E161: 160 | F161: 公共 | G161: 232246 | H161: 愛知県 | I161: 知多市 | J161: 1432 | K161: 735 | L161: 211 | M161: 1617 | N161: 134 | O161: 844 | P161: 60 | Q161: -185 | R161: 529 | S161: 51 | T161: 424 | U161: 764 | V161: 231 | W161: 533 | X161: -235 | Y161: -185
A162: 2015 | B162: 46 | C162: 17 | D162: 1 | E162: 161 | F162: 公共 | G162: 242012 | H162: 三重県 | I162: 津市 | J162: 7393 | K162: 1214 | L162: 3344 | M162: 8561 | N162: 1208 | O162: 4931 | P162: 249 | Q162: -1168 | R162: 4967 | S162: 2381 | T162: 1964 | U162: 6985 | V162: 2916 | W162: 4069 | X162: -2018 | Y162: -1168
A163: 2015 | B163: 46 | C163: 17 | D163: 1 | E163: 162 | F163: 公共 | G163: 242021 | H163: 三重県 | I163: 四日市市 | J163: 14282 | K163: 3660 | L163: 6394 | M163: 12941 | N163: 1870 | O163: 7572 | P163: 368 | Q163: 1341 | R163: 6283 | S163: 3558 | T163: 239 | U163: 12284 | V163: 6968 | W163: 5316 | X163: -6001 | Y163: 1341
A164: 2015 | B164: 46 | C164: 17 | D164: 1 | E164: 163 | F164: 公共 | G164: 242039 | H164: 三重県 | I164: 伊勢市 | J164: 3018 | K164: 794 | L164: 1397 | M164: 2951 | N164: 550 | O164: 1469 | P164: 161 | Q164: 67 | R164: 2776 | S164: 1306 | T164: 247 | U164: 3721 | V164: 2715 | W164: 1005 | X164: -945 | Y164: 67
A165: 2015 | B165: 46 | C165: 17 | D165: 1 | E165: 164 | F165: 公共 | G165: 242047 | H165: 三重県 | I165: 松阪市 | J165: 3896 | K165: 1278 | L165: 1815 | M165: 3970 | N165: 898 | O165: 2052 | P165: 109 | Q165: -74 | R165: 3697 | S165: 1563 | T165: 913 | U165: 5023 | V165: 2915 | W165: 2106 | X165: -1327 | Y165: -74
A166: 2015 | B166: 46 | C166: 17 | D166: 1 | E166: 165 | F166: 公共 | G166: 242055 | H166: 三重県 | I166: 桑名市 | J166: 5038 | K166: 1731 | L166: 1418 | M166: 4822 | N166: 725 | O166: 2884 | P166: 108 | Q166: 216 | R166: 1582 | S166: 926 | T166: 402 | U166: 2926 | V166: 632 | W166: 2293 | X166: -1343 | Y166: 216
A167: 2015 | B167: 46 | C167: 17 | D167: 1 | E167: 166 | F167: 公共 | G167: 242071 | H167: 三重県 | I167: 鈴鹿市 | J167: 4521 | K167: 1338 | L167: 1933 | M167: 4182 | N167: 865 | O167: 2152 | P167: 142 | Q167: 338 | R167: 4082 | S167: 1644 | T167: 908 | U167: 5512 | V167: 3370 | W167: 2141 | X167: -1430 | Y167: 338
A168: 2015 | B168: 46 | C168: 17 | D168: 1 | E168: 167 | F168: 公共 | G168: 242101 | H168: 三重県 | I168: 亀山市 | J168: 923 | K168: 380 | L168: 329 | M168: 901 | N168: 153 | O168: 381 | P168: 83 | Q168: 22 | R168: 1317 | S168: 515 | T168: 169 | U168: 1308 | V168: 972 | W168: 336 | X168: 9 | Y168: 22
A169: 2015 | B169: 46 | C169: 17 | D169: 1 | E169: 168 | F169: 公共 | G169: 244619 | H169: 三重県 | I169: 玉城町 | J169: 396 | K169: 89 | L169: 173 | M169: 506 | N169: 101 | O169: 252 | P169: 0 | Q169: -111 | R169: 719 | S169: 246 | T169: 170 | U169: 719 | V169: 540 | W169: 179 | X169: 0 | Y169: -111
A170: 2015 | B170: 46 | C170: 17 | D170: 1 | E170: 169 | F170: 公共 | G170: 252018 | H170: 滋賀県 | I170: 大津市 | J170: 11204 | K170: 6720 | L170: 2310 | M170: 9115 | N170: 1254 | O170: 4593 | P170: 488 | Q170: 2090 | R170: 3651 | S170: 899 | T170: 772 | U170: 6669 | V170: 2032 | W170: 4637 | X170: -3017 | Y170: 2090
A171: 2015 | B171: 46 | C171: 17 | D171: 1 | E171: 170 | F171: 公共 | G171: 252069 | H171: 滋賀県 | I171: 草津市 | J171: 2900 | K171: 1709 | L171: 539 | M171: 2659 | N171: 378 | O171: 1310 | P171: 84 | Q171: 240 | R171: 1259 | S171: 488 | T171: 577 | U171: 2061 | V171: 431 | W171: 1630 | X171: -802 | Y171: 240
A172: 2015 | B172: 46 | C172: 17 | D172: 1 | E172: 171 | F172: 公共 | G172: 252085 | H172: 滋賀県 | I172: 栗東市 | J172: 1669 | K172: 969 | L172: 442 | M172: 1596 | N172: 320 | O172: 740 | P172: 31 | Q172: 73 | R172: 1326 | S172: 1021 | T172: 0 | U172: 1901 | V172: 724 | W172: 1177 | X172: -576 | Y172: 73
A173: 2015 | B173: 46 | C173: 17 | D173: 1 | E173: 172 | F173: 公共 | G173: 261009 | H173: 京都府 | I173: 京都市 | J173: 51125 | K173: 22139 | L173: 20392 | M173: 46393 | N173: 6340 | O173: 26581 | P173: 3762 | Q173: 4732 | R173: 22060 | S173: 14988 | T173: 2284 | U173: 46198 | V173: 20082 | W173: 26115 | X173: -24138 | Y173: 4732
A174: 2015 | B174: 46 | C174: 17 | D174: 1 | E174: 173 | F174: 公共 | G174: 262013 | H174: 京都府 | I174: 福知山市 | J174: 2830 | K174: 1330 | L174: 575 | M174: 2941 | N174: 294 | O174: 1654 | P174: 55 | Q174: -111 | R174: 2972 | S174: 1147 | T174: 137 | U174: 3909 | V174: 2963 | W174: 946 | X174: -937 | Y174: -111
A175: 2015 | B175: 46 | C175: 17 | D175: 1 | E175: 174 | F175: 公共 | G175: 262048 | H175: 京都府 | I175: 宇治市 | J175: 4965 | K175: 2490 | L175: 834 | M175: 5112 | N175: 856 | O175: 3012 | P175: 190 | Q175: -146 | R175: 4546 | S175: 2438 | T175: 368 | U175: 6239 | V175: 3869 | W175: 2370 | X175: -1693 | Y175: -146
A176: 2015 | B176: 46 | C176: 17 | D176: 1 | E176: 175 | F176: 公共 | G176: 262064 | H176: 京都府 | I176: 亀岡市 | J176: 2207 | K176: 1541 | L176: 174 | M176: 2104 | N176: 377 | O176: 1082 | P176: 90 | Q176: 103 | R176: 913 | S176: 167 | T176: 521 | U176: 1600 | V176: 420 | W176: 1180 | X176: -687 | Y176: 103
A177: 2015 | B177: 46 | C177: 17 | D177: 1 | E177: 176 | F177: 公共 | G177: 262072 | H177: 京都府 | I177: 城陽市 | J177: 1982 | K177: 1252 | L177: 329 | M177: 1894 | N177: 479 | O177: 870 | P177: 27 | Q177: 87 | R177: 1584 | S177: 1188 | T177: 271 | U177: 2078 | V177: 86 | W177: 1907 | X177: -494 | Y177: 87
A178: 2015 | B178: 46 | C178: 17 | D178: 1 | E178: 177 | F178: 公共 | G178: 262102 | H178: 京都府 | I178: 八幡市 | J178: 1636 | K178: 1014 | L178: 197 | M178: 1627 | N178: 176 | O178: 798 | P178: 44 | Q178: 9 | R178: 387 | S178: 132 | T178: 48 | U178: 743 | V178: 188 | W178: 554 | X178: -356 | Y178: 9
A179: 2015 | B179: 46 | C179: 17 | D179: 1 | E179: 178 | F179: 公共 | G179: 271004 | H179: 大阪府 | I179: 大阪市 | J179: 82447 | K179: 38368 | L179: 26887 | M179: 79346 | N179: 8243 | O179: 41040 | P179: 3295 | Q179: 3101 | R179: 51175 | S179: 30291 | T179: 4122 | U179: 82375 | V179: 38920 | W179: 43455 | X179: -31200 | Y179: 3101
A180: 2015 | B180: 46 | C180: 17 | D180: 1 | E180: 179 | F180: 公共 | G180: 271403 | H180: 大阪府 | I180: 堺市 | J180: 29477 | K180: 14842 | L180: 8016 | M180: 29140 | N180: 5757 | O180: 14817 | P180: 1949 | Q180: 337 | R180: 18393 | S180: 12077 | T180: 686 | U180: 28564 | V180: 12872 | W180: 15691 | X180: -10172 | Y180: 337
A181: 2015 | B181: 46 | C181: 17 | D181: 1 | E181: 180 | F181: 公共 | G181: 272027 | H181: 大阪府 | I181: 岸和田市 | J181: 7303 | K181: 3505 | L181: 2287 | M181: 6829 | N181: 1345 | O181: 3853 | P181: 229 | Q181: 474 | R181: 3748 | S181: 2655 | T181: 45 | U181: 6659 | V181: 1290 | W181: 5369 | X181: -2911 | Y181: 474
A182: 2015 | B182: 46 | C182: 17 | D182: 1 | E182: 181 | F182: 公共 | G182: 272035 | H182: 大阪府 | I182: 豊中市 | J182: 9849 | K182: 3769 | L182: 2679 | M182: 8949 | N182: 610 | O182: 4056 | P182: 627 | Q182: 900 | R182: 1729 | S182: 1236 | T182: 149 | U182: 4629 | V182: 2361 | W182: 2268 | X182: -2900 | Y182: 900
A183: 2015 | B183: 46 | C183: 17 | D183: 1 | E183: 182 | F183: 公共 | G183: 272043 | H183: 大阪府 | I183: 池田市 | J183: 2926 | K183: 913 | L183: 705 | M183: 2924 | N183: 151 | O183: 1837 | P183: 212 | Q183: 2 | R183: 485 | S183: 250 | T183: 0 | U183: 918 | V183: 556 | W183: 362 | X183: -432 | Y183: 2
A184: 2015 | B184: 46 | C184: 17 | D184: 1 | E184: 183 | F184: 公共 | G184: 272094 | H184: 大阪府 | I184: 守口市 | J184: 4200 | K184: 2228 | L184: 1301 | M184: 3479 | N184: 363 | O184: 1594 | P184: 296 | Q184: 721 | R184: 1067 | S184: 790 | T184: 114 | U184: 2589 | V184: 1287 | W184: 1302 | X184: -1522 | Y184: 721
A185: 2015 | B185: 46 | C185: 17 | D185: 1 | E185: 184 | F185: 公共 | G185: 272108 | H185: 大阪府 | I185: 枚方市 | J185: 13160 | K185: 5766 | L185: 3939 | M185: 10458 | N185: 1765 | O185: 5852 | P185: 568 | Q185: 2702 | R185: 4067 | S185: 1940 | T185: 1359 | U185: 9059 | V185: 3121 | W185: 5875 | X185: -4992 | Y185: 2702
A186: 2015 | B186: 46 | C186: 17 | D186: 1 | E186: 185 | F186: 公共 | G186: 272116 | H186: 大阪府 | I186: 茨木市 | J186: 6884 | K186: 3383 | L186: 1682 | M186: 6119 | N186: 1070 | O186: 2999 | P186: 126 | Q186: 765 | R186: 2274 | S186: 1353 | T186: 716 | U186: 4427 | V186: 1349 | W186: 3078 | X186: -2153 | Y186: 765
A187: 2015 | B187: 46 | C187: 17 | D187: 1 | E187: 186 | F187: 公共 | G187: 272124 | H187: 大阪府 | I187: 八尾市 | J187: 9778 | K187: 3317 | L187: 4683 | M187: 9246 | N187: 2022 | O187: 5396 | P187: 156 | Q187: 532 | R187: 6012 | S187: 3946 | T187: 1027 | U187: 10001 | V187: 4676 | W187: 5324 | X187: -3988 | Y187: 532
A188: 2015 | B188: 46 | C188: 17 | D188: 1 | E188: 187 | F188: 公共 | G188: 272159 | H188: 大阪府 | I188: 寝屋川市 | J188: 5708 | K188: 3303 | L188: 1630 | M188: 5588 | N188: 1354 | O188: 2816 | P188: 146 | Q188: 120 | R188: 3016 | S188: 2220 | T188: 498 | U188: 5118 | V188: 941 | W188: 4172 | X188: -2102 | Y188: 120
A189: 2015 | B189: 46 | C189: 17 | D189: 1 | E189: 188 | F189: 公共 | G189: 272183 | H189: 大阪府 | I189: 大東市 | J189: 3461 | K189: 1258 | L189: 1623 | M189: 3612 | N189: 769 | O189: 1979 | P189: 90 | Q189: -151 | R189: 825 | S189: 520 | T189: 92 | U189: 2410 | V189: 234 | W189: 2176 | X189: -1584 | Y189: -151
A190: 2015 | B190: 46 | C190: 17 | D190: 1 | E190: 189 | F190: 公共 | G190: 272191 | H190: 大阪府 | I190: 和泉市 | J190: 3812 | K190: 1895 | L190: 568 | M190: 3720 | N190: 582 | O190: 2228 | P190: 71 | Q190: 93 | R190: 1513 | S190: 1138 | T190: 0 | U190: 2552 | V190: 693 | W190: 1859 | X190: -1040 | Y190: 93
A191: 2015 | B191: 46 | C191: 17 | D191: 1 | E191: 190 | F191: 公共 | G191: 272205 | H191: 大阪府 | I191: 箕面市 | J191: 2520 | K191: 1529 | L191: 205 | M191: 2285 | N191: 128 | O191: 1306 | P191: 79 | Q191: 235 | R191: 280 | S191: 77 | T191: 114 | U191: 743 | V191: 328 | W191: 415 | X191: -463 | Y191: 235
A192: 2015 | B192: 46 | C192: 17 | D192: 1 | E192: 191 | F192: 公共 | G192: 272213 | H192: 大阪府 | I192: 柏原市 | J192: 2199 | K192: 1056 | L192: 583 | M192: 2179 | N192: 423 | O192: 1230 | P192: 96 | Q192: 20 | R192: 1351 | S192: 973 | T192: 270 | U192: 2076 | V192: 598 | W192: 1477 | X192: -725 | Y192: 20
A193: 2015 | B193: 46 | C193: 17 | D193: 1 | E193: 192 | F193: 公共 | G193: 272272 | H193: 大阪府 | I193: 東大阪市 | J193: 17301 | K193: 6671 | L193: 8067 | M193: 16624 | N193: 3293 | O193: 7971 | P193: 511 | Q193: 676 | R193: 7111 | S193: 4928 | T193: 0 | U193: 13269 | V193: 2948 | W193: 10321 | X193: -6158 | Y193: 676
A194: 2015 | B194: 46 | C194: 17 | D194: 1 | E194: 193 | F194: 公共 | G194: 272299 | H194: 大阪府 | I194: 四條畷市 | J194: 1880 | K194: 639 | L194: 791 | M194: 1776 | N194: 339 | O194: 983 | P194: 49 | Q194: 104 | R194: 717 | S194: 585 | T194: 0 | U194: 1373 | V194: 191 | W194: 1182 | X194: -656 | Y194: 104
A195: 2015 | B195: 46 | C195: 17 | D195: 1 | E195: 194 | F195: 公共 | G195: 281000 | H195: 兵庫県 | I195: 神戸市 | J195: 34432 | K195: 18774 | L195: 4348 | M195: 33263 | N195: 3090 | O195: 21353 | P195: 2475 | Q195: 1169 | R195: 11702 | S195: 5239 | T195: 541 | U195: 24011 | V195: 13688 | W195: 8308 | X195: -12309 | Y195: 1169
A196: 2015 | B196: 46 | C196: 17 | D196: 1 | E196: 195 | F196: 公共 | G196: 282014 | H196: 兵庫県 | I196: 姫路市 | J196: 17833 | K196: 7808 | L196: 6245 | M196: 17833 | N196: 3067 | O196: 9253 | P196: 607 | Q196: 0 | R196: 6646 | S196: 1553 | T196: 0 | U196: 12503 | V196: 3213 | W196: 9288 | X196: -5857 | Y196: 0
A197: 2015 | B197: 46 | C197: 17 | D197: 1 | E197: 196 | F197: 公共 | G197: 282022 | H197: 兵庫県 | I197: 尼崎市 | J197: 12447 | K197: 5764 | L197: 4151 | M197: 10894 | N197: 956 | O197: 5882 | P197: 777 | Q197: 1553 | R197: 5039 | S197: 2131 | T197: 628 | U197: 8749 | V197: 4703 | W197: 4046 | X197: -3710 | Y197: 1553
A198: 2015 | B198: 46 | C198: 17 | D198: 1 | E198: 197 | F198: 公共 | G198: 282049 | H198: 兵庫県 | I198: 西宮市 | J198: 12267 | K198: 5490 | L198: 4161 | M198: 11243 | N198: 1659 | O198: 5990 | P198: 480 | Q198: 1024 | R198: 6603 | S198: 3548 | T198: 731 | U198: 11585 | V198: 4885 | W198: 6699 | X198: -4982 | Y198: 1024
A199: 2015 | B199: 46 | C199: 17 | D199: 1 | E199: 198 | F199: 公共 | G199: 282073 | H199: 兵庫県 | I199: 伊丹市 | J199: 4868 | K199: 2466 | L199: 1764 | M199: 4511 | N199: 845 | O199: 2326 | P199: 164 | Q199: 358 | R199: 2148 | S199: 1645 | T199: 279 | U199: 4300 | V199: 418 | W199: 3694 | X199: -2152 | Y199: 358
A200: 2015 | B200: 46 | C200: 17 | D200: 1 | E200: 199 | F200: 公共 | G200: 282090 | H200: 兵庫県 | I200: 豊岡市 | J200: 2947 | K200: 876 | L200: 901 | M200: 2734 | N200: 476 | O200: 1595 | P200: 55 | Q200: 213 | R200: 1921 | S200: 1128 | T200: 319 | U200: 2554 | V200: 968 | W200: 1585 | X200: -633 | Y200: 213
... 3440 more rows

Sheet 28公共
A13: 団体 コード | B13: 都道府県名 | C13: 団体名 | D13: 事業 コード | E13: 類型区分 | F13: 処理区域内人口別区分 | G13: 有収水量密度別 区分 | H13: 供用開始後年数別区分 | I13: 処理区域内 人口 | J13: 有収水量 密度 | K13: 供用開始 後年 | L13: 事業別 普及率 | M13: 進捗率 | N13: 一般家庭使用料 （1ヶ月20m3あたり） | O13: 処理区域内 人口密度 | P13: 施設利用率 | Q13: 有収率 | R13: 水洗化率 | S13: 使用料単価 | T13: 汚水処理原価 | U13: 汚水処理原価（分流式下水道等に要する経費控除前） | V13: 汚水処理原価（維持管理費） | W13: 汚水処理原価（資本費） | X13: 経費回収率 | Y13: 経費回収率 （分流式下水道等に要する経費控除前） | Z13: 経費回収率 （維持管理費） | AA13: 処理区域１人 あたりの管理運営費（汚水分） | AB13: 処理区域１人 あたりの維持管理費（汚水分） | AC13: 処理区域１人 あたりの資本費（汚水分） | AD13: 職員1人あたりの処理区域内人口 | AE13: 職員給与費 対営業収益比率 | AF13: 総収支比率 | AG13: 経常収支比率 | AH13: 事業別 資金不足比率 | AI13: 利子負担率 | AJ13: 自己資本 構成比率 | AK13: 固定資産対 長期資本比率 | AL13: 処理区域内人口 1人あたり地方債残高
I14: 人 | J14: 千㎥/ｈa | K14: 年 | L14: ％ | M14: ％ | N14: 円/月 | O14: 人/ha | P14: ％ | Q14: ％ | R14: ％ | S14: 円/m3 | T14: 円/m3 | U14: 円/m3 | V14: 円/m3 | W14: 円/m3 | X14: ％ | Y14: ％ | Z14: ％ | AA14: 円/人 | AB14: 円/人 | AC14: 円/人 | AD14: 人/人 | AE14: ％ | AF14: ％ | AG14: ％ | AH14: ％ | AI14: ％ | AJ14: ％ | AK14: ％ | AL14: 千円/人
A16: 011002 | B16: 北海道 | C16: 札幌市 | D16: 1171 | E16: 政令市等 | F16: 政令市等 | G16: 政令市等 | H16: 政令市等 | I16: 1932394 | J16: 8.4 | K16: 56 | L16: 99.3 | M16: 104.1 | N16: 1371 | O16: 79 | P16: 67.7 | Q16: 71.7 | R16: 99.9 | S16: 93.6 | T16: 90.8 | U16: 90.8 | V16: 51.63 | W16: 39.17 | X16: 103.1 | Y16: 103.1 | Z16: 181.3 | AA16: 9721 | AB16: 5527 | AC16: 4193 | AD16: 3968 | AE16: 8.4 | AF16: 109.5 | AG16: 109.5 | AH16: 0 | AI16: 1.9 | AJ16: 57.4 | AK16: 101.7 | AL16: 128
A17: 041009 | B17: 宮城県 | C17: 仙台市 | D17: 1171 | E17: 政令市等 | F17: 政令市等 | G17: 政令市等 | H17: 政令市等 | I17: 1029561 | J17: 6.5 | K17: 53 | L17: 97.7 | M17: 99.3 | N17: 1882 | O17: 61 | P17: 86.8 | Q17: 85 | R17: 99.6 | S17: 149.05 | T17: 118.15 | U17: 118.15 | V17: 48.71 | W17: 69.44 | X17: 126.1 | Y17: 126.1 | Z17: 306 | AA17: 12542 | AB17: 5171 | AC17: 7371 | AD17: 4308 | AE17: 5.1 | AF17: 117.6 | AG17: 112.9 | AH17: 0 | AI17: 2.1 | AJ17: 65.7 | AK17: 100.9 | AL17: 192
A18: 111007 | B18: 埼玉県 | C18: さいたま市 | D18: 1171 | E18: 政令市等 | F18: 政令市等 | G18: 政令市等 | H18: 政令市等 | I18: 1189028 | J18: 9.5 | K18: 52 | L18: 92.5 | M18: 107.7 | N18: 2414 | O18: 98 | P18: 51 | Q18: 86.1 | R18: 96.6 | S18: 146.04 | T18: 135.55 | U18: 135.55 | V18: 53.87 | W18: 81.68 | X18: 107.7 | Y18: 107.7 | Z18: 271.1 | AA18: 13098 | AB18: 5205 | AC18: 7893 | AD18: 8200 | AE18: 2.6 | AF18: 105.4 | AG18: 105.4 | AH18: 0 | AI18: 1.9 | AJ18: 55.7 | AK18: 101.5 | AL18: 151
A19: 121002 | B19: 千葉県 | C19: 千葉市 | D19: 1171 | E19: 政令市等 | F19: 政令市等 | G19: 政令市等 | H19: 政令市等 | I19: 869463 | J19: 7.8 | K19: 54 | L19: 90 | M19: 95.6 | N19: 1998 | O19: 77 | P19: 100.4 | Q19: 79.2 | R19: 99.7 | S19: 142.88 | T19: 123.68 | U19: 137.01 | V19: 58.35 | W19: 65.33 | X19: 115.5 | Y19: 104.3 | Z19: 244.9 | AA19: 12579 | AB19: 5934 | AC19: 6644 | AD19: 5835 | AE19: 3.6 | AF19: 106.6 | AG19: 106.3 | AH19: 0 | AI19: 1.9 | AJ19: 50 | AK19: 103.2 | AL19: 254
A20: 130001 | B20: 東京都 | C20: 東京都 | D20: 1171 | E20: 政令市等 | F20: 政令市等 | G20: 政令市等 | H20: 政令市等 | I20: 9329218 | J20: 21.4 | K20: 65 | L20: 99.9 | M20: 107.3 | N20: 2030 | O20: 166 | P20: 58.4 | Q20: 92.6 | R20: 100 | S20: 131.13 | T20: 108.96 | U20: 108.96 | V20: 58.66 | W20: 50.3 | X20: 120.3 | Y20: 120.3 | Z20: 223.6 | AA20: 14049 | AB20: 7563 | AC20: 6486 | AD20: 4349 | AE20: 4.6 | AF20: 112.6 | AG20: 112.2 | AH20: 0 | AI20: 1.9 | AJ20: 69.3 | AK20: 102 | AL20: 161
A21: 141003 | B21: 神奈川県 | C21: 横浜市 | D21: 1171 | E21: 政令市等 | F21: 政令市等 | G21: 政令市等 | H21: 政令市等 | I21: 3734434 | J21: 12.2 | K21: 55 | L21: 99.9 | M21: 100.9 | N21: 1998 | O21: 120 | P21: 60.7 | Q21: 69.9 | R21: 99.7 | S21: 147.59 | T21: 109.15 | U21: 109.15 | V21: 48.06 | W21: 61.09 | X21: 135.2 | Y21: 135.2 | Z21: 307.1 | AA21: 11093 | AB21: 4884 | AC21: 6209 | AD21: 4538 | AE21: 5.6 | AF21: 114.8 | AG21: 114.3 | AH21: 0 | AI21: 1.7 | AJ21: 63.3 | AK21: 102.6 | AL21: 202
A22: 141305 | B22: 神奈川県 | C22: 川崎市 | D22: 1171 | E22: 政令市等 | F22: 政令市等 | G22: 政令市等 | H22: 政令市等 | I22: 1487834 | J22: 13.9 | K22: 86 | L22: 99.5 | M22: 101.5 | N22: 2116 | O22: 139 | P22: 53.5 | Q22: 83 | R22: 99 | S22: 149.71 | T22: 132.03 | U22: 132.03 | V22: 48.52 | W22: 83.51 | X22: 113.4 | Y22: 113.4 | Z22: 308.6 | AA22: 13213 | AB22: 4856 | AC22: 8358 | AD22: 3638 | AE22: 8.7 | AF22: 106.4 | AG22: 107.7 | AH22: 0 | AI22: 1.8 | AJ22: 48.6 | AK22: 107.9 | AL22: 227
A23: 141500 | B23: 神奈川県 | C23: 相模原市 | D23: 1171 | E23: 政令市等 | F23: 政令市等 | G23: 政令市等 | H23: 政令市等 | I23: 691056 | J23: 9.7 | K23: 49 | L23: 96.5 | M23: 98.4 | N23: 1999 | O23: 91 | P23: 0 | Q23: 89.4 | R23: 99 | S23: 118.03 | T23: 114.35 | U23: 114.35 | V23: 46.58 | W23: 67.77 | X23: 103.2 | Y23: 103.2 | Z23: 253.4 | AA23: 12139 | AB23: 4945 | AC23: 7194 | AD23: 6775 | AE23: 3.8 | AF23: 104.7 | AG23: 104.6 | AH23: 0 | AI23: 2.5 | AJ23: 64.1 | AK23: 102.4 | AL23: 127
A24: 151009 | B24: 新潟県 | C24: 新潟市 | D24: 1171 | E24: 政令市等 | F24: 政令市等 | G24: 政令市等 | H24: 政令市等 | I24: 650342 | J24: 6 | K24: 50 | L24: 84.5 | M24: 92.7 | N24: 2991 | O24: 56 | P24: 92.4 | Q24: 66.4 | R24: 90.6 | S24: 172.25 | T24: 156.02 | U24: 189.77 | V24: 58.64 | W24: 97.39 | X24: 110.4 | Y24: 90.8 | Z24: 293.8 | AA24: 16683 | AB24: 6270 | AC24: 10413 | AD24: 3268 | AE24: 4.8 | AF24: 108 | AG24: 107.8 | AH24: 0 | AI24: 1.9 | AJ24: 43.9 | AK24: 103.3 | AL24: 478
A25: 221007 | B25: 静岡県 | C25: 静岡市 | D25: 1171 | E25: 政令市等 | F25: 政令市等 | G25: 政令市等 | H25: 政令市等 | I25: 588692 | J25: 7.2 | K25: 57 | L25: 83.2 | M25: 100.9 | N25: 2720 | O25: 67 | P25: 69.9 | Q25: 48.8 | R25: 89.4 | S25: 151.11 | T25: 148.96 | U25: 176.03 | V25: 62.93 | W25: 86.03 | X25: 101.4 | Y25: 85.8 | Z25: 240.1 | AA25: 16133 | AB25: 6816 | AC25: 9317 | AD25: 3182 | AE25: 6.8 | AF25: 109.5 | AG25: 109.5 | AH25: 0 | AI25: 2.1 | AJ25: 58.8 | AK25: 100.1 | AL25: 257
A26: 221309 | B26: 静岡県 | C26: 浜松市 | D26: 1171 | E26: 政令市等 | F26: 政令市等 | G26: 政令市等 | H26: 政令市等 | I26: 575599 | J26: 5.7 | K26: 51 | L26: 71.4 | M26: 91.1 | N26: 2516 | O26: 50 | P26: 70.6 | Q26: 83.7 | R26: 96.8 | S26: 139.31 | T26: 122.22 | U26: 165.81 | V26: 47.77 | W26: 74.45 | X26: 114 | Y26: 84 | Z26: 291.6 | AA26: 13991 | AB26: 5468 | AC26: 8522 | AD26: 6059 | AE26: 3.8 | AF26: 90.2 | AG26: 106.3 | AH26: 0 | AI26: 2.1 | AJ26: 55.6 | AK26: 102.5 | AL26: 238
A27: 231002 | B27: 愛知県 | C27: 名古屋市 | D27: 1171 | E27: 政令市等 | F27: 政令市等 | G27: 政令市等 | H27: 政令市等 | I27: 2258000 | J27: 9.1 | K27: 105 | L27: 99.3 | M27: 99.1 | N27: 1771 | O27: 80 | P27: 53.4 | Q27: 66.4 | R27: 99.8 | S27: 121.08 | T27: 119.9 | U27: 119.9 | V27: 53.77 | W27: 66.13 | X27: 101 | Y27: 101 | Z27: 225.2 | AA27: 13664 | AB27: 6128 | AC27: 7536 | AD27: 2323 | AE27: 10.2 | AF27: 103.2 | AG27: 103.2 | AH27: 0 | AI27: 1.8 | AJ27: 54.8 | AK27: 100.6 | AL27: 203
A28: 261009 | B28: 京都府 | C28: 京都市 | D28: 1171 | E28: 政令市等 | F28: 政令市等 | G28: 政令市等 | H28: 政令市等 | I28: 1402585 | J28: 11.9 | K28: 83 | L28: 99.1 | M28: 102.8 | N28: 1976 | O28: 92 | P28: 59.1 | Q28: 56.6 | R28: 99.2 | S28: 122.41 | T28: 101.33 | U28: 101.33 | V28: 44.84 | W28: 56.49 | X28: 120.8 | Y28: 120.8 | Z28: 273 | AA28: 13118 | AB28: 5805 | AC28: 7313 | AD28: 2692 | AE28: 8.9 | AF28: 110.2 | AG28: 110.8 | AH28: 0 | AI28: 1.8 | AJ28: 54.8 | AK28: 101.5 | AL28: 225
A29: 271004 | B29: 大阪府 | C29: 大阪市 | D29: 1171 | E29: 政令市等 | F29: 政令市等 | G29: 政令市等 | H29: 政令市等 | I29: 2692734 | J29: 21.5 | K29: 77 | L29: 100 | M29: 98 | N29: 1252 | O29: 141 | P29: 55.1 | Q29: 74.7 | R29: 100 | S29: 94.3 | T29: 93.52 | U29: 93.52 | V29: 53.72 | W29: 39.8 | X29: 100.8 | Y29: 100.8 | Z29: 175.5 | AA29: 14199 | AB29: 8156 | AC29: 6043 | AD29: 6568 | AE29: 4.4 | AF29: 103.4 | AG29: 104.6 | AH29: 0 | AI29: 1.7 | AJ29: 55.9 | AK29: 100.7 | AL29: 175
A30: 271403 | B30: 大阪府 | C30: 堺市 | D30: 1171 | E30: 政令市等 | F30: 政令市等 | G30: 政令市等 | H30: 政令市等 | I30: 825575 | J30: 8.4 | K30: 57 | L30: 98 | M30: 103.3 | N30: 2824 | O30: 82 | P30: 85.9 | Q30: 85.8 | R30: 94.3 | S30: 177.04 | T30: 158.17 | U30: 158.17 | V30: 58.82 | W30: 99.35 | X30: 111.9 | Y30: 111.9 | Z30: 301 | AA30: 16212 | AB30: 6029 | AC30: 10183 | AD30: 3969 | AE30: 7.8 | AF30: 106.1 | AG30: 107.3 | AH30: 0 | AI30: 2 | AJ30: 46.7 | AK30: 102.7 | AL30: 315
A31: 281000 | B31: 兵庫県 | C31: 神戸市 | D31: 1171 | E31: 政令市等 | F31: 政令市等 | G31: 政令市等 | H31: 政令市等 | I31: 1505750 | J31: 10 | K31: 59 | L31: 97.7 | M31: 100.1 | N31: 1566 | O31: 88 | P31: 70.8 | Q31: 95 | R31: 99.9 | S31: 109.59 | T31: 112.93 | U31: 112.93 | V31: 43.69 | W31: 69.24 | X31: 97 | Y31: 97 | Z31: 250.8 | AA31: 12810 | AB31: 4956 | AC31: 7854 | AD31: 4508 | AE31: 10.4 | AF31: 103.8 | AG31: 101.8 | AH31: 0 | AI31: 2.1 | AJ31: 77 | AK31: 97.4 | AL31: 91
A32: 331007 | B32: 岡山県 | C32: 岡山市 | D32: 1171 | E32: 政令市等 | F32: 政令市等 | G32: 政令市等 | H32: 政令市等 | I32: 460238 | J32: 6.9 | K32: 55 | L32: 65 | M32: 82.2 | N32: 2957 | O32: 63 | P32: 227.5 | Q32: 82.6 | R32: 87.9 | S32: 184.08 | T32: 189.15 | U32: 229.41 | V32: 69.64 | W32: 119.51 | X32: 97.3 | Y32: 80.2 | Z32: 264.4 | AA32: 20679 | AB32: 7613 | AC32: 13066 | AD32: 3487 | AE32: 4.5 | AF32: 100 | AG32: 99.9 | AH32: 0 | AI32: 2 | AJ32: 38.4 | AK32: 104.2 | AL32: 458
A33: 341002 | B33: 広島県 | C33: 広島市 | D33: 1171 | E33: 政令市等 | F33: 政令市等 | G33: 政令市等 | H33: 政令市等 | I33: 1119200 | J33: 8.5 | K33: 56 | L33: 93.8 | M33: 105.5 | N33: 2219 | O33: 80 | P33: 65 | Q33: 81.2 | R33: 97.3 | S33: 168.73 | T33: 158.31 | U33: 158.31 | V33: 50.8 | W33: 107.52 | X33: 106.6 | Y33: 106.6 | Z33: 332.2 | AA33: 16641 | AB33: 5339 | AC33: 11301 | AD33: 2969 | AE33: 7.6 | AF33: 103.2 | AG33: 103.2 | AH33: 0 | AI33: 1.9 | AJ33: 44.7 | AK33: 105.1 | AL33: 394
A34: 401005 | B34: 福岡県 | C34: 北九州市 | D34: 1171 | E34: 政令市等 | F34: 政令市等 | G34: 政令市等 | H34: 政令市等 | I34: 947998 | J34: 6.1 | K34: 54 | L34: 98.6 | M34: 74.3 | N34: 2207 | O34: 60 | P34: 72.6 | Q34: 71.5 | R34: 99.7 | S34: 147.43 | T34: 151.04 | U34: 151.04 | V34: 58.77 | W34: 92.27 | X34: 97.6 | Y34: 97.6 | Z34: 250.9 | AA34: 15334 | AB34: 5966 | AC34: 9367 | AD34: 6156 | AE34: 4.2 | AF34: 105.9 | AG34: 105.2 | AH34: 0 | AI34: 1.8 | AJ34: 63.7 | AK34: 101.3 | AL34: 158
A35: 401307 | B35: 福岡県 | C35: 福岡市 | D35: 1171 | E35: 政令市等 | F35: 政令市等 | G35: 政令市等 | H35: 政令市等 | I35: 1511100 | J35: 9.1 | K35: 55 | L35: 99.7 | M35: 94.4 | N35: 2602 | O35: 89 | P35: 60 | Q35: 79.5 | R35: 99.6 | S35: 180.68 | T35: 146.68 | U35: 146.68 | V35: 67.33 | W35: 79.34 | X35: 123.2 | Y35: 123.2 | Z35: 268.3 | AA35: 15000 | AB35: 6886 | AC35: 8114 | AD35: 5495 | AE35: 2.8 | AF35: 113.1 | AG35: 113.1 | AH35: 0 | AI35: 1.9 | AJ35: 49.1 | AK35: 102.6 | AL35: 261
A36: 431001 | B36: 熊本県 | C36: 熊本市 | D36: 1171 | E36: 政令市等 | F36: 政令市等 | G36: 政令市等 | H36: 政令市等 | I36: 651795 | J36: 5.9 | K36: 57 | L36: 89.1 | M36: 97.8 | N36: 2303 | O36: 56 | P36: 70.9 | Q36: 78.4 | R36: 97.2 | S36: 145.38 | T36: 150.83 | U36: 166.89 | V36: 66.21 | W36: 84.62 | X36: 96.4 | Y36: 87.1 | Z36: 219.6 | AA36: 15749 | AB36: 6914 | AC36: 8835 | AD36: 3682 | AE36: 10.2 | AF36: 104.9 | AG36: 109.1 | AH36: 1 | AI36: 2 | AJ36: 49.7 | AK36: 100 | AL36: 213
B37: 団体数 | C37: 21 | E37: 政令市等 計 | M37: 100.6 | N37: 2177 | O37: 99 | P37: 63.1 | Q37: 78.6 | R37: 98.9 | S37: 133.06 | T37: 117.4 | U37: 120.14 | V37: 54.57 | W37: 62.83 | X37: 113.3 | Y37: 110.8 | Z37: 243.8 | AA37: 13622 | AB37: 6331 | AC37: 7290 | AD37: 4152 | AE37: 5.9 | AF37: 108.9 | AG37: 109.1 | AH37: 0 | AI37: 1.9 | AJ37: 59.7 | AK37: 102.1 | AL37: 200
A38: 112011 | B38: 埼玉県 | C38: 川越市 | D38: 1171 | E38: Aa1 | F38: A | G38: a | H38: 1 | I38: 307312 | J38: 8.8 | K38: 53 | L38: 87.3 | M38: 98.9 | N38: 1566 | O38: 82 | P38: 0 | Q38: 73.7 | R38: 97.5 | S38: 98.31 | T38: 96.11 | U38: 96.11 | V38: 46.64 | W38: 49.47 | X38: 102.3 | Y38: 102.3 | Z38: 210.8 | AA38: 10314 | AB38: 5005 | AC38: 5309 | AD38: 4656 | AE38: 8.6 | AF38: 105.5 | AG38: 106.2 | AH38: 0 | AI38: 2.3 | AJ38: 77.4 | AK38: 97.2 | AL38: 60
A39: 112089 | B39: 埼玉県 | C39: 所沢市 | D39: 1171 | E39: Aa1 | F39: A | G39: a | H39: 1 | I39: 321652 | J39: 10.2 | K39: 49 | L39: 93.5 | M39: 101 | N39: 1277 | O39: 100 | P39: 0 | Q39: 99.4 | R39: 98.2 | S39: 81 | T39: 99.03 | U39: 99.03 | V39: 49.08 | W39: 49.94 | X39: 81.8 | Y39: 81.8 | Z39: 165 | AA39: 10101 | AB39: 5007 | AC39: 5094 | AD39: 4467 | AE39: 10.1 | AF39: 94.1 | AG39: 93.9 | AH39: 0 | AI39: 2.4 | AJ39: 77.9 | AK39: 99.4 | AL39: 57
A40: 112143 | B40: 埼玉県 | C40: 春日部市 | D40: 1171 | E40: Aa1 | F40: A | G40: a | H40: 1 | I40: 207795 | J40: 8.9 | K40: 30 | L40: 88 | M40: 94.9 | N40: 2333 | O40: 95 | P40: 0 | Q40: 90.1 | R40: 94.5 | S40: 116.97 | T40: 150 | U40: 155.84 | V40: 56.95 | W40: 93.05 | X40: 78 | Y40: 75.1 | Z40: 205.4 | AA40: 14028 | AB40: 5326 | AC40: 8702 | AD40: 12223 | AE40: 3.9 | AF40: 114.4 | AG40: 114.4 | AH40: 0 | AI40: 2.1 | AJ40: 42.4 | AK40: 103.7 | AL40: 185
A41: 112151 | B41: 埼玉県 | C41: 狭山市 | D41: 1171 | E41: Aa1 | F41: A | G41: a | H41: 1 | I41: 146045 | J41: 8.7 | K41: 43 | L41: 95.6 | M41: 98.9 | N41: 1404 | O41: 76 | P41: 0 | Q41: 87.5 | R41: 98.4 | S41: 92.56 | T41: 114.72 | U41: 114.72 | V41: 43.6 | W41: 71.12 | X41: 80.7 | Y41: 80.7 | Z41: 212.3 | AA41: 13055 | AB41: 4961 | AC41: 8093 | AD41: 6350 | AE41: 4.8 | AF41: 104.9 | AG41: 104.9 | AH41: 0 | AI41: 2.6 | AJ41: 74.7 | AK41: 99.2 | AL41: 96
A42: 112241 | B42: 埼玉県 | C42: 戸田市 | D42: 1171 | E42: Aa1 | F42: A | G42: a | H42: 1 | I42: 123140 | J42: 12.4 | K42: 44 | L42: 89.4 | M42: 107.3 | N42: 777 | O42: 104 | P42: 0 | Q42: 78 | R42: 98.9 | S42: 69.38 | T42: 75.51 | U42: 75.51 | V42: 51.65 | W42: 23.87 | X42: 91.9 | Y42: 91.9 | Z42: 134.3 | AA42: 8989 | AB42: 6148 | AC42: 2841 | AD42: 11195 | AE42: 3.4 | AF42: 103.5 | AG42: 103.6 | AH42: 0 | AI42: 2.3 | AJ42: 59.8 | AK42: 101.1 | AL42: 70
A43: 112259 | B43: 埼玉県 | C43: 入間市 | D43: 1171 | E43: Aa1 | F43: A | G43: a | H43: 1 | I43: 131454 | J43: 8.5 | K43: 31 | L43: 88.4 | M43: 93.3 | N43: 1782 | O43: 84 | P43: 0 | Q43: 88.4 | R43: 96.9 | S43: 101.92 | T43: 118.3 | U43: 118.3 | V43: 47.12 | W43: 71.18 | X43: 86.1 | Y43: 86.1 | Z43: 216.3 | AA43: 11946 | AB43: 4758 | AC43: 7187 | AD43: 11950 | AE43: 4.1 | AF43: 107 | AG43: 107 | AH43: 0 | AI43: 2.8 | AJ43: 75.9 | AK43: 101.2 | AL43: 63
A44: 112356 | B44: 埼玉県 | C44: 富士見市 | D44: 1171 | E44: Aa1 | F44: A | G44: a | H44: 1 | I44: 105115 | J44: 11.6 | K44: 35 | L44: 95 | M44: 106.3 | N44: 1620 | O44: 124 | P44: 0 | Q44: 86.7 | R44: 96.1 | S44: 88.66 | T44: 88.34 | U44: 88.34 | V44: 44.72 | W44: 43.63 | X44: 100.4 | Y44: 100.4 | Z44: 198.3 | AA44: 8254 | AB44: 4178 | AC44: 4076 | AD44: 13139 | AE44: 2.6 | AF44: 120.9 | AG44: 121 | AH44: 0 | AI44: 2.9 | AJ44: 68.6 | AK44: 100.3 | AL44: 61
A45: 112453 | B45: 埼玉県 | C45: ふじみ野市 | D45: 1171 | E45: Aa1 | F45: A | G45: a | H45: 1 | I45: 106305 | J45: 13.6 | K45: 35 | L45: 93.6 | M45: 111.2 | N45: 1346 | O45: 115 | P45: 0 | Q45: 83.3 | R45: 97.3 | S45: 78.39 | T45: 73.33 | U45: 73.33 | V45: 48 | W45: 25.34 | X45: 106.9 | Y45: 106.9 | Z45: 163.3 | AA45: 8689 | AB45: 5687 | AC45: 3002 | AD45: 10631 | AE45: 4.9 | AF45: 108.4 | AG45: 109.3 | AH45: 0 | AI45: 2.3 | AJ45: 81.3 | AK45: 98.1 | AL45: 31
A46: 122173 | B46: 千葉県 | C46: 柏市 | D46: 1171 | E46: Aa1 | F46: A | G46: a | H46: 1 | I46: 370799 | J46: 8.1 | K46: 44 | L46: 89.6 | M46: 94.6 | N46: 2314 | O46: 82 | P46: 0 | Q46: 82.6 | R46: 87.2 | S46: 147.37 | T46: 140.21 | U46: 140.21 | V46: 77.56 | W46: 62.65 | X46: 105.1 | Y46: 105.1 | Z46: 190 | AA46: 13702 | AB46: 7580 | AC46: 6123 | AD46: 8427 | AE46: 3.8 | AF46: 105.4 | AG46: 105.4 | AH46: 0 | AI46: 2.3 | AJ46: 71.2 | AK46: 99.5 | AL46: 110
A47: 122203 | B47: 千葉県 | C47: 流山市 | D47: 1171 | E47: Aa1 | F47: A | G47: a | H47: 1 | I47: 154864 | J47: 8.5 | K47: 31 | L47: 85.2 | M47: 93.3 | N47: 2160 | O47: 93 | P47: 0 | Q47: 81.1 | R47: 92.5 | S47: 123.08 | T47: 140.08 | U47: 151.76 | V47: 79.06 | W47: 61.03 | X47: 87.9 | Y47: 81.1 | Z47: 155.7 | AA47: 12711 | AB47: 7174 | AC47: 5538 | AD47: 9110 | AE47: 5.1 | AF47: 103.2 | AG47: 102.6 | AH47: 0 | AI47: 2.2 | AJ47: 63.3 | AK47: 100.8 | AL47: 116
A48: 122211 | B48: 千葉県 | C48: 八千代市 | D48: 1171 | E48: Aa1 | F48: A | G48: a | H48: 1 | I48: 180333 | J48: 8.9 | K48: 49 | L48: 91.9 | M48: 84 | N48: 2062 | O48: 94 | P48: 0 | Q48: 81.9 | R48: 99.2 | S48: 127.76 | T48: 116.33 | U48: 116.33 | V48: 73.39 | W48: 42.94 | X48: 109.8 | Y48: 109.8 | Z48: 174.1 | AA48: 11048 | AB48: 6970 | AC48: 4078 | AD48: 7514 | AE48: 4.8 | AF48: 105.8 | AG48: 107 | AH48: 0 | AI48: 2.5 | AJ48: 78 | AK48: 100.1 | AL48: 46
A49: 142034 | B49: 神奈川県 | C49: 平塚市 | D49: 1171 | E49: Aa1 | F49: A | G49: a | H49: 1 | I49: 250531 | J49: 8.2 | K49: 44 | L49: 97.4 | M49: 99.3 | N49: 1998 | O49: 72 | P49: 0 | Q49: 88.3 | R49: 97.2 | S49: 118.49 | T49: 88.6 | U49: 124.88 | V49: 46.17 | W49: 42.43 | X49: 133.7 | Y49: 94.9 | Z49: 256.7 | AA49: 10048 | AB49: 5236 | AC49: 4812 | AD49: 6959 | AE49: 3 | AF49: 111.8 | AG49: 112.4 | AH49: 0 | AI49: 2.9 | AJ49: 63.3 | AK49: 102.8 | AL49: 169
A50: 142051 | B50: 神奈川県 | C50: 藤沢市 | D50: 1171 | E50: Aa1 | F50: A | G50: a | H50: 1 | I50: 409367 | J50: 9.2 | K50: 58 | L50: 95.5 | M50: 97.5 | N50: 2063 | O50: 87 | P50: 63.7 | Q50: 79 | R50: 98.2 | S50: 125.93 | T50: 123.66 | U50: 145.05 | V50: 77.02 | W50: 46.63 | X50: 101.8 | Y50: 86.8 | Z50: 163.5 | AA50: 13116 | AB50: 8170 | AC50: 4946 | AD50: 5386 | AE50: 5.2 | AF50: 104.4 | AG50: 103.4 | AH50: 0 | AI50: 2.7 | AJ50: 66.2 | AK50: 102.1 | AL50: 133
A51: 142069 | B51: 神奈川県 | C51: 小田原市 | D51: 1171 | E51: Aa1 | F51: A | G51: a | H51: 1 | I51: 159800 | J51: 7.9 | K51: 51 | L51: 82.6 | M51: 104.4 | N51: 2589 | O51: 64 | P51: 0 | Q51: 0 | R51: 93.2 | S51: 170.29 | T51: 175.45 | U51: 231.94 | V51: 77.59 | W51: 97.86 | X51: 97.1 | Y51: 73.4 | Z51: 219.5 | AA51: 21823 | AB51: 9651 | AC51: 12172 | AD51: 4439 | AE51: 4.2 | AF51: 105.4 | AG51: 105.7 | AH51: 0 | AI51: 2.2 | AJ51: 52.7 | AK51: 102.7 | AL51: 277
A52: 142077 | B52: 神奈川県 | C52: 茅ヶ崎市 | D52: 1171 | E52: Aa1 | F52: A | G52: a | H52: 1 | I52: 231034 | J52: 10.4 | K52: 40 | L52: 95.6 | M52: 96.1 | N52: 1844 | O52: 104 | P52: 0 | Q52: 86.2 | R52: 98.2 | S52: 111.28 | T52: 104.16 | U52: 104.16 | V52: 54.12 | W52: 50.04 | X52: 106.8 | Y52: 106.8 | Z52: 205.6 | AA52: 10407 | AB52: 5408 | AC52: 4999 | AD52: 6795 | AE52: 3.6 | AF52: 104.5 | AG52: 104.5 | AH52: 0 | AI52: 2.3 | AJ52: 55.9 | AK52: 101.2 | AL52: 143
A53: 142166 | B53: 神奈川県 | C53: 座間市 | D53: 1171 | E53: Aa1 | F53: A | G53: a | H53: 1 | I53: 127741 | J53: 9.6 | K53: 39 | L53: 98 | M53: 107.6 | N53: 2370 | O53: 106 | P53: 0 | Q53: 93.5 | R53: 95.3 | S53: 133.61 | T53: 138.85 | U53: 138.85 | V53: 47.66 | W53: 91.19 | X53: 96.2 | Y53: 96.2 | Z53: 280.4 | AA53: 12548 | AB53: 4307 | AC53: 8241 | AD53: 7097 | AE53: 5.4 | AF53: 107.8 | AG53: 108.8 | AH53: 0 | AI53: 2.6 | AJ53: 57.9 | AK53: 103.6 | AL53: 134
A54: 222038 | B54: 静岡県 | C54: 沼津市 | D54: 1171 | E54: Aa1 | F54: A | G54: a | H54: 1 | I54: 107415 | J54: 7.9 | K54: 39 | L54: 54.2 | M54: 77.8 | N54: 2100 | O54: 66 | P54: 88.4 | Q54: 59.7 | R54: 88.4 | S54: 106.78 | T54: 167.19 | U54: 207.27 | V54: 82.19 | W54: 85 | X54: 63.9 | Y54: 51.5 | Z54: 129.9 | AA54: 19919 | AB54: 9792 | AC54: 10127 | AD54: 2827 | AE54: 9.5 | AF54: 104 | AG54: 104 | AH54: 0 | AI54: 2 | AJ54: 48 | AK54: 102.8 | AL54: 320
A55: 262048 | B55: 京都府 | C55: 宇治市 | D55: 1171 | E55: Aa1 | F55: A | G55: a | H55: 1 | I55: 175175 | J55: 9.3 | K55: 31 | L55: 93 | M55: 98 | N55: 3026 | O55: 105 | P55: 57.6 | Q55: 88.8 | R55: 83.8 | S55: 163.54 | T55: 194.34 | U55: 215.42 | V55: 75.67 | W55: 118.67 | X55: 84.2 | Y55: 75.9 | Z55: 216.1 | AA55: 17214 | AB55: 6703 | AC55: 10511 | AD55: 3369 | AE55: 7 | AF55: 101 | AG55: 101.1 | AH55: 0 | AI55: 1.9 | AJ55: 53.1 | AK55: 102.2 | AL55: 243
A56: 272035 | B56: 大阪府 | C56: 豊中市 | D56: 1171 | E56: Aa1 | F56: A | G56: a | H56: 1 | I56: 403916 | J56: 13.1 | K56: 52 | L56: 100 | M56: 83.8 | N56: 1395 | O56: 120 | P56: 211.7 | Q56: 69 | R56: 99.8 | S56: 85.3 | T56: 83.05 | U56: 83.05 | V56: 50.56 | W56: 32.49 | X56: 102.7 | Y56: 102.7 | Z56: 168.7 | AA56: 9047 | AB56: 5508 | AC56: 3540 | AD56: 4207 | AE56: 10.8 | AF56: 108.4 | AG56: 108.4 | AH56: 0 | AI56: 2 | AJ56: 69.9 | AK56: 98.8 | AL56: 68
A57: 272078 | B57: 大阪府 | C57: 高槻市 | D57: 1171 | E57: Aa1 | F57: A | G57: a | H57: 1 | I57: 351795 | J57: 11.4 | K57: 48 | L57: 99.4 | M57: 114.6 | N57: 1929 | O57: 111 | P57: 0 | Q57: 79.5 | R57: 97.4 | S57: 126.09 | T57: 144.56 | U57: 144.56 | V57: 59.7 | W57: 84.86 | X57: 87.2 | Y57: 87.2 | Z57: 211.2 | AA57: 14859 | AB57: 6136 | AC57: 8723 | AD57: 8580 | AE57: 1.8 | AF57: 104 | AG57: 105.2 | AH57: 0 | AI57: 2.8 | AJ57: 63.6 | AK57: 103 | AL57: 138
A58: 272094 | B58: 大阪府 | C58: 守口市 | D58: 1171 | E58: Aa1 | F58: A | G58: a | H58: 1 | I58: 143811 | J58: 14.2 | K58: 51 | L58: 100 | M58: 101.3 | N58: 2018 | O58: 126 | P58: 102.8 | Q58: 62.3 | R58: 100 | S58: 135.45 | T58: 87.3 | U58: 87.3 | V58: 58.64 | W58: 28.66 | X58: 155.2 | Y58: 155.2 | Z58: 231 | AA58: 9857 | AB58: 6621 | AC58: 3236 | AD58: 3344 | AE58: 6.7 | AF58: 125.4 | AG58: 125.4 | AH58: 0 | AI58: 2.3 | AJ58: 60.8 | AK58: 98.7 | AL58: 98
A59: 272108 | B59: 大阪府 | C59: 枚方市 | D59: 1171 | E59: Aa1 | F59: A | G59: a | H59: 1 | I59: 386005 | J59: 11.5 | K59: 59 | L59: 95.5 | M59: 101.5 | N59: 2570 | O59: 115 | P59: 0 | Q59: 86.4 | R59: 97 | S59: 149.74 | T59: 150 | U59: 182.11 | V59: 51.76 | W59: 98.24 | X59: 99.8 | Y59: 82.2 | Z59: 289.3 | AA59: 15053 | AB59: 5195 | AC59: 9858 | AD59: 3416 | AE59: 8.7 | AF59: 120.2 | AG59: 119.4 | AH59: 0 | AI59: 2.3 | AJ59: 66.6 | AK59: 102.4 | AL59: 178
A60: 272116 | B60: 大阪府 | C60: 茨木市 | D60: 1171 | E60: Aa1 | F60: A | G60: a | H60: 1 | I60: 278045 | J60: 11.4 | K60: 47 | L60: 99.1 | M60: 94.3 | N60: 1890 | O60: 105 | P60: 0 | Q60: 71.5 | R60: 98.9 | S60: 113.19 | T60: 97.06 | U60: 97.06 | V60: 52.17 | W60: 44.89 | X60: 116.6 | Y60: 116.6 | Z60: 217 | AA60: 10558 | AB60: 5675 | AC60: 4883 | AD60: 11122 | AE60: 2.9 | AF60: 116.3 | AG60: 115.7 | AH60: 0 | AI60: 3.2 | AJ60: 66.6 | AK60: 102.6 | AL60: 106
A61: 272124 | B61: 大阪府 | C61: 八尾市 | D61: 1171 | E61: Aa1 | F61: A | G61: a | H61: 1 | I61: 229891 | J61: 10.3 | K61: 44 | L61: 85.8 | M61: 91.6 | N61: 2516 | O61: 88 | P61: 0 | Q61: 58.8 | R61: 90.1 | S61: 138.96 | T61: 131.86 | U61: 131.86 | V61: 54.02 | W61: 77.84 | X61: 105.4 | Y61: 105.4 | Z61: 257.2 | AA61: 15426 | AB61: 6320 | AC61: 9106 | AD61: 4033 | AE61: 2.2 | AF61: 103 | AG61: 102.5 | AH61: 0 | AI61: 2 | AJ61: 49.1 | AK61: 102.6 | AL61: 413
A62: 272159 | B62: 大阪府 | C62: 寝屋川市 | D62: 1171 | E62: Aa1 | F62: A | G62: a | H62: 1 | I62: 236095 | J62: 13.3 | K62: 45 | L62: 99.7 | M62: 120.1 | N62: 2297 | O62: 131 | P62: 0 | Q62: 67.3 | R62: 97.9 | S62: 138.36 | T62: 133.53 | U62: 133.53 | V62: 39.62 | W62: 93.91 | X62: 103.6 | Y62: 103.6 | Z62: 349.2 | AA62: 13570 | AB62: 4027 | AC62: 9544 | AD62: 13116 | AE62: 2.5 | AF62: 106.8 | AG62: 106.8 | AH62: 0 | AI62: 2.4 | AJ62: 37.8 | AK62: 104.3 | AL62: 221
A63: 272183 | B63: 大阪府 | C63: 大東市 | D63: 1171 | E63: Aa1 | F63: A | G63: a | H63: 1 | I63: 120784 | J63: 10.5 | K63: 45 | L63: 98.8 | M63: 99.3 | N63: 1615 | O63: 101 | P63: 0 | Q63: 64.6 | R63: 97.2 | S63: 99.58 | T63: 98.22 | U63: 98.22 | V63: 46.39 | W63: 51.83 | X63: 101.4 | Y63: 101.4 | Z63: 214.7 | AA63: 10208 | AB63: 4821 | AC63: 5387 | AD63: 7549 | AE63: 4.3 | AF63: 100.8 | AG63: 100.8 | AH63: 13.3 | AI63: 2.3 | AJ63: 52.1 | AK63: 104.6 | AL63: 246
A64: 272205 | B64: 大阪府 | C64: 箕面市 | D64: 1171 | E64: Aa1 | F64: A | G64: a | H64: 1 | I64: 136938 | J64: 8.1 | K64: 48 | L64: 100 | M64: 90.7 | N64: 1829 | O64: 78 | P64: 0 | Q64: 75 | R64: 99.9 | S64: 104.71 | T64: 92.73 | U64: 92.73 | V64: 51.65 | W64: 41.08 | X64: 112.9 | Y64: 112.9 | Z64: 202.7 | AA64: 9647 | AB64: 5373 | AC64: 4274 | AD64: 10534 | AE64: 4.7 | AF64: 110 | AG64: 110 | AH64: 0 | AI64: 2.4 | AJ64: 86.9 | AK64: 91.4 | AL64: 34
A65: 272272 | B65: 大阪府 | C65: 東大阪市 | D65: 1171 | E65: Aa1 | F65: A | G65: a | H65: 1 | I65: 486076 | J65: 10.8 | K65: 49 | L65: 98.6 | M65: 98.6 | N65: 2049 | O65: 99 | P65: 0 | Q65: 59.5 | R65: 96 | S65: 125.42 | T65: 101.49 | U65: 101.49 | V65: 55.83 | W65: 45.66 | X65: 123.6 | Y65: 123.6 | Z65: 224.6 | AA65: 11088 | AB65: 6100 | AC65: 4988 | AD65: 5462 | AE65: 3.8 | AF65: 103.7 | AG65: 103.7 | AH65: 0 | AI65: 2 | AJ65: 35.3 | AK65: 103.6 | AL65: 315
A66: 282022 | B66: 兵庫県 | C66: 尼崎市 | D66: 1171 | E66: Aa1 | F66: A | G66: a | H66: 1 | I66: 462480 | J66: 13.7 | K66: 58 | L66: 100 | M66: 101 | N66: 1683 | O66: 114 | P66: 46 | Q66: 71.6 | R66: 99.6 | S66: 103.46 | T66: 74.49 | U66: 74.49 | V66: 48.63 | W66: 25.86 | X66: 138.9 | Y66: 138.9 | Z66: 212.8 | AA66: 8943 | AB66: 5838 | AC66: 3105 | AD66: 4057 | AE66: 8.3 | AF66: 115.9 | AG66: 115.9 | AH66: 0 | AI66: 2.4 | AJ66: 76.1 | AK66: 97 | AL66: 74
A67: 282031 | B67: 兵庫県 | C67: 明石市 | D67: 1171 | E67: Aa1 | F67: A | G67: a | H67: 1 | I67: 297434 | J67: 8.2 | K67: 49 | L67: 99.5 | M67: 118.2 | N67: 2157 | O67: 78 | P67: 68.6 | Q67: 81.6 | R67: 98.2 | S67: 150.3 | T67: 128.52 | U67: 154.42 | V67: 57.94 | W67: 70.59 | X67: 116.9 | Y67: 97.3 | Z67: 259.4 | AA67: 13595 | AB67: 6128 | AC67: 7467 | AD67: 4439 | AE67: 8.3 | AF67: 109.1 | AG67: 109.9 | AH67: 0.1 | AI67: 2.3 | AJ67: 55.7 | AK67: 102.1 | AL67: 175
A68: 282049 | B68: 兵庫県 | C68: 西宮市 | D68: 1171 | E68: Aa1 | F68: A | G68: a | H68: 1 | I68: 484737 | J68: 11.3 | K68: 57 | L68: 99.9 | M68: 93.2 | N68: 1745 | O68: 101 | P68: 50.6 | Q68: 74.4 | R68: 99.8 | S68: 101.68 | T68: 97.15 | U68: 106.69 | V68: 49.38 | W68: 47.76 | X68: 104.7 | Y68: 95.3 | Z68: 205.9 | AA68: 10807 | AB68: 5494 | AC68: 5314 | AD68: 6215 | AE68: 6 | AF68: 111.1 | AG68: 111.1 | AH68: 0 | AI68: 2.3 | AJ68: 63.3 | AK68: 102.9 | AL68: 132
A69: 282073 | B69: 兵庫県 | C69: 伊丹市 | D69: 1171 | E69: Aa1 | F69: A | G69: a | H69: 1 | I69: 201651 | J69: 12.1 | K69: 48 | L69: 100 | M69: 102.7 | N69: 1695 | O69: 100 | P69: 0 | Q69: 72.2 | R69: 99.6 | S69: 101.77 | T69: 84.76 | U69: 84.76 | V69: 35.72 | W69: 49.04 | X69: 120.1 | Y69: 120.1 | Z69: 284.9 | AA69: 10282 | AB69: 4333 | AC69: 5949 | AD69: 7202 | AE69: 4.3 | AF69: 109.5 | AG69: 109.6 | AH69: 0.2 | AI69: 2.2 | AJ69: 46.7 | AK69: 104.3 | AL69: 170
A70: 282146 | B70: 兵庫県 | C70: 宝塚市 | D70: 1171 | E70: Aa1 | F70: A | G70: a | H70: 1 | I70: 231372 | J70: 9.6 | K70: 43 | L70: 98.7 | M70: 99 | N70: 1814 | O70: 96 | P70: 0 | Q70: 85 | R70: 99.1 | S70: 94.69 | T70: 115.24 | U70: 115.24 | V70: 42.87 | W70: 72.36 | X70: 82.2 | Y70: 82.2 | Z70: 220.9 | AA70: 11593 | AB70: 4313 | AC70: 7280 | AD70: 10060 | AE70: 4.8 | AF70: 113.4 | AG70: 113.4 | AH70: 0 | AI70: 2.2 | AJ70: 67.4 | AK70: 102.8 | AL70: 109
A71: 282171 | B71: 兵庫県 | C71: 川西市 | D71: 1171 | E71: Aa1 | F71: A | G71: a | H71: 1 | I71: 158576 | J71: 8.6 | K71: 43 | L71: 99.5 | M71: 99.9 | N71: 2106 | O71: 90 | P71: 0 | Q71: 80 | R71: 99.3 | S71: 116.59 | T71: 75.08 | U71: 86.78 | V71: 48.53 | W71: 26.55 | X71: 155.3 | Y71: 134.3 | Z71: 240.2 | AA71: 7113 | AB71: 4598 | AC71: 2515 | AD71: 5663 | AE71: 6.7 | AF71: 121.8 | AG71: 121.7 | AH71: 0 | AI71: 2 | AJ71: 65.5 | AK71: 97 | AL71: 88
A72: 292010 | B72: 奈良県 | C72: 奈良市 | D72: 1171 | E72: Aa1 | F72: A | G72: a | H72: 1 | I72: 315553 | J72: 7.7 | K72: 54 | L72: 87.7 | M72: 95.5 | N72: 2320 | O72: 68 | P72: 659.4 | Q72: 95.4 | R72: 95.5 | S72: 108.14 | T72: 94.62 | U72: 112.21 | V72: 68.56 | W72: 26.06 | X72: 114.3 | Y72: 96.4 | Z72: 157.7 | AA72: 10722 | AB72: 7769 | AC72: 2953 | AD72: 12622 | AE72: 4.2 | AF72: 94.5 | AG72: 94.5 | AH72: 0 | AI72: 1.6 | AJ72: 59.5 | AK72: 102.6 | AL72: 120
A73: 462012 | B73: 鹿児島県 | C73: 鹿児島市 | D73: 1171 | E73: Aa1 | F73: A | G73: a | H73: 1 | I73: 472000 | J73: 8 | K73: 62 | L73: 77.9 | M73: 95.5 | N73: 1803 | O73: 68 | P73: 78.3 | Q73: 88.1 | R73: 98.1 | S73: 107.33 | T73: 108.46 | U73: 121.69 | V73: 64.26 | W73: 44.21 | X73: 99 | Y73: 88.2 | Z73: 167 | AA73: 12835 | AB73: 7604 | AC73: 5231 | AD73: 3006 | AE73: 20.6 | AF73: 108.1 | AG73: 108.1 | AH73: 0 | AI73: 2.2 | AJ73: 67.4 | AK73: 96.6 | AL73: 57
A74: 472018 | B74: 沖縄県 | C74: 那覇市 | D74: 1171 | E74: Aa1 | F74: A | G74: a | H74: 1 | I74: 317080 | J74: 10.2 | K74: 48 | L74: 98.1 | M74: 101.1 | N74: 1468 | O74: 90 | P74: 0 | Q74: 100 | R74: 95.5 | S74: 95.42 | T74: 85.11 | U74: 90.26 | V74: 67 | W74: 18.12 | X74: 112.1 | Y74: 105.7 | Z74: 142.4 | AA74: 9610 | AB74: 7564 | AC74: 2045 | AD74: 6746 | AE74: 6.9 | AF74: 108.7 | AG74: 108.7 | AH74: 0 | AI74: 2.2 | AJ74: 70.2 | AK74: 96.3 | AL74: 47
A75: 112038 | B75: 埼玉県 | C75: 川口市 | D75: 2171 | E75: Aa1 | F75: A | G75: a | H75: 1 | I75: 515704 | J75: 12.2 | K75: 58 | L75: 86.5 | M75: 101.5 | N75: 1678 | O75: 124 | P75: 0 | Q75: 89.4 | R75: 94.3 | S75: 98.18 | T75: 129.19 | U75: 129.19 | V75: 65.85 | W75: 63.35 | X75: 76 | Y75: 76 | Z75: 149.1 | AA75: 12747 | AB75: 6497 | AC75: 6250 | AD75: 7064 | AE75: 6.5 | AF75: 139 | AG75: 81.5 | AH75: 0 | AI75: 0 | AJ75: 0 | AK75: 0 | AL75: 108
A76: 112194 | B76: 埼玉県 | C76: 上尾市 | D76: 2171 | E76: Aa1 | F76: A | G76: a | H76: 1 | I76: 184829 | J76: 7.7 | K76: 42 | L76: 81 | M76: 102.4 | N76: 2116 | O76: 82 | P76: 0 | Q76: 93.5 | R76: 96.2 | S76: 131.1 | T76: 137.19 | U76: 137.19 | V76: 62.95 | W76: 74.23 | X76: 95.6 | Y76: 95.6 | Z76: 208.3 | AA76: 12885 | AB76: 5913 | AC76: 6972 | AD76: 8401 | AE76: 3.2 | AF76: 169.2 | AG76: 93.7 | AH76: 0 | AI76: 0 | AJ76: 0 | AK76: 0 | AL76: 94
A77: 112216 | B77: 埼玉県 | C77: 草加市 | D77: 2171 | E77: Aa1 | F77: A | G77: a | H77: 1 | I77: 228713 | J77: 10.1 | K77: 34 | L77: 92.4 | M77: 101.4 | N77: 1803 | O77: 96 | P77: 0 | Q77: 87.3 | R77: 97.8 | S77: 101.36 | T77: 150 | U77: 193.76 | V77: 62.99 | W77: 87.01 | X77: 67.6 | Y77: 52.3 | Z77: 160.9 | AA77: 15821 | AB77: 6644 | AC77: 9177 | AD77: 13454 | AE77: 2.8 | AF77: 160.8 | AG77: 69.2 | AH77: 0 | AI77: 0 | AJ77: 0 | AK77: 0 | AL77: 173
A78: 112224 | B78: 埼玉県 | C78: 越谷市 | D78: 2171 | E78: Aa1 | F78: A | G78: a | H78: 1 | I78: 282760 | J78: 9.9 | K78: 34 | L78: 83.2 | M78: 99.3 | N78: 2322 | O78: 102 | P78: 0 | Q78: 89 | R78: 95.2 | S78: 120.32 | T78: 135.27 | U78: 135.27 | V78: 68.39 | W78: 66.88 | X78: 88.9 | Y78: 88.9 | Z78: 175.9 | AA78: 13018 | AB78: 6582 | AC78: 6436 | AD78: 11310 | AE78: 3.4 | AF78: 169.7 | AG78: 68.3 | AH78: 0 | AI78: 0 | AJ78: 0 | AK78: 0 | AL78: 130
A79: 112275 | B79: 埼玉県 | C79: 朝霞市 | D79: 2171 | E79: Aa1 | F79: A | G79: a | H79: 1 | I79: 133948 | J79: 12.4 | K79: 35 | L79: 97.6 | M79: 112.8 | N79: 1134 | O79: 124 | P79: 0 | Q79: 81.3 | R79: 99.2 | S79: 66.23 | T79: 66.92 | U79: 66.92 | V79: 53.08 | W79: 13.84 | X79: 99 | Y79: 99 | Z79: 124.8 | AA79: 6723 | AB79: 5332 | AC79: 1391 | AD79: 11162 | AE79: 6.8 | AF79: 118.7 | AG79: 93 | AH79: 0 | AI79: 0 | AJ79: 0 | AK79: 0 | AL79: 23
A80: 112305 | B80: 埼玉県 | C80: 新座市 | D80: 2171 | E80: Aa1 | F80: A | G80: a | H80: 1 | I80: 153280 | J80: 11.4 | K80: 35 | L80: 92.9 | M80: 108.3 | N80: 1609 | O80: 112 | P80: 0 | Q80: 100 | R80: 98.7 | S80: 96.46 | T80: 126.33 | U80: 126.33 | V80: 46.46 | W80: 79.87 | X80: 76.4 | Y80: 76.4 | Z80: 207.6 | AA80: 12875 | AB80: 4735 | AC80: 8140 | AD80: 12773 | AE80: 3.4 | AF80: 156.4 | AG80: 79 | AH80: 0 | AI80: 0 | AJ80: 0 | AK80: 0 | AL80: 92
A81: 112372 | B81: 埼玉県 | C81: 三郷市 | D81: 2171 | E81: Aa1 | F81: A | G81: a | H81: 1 | I81: 108895 | J81: 8.2 | K81: 34 | L81: 78.1 | M81: 88.7 | N81: 1566 | O81: 88 | P81: 0 | Q81: 84.1 | R81: 89.2 | S81: 92.29 | T81: 150 | U81: 200.46 | V81: 61.4 | W81: 88.6 | X81: 61.5 | Y81: 46 | Z81: 150.3 | AA81: 14001 | AB81: 5731 | AC81: 8270 | AD81: 7778 | AE81: 4.7 | AF81: 146.8 | AG81: 62.6 | AH81: 0 | AI81: 0 | AJ81: 0 | AK81: 0 | AL81: 253
A82: 118541 | B82: 埼玉県 | C82: 坂戸、鶴ケ島下水道組合 | D82: 2171 | E82: Aa1 | F82: A | G82: a | H82: 1 | I82: 120688 | J82: 7.5 | K82: 44 | L82: 73.6 | M82: 79.5 | N82: 1998 | O82: 75 | P82: 70.9 | Q82: 80.6 | R82: 94.9 | S82: 132.58 | T82: 150.36 | U82: 210.11 | V82: 109.43 | W82: 40.93 | X82: 88.2 | Y82: 63.1 | Z82: 121.2 | AA82: 15082 | AB82: 10976 | AC82: 4106 | AD82: 3095 | AE82: 14.3 | AF82: 148 | AG82: 96.5 | AH82: 0 | AI82: 0 | AJ82: 0 | AK82: 0 | AL82: 117
A83: 122033 | B83: 千葉県 | C83: 市川市 | D83: 2171 | E83: Aa1 | F83: A | G83: a | H83: 1 | I83: 350200 | J83: 14.2 | K83: 45 | L83: 72.6 | M83: 74.5 | N83: 2516 | O83: 156 | P83: 126.2 | Q83: 81.6 | R83: 94 | S83: 152.86 | T83: 163.29 | U83: 178.32 | V83: 90.94 | W83: 72.35 | X83: 93.6 | Y83: 85.7 | Z83: 168.1 | AA83: 14861 | AB83: 8276 | AC83: 6585 | AD83: 6254 | AE83: 5.9 | AF83: 149.6 | AG83: 97.8 | AH83: 0 | AI83: 0 | AJ83: 0 | AK83: 0 | AL83: 99
A84: 122041 | B84: 千葉県 | C84: 船橋市 | D84: 2171 | E84: Aa1 | F84: A | G84: a | H84: 1 | I84: 485298 | J84: 12 | K84: 56 | L84: 76.7 | M84: 87.3 | N84: 1938 | O84: 118 | P84: 89.7 | Q84: 77.3 | R84: 91.3 | S84: 146.86 | T84: 150 | U84: 178.62 | V84: 74.92 | W84: 75.08 | X84: 97.9 | Y84: 82.2 | Z84: 196 | AA84: 15277 | AB84: 7630 | AC84: 7646 | AD84: 5218 | AE84: 2.7 | AF84: 173.6 | AG84: 79.3 | AH84: 0 | AI84: 0 | AJ84: 0 | AK84: 0 | AL84: 284
A85: 122076 | B85: 千葉県 | C85: 松戸市 | D85: 2171 | E85: Aa1 | F85: A | G85: a | H85: 1 | I85: 418376 | J85: 10.4 | K85: 57 | L85: 84.9 | M85: 87.7 | N85: 2423 | O85: 109 | P85: 1093.1 | Q85: 79.3 | R85: 95.2 | S85: 164.43 | T85: 188.12 | U85: 213.13 | V85: 88.09 | W85: 100.04 | X85: 87.4 | Y85: 77.2 | Z85: 186.7 | AA85: 18038 | AB85: 8446 | AC85: 9592 | AD85: 8046 | AE85: 2.8 | AF85: 151.9 | AG85: 85.5 | AH85: 0 | AI85: 0 | AJ85: 0 | AK85: 0 | AL85: 135
A86: 122165 | B86: 千葉県 | C86: 習志野市 | D86: 2171 | E86: Aa1 | F86: A | G86: a | H86: 1 | I86: 162969 | J86: 10.7 | K86: 50 | L86: 94.8 | M86: 100.6 | N86: 2072 | O86: 107 | P86: 208.3 | Q86: 65.5 | R86: 96.9 | S86: 152.07 | T86: 175.79 | U86: 175.79 | V86: 79.81 | W86: 95.98 | X86: 86.5 | Y86: 86.5 | Z86: 190.5 | AA86: 17475 | AB86: 7934 | AC86: 9541 | AD86: 6268 | AE86: 5.8 | AF86: 126.5 | AG86: 68.6 | AH86: 0 | AI86: 0 | AJ86: 0 | AK86: 0 | AL86: 166
A87: 122220 | B87: 千葉県 | C87: 我孫子市 | D87: 2171 | E87: Aa1 | F87: A | G87: a | H87: 1 | I87: 110077 | J87: 8.1 | K87: 47 | L87: 83.1 | M87: 82.7 | N87: 2138 | O87: 86 | P87: 0 | Q87: 77.4 | R87: 99.3 | S87: 135.68 | T87: 137.41 | U87: 159.52 | V87: 82.54 | W87: 54.86 | X87: 98.7 | Y87: 85.1 | Z87: 164.4 | AA87: 12943 | AB87: 7775 | AC87: 5168 | AD87: 8467 | AE87: 3.5 | AF87: 150.3 | AG87: 77.3 | AH87: 0 | AI87: 0 | AJ87: 0 | AK87: 0 | AL87: 122
A88: 122271 | B88: 千葉県 | C88: 浦安市 | D88: 2171 | E88: Aa1 | F88: A | G88: a | H88: 1 | I88: 166956 | J88: 13.1 | K88: 33 | L88: 99.7 | M88: 98.8 | N88: 1512 | O88: 105 | P88: 0 | Q88: 81.7 | R88: 97.3 | S88: 105.98 | T88: 147.61 | U88: 159.27 | V88: 100.9 | W88: 46.71 | X88: 71.8 | Y88: 66.5 | Z88: 105 | AA88: 18306 | AB88: 12513 | AC88: 5793 | AD88: 13913 | AE88: 2.9 | AF88: 122.4 | AG88: 83.9 | AH88: 0 | AI88: 0 | AJ88: 0 | AK88: 0 | AL88: 70
A89: 132021 | B89: 東京都 | C89: 立川市 | D89: 2171 | E89: Aa1 | F89: A | G89: a | H89: 1 | I89: 182092 | J89: 9.7 | K89: 57 | L89: 100 | M89: 104 | N89: 1382 | O89: 84 | P89: 52.5 | Q89: 90.3 | R89: 99.8 | S89: 125.75 | T89: 117.5 | U89: 133.5 | V89: 77.2 | W89: 40.3 | X89: 107 | Y89: 94.2 | Z89: 162.9 | AA89: 13583 | AB89: 8924 | AC89: 4659 | AD89: 4138 | AE89: 4.6 | AF89: 156.9 | AG89: 92.9 | AH89: 0 | AI89: 0 | AJ89: 0 | AK89: 0 | AL89: 82
